Workbook

Sheet Accueil
B3: Région | C3: BOURGOGNE FRANCHE COMTE
B5: Année | C5: 2022
B9: Epreuves
B10: 03/04/2022 Luxeuil | C10: 24/04/2022 Noidans les Vesoul | D10: 1/05/2022 Vescemont | E10: 08/05/2022 Morteau | F10: 22/05/2022 Pontarlier | G10: 05/06/2022 Vadans | H10: 12/06/2022 Montbéliard | I10: 02 et 03/07/2022 Bletterans

Sheet Classement Poussins
C1: 1 | D1: 2 | E1: 3 | F1: 5 | G1: 6 | H1: 7 | I1: 1 | J1: 2 | K1: 3 | L1: 4 | M1: 5 | N1: 6 | O1: 7 | P1: 8
B2: Leader maillot Jaune | D2: ='Saisie Poussins'!E2 -> MURATORI EZYO - CC BELFORT MIOTTE | I2: ="Challenge régional "&Accueil!$C$3&" - "&Accueil!$C$5 -> Challenge régional BOURGOGNE FRANCHE COMTE - 2022
B3: Classement Général
A4: Place | B4: Licence | C4: Nom | D4: Prénom | F4: Club | G4: Catégorie | H4: Année | J4: =RIGHT(CELL("nomfichier",$A$1), LEN(CELL("nomfichier",$A$1))-FIND("]", CELL("nomfichier",$A$1))) -> Classement Poussins
I5: =Accueil!B$10 -> 03/04/2022 Luxeuil | J5: =Accueil!C$10 -> 24/04/2022 Noidans les Vesoul | K5: =Accueil!D$10 -> 1/05/2022 Vescemont | L5: =Accueil!E$10 -> 08/05/2022 Morteau | M5: =Accueil!F$10 -> 22/05/2022 Pontarlier | N5: =Accueil!G$10 -> 05/06/2022 Vadans | O5: =Accueil!H$10 -> 12/06/2022 Montbéliard | P5: =Accueil!I$10 -> 02 et 03/07/2022 Bletterans | Q5: Total des 5 meilleurs
A6: 1 | B6: =IFERROR(VLOOKUP(A6,'Saisie Poussins'!$BE$13:$BF$56,2,FALSE),"") -> 42900480168 | C6: =IFERROR(VLOOKUP($B6,'Saisie Poussins'!$B$13:$AI$56,1+C$1,FALSE),0) -> MURATORI | D6: =IFERROR(VLOOKUP($B6,'Saisie Poussins'!$B$13:$AI$56,1+D$1,FALSE),0) -> EZYO | E6: =IFERROR(VLOOKUP($B6,'Saisie Poussins'!$B$13:$AI$56,1+E$1,FALSE),0) -> H | F6: =IFERROR(VLOOKUP($B6,'Saisie Poussins'!$B$13:$AI$56,1+F$1,FALSE),0) -> CC BELFORT MIOTTE | G6: =IFERROR(VLOOKUP($B6,'Saisie Poussins'!$B$13:$AI$56,1+G$1,FALSE),0) -> Poussin | H6: =IFERROR(VLOOKUP($B6,'Saisie Poussins'!$B$13:$AI$56,1+H$1,FALSE),0) -> 2 | I6: =IFERROR(VLOOKUP($B6,'Saisie Poussins'!$B$13:$AI$56,26+I$1,FALSE),0) -> 40 | J6: =IFERROR(VLOOKUP($B6,'Saisie Poussins'!$B$13:$AI$56,26+J$1,FALSE),0) -> 50 | K6: =IFERROR(VLOOKUP($B6,'Saisie Poussins'!$B$13:$AI$56,26+K$1,FALSE),0) -> 0 | L6: =IFERROR(VLOOKUP($B6,'Saisie Poussins'!$B$13:$AI$56,26+L$1,FALSE),0) -> 0 | M6: =IFERROR(VLOOKUP($B6,'Saisie Poussins'!$B$13:$AI$56,26+M$1,FALSE),0) -> 0 | N6: =IFERROR(VLOOKUP($B6,'Saisie Poussins'!$B$13:$AI$56,26+N$1,FALSE),0) -> 0 | O6: =IFERROR(VLOOKUP($B6,'Saisie Poussins'!$B$13:$AI$56,26+O$1,FALSE),0) -> 0 | P6: =IFERROR(VLOOKUP($B6,'Saisie Poussins'!$B$13:$AI$56,26+P$1,FALSE),0) -> 0 | Q6: =IF(B6>0,SUM(I6:P6),"") -> 90
A7: =IFERROR(IF(A6+1<='Saisie Poussins'!$BF$12,A6+1,""),"") -> 2 | B7: =IFERROR(VLOOKUP(A7,'Saisie Poussins'!$BE$13:$BF$56,2,FALSE),"") -> 42900480124 | C7: =IFERROR(VLOOKUP($B7,'Saisie Poussins'!$B$13:$AI$56,1+C$1,FALSE),0) -> JOURNET | D7: =IFERROR(VLOOKUP($B7,'Saisie Poussins'!$B$13:$AI$56,1+D$1,FALSE),0) -> Paul | E7: =IFERROR(VLOOKUP($B7,'Saisie Poussins'!$B$13:$AI$56,1+E$1,FALSE),0) -> H | F7: =IFERROR(VLOOKUP($B7,'Saisie Poussins'!$B$13:$AI$56,1+F$1,FALSE),0) -> CC BELFORT MIOTTE | G7: =IFERROR(VLOOKUP($B7,'Saisie Poussins'!$B$13:$AI$56,1+G$1,FALSE),0) -> Poussin | H7: =IFERROR(VLOOKUP($B7,'Saisie Poussins'!$B$13:$AI$56,1+H$1,FALSE),0) -> 2 | I7: =IFERROR(VLOOKUP($B7,'Saisie Poussins'!$B$13:$AI$56,26+I$1,FALSE),0) -> 37 | J7: =IFERROR(VLOOKUP($B7,'Saisie Poussins'!$B$13:$AI$56,26+J$1,FALSE),0) -> 44 | K7: =IFERROR(VLOOKUP($B7,'Saisie Poussins'!$B$13:$AI$56,26+K$1,FALSE),0) -> 0 | L7: =IFERROR(VLOOKUP($B7,'Saisie Poussins'!$B$13:$AI$56,26+L$1,FALSE),0) -> 0 | M7: =IFERROR(VLOOKUP($B7,'Saisie Poussins'!$B$13:$AI$56,26+M$1,FALSE),0) -> 0 | N7: =IFERROR(VLOOKUP($B7,'Saisie Poussins'!$B$13:$AI$56,26+N$1,FALSE),0) -> 0 | O7: =IFERROR(VLOOKUP($B7,'Saisie Poussins'!$B$13:$AI$56,26+O$1,FALSE),0) -> 0 | P7: =IFERROR(VLOOKUP($B7,'Saisie Poussins'!$B$13:$AI$56,26+P$1,FALSE),0) -> 0 | Q7: =IF(B7>0,SUM(I7:P7),"") -> 81
A8: =IFERROR(IF(A7+1<='Saisie Poussins'!$BF$12,A7+1,""),"") -> 3 | B8: =IFERROR(VLOOKUP(A8,'Saisie Poussins'!$BE$13:$BF$56,2,FALSE),"") -> 42700680182 | C8: =IFERROR(VLOOKUP($B8,'Saisie Poussins'!$B$13:$AI$56,1+C$1,FALSE),0) -> BOURGES | D8: =IFERROR(VLOOKUP($B8,'Saisie Poussins'!$B$13:$AI$56,1+D$1,FALSE),0) -> Martin | E8: =IFERROR(VLOOKUP($B8,'Saisie Poussins'!$B$13:$AI$56,1+E$1,FALSE),0) -> H | F8: =IFERROR(VLOOKUP($B8,'Saisie Poussins'!$B$13:$AI$56,1+F$1,FALSE),0) -> E.C. LUXEUIL VOSGES SAONO | G8: =IFERROR(VLOOKUP($B8,'Saisie Poussins'!$B$13:$AI$56,1+G$1,FALSE),0) -> Poussin | H8: =IFERROR(VLOOKUP($B8,'Saisie Poussins'!$B$13:$AI$56,1+H$1,FALSE),0) -> 2 | I8: =IFERROR(VLOOKUP($B8,'Saisie Poussins'!$B$13:$AI$56,26+I$1,FALSE),0) -> 44 | J8: =IFERROR(VLOOKUP($B8,'Saisie Poussins'!$B$13:$AI$56,26+J$1,FALSE),0) -> 37 | K8: =IFERROR(VLOOKUP($B8,'Saisie Poussins'!$B$13:$AI$56,26+K$1,FALSE),0) -> 0 | L8: =IFERROR(VLOOKUP($B8,'Saisie Poussins'!$B$13:$AI$56,26+L$1,FALSE),0) -> 0 | M8: =IFERROR(VLOOKUP($B8,'Saisie Poussins'!$B$13:$AI$56,26+M$1,FALSE),0) -> 0 | N8: =IFERROR(VLOOKUP($B8,'Saisie Poussins'!$B$13:$AI$56,26+N$1,FALSE),0) -> 0 | O8: =IFERROR(VLOOKUP($B8,'Saisie Poussins'!$B$13:$AI$56,26+O$1,FALSE),0) -> 0 | P8: =IFERROR(VLOOKUP($B8,'Saisie Poussins'!$B$13:$AI$56,26+P$1,FALSE),0) -> 0 | Q8: 81
A9: =IFERROR(IF(A8+1<='Saisie Poussins'!$BF$12,A8+1,""),"") -> 4 | B9: =IFERROR(VLOOKUP(A9,'Saisie Poussins'!$BE$13:$BF$56,2,FALSE),"") -> 42250181212 | C9: =IFERROR(VLOOKUP($B9,'Saisie Poussins'!$B$13:$AI$56,1+C$1,FALSE),0) -> DEVILLERS | D9: =IFERROR(VLOOKUP($B9,'Saisie Poussins'!$B$13:$AI$56,1+D$1,FALSE),0) -> Louis | E9: =IFERROR(VLOOKUP($B9,'Saisie Poussins'!$B$13:$AI$56,1+E$1,FALSE),0) -> H | F9: =IFERROR(VLOOKUP($B9,'Saisie Poussins'!$B$13:$AI$56,1+F$1,FALSE),0) -> VC MORTEAU MONTBENOIT | G9: =IFERROR(VLOOKUP($B9,'Saisie Poussins'!$B$13:$AI$56,1+G$1,FALSE),0) -> Poussin | H9: =IFERROR(VLOOKUP($B9,'Saisie Poussins'!$B$13:$AI$56,1+H$1,FALSE),0) -> 1 | I9: =IFERROR(VLOOKUP($B9,'Saisie Poussins'!$B$13:$AI$56,26+I$1,FALSE),0) -> 34 | J9: =IFERROR(VLOOKUP($B9,'Saisie Poussins'!$B$13:$AI$56,26+J$1,FALSE),0) -> 34 | K9: =IFERROR(VLOOKUP($B9,'Saisie Poussins'!$B$13:$AI$56,26+K$1,FALSE),0) -> 0 | L9: =IFERROR(VLOOKUP($B9,'Saisie Poussins'!$B$13:$AI$56,26+L$1,FALSE),0) -> 0 | M9: =IFERROR(VLOOKUP($B9,'Saisie Poussins'!$B$13:$AI$56,26+M$1,FALSE),0) -> 0 | N9: =IFERROR(VLOOKUP($B9,'Saisie Poussins'!$B$13:$AI$56,26+N$1,FALSE),0) -> 0 | O9: =IFERROR(VLOOKUP($B9,'Saisie Poussins'!$B$13:$AI$56,26+O$1,FALSE),0) -> 0 | P9: =IFERROR(VLOOKUP($B9,'Saisie Poussins'!$B$13:$AI$56,26+P$1,FALSE),0) -> 0 | Q9: 68
A10: =IFERROR(IF(A9+1<='Saisie Poussins'!$BF$12,A9+1,""),"") -> 5 | B10: =IFERROR(VLOOKUP(A10,'Saisie Poussins'!$BE$13:$BF$56,2,FALSE),"") -> 42700060248 | C10: =IFERROR(VLOOKUP($B10,'Saisie Poussins'!$B$13:$AI$56,1+C$1,FALSE),0) -> BOISSON | D10: =IFERROR(VLOOKUP($B10,'Saisie Poussins'!$B$13:$AI$56,1+D$1,FALSE),0) -> Marius | E10: =IFERROR(VLOOKUP($B10,'Saisie Poussins'!$B$13:$AI$56,1+E$1,FALSE),0) -> H | F10: =IFERROR(VLOOKUP($B10,'Saisie Poussins'!$B$13:$AI$56,1+F$1,FALSE),0) -> ROUE D`OR NOIDANS | G10: =IFERROR(VLOOKUP($B10,'Saisie Poussins'!$B$13:$AI$56,1+G$1,FALSE),0) -> Poussin | H10: =IFERROR(VLOOKUP($B10,'Saisie Poussins'!$B$13:$AI$56,1+H$1,FALSE),0) -> 1 | I10: =IFERROR(VLOOKUP($B10,'Saisie Poussins'!$B$13:$AI$56,26+I$1,FALSE),0) -> 28 | J10: =IFERROR(VLOOKUP($B10,'Saisie Poussins'!$B$13:$AI$56,26+J$1,FALSE),0) -> 40 | K10: =IFERROR(VLOOKUP($B10,'Saisie Poussins'!$B$13:$AI$56,26+K$1,FALSE),0) -> 0 | L10: =IFERROR(VLOOKUP($B10,'Saisie Poussins'!$B$13:$AI$56,26+L$1,FALSE),0) -> 0 | M10: =IFERROR(VLOOKUP($B10,'Saisie Poussins'!$B$13:$AI$56,26+M$1,FALSE),0) -> 0 | N10: =IFERROR(VLOOKUP($B10,'Saisie Poussins'!$B$13:$AI$56,26+N$1,FALSE),0) -> 0 | O10: =IFERROR(VLOOKUP($B10,'Saisie Poussins'!$B$13:$AI$56,26+O$1,FALSE),0) -> 0 | P10: =IFERROR(VLOOKUP($B10,'Saisie Poussins'!$B$13:$AI$56,26+P$1,FALSE),0) -> 0 | Q10: 68
A11: =IFERROR(IF(A10+1<='Saisie Poussins'!$BF$12,A10+1,""),"") -> 6 | B11: =IFERROR(VLOOKUP(A11,'Saisie Poussins'!$BE$13:$BF$56,2,FALSE),"") -> 42700680157 | C11: =IFERROR(VLOOKUP($B11,'Saisie Poussins'!$B$13:$AI$56,1+C$1,FALSE),0) -> BARBASON | D11: =IFERROR(VLOOKUP($B11,'Saisie Poussins'!$B$13:$AI$56,1+D$1,FALSE),0) -> Jean | E11: =IFERROR(VLOOKUP($B11,'Saisie Poussins'!$B$13:$AI$56,1+E$1,FALSE),0) -> H | F11: =IFERROR(VLOOKUP($B11,'Saisie Poussins'!$B$13:$AI$56,1+F$1,FALSE),0) -> E.C. LUXEUIL VOSGES SAONO | G11: =IFERROR(VLOOKUP($B11,'Saisie Poussins'!$B$13:$AI$56,1+G$1,FALSE),0) -> Poussin | H11: =IFERROR(VLOOKUP($B11,'Saisie Poussins'!$B$13:$AI$56,1+H$1,FALSE),0) -> 2 | I11: =IFERROR(VLOOKUP($B11,'Saisie Poussins'!$B$13:$AI$56,26+I$1,FALSE),0) -> 26 | J11: =IFERROR(VLOOKUP($B11,'Saisie Poussins'!$B$13:$AI$56,26+J$1,FALSE),0) -> 34 | K11: =IFERROR(VLOOKUP($B11,'Saisie Poussins'!$B$13:$AI$56,26+K$1,FALSE),0) -> 0 | L11: =IFERROR(VLOOKUP($B11,'Saisie Poussins'!$B$13:$AI$56,26+L$1,FALSE),0) -> 0 | M11: =IFERROR(VLOOKUP($B11,'Saisie Poussins'!$B$13:$AI$56,26+M$1,FALSE),0) -> 0 | N11: =IFERROR(VLOOKUP($B11,'Saisie Poussins'!$B$13:$AI$56,26+N$1,FALSE),0) -> 0 | O11: =IFERROR(VLOOKUP($B11,'Saisie Poussins'!$B$13:$AI$56,26+O$1,FALSE),0) -> 0 | P11: =IFERROR(VLOOKUP($B11,'Saisie Poussins'!$B$13:$AI$56,26+P$1,FALSE),0) -> 0 | Q11: 60
A12: =IFERROR(IF(A11+1<='Saisie Poussins'!$BF$12,A11+1,""),"") -> 7 | B12: =IFERROR(VLOOKUP(A12,'Saisie Poussins'!$BE$13:$BF$56,2,FALSE),"") -> 42250181174 | C12: =IFERROR(VLOOKUP($B12,'Saisie Poussins'!$B$13:$AI$56,1+C$1,FALSE),0) -> DEVILLERS | D12: =IFERROR(VLOOKUP($B12,'Saisie Poussins'!$B$13:$AI$56,1+D$1,FALSE),0) -> Lylou | E12: =IFERROR(VLOOKUP($B12,'Saisie Poussins'!$B$13:$AI$56,1+E$1,FALSE),0) -> D | F12: =IFERROR(VLOOKUP($B12,'Saisie Poussins'!$B$13:$AI$56,1+F$1,FALSE),0) -> VC MORTEAU MONTBENOIT | G12: =IFERROR(VLOOKUP($B12,'Saisie Poussins'!$B$13:$AI$56,1+G$1,FALSE),0) -> Poussin | H12: =IFERROR(VLOOKUP($B12,'Saisie Poussins'!$B$13:$AI$56,1+H$1,FALSE),0) -> 2 | I12: =IFERROR(VLOOKUP($B12,'Saisie Poussins'!$B$13:$AI$56,26+I$1,FALSE),0) -> 24 | J12: =IFERROR(VLOOKUP($B12,'Saisie Poussins'!$B$13:$AI$56,26+J$1,FALSE),0) -> 30 | K12: =IFERROR(VLOOKUP($B12,'Saisie Poussins'!$B$13:$AI$56,26+K$1,FALSE),0) -> 0 | L12: =IFERROR(VLOOKUP($B12,'Saisie Poussins'!$B$13:$AI$56,26+L$1,FALSE),0) -> 0 | M12: =IFERROR(VLOOKUP($B12,'Saisie Poussins'!$B$13:$AI$56,26+M$1,FALSE),0) -> 0 | N12: =IFERROR(VLOOKUP($B12,'Saisie Poussins'!$B$13:$AI$56,26+N$1,FALSE),0) -> 0 | O12: =IFERROR(VLOOKUP($B12,'Saisie Poussins'!$B$13:$AI$56,26+O$1,FALSE),0) -> 0 | P12: =IFERROR(VLOOKUP($B12,'Saisie Poussins'!$B$13:$AI$56,26+P$1,FALSE),0) -> 0 | Q12: 54
A13: =IFERROR(IF(A12+1<='Saisie Poussins'!$BF$12,A12+1,""),"") -> 8 | B13: =IFERROR(VLOOKUP(A13,'Saisie Poussins'!$BE$13:$BF$56,2,FALSE),"") -> 42250120321 | C13: =IFERROR(VLOOKUP($B13,'Saisie Poussins'!$B$13:$AI$56,1+C$1,FALSE),0) -> GRIME | D13: =IFERROR(VLOOKUP($B13,'Saisie Poussins'!$B$13:$AI$56,1+D$1,FALSE),0) -> Lucas | E13: =IFERROR(VLOOKUP($B13,'Saisie Poussins'!$B$13:$AI$56,1+E$1,FALSE),0) -> H | F13: =IFERROR(VLOOKUP($B13,'Saisie Poussins'!$B$13:$AI$56,1+F$1,FALSE),0) -> V.C.DE MONTBELIARD | G13: =IFERROR(VLOOKUP($B13,'Saisie Poussins'!$B$13:$AI$56,1+G$1,FALSE),0) -> Poussin | H13: =IFERROR(VLOOKUP($B13,'Saisie Poussins'!$B$13:$AI$56,1+H$1,FALSE),0) -> 2 | I13: =IFERROR(VLOOKUP($B13,'Saisie Poussins'!$B$13:$AI$56,26+I$1,FALSE),0) -> 50 | J13: =IFERROR(VLOOKUP($B13,'Saisie Poussins'!$B$13:$AI$56,26+J$1,FALSE),0) -> 0 | K13: =IFERROR(VLOOKUP($B13,'Saisie Poussins'!$B$13:$AI$56,26+K$1,FALSE),0) -> 0 | L13: =IFERROR(VLOOKUP($B13,'Saisie Poussins'!$B$13:$AI$56,26+L$1,FALSE),0) -> 0 | M13: =IFERROR(VLOOKUP($B13,'Saisie Poussins'!$B$13:$AI$56,26+M$1,FALSE),0) -> 0 | N13: =IFERROR(VLOOKUP($B13,'Saisie Poussins'!$B$13:$AI$56,26+N$1,FALSE),0) -> 0 | O13: =IFERROR(VLOOKUP($B13,'Saisie Poussins'!$B$13:$AI$56,26+O$1,FALSE),0) -> 0 | P13: =IFERROR(VLOOKUP($B13,'Saisie Poussins'!$B$13:$AI$56,26+P$1,FALSE),0) -> 0 | Q13: 50
A14: =IFERROR(IF(A13+1<='Saisie Poussins'!$BF$12,A13+1,""),"") -> 9 | B14: =IFERROR(VLOOKUP(A14,'Saisie Poussins'!$BE$13:$BF$56,2,FALSE),"") -> 42900360346 | C14: =IFERROR(VLOOKUP($B14,'Saisie Poussins'!$B$13:$AI$56,1+C$1,FALSE),0) -> STADLER | D14: =IFERROR(VLOOKUP($B14,'Saisie Poussins'!$B$13:$AI$56,1+D$1,FALSE),0) -> Gwennaelle | E14: =IFERROR(VLOOKUP($B14,'Saisie Poussins'!$B$13:$AI$56,1+E$1,FALSE),0) -> D | F14: =IFERROR(VLOOKUP($B14,'Saisie Poussins'!$B$13:$AI$56,1+F$1,FALSE),0) -> A.C.T. BELFORT | G14: =IFERROR(VLOOKUP($B14,'Saisie Poussins'!$B$13:$AI$56,1+G$1,FALSE),0) -> Poussin | H14: =IFERROR(VLOOKUP($B14,'Saisie Poussins'!$B$13:$AI$56,1+H$1,FALSE),0) -> 1 | I14: =IFERROR(VLOOKUP($B14,'Saisie Poussins'!$B$13:$AI$56,26+I$1,FALSE),0) -> 20 | J14: =IFERROR(VLOOKUP($B14,'Saisie Poussins'!$B$13:$AI$56,26+J$1,FALSE),0) -> 26 | K14: =IFERROR(VLOOKUP($B14,'Saisie Poussins'!$B$13:$AI$56,26+K$1,FALSE),0) -> 0 | L14: =IFERROR(VLOOKUP($B14,'Saisie Poussins'!$B$13:$AI$56,26+L$1,FALSE),0) -> 0 | M14: =IFERROR(VLOOKUP($B14,'Saisie Poussins'!$B$13:$AI$56,26+M$1,FALSE),0) -> 0 | N14: =IFERROR(VLOOKUP($B14,'Saisie Poussins'!$B$13:$AI$56,26+N$1,FALSE),0) -> 0 | O14: =IFERROR(VLOOKUP($B14,'Saisie Poussins'!$B$13:$AI$56,26+O$1,FALSE),0) -> 0 | P14: =IFERROR(VLOOKUP($B14,'Saisie Poussins'!$B$13:$AI$56,26+P$1,FALSE),0) -> 0 | Q14: 46
A15: =IFERROR(IF(A14+1<='Saisie Poussins'!$BF$12,A14+1,""),"") -> 10 | B15: =IFERROR(VLOOKUP(A15,'Saisie Poussins'!$BE$13:$BF$56,2,FALSE),"") -> 42700680166 | C15: =IFERROR(VLOOKUP($B15,'Saisie Poussins'!$B$13:$AI$56,1+C$1,FALSE),0) -> ANDRE | D15: =IFERROR(VLOOKUP($B15,'Saisie Poussins'!$B$13:$AI$56,1+D$1,FALSE),0) -> Louane | E15: =IFERROR(VLOOKUP($B15,'Saisie Poussins'!$B$13:$AI$56,1+E$1,FALSE),0) -> D | F15: =IFERROR(VLOOKUP($B15,'Saisie Poussins'!$B$13:$AI$56,1+F$1,FALSE),0) -> E.C. LUXEUIL VOSGES SAONO | G15: =IFERROR(VLOOKUP($B15,'Saisie Poussins'!$B$13:$AI$56,1+G$1,FALSE),0) -> Poussin | H15: =IFERROR(VLOOKUP($B15,'Saisie Poussins'!$B$13:$AI$56,1+H$1,FALSE),0) -> 2 | I15: =IFERROR(VLOOKUP($B15,'Saisie Poussins'!$B$13:$AI$56,26+I$1,FALSE),0) -> 22 | J15: =IFERROR(VLOOKUP($B15,'Saisie Poussins'!$B$13:$AI$56,26+J$1,FALSE),0) -> 21 | K15: =IFERROR(VLOOKUP($B15,'Saisie Poussins'!$B$13:$AI$56,26+K$1,FALSE),0) -> 0 | L15: =IFERROR(VLOOKUP($B15,'Saisie Poussins'!$B$13:$AI$56,26+L$1,FALSE),0) -> 0 | M15: =IFERROR(VLOOKUP($B15,'Saisie Poussins'!$B$13:$AI$56,26+M$1,FALSE),0) -> 0 | N15: =IFERROR(VLOOKUP($B15,'Saisie Poussins'!$B$13:$AI$56,26+N$1,FALSE),0) -> 0 | O15: =IFERROR(VLOOKUP($B15,'Saisie Poussins'!$B$13:$AI$56,26+O$1,FALSE),0) -> 0 | P15: =IFERROR(VLOOKUP($B15,'Saisie Poussins'!$B$13:$AI$56,26+P$1,FALSE),0) -> 0 | Q15: 43
A16: =IFERROR(IF(A15+1<='Saisie Poussins'!$BF$12,A15+1,""),"") -> 11 | B16: =IFERROR(VLOOKUP(A16,'Saisie Poussins'!$BE$13:$BF$56,2,FALSE),"") -> 42700060276 | C16: =IFERROR(VLOOKUP($B16,'Saisie Poussins'!$B$13:$AI$56,1+C$1,FALSE),0) -> TAILHARDAT | D16: =IFERROR(VLOOKUP($B16,'Saisie Poussins'!$B$13:$AI$56,1+D$1,FALSE),0) -> Célestin | E16: =IFERROR(VLOOKUP($B16,'Saisie Poussins'!$B$13:$AI$56,1+E$1,FALSE),0) -> H | F16: =IFERROR(VLOOKUP($B16,'Saisie Poussins'!$B$13:$AI$56,1+F$1,FALSE),0) -> ROUE D`OR NOIDANS | G16: =IFERROR(VLOOKUP($B16,'Saisie Poussins'!$B$13:$AI$56,1+G$1,FALSE),0) -> Poussin | H16: =IFERROR(VLOOKUP($B16,'Saisie Poussins'!$B$13:$AI$56,1+H$1,FALSE),0) -> 1 | I16: =IFERROR(VLOOKUP($B16,'Saisie Poussins'!$B$13:$AI$56,26+I$1,FALSE),0) -> 32 | J16: =IFERROR(VLOOKUP($B16,'Saisie Poussins'!$B$13:$AI$56,26+J$1,FALSE),0) -> 0 | K16: =IFERROR(VLOOKUP($B16,'Saisie Poussins'!$B$13:$AI$56,26+K$1,FALSE),0) -> 0 | L16: =IFERROR(VLOOKUP($B16,'Saisie Poussins'!$B$13:$AI$56,26+L$1,FALSE),0) -> 0 | M16: =IFERROR(VLOOKUP($B16,'Saisie Poussins'!$B$13:$AI$56,26+M$1,FALSE),0) -> 0 | N16: =IFERROR(VLOOKUP($B16,'Saisie Poussins'!$B$13:$AI$56,26+N$1,FALSE),0) -> 0 | O16: =IFERROR(VLOOKUP($B16,'Saisie Poussins'!$B$13:$AI$56,26+O$1,FALSE),0) -> 0 | P16: =IFERROR(VLOOKUP($B16,'Saisie Poussins'!$B$13:$AI$56,26+P$1,FALSE),0) -> 0 | Q16: 32
A17: =IFERROR(IF(A16+1<='Saisie Poussins'!$BF$12,A16+1,""),"") -> 12 | B17: =IFERROR(VLOOKUP(A17,'Saisie Poussins'!$BE$13:$BF$56,2,FALSE),"") -> 42700680169 | C17: =IFERROR(VLOOKUP($B17,'Saisie Poussins'!$B$13:$AI$56,1+C$1,FALSE),0) -> BRY | D17: =IFERROR(VLOOKUP($B17,'Saisie Poussins'!$B$13:$AI$56,1+D$1,FALSE),0) -> Eliott | E17: =IFERROR(VLOOKUP($B17,'Saisie Poussins'!$B$13:$AI$56,1+E$1,FALSE),0) -> H | F17: =IFERROR(VLOOKUP($B17,'Saisie Poussins'!$B$13:$AI$56,1+F$1,FALSE),0) -> E.C. LUXEUIL VOSGES SAONO | G17: =IFERROR(VLOOKUP($B17,'Saisie Poussins'!$B$13:$AI$56,1+G$1,FALSE),0) -> Poussin | H17: =IFERROR(VLOOKUP($B17,'Saisie Poussins'!$B$13:$AI$56,1+H$1,FALSE),0) -> 1 | I17: =IFERROR(VLOOKUP($B17,'Saisie Poussins'!$B$13:$AI$56,26+I$1,FALSE),0) -> 30 | J17: =IFERROR(VLOOKUP($B17,'Saisie Poussins'!$B$13:$AI$56,26+J$1,FALSE),0) -> 0 | K17: =IFERROR(VLOOKUP($B17,'Saisie Poussins'!$B$13:$AI$56,26+K$1,FALSE),0) -> 0 | L17: =IFERROR(VLOOKUP($B17,'Saisie Poussins'!$B$13:$AI$56,26+L$1,FALSE),0) -> 0 | M17: =IFERROR(VLOOKUP($B17,'Saisie Poussins'!$B$13:$AI$56,26+M$1,FALSE),0) -> 0 | N17: =IFERROR(VLOOKUP($B17,'Saisie Poussins'!$B$13:$AI$56,26+N$1,FALSE),0) -> 0 | O17: =IFERROR(VLOOKUP($B17,'Saisie Poussins'!$B$13:$AI$56,26+O$1,FALSE),0) -> 0 | P17: =IFERROR(VLOOKUP($B17,'Saisie Poussins'!$B$13:$AI$56,26+P$1,FALSE),0) -> 0 | Q17: 30
A18: =IFERROR(IF(A17+1<='Saisie Poussins'!$BF$12,A17+1,""),"") -> 13 | B18: =IFERROR(VLOOKUP(A18,'Saisie Poussins'!$BE$13:$BF$56,2,FALSE),"") -> 42900480124 | C18: =IFERROR(VLOOKUP($B18,'Saisie Poussins'!$B$13:$AI$56,1+C$1,FALSE),0) -> JOURNET | D18: =IFERROR(VLOOKUP($B18,'Saisie Poussins'!$B$13:$AI$56,1+D$1,FALSE),0) -> Paul | E18: =IFERROR(VLOOKUP($B18,'Saisie Poussins'!$B$13:$AI$56,1+E$1,FALSE),0) -> H | F18: =IFERROR(VLOOKUP($B18,'Saisie Poussins'!$B$13:$AI$56,1+F$1,FALSE),0) -> CC BELFORT MIOTTE | G18: =IFERROR(VLOOKUP($B18,'Saisie Poussins'!$B$13:$AI$56,1+G$1,FALSE),0) -> Poussin | H18: =IFERROR(VLOOKUP($B18,'Saisie Poussins'!$B$13:$AI$56,1+H$1,FALSE),0) -> 2 | I18: =IFERROR(VLOOKUP($B18,'Saisie Poussins'!$B$13:$AI$56,26+I$1,FALSE),0) -> 37 | J18: =IFERROR(VLOOKUP($B18,'Saisie Poussins'!$B$13:$AI$56,26+J$1,FALSE),0) -> 44 | K18: =IFERROR(VLOOKUP($B18,'Saisie Poussins'!$B$13:$AI$56,26+K$1,FALSE),0) -> 0 | L18: =IFERROR(VLOOKUP($B18,'Saisie Poussins'!$B$13:$AI$56,26+L$1,FALSE),0) -> 0 | M18: =IFERROR(VLOOKUP($B18,'Saisie Poussins'!$B$13:$AI$56,26+M$1,FALSE),0) -> 0 | N18: =IFERROR(VLOOKUP($B18,'Saisie Poussins'!$B$13:$AI$56,26+N$1,FALSE),0) -> 0 | O18: =IFERROR(VLOOKUP($B18,'Saisie Poussins'!$B$13:$AI$56,26+O$1,FALSE),0) -> 0 | P18: =IFERROR(VLOOKUP($B18,'Saisie Poussins'!$B$13:$AI$56,26+P$1,FALSE),0) -> 0 | Q18: 81
A19: =IFERROR(IF(A18+1<='Saisie Poussins'!$BF$12,A18+1,""),"") -> 14 | B19: =IFERROR(VLOOKUP(A19,'Saisie Poussins'!$BE$13:$BF$56,2,FALSE),"") -> 46880320466 | C19: =IFERROR(VLOOKUP($B19,'Saisie Poussins'!$B$13:$AI$56,1+C$1,FALSE),0) -> HERMANN | D19: =IFERROR(VLOOKUP($B19,'Saisie Poussins'!$B$13:$AI$56,1+D$1,FALSE),0) -> Robin | E19: =IFERROR(VLOOKUP($B19,'Saisie Poussins'!$B$13:$AI$56,1+E$1,FALSE),0) -> H | F19: =IFERROR(VLOOKUP($B19,'Saisie Poussins'!$B$13:$AI$56,1+F$1,FALSE),0) -> CYCLE GOLBEEN | G19: =IFERROR(VLOOKUP($B19,'Saisie Poussins'!$B$13:$AI$56,1+G$1,FALSE),0) -> Poussin | H19: =IFERROR(VLOOKUP($B19,'Saisie Poussins'!$B$13:$AI$56,1+H$1,FALSE),0) -> 1 | I19: =IFERROR(VLOOKUP($B19,'Saisie Poussins'!$B$13:$AI$56,26+I$1,FALSE),0) -> 0 | J19: =IFERROR(VLOOKUP($B19,'Saisie Poussins'!$B$13:$AI$56,26+J$1,FALSE),0) -> 24 | K19: =IFERROR(VLOOKUP($B19,'Saisie Poussins'!$B$13:$AI$56,26+K$1,FALSE),0) -> 0 | L19: =IFERROR(VLOOKUP($B19,'Saisie Poussins'!$B$13:$AI$56,26+L$1,FALSE),0) -> 0 | M19: =IFERROR(VLOOKUP($B19,'Saisie Poussins'!$B$13:$AI$56,26+M$1,FALSE),0) -> 0 | N19: =IFERROR(VLOOKUP($B19,'Saisie Poussins'!$B$13:$AI$56,26+N$1,FALSE),0) -> 0 | O19: =IFERROR(VLOOKUP($B19,'Saisie Poussins'!$B$13:$AI$56,26+O$1,FALSE),0) -> 0 | P19: =IFERROR(VLOOKUP($B19,'Saisie Poussins'!$B$13:$AI$56,26+P$1,FALSE),0) -> 0 | Q19: 24
A20: =IFERROR(IF(A19+1<='Saisie Poussins'!$BF$12,A19+1,""),"") -> 15 | B20: =IFERROR(VLOOKUP(A20,'Saisie Poussins'!$BE$13:$BF$56,2,FALSE),"") -> 42250120377 | C20: =IFERROR(VLOOKUP($B20,'Saisie Poussins'!$B$13:$AI$56,1+C$1,FALSE),0) -> GAUROIS | D20: =IFERROR(VLOOKUP($B20,'Saisie Poussins'!$B$13:$AI$56,1+D$1,FALSE),0) -> Matthias | E20: =IFERROR(VLOOKUP($B20,'Saisie Poussins'!$B$13:$AI$56,1+E$1,FALSE),0) -> H | F20: =IFERROR(VLOOKUP($B20,'Saisie Poussins'!$B$13:$AI$56,1+F$1,FALSE),0) -> V.C.DE MONTBELIARD | G20: =IFERROR(VLOOKUP($B20,'Saisie Poussins'!$B$13:$AI$56,1+G$1,FALSE),0) -> Poussin | H20: =IFERROR(VLOOKUP($B20,'Saisie Poussins'!$B$13:$AI$56,1+H$1,FALSE),0) -> 2 | I20: =IFERROR(VLOOKUP($B20,'Saisie Poussins'!$B$13:$AI$56,26+I$1,FALSE),0) -> 0 | J20: =IFERROR(VLOOKUP($B20,'Saisie Poussins'!$B$13:$AI$56,26+J$1,FALSE),0) -> 24 | K20: =IFERROR(VLOOKUP($B20,'Saisie Poussins'!$B$13:$AI$56,26+K$1,FALSE),0) -> 0 | L20: =IFERROR(VLOOKUP($B20,'Saisie Poussins'!$B$13:$AI$56,26+L$1,FALSE),0) -> 0 | M20: =IFERROR(VLOOKUP($B20,'Saisie Poussins'!$B$13:$AI$56,26+M$1,FALSE),0) -> 0 | N20: =IFERROR(VLOOKUP($B20,'Saisie Poussins'!$B$13:$AI$56,26+N$1,FALSE),0) -> 0 | O20: =IFERROR(VLOOKUP($B20,'Saisie Poussins'!$B$13:$AI$56,26+O$1,FALSE),0) -> 0 | P20: =IFERROR(VLOOKUP($B20,'Saisie Poussins'!$B$13:$AI$56,26+P$1,FALSE),0) -> 0 | Q20: 24
A21: =IFERROR(IF(A20+1<='Saisie Poussins'!$BF$12,A20+1,""),"") -> 16 | B21: =IFERROR(VLOOKUP(A21,'Saisie Poussins'!$BE$13:$BF$56,2,FALSE),"") -> 42700680168 | C21: =IFERROR(VLOOKUP($B21,'Saisie Poussins'!$B$13:$AI$56,1+C$1,FALSE),0) -> CLERC | D21: =IFERROR(VLOOKUP($B21,'Saisie Poussins'!$B$13:$AI$56,1+D$1,FALSE),0) -> Zoé | E21: =IFERROR(VLOOKUP($B21,'Saisie Poussins'!$B$13:$AI$56,1+E$1,FALSE),0) -> H | F21: =IFERROR(VLOOKUP($B21,'Saisie Poussins'!$B$13:$AI$56,1+F$1,FALSE),0) -> E.C. LUXEUIL VOSGES SAONO | G21: =IFERROR(VLOOKUP($B21,'Saisie Poussins'!$B$13:$AI$56,1+G$1,FALSE),0) -> Poussin | H21: =IFERROR(VLOOKUP($B21,'Saisie Poussins'!$B$13:$AI$56,1+H$1,FALSE),0) -> 2 | I21: =IFERROR(VLOOKUP($B21,'Saisie Poussins'!$B$13:$AI$56,26+I$1,FALSE),0) -> 21 | J21: =IFERROR(VLOOKUP($B21,'Saisie Poussins'!$B$13:$AI$56,26+J$1,FALSE),0) -> 0 | K21: =IFERROR(VLOOKUP($B21,'Saisie Poussins'!$B$13:$AI$56,26+K$1,FALSE),0) -> 0 | L21: =IFERROR(VLOOKUP($B21,'Saisie Poussins'!$B$13:$AI$56,26+L$1,FALSE),0) -> 0 | M21: =IFERROR(VLOOKUP($B21,'Saisie Poussins'!$B$13:$AI$56,26+M$1,FALSE),0) -> 0 | N21: =IFERROR(VLOOKUP($B21,'Saisie Poussins'!$B$13:$AI$56,26+N$1,FALSE),0) -> 0 | O21: =IFERROR(VLOOKUP($B21,'Saisie Poussins'!$B$13:$AI$56,26+O$1,FALSE),0) -> 0 | P21: =IFERROR(VLOOKUP($B21,'Saisie Poussins'!$B$13:$AI$56,26+P$1,FALSE),0) -> 0 | Q21: 21
A22: =IFERROR(IF(A21+1<='Saisie Poussins'!$BF$12,A21+1,""),"") ->  | B22: =IFERROR(VLOOKUP(A22,'Saisie Poussins'!$BE$13:$BF$56,2,FALSE),"") ->  | C22: =IFERROR(VLOOKUP($B22,'Saisie Poussins'!$B$13:$AI$56,1+C$1,FALSE),0) -> 0 | D22: =IFERROR(VLOOKUP($B22,'Saisie Poussins'!$B$13:$AI$56,1+D$1,FALSE),0) -> 0 | E22: =IFERROR(VLOOKUP($B22,'Saisie Poussins'!$B$13:$AI$56,1+E$1,FALSE),0) -> 0 | F22: =IFERROR(VLOOKUP($B22,'Saisie Poussins'!$B$13:$AI$56,1+F$1,FALSE),0) -> 0 | G22: =IFERROR(VLOOKUP($B22,'Saisie Poussins'!$B$13:$AI$56,1+G$1,FALSE),0) -> 0 | H22: =IFERROR(VLOOKUP($B22,'Saisie Poussins'!$B$13:$AI$56,1+H$1,FALSE),0) -> 0 | I22: =IFERROR(VLOOKUP($B22,'Saisie Poussins'!$B$13:$AI$56,26+I$1,FALSE),0) -> 0 | J22: =IFERROR(VLOOKUP($B22,'Saisie Poussins'!$B$13:$AI$56,26+J$1,FALSE),0) -> 0 | K22: =IFERROR(VLOOKUP($B22,'Saisie Poussins'!$B$13:$AI$56,26+K$1,FALSE),0) -> 0 | L22: =IFERROR(VLOOKUP($B22,'Saisie Poussins'!$B$13:$AI$56,26+L$1,FALSE),0) -> 0 | M22: =IFERROR(VLOOKUP($B22,'Saisie Poussins'!$B$13:$AI$56,26+M$1,FALSE),0) -> 0 | N22: =IFERROR(VLOOKUP($B22,'Saisie Poussins'!$B$13:$AI$56,26+N$1,FALSE),0) -> 0 | O22: =IFERROR(VLOOKUP($B22,'Saisie Poussins'!$B$13:$AI$56,26+O$1,FALSE),0) -> 0 | P22: =IFERROR(VLOOKUP($B22,'Saisie Poussins'!$B$13:$AI$56,26+P$1,FALSE),0) -> 0 | Q22: 0
A23: =IFERROR(IF(A22+1<='Saisie Poussins'!$BF$12,A22+1,""),"") ->  | B23: =IFERROR(VLOOKUP(A23,'Saisie Poussins'!$BE$13:$BF$56,2,FALSE),"") ->  | C23: =IFERROR(VLOOKUP($B23,'Saisie Poussins'!$B$13:$AI$56,1+C$1,FALSE),0) -> 0 | D23: =IFERROR(VLOOKUP($B23,'Saisie Poussins'!$B$13:$AI$56,1+D$1,FALSE),0) -> 0 | E23: =IFERROR(VLOOKUP($B23,'Saisie Poussins'!$B$13:$AI$56,1+E$1,FALSE),0) -> 0 | F23: =IFERROR(VLOOKUP($B23,'Saisie Poussins'!$B$13:$AI$56,1+F$1,FALSE),0) -> 0 | G23: =IFERROR(VLOOKUP($B23,'Saisie Poussins'!$B$13:$AI$56,1+G$1,FALSE),0) -> 0 | H23: =IFERROR(VLOOKUP($B23,'Saisie Poussins'!$B$13:$AI$56,1+H$1,FALSE),0) -> 0 | I23: =IFERROR(VLOOKUP($B23,'Saisie Poussins'!$B$13:$AI$56,26+I$1,FALSE),0) -> 0 | J23: =IFERROR(VLOOKUP($B23,'Saisie Poussins'!$B$13:$AI$56,26+J$1,FALSE),0) -> 0 | K23: =IFERROR(VLOOKUP($B23,'Saisie Poussins'!$B$13:$AI$56,26+K$1,FALSE),0) -> 0 | L23: =IFERROR(VLOOKUP($B23,'Saisie Poussins'!$B$13:$AI$56,26+L$1,FALSE),0) -> 0 | M23: =IFERROR(VLOOKUP($B23,'Saisie Poussins'!$B$13:$AI$56,26+M$1,FALSE),0) -> 0 | N23: =IFERROR(VLOOKUP($B23,'Saisie Poussins'!$B$13:$AI$56,26+N$1,FALSE),0) -> 0 | O23: =IFERROR(VLOOKUP($B23,'Saisie Poussins'!$B$13:$AI$56,26+O$1,FALSE),0) -> 0 | P23: =IFERROR(VLOOKUP($B23,'Saisie Poussins'!$B$13:$AI$56,26+P$1,FALSE),0) -> 0 | Q23: 0
A24: =IFERROR(IF(A23+1<='Saisie Poussins'!$BF$12,A23+1,""),"") ->  | B24: =IFERROR(VLOOKUP(A24,'Saisie Poussins'!$BE$13:$BF$56,2,FALSE),"") ->  | C24: =IFERROR(VLOOKUP($B24,'Saisie Poussins'!$B$13:$AI$56,1+C$1,FALSE),0) -> 0 | D24: =IFERROR(VLOOKUP($B24,'Saisie Poussins'!$B$13:$AI$56,1+D$1,FALSE),0) -> 0 | E24: =IFERROR(VLOOKUP($B24,'Saisie Poussins'!$B$13:$AI$56,1+E$1,FALSE),0) -> 0 | F24: =IFERROR(VLOOKUP($B24,'Saisie Poussins'!$B$13:$AI$56,1+F$1,FALSE),0) -> 0 | G24: =IFERROR(VLOOKUP($B24,'Saisie Poussins'!$B$13:$AI$56,1+G$1,FALSE),0) -> 0 | H24: =IFERROR(VLOOKUP($B24,'Saisie Poussins'!$B$13:$AI$56,1+H$1,FALSE),0) -> 0 | I24: =IFERROR(VLOOKUP($B24,'Saisie Poussins'!$B$13:$AI$56,26+I$1,FALSE),0) -> 0 | J24: =IFERROR(VLOOKUP($B24,'Saisie Poussins'!$B$13:$AI$56,26+J$1,FALSE),0) -> 0 | K24: =IFERROR(VLOOKUP($B24,'Saisie Poussins'!$B$13:$AI$56,26+K$1,FALSE),0) -> 0 | L24: =IFERROR(VLOOKUP($B24,'Saisie Poussins'!$B$13:$AI$56,26+L$1,FALSE),0) -> 0 | M24: =IFERROR(VLOOKUP($B24,'Saisie Poussins'!$B$13:$AI$56,26+M$1,FALSE),0) -> 0 | N24: =IFERROR(VLOOKUP($B24,'Saisie Poussins'!$B$13:$AI$56,26+N$1,FALSE),0) -> 0 | O24: =IFERROR(VLOOKUP($B24,'Saisie Poussins'!$B$13:$AI$56,26+O$1,FALSE),0) -> 0 | P24: =IFERROR(VLOOKUP($B24,'Saisie Poussins'!$B$13:$AI$56,26+P$1,FALSE),0) -> 0 | Q24: 0
A25: =IFERROR(IF(A24+1<='Saisie Poussins'!$BF$12,A24+1,""),"") ->  | B25: =IFERROR(VLOOKUP(A25,'Saisie Poussins'!$BE$13:$BF$56,2,FALSE),"") ->  | C25: =IFERROR(VLOOKUP($B25,'Saisie Poussins'!$B$13:$AI$56,1+C$1,FALSE),0) -> 0 | D25: =IFERROR(VLOOKUP($B25,'Saisie Poussins'!$B$13:$AI$56,1+D$1,FALSE),0) -> 0 | E25: =IFERROR(VLOOKUP($B25,'Saisie Poussins'!$B$13:$AI$56,1+E$1,FALSE),0) -> 0 | F25: =IFERROR(VLOOKUP($B25,'Saisie Poussins'!$B$13:$AI$56,1+F$1,FALSE),0) -> 0 | G25: =IFERROR(VLOOKUP($B25,'Saisie Poussins'!$B$13:$AI$56,1+G$1,FALSE),0) -> 0 | H25: =IFERROR(VLOOKUP($B25,'Saisie Poussins'!$B$13:$AI$56,1+H$1,FALSE),0) -> 0 | I25: =IFERROR(VLOOKUP($B25,'Saisie Poussins'!$B$13:$AI$56,26+I$1,FALSE),0) -> 0 | J25: =IFERROR(VLOOKUP($B25,'Saisie Poussins'!$B$13:$AI$56,26+J$1,FALSE),0) -> 0 | K25: =IFERROR(VLOOKUP($B25,'Saisie Poussins'!$B$13:$AI$56,26+K$1,FALSE),0) -> 0 | L25: =IFERROR(VLOOKUP($B25,'Saisie Poussins'!$B$13:$AI$56,26+L$1,FALSE),0) -> 0 | M25: =IFERROR(VLOOKUP($B25,'Saisie Poussins'!$B$13:$AI$56,26+M$1,FALSE),0) -> 0 | N25: =IFERROR(VLOOKUP($B25,'Saisie Poussins'!$B$13:$AI$56,26+N$1,FALSE),0) -> 0 | O25: =IFERROR(VLOOKUP($B25,'Saisie Poussins'!$B$13:$AI$56,26+O$1,FALSE),0) -> 0 | P25: =IFERROR(VLOOKUP($B25,'Saisie Poussins'!$B$13:$AI$56,26+P$1,FALSE),0) -> 0 | Q25: 0
A26: =IFERROR(IF(A25+1<='Saisie Poussins'!$BF$12,A25+1,""),"") ->  | B26: =IFERROR(VLOOKUP(A26,'Saisie Poussins'!$BE$13:$BF$56,2,FALSE),"") ->  | C26: =IFERROR(VLOOKUP($B26,'Saisie Poussins'!$B$13:$AI$56,1+C$1,FALSE),0) -> 0 | D26: =IFERROR(VLOOKUP($B26,'Saisie Poussins'!$B$13:$AI$56,1+D$1,FALSE),0) -> 0 | E26: =IFERROR(VLOOKUP($B26,'Saisie Poussins'!$B$13:$AI$56,1+E$1,FALSE),0) -> 0 | F26: =IFERROR(VLOOKUP($B26,'Saisie Poussins'!$B$13:$AI$56,1+F$1,FALSE),0) -> 0 | G26: =IFERROR(VLOOKUP($B26,'Saisie Poussins'!$B$13:$AI$56,1+G$1,FALSE),0) -> 0 | H26: =IFERROR(VLOOKUP($B26,'Saisie Poussins'!$B$13:$AI$56,1+H$1,FALSE),0) -> 0 | I26: =IFERROR(VLOOKUP($B26,'Saisie Poussins'!$B$13:$AI$56,26+I$1,FALSE),0) -> 0 | J26: =IFERROR(VLOOKUP($B26,'Saisie Poussins'!$B$13:$AI$56,26+J$1,FALSE),0) -> 0 | K26: =IFERROR(VLOOKUP($B26,'Saisie Poussins'!$B$13:$AI$56,26+K$1,FALSE),0) -> 0 | L26: =IFERROR(VLOOKUP($B26,'Saisie Poussins'!$B$13:$AI$56,26+L$1,FALSE),0) -> 0 | M26: =IFERROR(VLOOKUP($B26,'Saisie Poussins'!$B$13:$AI$56,26+M$1,FALSE),0) -> 0 | N26: =IFERROR(VLOOKUP($B26,'Saisie Poussins'!$B$13:$AI$56,26+N$1,FALSE),0) -> 0 | O26: =IFERROR(VLOOKUP($B26,'Saisie Poussins'!$B$13:$AI$56,26+O$1,FALSE),0) -> 0 | P26: =IFERROR(VLOOKUP($B26,'Saisie Poussins'!$B$13:$AI$56,26+P$1,FALSE),0) -> 0 | Q26: 0
A27: =IFERROR(IF(A26+1<='Saisie Poussins'!$BF$12,A26+1,""),"") ->  | B27: =IFERROR(VLOOKUP(A27,'Saisie Poussins'!$BE$13:$BF$56,2,FALSE),"") ->  | C27: =IFERROR(VLOOKUP($B27,'Saisie Poussins'!$B$13:$AI$56,1+C$1,FALSE),0) -> 0 | D27: =IFERROR(VLOOKUP($B27,'Saisie Poussins'!$B$13:$AI$56,1+D$1,FALSE),0) -> 0 | E27: =IFERROR(VLOOKUP($B27,'Saisie Poussins'!$B$13:$AI$56,1+E$1,FALSE),0) -> 0 | F27: =IFERROR(VLOOKUP($B27,'Saisie Poussins'!$B$13:$AI$56,1+F$1,FALSE),0) -> 0 | G27: =IFERROR(VLOOKUP($B27,'Saisie Poussins'!$B$13:$AI$56,1+G$1,FALSE),0) -> 0 | H27: =IFERROR(VLOOKUP($B27,'Saisie Poussins'!$B$13:$AI$56,1+H$1,FALSE),0) -> 0 | I27: =IFERROR(VLOOKUP($B27,'Saisie Poussins'!$B$13:$AI$56,26+I$1,FALSE),0) -> 0 | J27: =IFERROR(VLOOKUP($B27,'Saisie Poussins'!$B$13:$AI$56,26+J$1,FALSE),0) -> 0 | K27: =IFERROR(VLOOKUP($B27,'Saisie Poussins'!$B$13:$AI$56,26+K$1,FALSE),0) -> 0 | L27: =IFERROR(VLOOKUP($B27,'Saisie Poussins'!$B$13:$AI$56,26+L$1,FALSE),0) -> 0 | M27: =IFERROR(VLOOKUP($B27,'Saisie Poussins'!$B$13:$AI$56,26+M$1,FALSE),0) -> 0 | N27: =IFERROR(VLOOKUP($B27,'Saisie Poussins'!$B$13:$AI$56,26+N$1,FALSE),0) -> 0 | O27: =IFERROR(VLOOKUP($B27,'Saisie Poussins'!$B$13:$AI$56,26+O$1,FALSE),0) -> 0 | P27: =IFERROR(VLOOKUP($B27,'Saisie Poussins'!$B$13:$AI$56,26+P$1,FALSE),0) -> 0 | Q27: 0
A28: =IFERROR(IF(A27+1<='Saisie Poussins'!$BF$12,A27+1,""),"") ->  | B28: =IFERROR(VLOOKUP(A28,'Saisie Poussins'!$BE$13:$BF$56,2,FALSE),"") ->  | C28: =IFERROR(VLOOKUP($B28,'Saisie Poussins'!$B$13:$AI$56,1+C$1,FALSE),0) -> 0 | D28: =IFERROR(VLOOKUP($B28,'Saisie Poussins'!$B$13:$AI$56,1+D$1,FALSE),0) -> 0 | E28: =IFERROR(VLOOKUP($B28,'Saisie Poussins'!$B$13:$AI$56,1+E$1,FALSE),0) -> 0 | F28: =IFERROR(VLOOKUP($B28,'Saisie Poussins'!$B$13:$AI$56,1+F$1,FALSE),0) -> 0 | G28: =IFERROR(VLOOKUP($B28,'Saisie Poussins'!$B$13:$AI$56,1+G$1,FALSE),0) -> 0 | H28: =IFERROR(VLOOKUP($B28,'Saisie Poussins'!$B$13:$AI$56,1+H$1,FALSE),0) -> 0 | I28: =IFERROR(VLOOKUP($B28,'Saisie Poussins'!$B$13:$AI$56,26+I$1,FALSE),0) -> 0 | J28: =IFERROR(VLOOKUP($B28,'Saisie Poussins'!$B$13:$AI$56,26+J$1,FALSE),0) -> 0 | K28: =IFERROR(VLOOKUP($B28,'Saisie Poussins'!$B$13:$AI$56,26+K$1,FALSE),0) -> 0 | L28: =IFERROR(VLOOKUP($B28,'Saisie Poussins'!$B$13:$AI$56,26+L$1,FALSE),0) -> 0 | M28: =IFERROR(VLOOKUP($B28,'Saisie Poussins'!$B$13:$AI$56,26+M$1,FALSE),0) -> 0 | N28: =IFERROR(VLOOKUP($B28,'Saisie Poussins'!$B$13:$AI$56,26+N$1,FALSE),0) -> 0 | O28: =IFERROR(VLOOKUP($B28,'Saisie Poussins'!$B$13:$AI$56,26+O$1,FALSE),0) -> 0 | P28: =IFERROR(VLOOKUP($B28,'Saisie Poussins'!$B$13:$AI$56,26+P$1,FALSE),0) -> 0 | Q28: 0
A29: =IFERROR(IF(A28+1<='Saisie Poussins'!$BF$12,A28+1,""),"") ->  | B29: =IFERROR(VLOOKUP(A29,'Saisie Poussins'!$BE$13:$BF$56,2,FALSE),"") ->  | C29: =IFERROR(VLOOKUP($B29,'Saisie Poussins'!$B$13:$AI$56,1+C$1,FALSE),0) -> 0 | D29: =IFERROR(VLOOKUP($B29,'Saisie Poussins'!$B$13:$AI$56,1+D$1,FALSE),0) -> 0 | E29: =IFERROR(VLOOKUP($B29,'Saisie Poussins'!$B$13:$AI$56,1+E$1,FALSE),0) -> 0 | F29: =IFERROR(VLOOKUP($B29,'Saisie Poussins'!$B$13:$AI$56,1+F$1,FALSE),0) -> 0 | G29: =IFERROR(VLOOKUP($B29,'Saisie Poussins'!$B$13:$AI$56,1+G$1,FALSE),0) -> 0 | H29: =IFERROR(VLOOKUP($B29,'Saisie Poussins'!$B$13:$AI$56,1+H$1,FALSE),0) -> 0 | I29: =IFERROR(VLOOKUP($B29,'Saisie Poussins'!$B$13:$AI$56,26+I$1,FALSE),0) -> 0 | J29: =IFERROR(VLOOKUP($B29,'Saisie Poussins'!$B$13:$AI$56,26+J$1,FALSE),0) -> 0 | K29: =IFERROR(VLOOKUP($B29,'Saisie Poussins'!$B$13:$AI$56,26+K$1,FALSE),0) -> 0 | L29: =IFERROR(VLOOKUP($B29,'Saisie Poussins'!$B$13:$AI$56,26+L$1,FALSE),0) -> 0 | M29: =IFERROR(VLOOKUP($B29,'Saisie Poussins'!$B$13:$AI$56,26+M$1,FALSE),0) -> 0 | N29: =IFERROR(VLOOKUP($B29,'Saisie Poussins'!$B$13:$AI$56,26+N$1,FALSE),0) -> 0 | O29: =IFERROR(VLOOKUP($B29,'Saisie Poussins'!$B$13:$AI$56,26+O$1,FALSE),0) -> 0 | P29: =IFERROR(VLOOKUP($B29,'Saisie Poussins'!$B$13:$AI$56,26+P$1,FALSE),0) -> 0 | Q29: 0
A30: =IFERROR(IF(A29+1<='Saisie Poussins'!$BF$12,A29+1,""),"") ->  | B30: =IFERROR(VLOOKUP(A30,'Saisie Poussins'!$BE$13:$BF$56,2,FALSE),"") ->  | C30: =IFERROR(VLOOKUP($B30,'Saisie Poussins'!$B$13:$AI$56,1+C$1,FALSE),0) -> 0 | D30: =IFERROR(VLOOKUP($B30,'Saisie Poussins'!$B$13:$AI$56,1+D$1,FALSE),0) -> 0 | E30: =IFERROR(VLOOKUP($B30,'Saisie Poussins'!$B$13:$AI$56,1+E$1,FALSE),0) -> 0 | F30: =IFERROR(VLOOKUP($B30,'Saisie Poussins'!$B$13:$AI$56,1+F$1,FALSE),0) -> 0 | G30: =IFERROR(VLOOKUP($B30,'Saisie Poussins'!$B$13:$AI$56,1+G$1,FALSE),0) -> 0 | H30: =IFERROR(VLOOKUP($B30,'Saisie Poussins'!$B$13:$AI$56,1+H$1,FALSE),0) -> 0 | I30: =IFERROR(VLOOKUP($B30,'Saisie Poussins'!$B$13:$AI$56,26+I$1,FALSE),0) -> 0 | J30: =IFERROR(VLOOKUP($B30,'Saisie Poussins'!$B$13:$AI$56,26+J$1,FALSE),0) -> 0 | K30: =IFERROR(VLOOKUP($B30,'Saisie Poussins'!$B$13:$AI$56,26+K$1,FALSE),0) -> 0 | L30: =IFERROR(VLOOKUP($B30,'Saisie Poussins'!$B$13:$AI$56,26+L$1,FALSE),0) -> 0 | M30: =IFERROR(VLOOKUP($B30,'Saisie Poussins'!$B$13:$AI$56,26+M$1,FALSE),0) -> 0 | N30: =IFERROR(VLOOKUP($B30,'Saisie Poussins'!$B$13:$AI$56,26+N$1,FALSE),0) -> 0 | O30: =IFERROR(VLOOKUP($B30,'Saisie Poussins'!$B$13:$AI$56,26+O$1,FALSE),0) -> 0 | P30: =IFERROR(VLOOKUP($B30,'Saisie Poussins'!$B$13:$AI$56,26+P$1,FALSE),0) -> 0 | Q30: 0
A31: =IFERROR(IF(A30+1<='Saisie Poussins'!$BF$12,A30+1,""),"") ->  | B31: =IFERROR(VLOOKUP(A31,'Saisie Poussins'!$BE$13:$BF$56,2,FALSE),"") ->  | C31: =IFERROR(VLOOKUP($B31,'Saisie Poussins'!$B$13:$AI$56,1+C$1,FALSE),0) -> 0 | D31: =IFERROR(VLOOKUP($B31,'Saisie Poussins'!$B$13:$AI$56,1+D$1,FALSE),0) -> 0 | E31: =IFERROR(VLOOKUP($B31,'Saisie Poussins'!$B$13:$AI$56,1+E$1,FALSE),0) -> 0 | F31: =IFERROR(VLOOKUP($B31,'Saisie Poussins'!$B$13:$AI$56,1+F$1,FALSE),0) -> 0 | G31: =IFERROR(VLOOKUP($B31,'Saisie Poussins'!$B$13:$AI$56,1+G$1,FALSE),0) -> 0 | H31: =IFERROR(VLOOKUP($B31,'Saisie Poussins'!$B$13:$AI$56,1+H$1,FALSE),0) -> 0 | I31: =IFERROR(VLOOKUP($B31,'Saisie Poussins'!$B$13:$AI$56,26+I$1,FALSE),0) -> 0 | J31: =IFERROR(VLOOKUP($B31,'Saisie Poussins'!$B$13:$AI$56,26+J$1,FALSE),0) -> 0 | K31: =IFERROR(VLOOKUP($B31,'Saisie Poussins'!$B$13:$AI$56,26+K$1,FALSE),0) -> 0 | L31: =IFERROR(VLOOKUP($B31,'Saisie Poussins'!$B$13:$AI$56,26+L$1,FALSE),0) -> 0 | M31: =IFERROR(VLOOKUP($B31,'Saisie Poussins'!$B$13:$AI$56,26+M$1,FALSE),0) -> 0 | N31: =IFERROR(VLOOKUP($B31,'Saisie Poussins'!$B$13:$AI$56,26+N$1,FALSE),0) -> 0 | O31: =IFERROR(VLOOKUP($B31,'Saisie Poussins'!$B$13:$AI$56,26+O$1,FALSE),0) -> 0 | P31: =IFERROR(VLOOKUP($B31,'Saisie Poussins'!$B$13:$AI$56,26+P$1,FALSE),0) -> 0 | Q31: 0
A32: =IFERROR(IF(A31+1<='Saisie Poussins'!$BF$12,A31+1,""),"") ->  | B32: =IFERROR(VLOOKUP(A32,'Saisie Poussins'!$BE$13:$BF$56,2,FALSE),"") ->  | C32: =IFERROR(VLOOKUP($B32,'Saisie Poussins'!$B$13:$AI$56,1+C$1,FALSE),0) -> 0 | D32: =IFERROR(VLOOKUP($B32,'Saisie Poussins'!$B$13:$AI$56,1+D$1,FALSE),0) -> 0 | E32: =IFERROR(VLOOKUP($B32,'Saisie Poussins'!$B$13:$AI$56,1+E$1,FALSE),0) -> 0 | F32: =IFERROR(VLOOKUP($B32,'Saisie Poussins'!$B$13:$AI$56,1+F$1,FALSE),0) -> 0 | G32: =IFERROR(VLOOKUP($B32,'Saisie Poussins'!$B$13:$AI$56,1+G$1,FALSE),0) -> 0 | H32: =IFERROR(VLOOKUP($B32,'Saisie Poussins'!$B$13:$AI$56,1+H$1,FALSE),0) -> 0 | I32: =IFERROR(VLOOKUP($B32,'Saisie Poussins'!$B$13:$AI$56,26+I$1,FALSE),0) -> 0 | J32: =IFERROR(VLOOKUP($B32,'Saisie Poussins'!$B$13:$AI$56,26+J$1,FALSE),0) -> 0 | K32: =IFERROR(VLOOKUP($B32,'Saisie Poussins'!$B$13:$AI$56,26+K$1,FALSE),0) -> 0 | L32: =IFERROR(VLOOKUP($B32,'Saisie Poussins'!$B$13:$AI$56,26+L$1,FALSE),0) -> 0 | M32: =IFERROR(VLOOKUP($B32,'Saisie Poussins'!$B$13:$AI$56,26+M$1,FALSE),0) -> 0 | N32: =IFERROR(VLOOKUP($B32,'Saisie Poussins'!$B$13:$AI$56,26+N$1,FALSE),0) -> 0 | O32: =IFERROR(VLOOKUP($B32,'Saisie Poussins'!$B$13:$AI$56,26+O$1,FALSE),0) -> 0 | P32: =IFERROR(VLOOKUP($B32,'Saisie Poussins'!$B$13:$AI$56,26+P$1,FALSE),0) -> 0 | Q32: 0
A33: =IFERROR(IF(A32+1<='Saisie Poussins'!$BF$12,A32+1,""),"") ->  | B33: =IFERROR(VLOOKUP(A33,'Saisie Poussins'!$BE$13:$BF$56,2,FALSE),"") ->  | C33: =IFERROR(VLOOKUP($B33,'Saisie Poussins'!$B$13:$AI$56,1+C$1,FALSE),0) -> 0 | D33: =IFERROR(VLOOKUP($B33,'Saisie Poussins'!$B$13:$AI$56,1+D$1,FALSE),0) -> 0 | E33: =IFERROR(VLOOKUP($B33,'Saisie Poussins'!$B$13:$AI$56,1+E$1,FALSE),0) -> 0 | F33: =IFERROR(VLOOKUP($B33,'Saisie Poussins'!$B$13:$AI$56,1+F$1,FALSE),0) -> 0 | G33: =IFERROR(VLOOKUP($B33,'Saisie Poussins'!$B$13:$AI$56,1+G$1,FALSE),0) -> 0 | H33: =IFERROR(VLOOKUP($B33,'Saisie Poussins'!$B$13:$AI$56,1+H$1,FALSE),0) -> 0 | I33: =IFERROR(VLOOKUP($B33,'Saisie Poussins'!$B$13:$AI$56,26+I$1,FALSE),0) -> 0 | J33: =IFERROR(VLOOKUP($B33,'Saisie Poussins'!$B$13:$AI$56,26+J$1,FALSE),0) -> 0 | K33: =IFERROR(VLOOKUP($B33,'Saisie Poussins'!$B$13:$AI$56,26+K$1,FALSE),0) -> 0 | L33: =IFERROR(VLOOKUP($B33,'Saisie Poussins'!$B$13:$AI$56,26+L$1,FALSE),0) -> 0 | M33: =IFERROR(VLOOKUP($B33,'Saisie Poussins'!$B$13:$AI$56,26+M$1,FALSE),0) -> 0 | N33: =IFERROR(VLOOKUP($B33,'Saisie Poussins'!$B$13:$AI$56,26+N$1,FALSE),0) -> 0 | O33: =IFERROR(VLOOKUP($B33,'Saisie Poussins'!$B$13:$AI$56,26+O$1,FALSE),0) -> 0 | P33: =IFERROR(VLOOKUP($B33,'Saisie Poussins'!$B$13:$AI$56,26+P$1,FALSE),0) -> 0 | Q33: 0
A34: =IFERROR(IF(A33+1<='Saisie Poussins'!$BF$12,A33+1,""),"") ->  | B34: =IFERROR(VLOOKUP(A34,'Saisie Poussins'!$BE$13:$BF$56,2,FALSE),"") ->  | C34: =IFERROR(VLOOKUP($B34,'Saisie Poussins'!$B$13:$AI$56,1+C$1,FALSE),0) -> 0 | D34: =IFERROR(VLOOKUP($B34,'Saisie Poussins'!$B$13:$AI$56,1+D$1,FALSE),0) -> 0 | E34: =IFERROR(VLOOKUP($B34,'Saisie Poussins'!$B$13:$AI$56,1+E$1,FALSE),0) -> 0 | F34: =IFERROR(VLOOKUP($B34,'Saisie Poussins'!$B$13:$AI$56,1+F$1,FALSE),0) -> 0 | G34: =IFERROR(VLOOKUP($B34,'Saisie Poussins'!$B$13:$AI$56,1+G$1,FALSE),0) -> 0 | H34: =IFERROR(VLOOKUP($B34,'Saisie Poussins'!$B$13:$AI$56,1+H$1,FALSE),0) -> 0 | I34: =IFERROR(VLOOKUP($B34,'Saisie Poussins'!$B$13:$AI$56,26+I$1,FALSE),0) -> 0 | J34: =IFERROR(VLOOKUP($B34,'Saisie Poussins'!$B$13:$AI$56,26+J$1,FALSE),0) -> 0 | K34: =IFERROR(VLOOKUP($B34,'Saisie Poussins'!$B$13:$AI$56,26+K$1,FALSE),0) -> 0 | L34: =IFERROR(VLOOKUP($B34,'Saisie Poussins'!$B$13:$AI$56,26+L$1,FALSE),0) -> 0 | M34: =IFERROR(VLOOKUP($B34,'Saisie Poussins'!$B$13:$AI$56,26+M$1,FALSE),0) -> 0 | N34: =IFERROR(VLOOKUP($B34,'Saisie Poussins'!$B$13:$AI$56,26+N$1,FALSE),0) -> 0 | O34: =IFERROR(VLOOKUP($B34,'Saisie Poussins'!$B$13:$AI$56,26+O$1,FALSE),0) -> 0 | P34: =IFERROR(VLOOKUP($B34,'Saisie Poussins'!$B$13:$AI$56,26+P$1,FALSE),0) -> 0 | Q34: 0
A35: =IFERROR(IF(A34+1<='Saisie Poussins'!$BF$12,A34+1,""),"") ->  | B35: =IFERROR(VLOOKUP(A35,'Saisie Poussins'!$BE$13:$BF$56,2,FALSE),"") ->  | C35: =IFERROR(VLOOKUP($B35,'Saisie Poussins'!$B$13:$AI$56,1+C$1,FALSE),0) -> 0 | D35: =IFERROR(VLOOKUP($B35,'Saisie Poussins'!$B$13:$AI$56,1+D$1,FALSE),0) -> 0 | E35: =IFERROR(VLOOKUP($B35,'Saisie Poussins'!$B$13:$AI$56,1+E$1,FALSE),0) -> 0 | F35: =IFERROR(VLOOKUP($B35,'Saisie Poussins'!$B$13:$AI$56,1+F$1,FALSE),0) -> 0 | G35: =IFERROR(VLOOKUP($B35,'Saisie Poussins'!$B$13:$AI$56,1+G$1,FALSE),0) -> 0 | H35: =IFERROR(VLOOKUP($B35,'Saisie Poussins'!$B$13:$AI$56,1+H$1,FALSE),0) -> 0 | I35: =IFERROR(VLOOKUP($B35,'Saisie Poussins'!$B$13:$AI$56,26+I$1,FALSE),0) -> 0 | J35: =IFERROR(VLOOKUP($B35,'Saisie Poussins'!$B$13:$AI$56,26+J$1,FALSE),0) -> 0 | K35: =IFERROR(VLOOKUP($B35,'Saisie Poussins'!$B$13:$AI$56,26+K$1,FALSE),0) -> 0 | L35: =IFERROR(VLOOKUP($B35,'Saisie Poussins'!$B$13:$AI$56,26+L$1,FALSE),0) -> 0 | M35: =IFERROR(VLOOKUP($B35,'Saisie Poussins'!$B$13:$AI$56,26+M$1,FALSE),0) -> 0 | N35: =IFERROR(VLOOKUP($B35,'Saisie Poussins'!$B$13:$AI$56,26+N$1,FALSE),0) -> 0 | O35: =IFERROR(VLOOKUP($B35,'Saisie Poussins'!$B$13:$AI$56,26+O$1,FALSE),0) -> 0 | P35: =IFERROR(VLOOKUP($B35,'Saisie Poussins'!$B$13:$AI$56,26+P$1,FALSE),0) -> 0 | Q35: 0
A36: =IFERROR(IF(A35+1<='Saisie Poussins'!$BF$12,A35+1,""),"") ->  | B36: =IFERROR(VLOOKUP(A36,'Saisie Poussins'!$BE$13:$BF$56,2,FALSE),"") ->  | C36: =IFERROR(VLOOKUP($B36,'Saisie Poussins'!$B$13:$AI$56,1+C$1,FALSE),0) -> 0 | D36: =IFERROR(VLOOKUP($B36,'Saisie Poussins'!$B$13:$AI$56,1+D$1,FALSE),0) -> 0 | E36: =IFERROR(VLOOKUP($B36,'Saisie Poussins'!$B$13:$AI$56,1+E$1,FALSE),0) -> 0 | F36: =IFERROR(VLOOKUP($B36,'Saisie Poussins'!$B$13:$AI$56,1+F$1,FALSE),0) -> 0 | G36: =IFERROR(VLOOKUP($B36,'Saisie Poussins'!$B$13:$AI$56,1+G$1,FALSE),0) -> 0 | H36: =IFERROR(VLOOKUP($B36,'Saisie Poussins'!$B$13:$AI$56,1+H$1,FALSE),0) -> 0 | I36: =IFERROR(VLOOKUP($B36,'Saisie Poussins'!$B$13:$AI$56,26+I$1,FALSE),0) -> 0 | J36: =IFERROR(VLOOKUP($B36,'Saisie Poussins'!$B$13:$AI$56,26+J$1,FALSE),0) -> 0 | K36: =IFERROR(VLOOKUP($B36,'Saisie Poussins'!$B$13:$AI$56,26+K$1,FALSE),0) -> 0 | L36: =IFERROR(VLOOKUP($B36,'Saisie Poussins'!$B$13:$AI$56,26+L$1,FALSE),0) -> 0 | M36: =IFERROR(VLOOKUP($B36,'Saisie Poussins'!$B$13:$AI$56,26+M$1,FALSE),0) -> 0 | N36: =IFERROR(VLOOKUP($B36,'Saisie Poussins'!$B$13:$AI$56,26+N$1,FALSE),0) -> 0 | O36: =IFERROR(VLOOKUP($B36,'Saisie Poussins'!$B$13:$AI$56,26+O$1,FALSE),0) -> 0 | P36: =IFERROR(VLOOKUP($B36,'Saisie Poussins'!$B$13:$AI$56,26+P$1,FALSE),0) -> 0 | Q36: 0
A37: =IFERROR(IF(A36+1<='Saisie Poussins'!$BF$12,A36+1,""),"") ->  | B37: =IFERROR(VLOOKUP(A37,'Saisie Poussins'!$BE$13:$BF$56,2,FALSE),"") ->  | C37: =IFERROR(VLOOKUP($B37,'Saisie Poussins'!$B$13:$AI$56,1+C$1,FALSE),0) -> 0 | D37: =IFERROR(VLOOKUP($B37,'Saisie Poussins'!$B$13:$AI$56,1+D$1,FALSE),0) -> 0 | E37: =IFERROR(VLOOKUP($B37,'Saisie Poussins'!$B$13:$AI$56,1+E$1,FALSE),0) -> 0 | F37: =IFERROR(VLOOKUP($B37,'Saisie Poussins'!$B$13:$AI$56,1+F$1,FALSE),0) -> 0 | G37: =IFERROR(VLOOKUP($B37,'Saisie Poussins'!$B$13:$AI$56,1+G$1,FALSE),0) -> 0 | H37: =IFERROR(VLOOKUP($B37,'Saisie Poussins'!$B$13:$AI$56,1+H$1,FALSE),0) -> 0 | I37: =IFERROR(VLOOKUP($B37,'Saisie Poussins'!$B$13:$AI$56,26+I$1,FALSE),0) -> 0 | J37: =IFERROR(VLOOKUP($B37,'Saisie Poussins'!$B$13:$AI$56,26+J$1,FALSE),0) -> 0 | K37: =IFERROR(VLOOKUP($B37,'Saisie Poussins'!$B$13:$AI$56,26+K$1,FALSE),0) -> 0 | L37: =IFERROR(VLOOKUP($B37,'Saisie Poussins'!$B$13:$AI$56,26+L$1,FALSE),0) -> 0 | M37: =IFERROR(VLOOKUP($B37,'Saisie Poussins'!$B$13:$AI$56,26+M$1,FALSE),0) -> 0 | N37: =IFERROR(VLOOKUP($B37,'Saisie Poussins'!$B$13:$AI$56,26+N$1,FALSE),0) -> 0 | O37: =IFERROR(VLOOKUP($B37,'Saisie Poussins'!$B$13:$AI$56,26+O$1,FALSE),0) -> 0 | P37: =IFERROR(VLOOKUP($B37,'Saisie Poussins'!$B$13:$AI$56,26+P$1,FALSE),0) -> 0 | Q37: 0
A38: =IFERROR(IF(A37+1<='Saisie Poussins'!$BF$12,A37+1,""),"") ->  | B38: =IFERROR(VLOOKUP(A38,'Saisie Poussins'!$BE$13:$BF$56,2,FALSE),"") ->  | C38: =IFERROR(VLOOKUP($B38,'Saisie Poussins'!$B$13:$AI$56,1+C$1,FALSE),0) -> 0 | D38: =IFERROR(VLOOKUP($B38,'Saisie Poussins'!$B$13:$AI$56,1+D$1,FALSE),0) -> 0 | E38: =IFERROR(VLOOKUP($B38,'Saisie Poussins'!$B$13:$AI$56,1+E$1,FALSE),0) -> 0 | F38: =IFERROR(VLOOKUP($B38,'Saisie Poussins'!$B$13:$AI$56,1+F$1,FALSE),0) -> 0 | G38: =IFERROR(VLOOKUP($B38,'Saisie Poussins'!$B$13:$AI$56,1+G$1,FALSE),0) -> 0 | H38: =IFERROR(VLOOKUP($B38,'Saisie Poussins'!$B$13:$AI$56,1+H$1,FALSE),0) -> 0 | I38: =IFERROR(VLOOKUP($B38,'Saisie Poussins'!$B$13:$AI$56,26+I$1,FALSE),0) -> 0 | J38: =IFERROR(VLOOKUP($B38,'Saisie Poussins'!$B$13:$AI$56,26+J$1,FALSE),0) -> 0 | K38: =IFERROR(VLOOKUP($B38,'Saisie Poussins'!$B$13:$AI$56,26+K$1,FALSE),0) -> 0 | L38: =IFERROR(VLOOKUP($B38,'Saisie Poussins'!$B$13:$AI$56,26+L$1,FALSE),0) -> 0 | M38: =IFERROR(VLOOKUP($B38,'Saisie Poussins'!$B$13:$AI$56,26+M$1,FALSE),0) -> 0 | N38: =IFERROR(VLOOKUP($B38,'Saisie Poussins'!$B$13:$AI$56,26+N$1,FALSE),0) -> 0 | O38: =IFERROR(VLOOKUP($B38,'Saisie Poussins'!$B$13:$AI$56,26+O$1,FALSE),0) -> 0 | P38: =IFERROR(VLOOKUP($B38,'Saisie Poussins'!$B$13:$AI$56,26+P$1,FALSE),0) -> 0 | Q38: 0
A39: =IFERROR(IF(A38+1<='Saisie Poussins'!$BF$12,A38+1,""),"") ->  | B39: =IFERROR(VLOOKUP(A39,'Saisie Poussins'!$BE$13:$BF$56,2,FALSE),"") ->  | C39: =IFERROR(VLOOKUP($B39,'Saisie Poussins'!$B$13:$AI$56,1+C$1,FALSE),0) -> 0 | D39: =IFERROR(VLOOKUP($B39,'Saisie Poussins'!$B$13:$AI$56,1+D$1,FALSE),0) -> 0 | E39: =IFERROR(VLOOKUP($B39,'Saisie Poussins'!$B$13:$AI$56,1+E$1,FALSE),0) -> 0 | F39: =IFERROR(VLOOKUP($B39,'Saisie Poussins'!$B$13:$AI$56,1+F$1,FALSE),0) -> 0 | G39: =IFERROR(VLOOKUP($B39,'Saisie Poussins'!$B$13:$AI$56,1+G$1,FALSE),0) -> 0 | H39: =IFERROR(VLOOKUP($B39,'Saisie Poussins'!$B$13:$AI$56,1+H$1,FALSE),0) -> 0 | I39: =IFERROR(VLOOKUP($B39,'Saisie Poussins'!$B$13:$AI$56,26+I$1,FALSE),0) -> 0 | J39: =IFERROR(VLOOKUP($B39,'Saisie Poussins'!$B$13:$AI$56,26+J$1,FALSE),0) -> 0 | K39: =IFERROR(VLOOKUP($B39,'Saisie Poussins'!$B$13:$AI$56,26+K$1,FALSE),0) -> 0 | L39: =IFERROR(VLOOKUP($B39,'Saisie Poussins'!$B$13:$AI$56,26+L$1,FALSE),0) -> 0 | M39: =IFERROR(VLOOKUP($B39,'Saisie Poussins'!$B$13:$AI$56,26+M$1,FALSE),0) -> 0 | N39: =IFERROR(VLOOKUP($B39,'Saisie Poussins'!$B$13:$AI$56,26+N$1,FALSE),0) -> 0 | O39: =IFERROR(VLOOKUP($B39,'Saisie Poussins'!$B$13:$AI$56,26+O$1,FALSE),0) -> 0 | P39: =IFERROR(VLOOKUP($B39,'Saisie Poussins'!$B$13:$AI$56,26+P$1,FALSE),0) -> 0 | Q39: 0
A40: =IFERROR(IF(A39+1<='Saisie Poussins'!$BF$12,A39+1,""),"") ->  | B40: =IFERROR(VLOOKUP(A40,'Saisie Poussins'!$BE$13:$BF$56,2,FALSE),"") ->  | C40: =IFERROR(VLOOKUP($B40,'Saisie Poussins'!$B$13:$AI$56,1+C$1,FALSE),0) -> 0 | D40: =IFERROR(VLOOKUP($B40,'Saisie Poussins'!$B$13:$AI$56,1+D$1,FALSE),0) -> 0 | E40: =IFERROR(VLOOKUP($B40,'Saisie Poussins'!$B$13:$AI$56,1+E$1,FALSE),0) -> 0 | F40: =IFERROR(VLOOKUP($B40,'Saisie Poussins'!$B$13:$AI$56,1+F$1,FALSE),0) -> 0 | G40: =IFERROR(VLOOKUP($B40,'Saisie Poussins'!$B$13:$AI$56,1+G$1,FALSE),0) -> 0 | H40: =IFERROR(VLOOKUP($B40,'Saisie Poussins'!$B$13:$AI$56,1+H$1,FALSE),0) -> 0 | I40: =IFERROR(VLOOKUP($B40,'Saisie Poussins'!$B$13:$AI$56,26+I$1,FALSE),0) -> 0 | J40: =IFERROR(VLOOKUP($B40,'Saisie Poussins'!$B$13:$AI$56,26+J$1,FALSE),0) -> 0 | K40: =IFERROR(VLOOKUP($B40,'Saisie Poussins'!$B$13:$AI$56,26+K$1,FALSE),0) -> 0 | L40: =IFERROR(VLOOKUP($B40,'Saisie Poussins'!$B$13:$AI$56,26+L$1,FALSE),0) -> 0 | M40: =IFERROR(VLOOKUP($B40,'Saisie Poussins'!$B$13:$AI$56,26+M$1,FALSE),0) -> 0 | N40: =IFERROR(VLOOKUP($B40,'Saisie Poussins'!$B$13:$AI$56,26+N$1,FALSE),0) -> 0 | O40: =IFERROR(VLOOKUP($B40,'Saisie Poussins'!$B$13:$AI$56,26+O$1,FALSE),0) -> 0 | P40: =IFERROR(VLOOKUP($B40,'Saisie Poussins'!$B$13:$AI$56,26+P$1,FALSE),0) -> 0 | Q40: 0
A41: =IFERROR(IF(A40+1<='Saisie Poussins'!$BF$12,A40+1,""),"") ->  | B41: =IFERROR(VLOOKUP(A41,'Saisie Poussins'!$BE$13:$BF$56,2,FALSE),"") ->  | C41: =IFERROR(VLOOKUP($B41,'Saisie Poussins'!$B$13:$AI$56,1+C$1,FALSE),0) -> 0 | D41: =IFERROR(VLOOKUP($B41,'Saisie Poussins'!$B$13:$AI$56,1+D$1,FALSE),0) -> 0 | E41: =IFERROR(VLOOKUP($B41,'Saisie Poussins'!$B$13:$AI$56,1+E$1,FALSE),0) -> 0 | F41: =IFERROR(VLOOKUP($B41,'Saisie Poussins'!$B$13:$AI$56,1+F$1,FALSE),0) -> 0 | G41: =IFERROR(VLOOKUP($B41,'Saisie Poussins'!$B$13:$AI$56,1+G$1,FALSE),0) -> 0 | H41: =IFERROR(VLOOKUP($B41,'Saisie Poussins'!$B$13:$AI$56,1+H$1,FALSE),0) -> 0 | I41: =IFERROR(VLOOKUP($B41,'Saisie Poussins'!$B$13:$AI$56,26+I$1,FALSE),0) -> 0 | J41: =IFERROR(VLOOKUP($B41,'Saisie Poussins'!$B$13:$AI$56,26+J$1,FALSE),0) -> 0 | K41: =IFERROR(VLOOKUP($B41,'Saisie Poussins'!$B$13:$AI$56,26+K$1,FALSE),0) -> 0 | L41: =IFERROR(VLOOKUP($B41,'Saisie Poussins'!$B$13:$AI$56,26+L$1,FALSE),0) -> 0 | M41: =IFERROR(VLOOKUP($B41,'Saisie Poussins'!$B$13:$AI$56,26+M$1,FALSE),0) -> 0 | N41: =IFERROR(VLOOKUP($B41,'Saisie Poussins'!$B$13:$AI$56,26+N$1,FALSE),0) -> 0 | O41: =IFERROR(VLOOKUP($B41,'Saisie Poussins'!$B$13:$AI$56,26+O$1,FALSE),0) -> 0 | P41: =IFERROR(VLOOKUP($B41,'Saisie Poussins'!$B$13:$AI$56,26+P$1,FALSE),0) -> 0 | Q41: 0
A42: =IFERROR(IF(A41+1<='Saisie Poussins'!$BF$12,A41+1,""),"") ->  | B42: =IFERROR(VLOOKUP(A42,'Saisie Poussins'!$BE$13:$BF$56,2,FALSE),"") ->  | C42: =IFERROR(VLOOKUP($B42,'Saisie Poussins'!$B$13:$AI$56,1+C$1,FALSE),0) -> 0 | D42: =IFERROR(VLOOKUP($B42,'Saisie Poussins'!$B$13:$AI$56,1+D$1,FALSE),0) -> 0 | E42: =IFERROR(VLOOKUP($B42,'Saisie Poussins'!$B$13:$AI$56,1+E$1,FALSE),0) -> 0 | F42: =IFERROR(VLOOKUP($B42,'Saisie Poussins'!$B$13:$AI$56,1+F$1,FALSE),0) -> 0 | G42: =IFERROR(VLOOKUP($B42,'Saisie Poussins'!$B$13:$AI$56,1+G$1,FALSE),0) -> 0 | H42: =IFERROR(VLOOKUP($B42,'Saisie Poussins'!$B$13:$AI$56,1+H$1,FALSE),0) -> 0 | I42: =IFERROR(VLOOKUP($B42,'Saisie Poussins'!$B$13:$AI$56,26+I$1,FALSE),0) -> 0 | J42: =IFERROR(VLOOKUP($B42,'Saisie Poussins'!$B$13:$AI$56,26+J$1,FALSE),0) -> 0 | K42: =IFERROR(VLOOKUP($B42,'Saisie Poussins'!$B$13:$AI$56,26+K$1,FALSE),0) -> 0 | L42: =IFERROR(VLOOKUP($B42,'Saisie Poussins'!$B$13:$AI$56,26+L$1,FALSE),0) -> 0 | M42: =IFERROR(VLOOKUP($B42,'Saisie Poussins'!$B$13:$AI$56,26+M$1,FALSE),0) -> 0 | N42: =IFERROR(VLOOKUP($B42,'Saisie Poussins'!$B$13:$AI$56,26+N$1,FALSE),0) -> 0 | O42: =IFERROR(VLOOKUP($B42,'Saisie Poussins'!$B$13:$AI$56,26+O$1,FALSE),0) -> 0 | P42: =IFERROR(VLOOKUP($B42,'Saisie Poussins'!$B$13:$AI$56,26+P$1,FALSE),0) -> 0 | Q42: 0
A43: =IFERROR(IF(A42+1<='Saisie Poussins'!$BF$12,A42+1,""),"") ->  | B43: =IFERROR(VLOOKUP(A43,'Saisie Poussins'!$BE$13:$BF$56,2,FALSE),"") ->  | C43: =IFERROR(VLOOKUP($B43,'Saisie Poussins'!$B$13:$AI$56,1+C$1,FALSE),0) -> 0 | D43: =IFERROR(VLOOKUP($B43,'Saisie Poussins'!$B$13:$AI$56,1+D$1,FALSE),0) -> 0 | E43: =IFERROR(VLOOKUP($B43,'Saisie Poussins'!$B$13:$AI$56,1+E$1,FALSE),0) -> 0 | F43: =IFERROR(VLOOKUP($B43,'Saisie Poussins'!$B$13:$AI$56,1+F$1,FALSE),0) -> 0 | G43: =IFERROR(VLOOKUP($B43,'Saisie Poussins'!$B$13:$AI$56,1+G$1,FALSE),0) -> 0 | H43: =IFERROR(VLOOKUP($B43,'Saisie Poussins'!$B$13:$AI$56,1+H$1,FALSE),0) -> 0 | I43: =IFERROR(VLOOKUP($B43,'Saisie Poussins'!$B$13:$AI$56,26+I$1,FALSE),0) -> 0 | J43: =IFERROR(VLOOKUP($B43,'Saisie Poussins'!$B$13:$AI$56,26+J$1,FALSE),0) -> 0 | K43: =IFERROR(VLOOKUP($B43,'Saisie Poussins'!$B$13:$AI$56,26+K$1,FALSE),0) -> 0 | L43: =IFERROR(VLOOKUP($B43,'Saisie Poussins'!$B$13:$AI$56,26+L$1,FALSE),0) -> 0 | M43: =IFERROR(VLOOKUP($B43,'Saisie Poussins'!$B$13:$AI$56,26+M$1,FALSE),0) -> 0 | N43: =IFERROR(VLOOKUP($B43,'Saisie Poussins'!$B$13:$AI$56,26+N$1,FALSE),0) -> 0 | O43: =IFERROR(VLOOKUP($B43,'Saisie Poussins'!$B$13:$AI$56,26+O$1,FALSE),0) -> 0 | P43: =IFERROR(VLOOKUP($B43,'Saisie Poussins'!$B$13:$AI$56,26+P$1,FALSE),0) -> 0 | Q43: 0
A44: =IFERROR(IF(A43+1<='Saisie Poussins'!$BF$12,A43+1,""),"") ->  | B44: =IFERROR(VLOOKUP(A44,'Saisie Poussins'!$BE$13:$BF$56,2,FALSE),"") ->  | C44: =IFERROR(VLOOKUP($B44,'Saisie Poussins'!$B$13:$AI$56,1+C$1,FALSE),0) -> 0 | D44: =IFERROR(VLOOKUP($B44,'Saisie Poussins'!$B$13:$AI$56,1+D$1,FALSE),0) -> 0 | E44: =IFERROR(VLOOKUP($B44,'Saisie Poussins'!$B$13:$AI$56,1+E$1,FALSE),0) -> 0 | F44: =IFERROR(VLOOKUP($B44,'Saisie Poussins'!$B$13:$AI$56,1+F$1,FALSE),0) -> 0 | G44: =IFERROR(VLOOKUP($B44,'Saisie Poussins'!$B$13:$AI$56,1+G$1,FALSE),0) -> 0 | H44: =IFERROR(VLOOKUP($B44,'Saisie Poussins'!$B$13:$AI$56,1+H$1,FALSE),0) -> 0 | I44: =IFERROR(VLOOKUP($B44,'Saisie Poussins'!$B$13:$AI$56,26+I$1,FALSE),0) -> 0 | J44: =IFERROR(VLOOKUP($B44,'Saisie Poussins'!$B$13:$AI$56,26+J$1,FALSE),0) -> 0 | K44: =IFERROR(VLOOKUP($B44,'Saisie Poussins'!$B$13:$AI$56,26+K$1,FALSE),0) -> 0 | L44: =IFERROR(VLOOKUP($B44,'Saisie Poussins'!$B$13:$AI$56,26+L$1,FALSE),0) -> 0 | M44: =IFERROR(VLOOKUP($B44,'Saisie Poussins'!$B$13:$AI$56,26+M$1,FALSE),0) -> 0 | N44: =IFERROR(VLOOKUP($B44,'Saisie Poussins'!$B$13:$AI$56,26+N$1,FALSE),0) -> 0 | O44: =IFERROR(VLOOKUP($B44,'Saisie Poussins'!$B$13:$AI$56,26+O$1,FALSE),0) -> 0 | P44: =IFERROR(VLOOKUP($B44,'Saisie Poussins'!$B$13:$AI$56,26+P$1,FALSE),0) -> 0 | Q44: 0
A45: =IFERROR(IF(A44+1<='Saisie Poussins'!$BF$12,A44+1,""),"") ->  | B45: =IFERROR(VLOOKUP(A45,'Saisie Poussins'!$BE$13:$BF$56,2,FALSE),"") ->  | C45: =IFERROR(VLOOKUP($B45,'Saisie Poussins'!$B$13:$AI$56,1+C$1,FALSE),0) -> 0 | D45: =IFERROR(VLOOKUP($B45,'Saisie Poussins'!$B$13:$AI$56,1+D$1,FALSE),0) -> 0 | E45: =IFERROR(VLOOKUP($B45,'Saisie Poussins'!$B$13:$AI$56,1+E$1,FALSE),0) -> 0 | F45: =IFERROR(VLOOKUP($B45,'Saisie Poussins'!$B$13:$AI$56,1+F$1,FALSE),0) -> 0 | G45: =IFERROR(VLOOKUP($B45,'Saisie Poussins'!$B$13:$AI$56,1+G$1,FALSE),0) -> 0 | H45: =IFERROR(VLOOKUP($B45,'Saisie Poussins'!$B$13:$AI$56,1+H$1,FALSE),0) -> 0 | I45: =IFERROR(VLOOKUP($B45,'Saisie Poussins'!$B$13:$AI$56,26+I$1,FALSE),0) -> 0 | J45: =IFERROR(VLOOKUP($B45,'Saisie Poussins'!$B$13:$AI$56,26+J$1,FALSE),0) -> 0 | K45: =IFERROR(VLOOKUP($B45,'Saisie Poussins'!$B$13:$AI$56,26+K$1,FALSE),0) -> 0 | L45: =IFERROR(VLOOKUP($B45,'Saisie Poussins'!$B$13:$AI$56,26+L$1,FALSE),0) -> 0 | M45: =IFERROR(VLOOKUP($B45,'Saisie Poussins'!$B$13:$AI$56,26+M$1,FALSE),0) -> 0 | N45: =IFERROR(VLOOKUP($B45,'Saisie Poussins'!$B$13:$AI$56,26+N$1,FALSE),0) -> 0 | O45: =IFERROR(VLOOKUP($B45,'Saisie Poussins'!$B$13:$AI$56,26+O$1,FALSE),0) -> 0 | P45: =IFERROR(VLOOKUP($B45,'Saisie Poussins'!$B$13:$AI$56,26+P$1,FALSE),0) -> 0 | Q45: 0
A46: =IFERROR(IF(A45+1<='Saisie Poussins'!$BF$12,A45+1,""),"") ->  | B46: =IFERROR(VLOOKUP(A46,'Saisie Poussins'!$BE$13:$BF$56,2,FALSE),"") ->  | C46: =IFERROR(VLOOKUP($B46,'Saisie Poussins'!$B$13:$AI$56,1+C$1,FALSE),0) -> 0 | D46: =IFERROR(VLOOKUP($B46,'Saisie Poussins'!$B$13:$AI$56,1+D$1,FALSE),0) -> 0 | E46: =IFERROR(VLOOKUP($B46,'Saisie Poussins'!$B$13:$AI$56,1+E$1,FALSE),0) -> 0 | F46: =IFERROR(VLOOKUP($B46,'Saisie Poussins'!$B$13:$AI$56,1+F$1,FALSE),0) -> 0 | G46: =IFERROR(VLOOKUP($B46,'Saisie Poussins'!$B$13:$AI$56,1+G$1,FALSE),0) -> 0 | H46: =IFERROR(VLOOKUP($B46,'Saisie Poussins'!$B$13:$AI$56,1+H$1,FALSE),0) -> 0 | I46: =IFERROR(VLOOKUP($B46,'Saisie Poussins'!$B$13:$AI$56,26+I$1,FALSE),0) -> 0 | J46: =IFERROR(VLOOKUP($B46,'Saisie Poussins'!$B$13:$AI$56,26+J$1,FALSE),0) -> 0 | K46: =IFERROR(VLOOKUP($B46,'Saisie Poussins'!$B$13:$AI$56,26+K$1,FALSE),0) -> 0 | L46: =IFERROR(VLOOKUP($B46,'Saisie Poussins'!$B$13:$AI$56,26+L$1,FALSE),0) -> 0 | M46: =IFERROR(VLOOKUP($B46,'Saisie Poussins'!$B$13:$AI$56,26+M$1,FALSE),0) -> 0 | N46: =IFERROR(VLOOKUP($B46,'Saisie Poussins'!$B$13:$AI$56,26+N$1,FALSE),0) -> 0 | O46: =IFERROR(VLOOKUP($B46,'Saisie Poussins'!$B$13:$AI$56,26+O$1,FALSE),0) -> 0 | P46: =IFERROR(VLOOKUP($B46,'Saisie Poussins'!$B$13:$AI$56,26+P$1,FALSE),0) -> 0 | Q46: 0
A47: =IFERROR(IF(A46+1<='Saisie Poussins'!$BF$12,A46+1,""),"") ->  | B47: =IFERROR(VLOOKUP(A47,'Saisie Poussins'!$BE$13:$BF$56,2,FALSE),"") ->  | C47: =IFERROR(VLOOKUP($B47,'Saisie Poussins'!$B$13:$AI$56,1+C$1,FALSE),0) -> 0 | D47: =IFERROR(VLOOKUP($B47,'Saisie Poussins'!$B$13:$AI$56,1+D$1,FALSE),0) -> 0 | E47: =IFERROR(VLOOKUP($B47,'Saisie Poussins'!$B$13:$AI$56,1+E$1,FALSE),0) -> 0 | F47: =IFERROR(VLOOKUP($B47,'Saisie Poussins'!$B$13:$AI$56,1+F$1,FALSE),0) -> 0 | G47: =IFERROR(VLOOKUP($B47,'Saisie Poussins'!$B$13:$AI$56,1+G$1,FALSE),0) -> 0 | H47: =IFERROR(VLOOKUP($B47,'Saisie Poussins'!$B$13:$AI$56,1+H$1,FALSE),0) -> 0 | I47: =IFERROR(VLOOKUP($B47,'Saisie Poussins'!$B$13:$AI$56,26+I$1,FALSE),0) -> 0 | J47: =IFERROR(VLOOKUP($B47,'Saisie Poussins'!$B$13:$AI$56,26+J$1,FALSE),0) -> 0 | K47: =IFERROR(VLOOKUP($B47,'Saisie Poussins'!$B$13:$AI$56,26+K$1,FALSE),0) -> 0 | L47: =IFERROR(VLOOKUP($B47,'Saisie Poussins'!$B$13:$AI$56,26+L$1,FALSE),0) -> 0 | M47: =IFERROR(VLOOKUP($B47,'Saisie Poussins'!$B$13:$AI$56,26+M$1,FALSE),0) -> 0 | N47: =IFERROR(VLOOKUP($B47,'Saisie Poussins'!$B$13:$AI$56,26+N$1,FALSE),0) -> 0 | O47: =IFERROR(VLOOKUP($B47,'Saisie Poussins'!$B$13:$AI$56,26+O$1,FALSE),0) -> 0 | P47: =IFERROR(VLOOKUP($B47,'Saisie Poussins'!$B$13:$AI$56,26+P$1,FALSE),0) -> 0 | Q47: 0
A48: =IFERROR(IF(A47+1<='Saisie Poussins'!$BF$12,A47+1,""),"") ->  | B48: =IFERROR(VLOOKUP(A48,'Saisie Poussins'!$BE$13:$BF$56,2,FALSE),"") ->  | C48: =IFERROR(VLOOKUP($B48,'Saisie Poussins'!$B$13:$AI$56,1+C$1,FALSE),0) -> 0 | D48: =IFERROR(VLOOKUP($B48,'Saisie Poussins'!$B$13:$AI$56,1+D$1,FALSE),0) -> 0 | E48: =IFERROR(VLOOKUP($B48,'Saisie Poussins'!$B$13:$AI$56,1+E$1,FALSE),0) -> 0 | F48: =IFERROR(VLOOKUP($B48,'Saisie Poussins'!$B$13:$AI$56,1+F$1,FALSE),0) -> 0 | G48: =IFERROR(VLOOKUP($B48,'Saisie Poussins'!$B$13:$AI$56,1+G$1,FALSE),0) -> 0 | H48: =IFERROR(VLOOKUP($B48,'Saisie Poussins'!$B$13:$AI$56,1+H$1,FALSE),0) -> 0 | I48: =IFERROR(VLOOKUP($B48,'Saisie Poussins'!$B$13:$AI$56,26+I$1,FALSE),0) -> 0 | J48: =IFERROR(VLOOKUP($B48,'Saisie Poussins'!$B$13:$AI$56,26+J$1,FALSE),0) -> 0 | K48: =IFERROR(VLOOKUP($B48,'Saisie Poussins'!$B$13:$AI$56,26+K$1,FALSE),0) -> 0 | L48: =IFERROR(VLOOKUP($B48,'Saisie Poussins'!$B$13:$AI$56,26+L$1,FALSE),0) -> 0 | M48: =IFERROR(VLOOKUP($B48,'Saisie Poussins'!$B$13:$AI$56,26+M$1,FALSE),0) -> 0 | N48: =IFERROR(VLOOKUP($B48,'Saisie Poussins'!$B$13:$AI$56,26+N$1,FALSE),0) -> 0 | O48: =IFERROR(VLOOKUP($B48,'Saisie Poussins'!$B$13:$AI$56,26+O$1,FALSE),0) -> 0 | P48: =IFERROR(VLOOKUP($B48,'Saisie Poussins'!$B$13:$AI$56,26+P$1,FALSE),0) -> 0 | Q48: 0
A49: =IFERROR(IF(A48+1<='Saisie Poussins'!$BF$12,A48+1,""),"") ->  | B49: =IFERROR(VLOOKUP(A49,'Saisie Poussins'!$BE$13:$BF$56,2,FALSE),"") ->  | C49: =IFERROR(VLOOKUP($B49,'Saisie Poussins'!$B$13:$AI$56,1+C$1,FALSE),0) -> 0 | D49: =IFERROR(VLOOKUP($B49,'Saisie Poussins'!$B$13:$AI$56,1+D$1,FALSE),0) -> 0 | E49: =IFERROR(VLOOKUP($B49,'Saisie Poussins'!$B$13:$AI$56,1+E$1,FALSE),0) -> 0 | F49: =IFERROR(VLOOKUP($B49,'Saisie Poussins'!$B$13:$AI$56,1+F$1,FALSE),0) -> 0 | G49: =IFERROR(VLOOKUP($B49,'Saisie Poussins'!$B$13:$AI$56,1+G$1,FALSE),0) -> 0 | H49: =IFERROR(VLOOKUP($B49,'Saisie Poussins'!$B$13:$AI$56,1+H$1,FALSE),0) -> 0 | I49: =IFERROR(VLOOKUP($B49,'Saisie Poussins'!$B$13:$AI$56,26+I$1,FALSE),0) -> 0 | J49: =IFERROR(VLOOKUP($B49,'Saisie Poussins'!$B$13:$AI$56,26+J$1,FALSE),0) -> 0 | K49: =IFERROR(VLOOKUP($B49,'Saisie Poussins'!$B$13:$AI$56,26+K$1,FALSE),0) -> 0 | L49: =IFERROR(VLOOKUP($B49,'Saisie Poussins'!$B$13:$AI$56,26+L$1,FALSE),0) -> 0 | M49: =IFERROR(VLOOKUP($B49,'Saisie Poussins'!$B$13:$AI$56,26+M$1,FALSE),0) -> 0 | N49: =IFERROR(VLOOKUP($B49,'Saisie Poussins'!$B$13:$AI$56,26+N$1,FALSE),0) -> 0 | O49: =IFERROR(VLOOKUP($B49,'Saisie Poussins'!$B$13:$AI$56,26+O$1,FALSE),0) -> 0 | P49: =IFERROR(VLOOKUP($B49,'Saisie Poussins'!$B$13:$AI$56,26+P$1,FALSE),0) -> 0 | Q49: 0
B50: Leader route | D50: ='Saisie Poussins'!E3 -> BOURGES Martin - E.C. LUXEUIL VOSGES SAONO | I50: ="Challenge régional "&Accueil!$C$3&" - "&Accueil!$C$5 -> Challenge régional BOURGOGNE FRANCHE COMTE - 2022
B51: Classement route
A52: Place | B52: Licence | C52: Nom | D52: Prénom | F52: Club | G52: Catégorie | H52: Année | J52: =RIGHT(CELL("nomfichier",$A$1), LEN(CELL("nomfichier",$A$1))-FIND("]", CELL("nomfichier",$A$1))) -> Classement Poussins
I53: =Accueil!B$10 -> 03/04/2022 Luxeuil | J53: =Accueil!C$10 -> 24/04/2022 Noidans les Vesoul | K53: =Accueil!D$10 -> 1/05/2022 Vescemont | L53: =Accueil!E$10 -> 08/05/2022 Morteau | M53: =Accueil!F$10 -> 22/05/2022 Pontarlier | N53: =Accueil!G$10 -> 05/06/2022 Vadans | O53: =Accueil!H$10 -> 12/06/2022 Montbéliard | P53: =Accueil!I$10 -> 02 et 03/07/2022 Bletterans | Q53: Total des 5 meilleurs
A54: 1 | B54: =IFERROR(VLOOKUP(A54,'Saisie Poussins'!$BE$61:$BF$104,2,FALSE),"") -> 42900480168 | C54: =IFERROR(VLOOKUP($B54,'Saisie Poussins'!$B$13:$AI$56,1+C$1,FALSE),0) -> MURATORI | D54: =IFERROR(VLOOKUP($B54,'Saisie Poussins'!$B$13:$AI$56,1+D$1,FALSE),0) -> EZYO | E54: =IFERROR(VLOOKUP($B54,'Saisie Poussins'!$B$13:$AI$56,1+E$1,FALSE),0) -> H | F54: =IFERROR(VLOOKUP($B54,'Saisie Poussins'!$B$13:$AI$56,1+F$1,FALSE),0) -> CC BELFORT MIOTTE | G54: =IFERROR(VLOOKUP($B54,'Saisie Poussins'!$B$13:$AI$56,1+G$1,FALSE),0) -> Poussin | H54: =IFERROR(VLOOKUP($B54,'Saisie Poussins'!$B$13:$AI$56,1+H$1,FALSE),0) -> 2 | I54: =IFERROR(VLOOKUP($B54,'Saisie Poussins'!$B$61:$AI$104,26+I$1,FALSE),0) -> 40 | J54: =IFERROR(VLOOKUP($B54,'Saisie Poussins'!$B$61:$AI$104,26+J$1,FALSE),0) -> 50 | K54: =IFERROR(VLOOKUP($B54,'Saisie Poussins'!$B$61:$AI$104,26+K$1,FALSE),0) -> 0 | L54: =IFERROR(VLOOKUP($B54,'Saisie Poussins'!$B$61:$AI$104,26+L$1,FALSE),0) -> 0 | M54: =IFERROR(VLOOKUP($B54,'Saisie Poussins'!$B$61:$AI$104,26+M$1,FALSE),0) -> 0 | N54: =IFERROR(VLOOKUP($B54,'Saisie Poussins'!$B$61:$AI$104,26+N$1,FALSE),0) -> 0 | O54: =IFERROR(VLOOKUP($B54,'Saisie Poussins'!$B$61:$AI$104,26+O$1,FALSE),0) -> 0 | P54: =IFERROR(VLOOKUP($B54,'Saisie Poussins'!$B$61:$AI$104,26+P$1,FALSE),0) -> 0 | Q54: =IF(B54>0,SUM(I54:P54),"") -> 90
A55: =IFERROR(IF(A54+1<='Saisie Poussins'!$BF$12,A54+1,""),"") -> 2 | B55: =IFERROR(VLOOKUP(A55,'Saisie Poussins'!$BE$61:$BF$104,2,FALSE),"") -> 42700680182 | C55: =IFERROR(VLOOKUP($B55,'Saisie Poussins'!$B$13:$AI$56,1+C$1,FALSE),0) -> BOURGES | D55: =IFERROR(VLOOKUP($B55,'Saisie Poussins'!$B$13:$AI$56,1+D$1,FALSE),0) -> Martin | E55: =IFERROR(VLOOKUP($B55,'Saisie Poussins'!$B$13:$AI$56,1+E$1,FALSE),0) -> H | F55: =IFERROR(VLOOKUP($B55,'Saisie Poussins'!$B$13:$AI$56,1+F$1,FALSE),0) -> E.C. LUXEUIL VOSGES SAONO | G55: =IFERROR(VLOOKUP($B55,'Saisie Poussins'!$B$13:$AI$56,1+G$1,FALSE),0) -> Poussin | H55: =IFERROR(VLOOKUP($B55,'Saisie Poussins'!$B$13:$AI$56,1+H$1,FALSE),0) -> 2 | I55: =IFERROR(VLOOKUP($B55,'Saisie Poussins'!$B$61:$AI$104,26+I$1,FALSE),0) -> 44 | J55: =IFERROR(VLOOKUP($B55,'Saisie Poussins'!$B$61:$AI$104,26+J$1,FALSE),0) -> 40 | K55: =IFERROR(VLOOKUP($B55,'Saisie Poussins'!$B$61:$AI$104,26+K$1,FALSE),0) -> 0 | L55: =IFERROR(VLOOKUP($B55,'Saisie Poussins'!$B$61:$AI$104,26+L$1,FALSE),0) -> 0 | M55: =IFERROR(VLOOKUP($B55,'Saisie Poussins'!$B$61:$AI$104,26+M$1,FALSE),0) -> 0 | N55: =IFERROR(VLOOKUP($B55,'Saisie Poussins'!$B$61:$AI$104,26+N$1,FALSE),0) -> 0 | O55: =IFERROR(VLOOKUP($B55,'Saisie Poussins'!$B$61:$AI$104,26+O$1,FALSE),0) -> 0 | P55: =IFERROR(VLOOKUP($B55,'Saisie Poussins'!$B$61:$AI$104,26+P$1,FALSE),0) -> 0 | Q55: =IF(B55>0,SUM(I55:P55),"") -> 84
A56: =IFERROR(IF(A55+1<='Saisie Poussins'!$BF$12,A55+1,""),"") -> 3 | B56: =IFERROR(VLOOKUP(A56,'Saisie Poussins'!$BE$61:$BF$104,2,FALSE),"") -> 42900480124 | C56: =IFERROR(VLOOKUP($B56,'Saisie Poussins'!$B$13:$AI$56,1+C$1,FALSE),0) -> JOURNET | D56: =IFERROR(VLOOKUP($B56,'Saisie Poussins'!$B$13:$AI$56,1+D$1,FALSE),0) -> Paul | E56: =IFERROR(VLOOKUP($B56,'Saisie Poussins'!$B$13:$AI$56,1+E$1,FALSE),0) -> H | F56: =IFERROR(VLOOKUP($B56,'Saisie Poussins'!$B$13:$AI$56,1+F$1,FALSE),0) -> CC BELFORT MIOTTE | G56: =IFERROR(VLOOKUP($B56,'Saisie Poussins'!$B$13:$AI$56,1+G$1,FALSE),0) -> Poussin | H56: =IFERROR(VLOOKUP($B56,'Saisie Poussins'!$B$13:$AI$56,1+H$1,FALSE),0) -> 2 | I56: =IFERROR(VLOOKUP($B56,'Saisie Poussins'!$B$61:$AI$104,26+I$1,FALSE),0) -> 32 | J56: =IFERROR(VLOOKUP($B56,'Saisie Poussins'!$B$61:$AI$104,26+J$1,FALSE),0) -> 44 | K56: =IFERROR(VLOOKUP($B56,'Saisie Poussins'!$B$61:$AI$104,26+K$1,FALSE),0) -> 0 | L56: =IFERROR(VLOOKUP($B56,'Saisie Poussins'!$B$61:$AI$104,26+L$1,FALSE),0) -> 0 | M56: =IFERROR(VLOOKUP($B56,'Saisie Poussins'!$B$61:$AI$104,26+M$1,FALSE),0) -> 0 | N56: =IFERROR(VLOOKUP($B56,'Saisie Poussins'!$B$61:$AI$104,26+N$1,FALSE),0) -> 0 | O56: =IFERROR(VLOOKUP($B56,'Saisie Poussins'!$B$61:$AI$104,26+O$1,FALSE),0) -> 0 | P56: =IFERROR(VLOOKUP($B56,'Saisie Poussins'!$B$61:$AI$104,26+P$1,FALSE),0) -> 0 | Q56: 76
A57: =IFERROR(IF(A56+1<='Saisie Poussins'!$BF$12,A56+1,""),"") -> 4 | B57: =IFERROR(VLOOKUP(A57,'Saisie Poussins'!$BE$61:$BF$104,2,FALSE),"") -> 42700060248 | C57: =IFERROR(VLOOKUP($B57,'Saisie Poussins'!$B$13:$AI$56,1+C$1,FALSE),0) -> BOISSON | D57: =IFERROR(VLOOKUP($B57,'Saisie Poussins'!$B$13:$AI$56,1+D$1,FALSE),0) -> Marius | E57: =IFERROR(VLOOKUP($B57,'Saisie Poussins'!$B$13:$AI$56,1+E$1,FALSE),0) -> H | F57: =IFERROR(VLOOKUP($B57,'Saisie Poussins'!$B$13:$AI$56,1+F$1,FALSE),0) -> ROUE D`OR NOIDANS | G57: =IFERROR(VLOOKUP($B57,'Saisie Poussins'!$B$13:$AI$56,1+G$1,FALSE),0) -> Poussin | H57: =IFERROR(VLOOKUP($B57,'Saisie Poussins'!$B$13:$AI$56,1+H$1,FALSE),0) -> 1 | I57: =IFERROR(VLOOKUP($B57,'Saisie Poussins'!$B$61:$AI$104,26+I$1,FALSE),0) -> 30 | J57: =IFERROR(VLOOKUP($B57,'Saisie Poussins'!$B$61:$AI$104,26+J$1,FALSE),0) -> 37 | K57: =IFERROR(VLOOKUP($B57,'Saisie Poussins'!$B$61:$AI$104,26+K$1,FALSE),0) -> 0 | L57: =IFERROR(VLOOKUP($B57,'Saisie Poussins'!$B$61:$AI$104,26+L$1,FALSE),0) -> 0 | M57: =IFERROR(VLOOKUP($B57,'Saisie Poussins'!$B$61:$AI$104,26+M$1,FALSE),0) -> 0 | N57: =IFERROR(VLOOKUP($B57,'Saisie Poussins'!$B$61:$AI$104,26+N$1,FALSE),0) -> 0 | O57: =IFERROR(VLOOKUP($B57,'Saisie Poussins'!$B$61:$AI$104,26+O$1,FALSE),0) -> 0 | P57: =IFERROR(VLOOKUP($B57,'Saisie Poussins'!$B$61:$AI$104,26+P$1,FALSE),0) -> 0 | Q57: 67
A58: =IFERROR(IF(A57+1<='Saisie Poussins'!$BF$12,A57+1,""),"") -> 5 | B58: =IFERROR(VLOOKUP(A58,'Saisie Poussins'!$BE$61:$BF$104,2,FALSE),"") -> 42250181174 | C58: =IFERROR(VLOOKUP($B58,'Saisie Poussins'!$B$13:$AI$56,1+C$1,FALSE),0) -> DEVILLERS | D58: =IFERROR(VLOOKUP($B58,'Saisie Poussins'!$B$13:$AI$56,1+D$1,FALSE),0) -> Lylou | E58: =IFERROR(VLOOKUP($B58,'Saisie Poussins'!$B$13:$AI$56,1+E$1,FALSE),0) -> D | F58: =IFERROR(VLOOKUP($B58,'Saisie Poussins'!$B$13:$AI$56,1+F$1,FALSE),0) -> VC MORTEAU MONTBENOIT | G58: =IFERROR(VLOOKUP($B58,'Saisie Poussins'!$B$13:$AI$56,1+G$1,FALSE),0) -> Poussin | H58: =IFERROR(VLOOKUP($B58,'Saisie Poussins'!$B$13:$AI$56,1+H$1,FALSE),0) -> 2 | I58: =IFERROR(VLOOKUP($B58,'Saisie Poussins'!$B$61:$AI$104,26+I$1,FALSE),0) -> 22 | J58: =IFERROR(VLOOKUP($B58,'Saisie Poussins'!$B$61:$AI$104,26+J$1,FALSE),0) -> 40 | K58: =IFERROR(VLOOKUP($B58,'Saisie Poussins'!$B$61:$AI$104,26+K$1,FALSE),0) -> 0 | L58: =IFERROR(VLOOKUP($B58,'Saisie Poussins'!$B$61:$AI$104,26+L$1,FALSE),0) -> 0 | M58: =IFERROR(VLOOKUP($B58,'Saisie Poussins'!$B$61:$AI$104,26+M$1,FALSE),0) -> 0 | N58: =IFERROR(VLOOKUP($B58,'Saisie Poussins'!$B$61:$AI$104,26+N$1,FALSE),0) -> 0 | O58: =IFERROR(VLOOKUP($B58,'Saisie Poussins'!$B$61:$AI$104,26+O$1,FALSE),0) -> 0 | P58: =IFERROR(VLOOKUP($B58,'Saisie Poussins'!$B$61:$AI$104,26+P$1,FALSE),0) -> 0 | Q58: 62
A59: =IFERROR(IF(A58+1<='Saisie Poussins'!$BF$12,A58+1,""),"") -> 6 | B59: =IFERROR(VLOOKUP(A59,'Saisie Poussins'!$BE$61:$BF$104,2,FALSE),"") -> 42250181212 | C59: =IFERROR(VLOOKUP($B59,'Saisie Poussins'!$B$13:$AI$56,1+C$1,FALSE),0) -> DEVILLERS | D59: =IFERROR(VLOOKUP($B59,'Saisie Poussins'!$B$13:$AI$56,1+D$1,FALSE),0) -> Louis | E59: =IFERROR(VLOOKUP($B59,'Saisie Poussins'!$B$13:$AI$56,1+E$1,FALSE),0) -> H | F59: =IFERROR(VLOOKUP($B59,'Saisie Poussins'!$B$13:$AI$56,1+F$1,FALSE),0) -> VC MORTEAU MONTBENOIT | G59: =IFERROR(VLOOKUP($B59,'Saisie Poussins'!$B$13:$AI$56,1+G$1,FALSE),0) -> Poussin | H59: =IFERROR(VLOOKUP($B59,'Saisie Poussins'!$B$13:$AI$56,1+H$1,FALSE),0) -> 1 | I59: =IFERROR(VLOOKUP($B59,'Saisie Poussins'!$B$61:$AI$104,26+I$1,FALSE),0) -> 26 | J59: =IFERROR(VLOOKUP($B59,'Saisie Poussins'!$B$61:$AI$104,26+J$1,FALSE),0) -> 34 | K59: =IFERROR(VLOOKUP($B59,'Saisie Poussins'!$B$61:$AI$104,26+K$1,FALSE),0) -> 0 | L59: =IFERROR(VLOOKUP($B59,'Saisie Poussins'!$B$61:$AI$104,26+L$1,FALSE),0) -> 0 | M59: =IFERROR(VLOOKUP($B59,'Saisie Poussins'!$B$61:$AI$104,26+M$1,FALSE),0) -> 0 | N59: =IFERROR(VLOOKUP($B59,'Saisie Poussins'!$B$61:$AI$104,26+N$1,FALSE),0) -> 0 | O59: =IFERROR(VLOOKUP($B59,'Saisie Poussins'!$B$61:$AI$104,26+O$1,FALSE),0) -> 0 | P59: =IFERROR(VLOOKUP($B59,'Saisie Poussins'!$B$61:$AI$104,26+P$1,FALSE),0) -> 0 | Q59: 60
A60: =IFERROR(IF(A59+1<='Saisie Poussins'!$BF$12,A59+1,""),"") -> 7 | B60: =IFERROR(VLOOKUP(A60,'Saisie Poussins'!$BE$61:$BF$104,2,FALSE),"") -> 42700680157 | C60: =IFERROR(VLOOKUP($B60,'Saisie Poussins'!$B$13:$AI$56,1+C$1,FALSE),0) -> BARBASON | D60: =IFERROR(VLOOKUP($B60,'Saisie Poussins'!$B$13:$AI$56,1+D$1,FALSE),0) -> Jean | E60: =IFERROR(VLOOKUP($B60,'Saisie Poussins'!$B$13:$AI$56,1+E$1,FALSE),0) -> H | F60: =IFERROR(VLOOKUP($B60,'Saisie Poussins'!$B$13:$AI$56,1+F$1,FALSE),0) -> E.C. LUXEUIL VOSGES SAONO | G60: =IFERROR(VLOOKUP($B60,'Saisie Poussins'!$B$13:$AI$56,1+G$1,FALSE),0) -> Poussin | H60: =IFERROR(VLOOKUP($B60,'Saisie Poussins'!$B$13:$AI$56,1+H$1,FALSE),0) -> 2 | I60: =IFERROR(VLOOKUP($B60,'Saisie Poussins'!$B$61:$AI$104,26+I$1,FALSE),0) -> 24 | J60: =IFERROR(VLOOKUP($B60,'Saisie Poussins'!$B$61:$AI$104,26+J$1,FALSE),0) -> 34 | K60: =IFERROR(VLOOKUP($B60,'Saisie Poussins'!$B$61:$AI$104,26+K$1,FALSE),0) -> 0 | L60: =IFERROR(VLOOKUP($B60,'Saisie Poussins'!$B$61:$AI$104,26+L$1,FALSE),0) -> 0 | M60: =IFERROR(VLOOKUP($B60,'Saisie Poussins'!$B$61:$AI$104,26+M$1,FALSE),0) -> 0 | N60: =IFERROR(VLOOKUP($B60,'Saisie Poussins'!$B$61:$AI$104,26+N$1,FALSE),0) -> 0 | O60: =IFERROR(VLOOKUP($B60,'Saisie Poussins'!$B$61:$AI$104,26+O$1,FALSE),0) -> 0 | P60: =IFERROR(VLOOKUP($B60,'Saisie Poussins'!$B$61:$AI$104,26+P$1,FALSE),0) -> 0 | Q60: 58
A61: =IFERROR(IF(A60+1<='Saisie Poussins'!$BF$12,A60+1,""),"") -> 8 | B61: =IFERROR(VLOOKUP(A61,'Saisie Poussins'!$BE$61:$BF$104,2,FALSE),"") -> 42250120321 | C61: =IFERROR(VLOOKUP($B61,'Saisie Poussins'!$B$13:$AI$56,1+C$1,FALSE),0) -> GRIME | D61: =IFERROR(VLOOKUP($B61,'Saisie Poussins'!$B$13:$AI$56,1+D$1,FALSE),0) -> Lucas | E61: =IFERROR(VLOOKUP($B61,'Saisie Poussins'!$B$13:$AI$56,1+E$1,FALSE),0) -> H | F61: =IFERROR(VLOOKUP($B61,'Saisie Poussins'!$B$13:$AI$56,1+F$1,FALSE),0) -> V.C.DE MONTBELIARD | G61: =IFERROR(VLOOKUP($B61,'Saisie Poussins'!$B$13:$AI$56,1+G$1,FALSE),0) -> Poussin | H61: =IFERROR(VLOOKUP($B61,'Saisie Poussins'!$B$13:$AI$56,1+H$1,FALSE),0) -> 2 | I61: =IFERROR(VLOOKUP($B61,'Saisie Poussins'!$B$61:$AI$104,26+I$1,FALSE),0) -> 50 | J61: =IFERROR(VLOOKUP($B61,'Saisie Poussins'!$B$61:$AI$104,26+J$1,FALSE),0) -> 0 | K61: =IFERROR(VLOOKUP($B61,'Saisie Poussins'!$B$61:$AI$104,26+K$1,FALSE),0) -> 0 | L61: =IFERROR(VLOOKUP($B61,'Saisie Poussins'!$B$61:$AI$104,26+L$1,FALSE),0) -> 0 | M61: =IFERROR(VLOOKUP($B61,'Saisie Poussins'!$B$61:$AI$104,26+M$1,FALSE),0) -> 0 | N61: =IFERROR(VLOOKUP($B61,'Saisie Poussins'!$B$61:$AI$104,26+N$1,FALSE),0) -> 0 | O61: =IFERROR(VLOOKUP($B61,'Saisie Poussins'!$B$61:$AI$104,26+O$1,FALSE),0) -> 0 | P61: =IFERROR(VLOOKUP($B61,'Saisie Poussins'!$B$61:$AI$104,26+P$1,FALSE),0) -> 0 | Q61: 50
A62: =IFERROR(IF(A61+1<='Saisie Poussins'!$BF$12,A61+1,""),"") -> 9 | B62: =IFERROR(VLOOKUP(A62,'Saisie Poussins'!$BE$61:$BF$104,2,FALSE),"") -> 42700680166 | C62: =IFERROR(VLOOKUP($B62,'Saisie Poussins'!$B$13:$AI$56,1+C$1,FALSE),0) -> ANDRE | D62: =IFERROR(VLOOKUP($B62,'Saisie Poussins'!$B$13:$AI$56,1+D$1,FALSE),0) -> Louane | E62: =IFERROR(VLOOKUP($B62,'Saisie Poussins'!$B$13:$AI$56,1+E$1,FALSE),0) -> D | F62: =IFERROR(VLOOKUP($B62,'Saisie Poussins'!$B$13:$AI$56,1+F$1,FALSE),0) -> E.C. LUXEUIL VOSGES SAONO | G62: =IFERROR(VLOOKUP($B62,'Saisie Poussins'!$B$13:$AI$56,1+G$1,FALSE),0) -> Poussin | H62: =IFERROR(VLOOKUP($B62,'Saisie Poussins'!$B$13:$AI$56,1+H$1,FALSE),0) -> 2 | I62: =IFERROR(VLOOKUP($B62,'Saisie Poussins'!$B$61:$AI$104,26+I$1,FALSE),0) -> 28 | J62: =IFERROR(VLOOKUP($B62,'Saisie Poussins'!$B$61:$AI$104,26+J$1,FALSE),0) -> 21 | K62: =IFERROR(VLOOKUP($B62,'Saisie Poussins'!$B$61:$AI$104,26+K$1,FALSE),0) -> 0 | L62: =IFERROR(VLOOKUP($B62,'Saisie Poussins'!$B$61:$AI$104,26+L$1,FALSE),0) -> 0 | M62: =IFERROR(VLOOKUP($B62,'Saisie Poussins'!$B$61:$AI$104,26+M$1,FALSE),0) -> 0 | N62: =IFERROR(VLOOKUP($B62,'Saisie Poussins'!$B$61:$AI$104,26+N$1,FALSE),0) -> 0 | O62: =IFERROR(VLOOKUP($B62,'Saisie Poussins'!$B$61:$AI$104,26+O$1,FALSE),0) -> 0 | P62: =IFERROR(VLOOKUP($B62,'Saisie Poussins'!$B$61:$AI$104,26+P$1,FALSE),0) -> 0 | Q62: 49
A63: =IFERROR(IF(A62+1<='Saisie Poussins'!$BF$12,A62+1,""),"") -> 10 | B63: =IFERROR(VLOOKUP(A63,'Saisie Poussins'!$BE$61:$BF$104,2,FALSE),"") -> 42900360346 | C63: =IFERROR(VLOOKUP($B63,'Saisie Poussins'!$B$13:$AI$56,1+C$1,FALSE),0) -> STADLER | D63: =IFERROR(VLOOKUP($B63,'Saisie Poussins'!$B$13:$AI$56,1+D$1,FALSE),0) -> Gwennaelle | E63: =IFERROR(VLOOKUP($B63,'Saisie Poussins'!$B$13:$AI$56,1+E$1,FALSE),0) -> D | F63: =IFERROR(VLOOKUP($B63,'Saisie Poussins'!$B$13:$AI$56,1+F$1,FALSE),0) -> A.C.T. BELFORT | G63: =IFERROR(VLOOKUP($B63,'Saisie Poussins'!$B$13:$AI$56,1+G$1,FALSE),0) -> Poussin | H63: =IFERROR(VLOOKUP($B63,'Saisie Poussins'!$B$13:$AI$56,1+H$1,FALSE),0) -> 1 | I63: =IFERROR(VLOOKUP($B63,'Saisie Poussins'!$B$61:$AI$104,26+I$1,FALSE),0) -> 21 | J63: =IFERROR(VLOOKUP($B63,'Saisie Poussins'!$B$61:$AI$104,26+J$1,FALSE),0) -> 24 | K63: =IFERROR(VLOOKUP($B63,'Saisie Poussins'!$B$61:$AI$104,26+K$1,FALSE),0) -> 0 | L63: =IFERROR(VLOOKUP($B63,'Saisie Poussins'!$B$61:$AI$104,26+L$1,FALSE),0) -> 0 | M63: =IFERROR(VLOOKUP($B63,'Saisie Poussins'!$B$61:$AI$104,26+M$1,FALSE),0) -> 0 | N63: =IFERROR(VLOOKUP($B63,'Saisie Poussins'!$B$61:$AI$104,26+N$1,FALSE),0) -> 0 | O63: =IFERROR(VLOOKUP($B63,'Saisie Poussins'!$B$61:$AI$104,26+O$1,FALSE),0) -> 0 | P63: =IFERROR(VLOOKUP($B63,'Saisie Poussins'!$B$61:$AI$104,26+P$1,FALSE),0) -> 0 | Q63: 45
A64: =IFERROR(IF(A63+1<='Saisie Poussins'!$BF$12,A63+1,""),"") -> 11 | B64: =IFERROR(VLOOKUP(A64,'Saisie Poussins'!$BE$61:$BF$104,2,FALSE),"") -> 42700060276 | C64: =IFERROR(VLOOKUP($B64,'Saisie Poussins'!$B$13:$AI$56,1+C$1,FALSE),0) -> TAILHARDAT | D64: =IFERROR(VLOOKUP($B64,'Saisie Poussins'!$B$13:$AI$56,1+D$1,FALSE),0) -> Célestin | E64: =IFERROR(VLOOKUP($B64,'Saisie Poussins'!$B$13:$AI$56,1+E$1,FALSE),0) -> H | F64: =IFERROR(VLOOKUP($B64,'Saisie Poussins'!$B$13:$AI$56,1+F$1,FALSE),0) -> ROUE D`OR NOIDANS | G64: =IFERROR(VLOOKUP($B64,'Saisie Poussins'!$B$13:$AI$56,1+G$1,FALSE),0) -> Poussin | H64: =IFERROR(VLOOKUP($B64,'Saisie Poussins'!$B$13:$AI$56,1+H$1,FALSE),0) -> 1 | I64: =IFERROR(VLOOKUP($B64,'Saisie Poussins'!$B$61:$AI$104,26+I$1,FALSE),0) -> 37 | J64: =IFERROR(VLOOKUP($B64,'Saisie Poussins'!$B$61:$AI$104,26+J$1,FALSE),0) -> 0 | K64: =IFERROR(VLOOKUP($B64,'Saisie Poussins'!$B$61:$AI$104,26+K$1,FALSE),0) -> 0 | L64: =IFERROR(VLOOKUP($B64,'Saisie Poussins'!$B$61:$AI$104,26+L$1,FALSE),0) -> 0 | M64: =IFERROR(VLOOKUP($B64,'Saisie Poussins'!$B$61:$AI$104,26+M$1,FALSE),0) -> 0 | N64: =IFERROR(VLOOKUP($B64,'Saisie Poussins'!$B$61:$AI$104,26+N$1,FALSE),0) -> 0 | O64: =IFERROR(VLOOKUP($B64,'Saisie Poussins'!$B$61:$AI$104,26+O$1,FALSE),0) -> 0 | P64: =IFERROR(VLOOKUP($B64,'Saisie Poussins'!$B$61:$AI$104,26+P$1,FALSE),0) -> 0 | Q64: 37
A65: =IFERROR(IF(A64+1<='Saisie Poussins'!$BF$12,A64+1,""),"") -> 12 | B65: =IFERROR(VLOOKUP(A65,'Saisie Poussins'!$BE$61:$BF$104,2,FALSE),"") -> 42700680169 | C65: =IFERROR(VLOOKUP($B65,'Saisie Poussins'!$B$13:$AI$56,1+C$1,FALSE),0) -> BRY | D65: =IFERROR(VLOOKUP($B65,'Saisie Poussins'!$B$13:$AI$56,1+D$1,FALSE),0) -> Eliott | E65: =IFERROR(VLOOKUP($B65,'Saisie Poussins'!$B$13:$AI$56,1+E$1,FALSE),0) -> H | F65: =IFERROR(VLOOKUP($B65,'Saisie Poussins'!$B$13:$AI$56,1+F$1,FALSE),0) -> E.C. LUXEUIL VOSGES SAONO | G65: =IFERROR(VLOOKUP($B65,'Saisie Poussins'!$B$13:$AI$56,1+G$1,FALSE),0) -> Poussin | H65: =IFERROR(VLOOKUP($B65,'Saisie Poussins'!$B$13:$AI$56,1+H$1,FALSE),0) -> 1 | I65: =IFERROR(VLOOKUP($B65,'Saisie Poussins'!$B$61:$AI$104,26+I$1,FALSE),0) -> 34 | J65: =IFERROR(VLOOKUP($B65,'Saisie Poussins'!$B$61:$AI$104,26+J$1,FALSE),0) -> 0 | K65: =IFERROR(VLOOKUP($B65,'Saisie Poussins'!$B$61:$AI$104,26+K$1,FALSE),0) -> 0 | L65: =IFERROR(VLOOKUP($B65,'Saisie Poussins'!$B$61:$AI$104,26+L$1,FALSE),0) -> 0 | M65: =IFERROR(VLOOKUP($B65,'Saisie Poussins'!$B$61:$AI$104,26+M$1,FALSE),0) -> 0 | N65: =IFERROR(VLOOKUP($B65,'Saisie Poussins'!$B$61:$AI$104,26+N$1,FALSE),0) -> 0 | O65: =IFERROR(VLOOKUP($B65,'Saisie Poussins'!$B$61:$AI$104,26+O$1,FALSE),0) -> 0 | P65: =IFERROR(VLOOKUP($B65,'Saisie Poussins'!$B$61:$AI$104,26+P$1,FALSE),0) -> 0 | Q65: 34
A66: =IFERROR(IF(A65+1<='Saisie Poussins'!$BF$12,A65+1,""),"") -> 13 | B66: =IFERROR(VLOOKUP(A66,'Saisie Poussins'!$BE$61:$BF$104,2,FALSE),"") -> 42900480124 | C66: =IFERROR(VLOOKUP($B66,'Saisie Poussins'!$B$13:$AI$56,1+C$1,FALSE),0) -> JOURNET | D66: =IFERROR(VLOOKUP($B66,'Saisie Poussins'!$B$13:$AI$56,1+D$1,FALSE),0) -> Paul | E66: =IFERROR(VLOOKUP($B66,'Saisie Poussins'!$B$13:$AI$56,1+E$1,FALSE),0) -> H | F66: =IFERROR(VLOOKUP($B66,'Saisie Poussins'!$B$13:$AI$56,1+F$1,FALSE),0) -> CC BELFORT MIOTTE | G66: =IFERROR(VLOOKUP($B66,'Saisie Poussins'!$B$13:$AI$56,1+G$1,FALSE),0) -> Poussin | H66: =IFERROR(VLOOKUP($B66,'Saisie Poussins'!$B$13:$AI$56,1+H$1,FALSE),0) -> 2 | I66: =IFERROR(VLOOKUP($B66,'Saisie Poussins'!$B$61:$AI$104,26+I$1,FALSE),0) -> 32 | J66: =IFERROR(VLOOKUP($B66,'Saisie Poussins'!$B$61:$AI$104,26+J$1,FALSE),0) -> 44 | K66: =IFERROR(VLOOKUP($B66,'Saisie Poussins'!$B$61:$AI$104,26+K$1,FALSE),0) -> 0 | L66: =IFERROR(VLOOKUP($B66,'Saisie Poussins'!$B$61:$AI$104,26+L$1,FALSE),0) -> 0 | M66: =IFERROR(VLOOKUP($B66,'Saisie Poussins'!$B$61:$AI$104,26+M$1,FALSE),0) -> 0 | N66: =IFERROR(VLOOKUP($B66,'Saisie Poussins'!$B$61:$AI$104,26+N$1,FALSE),0) -> 0 | O66: =IFERROR(VLOOKUP($B66,'Saisie Poussins'!$B$61:$AI$104,26+O$1,FALSE),0) -> 0 | P66: =IFERROR(VLOOKUP($B66,'Saisie Poussins'!$B$61:$AI$104,26+P$1,FALSE),0) -> 0 | Q66: 76
A67: =IFERROR(IF(A66+1<='Saisie Poussins'!$BF$12,A66+1,""),"") -> 14 | B67: =IFERROR(VLOOKUP(A67,'Saisie Poussins'!$BE$61:$BF$104,2,FALSE),"") -> 42250120377 | C67: =IFERROR(VLOOKUP($B67,'Saisie Poussins'!$B$13:$AI$56,1+C$1,FALSE),0) -> GAUROIS | D67: =IFERROR(VLOOKUP($B67,'Saisie Poussins'!$B$13:$AI$56,1+D$1,FALSE),0) -> Matthias | E67: =IFERROR(VLOOKUP($B67,'Saisie Poussins'!$B$13:$AI$56,1+E$1,FALSE),0) -> H | F67: =IFERROR(VLOOKUP($B67,'Saisie Poussins'!$B$13:$AI$56,1+F$1,FALSE),0) -> V.C.DE MONTBELIARD | G67: =IFERROR(VLOOKUP($B67,'Saisie Poussins'!$B$13:$AI$56,1+G$1,FALSE),0) -> Poussin | H67: =IFERROR(VLOOKUP($B67,'Saisie Poussins'!$B$13:$AI$56,1+H$1,FALSE),0) -> 2 | I67: =IFERROR(VLOOKUP($B67,'Saisie Poussins'!$B$61:$AI$104,26+I$1,FALSE),0) -> 0 | J67: =IFERROR(VLOOKUP($B67,'Saisie Poussins'!$B$61:$AI$104,26+J$1,FALSE),0) -> 26 | K67: =IFERROR(VLOOKUP($B67,'Saisie Poussins'!$B$61:$AI$104,26+K$1,FALSE),0) -> 0 | L67: =IFERROR(VLOOKUP($B67,'Saisie Poussins'!$B$61:$AI$104,26+L$1,FALSE),0) -> 0 | M67: =IFERROR(VLOOKUP($B67,'Saisie Poussins'!$B$61:$AI$104,26+M$1,FALSE),0) -> 0 | N67: =IFERROR(VLOOKUP($B67,'Saisie Poussins'!$B$61:$AI$104,26+N$1,FALSE),0) -> 0 | O67: =IFERROR(VLOOKUP($B67,'Saisie Poussins'!$B$61:$AI$104,26+O$1,FALSE),0) -> 0 | P67: =IFERROR(VLOOKUP($B67,'Saisie Poussins'!$B$61:$AI$104,26+P$1,FALSE),0) -> 0 | Q67: 26
A68: =IFERROR(IF(A67+1<='Saisie Poussins'!$BF$12,A67+1,""),"") -> 15 | B68: =IFERROR(VLOOKUP(A68,'Saisie Poussins'!$BE$61:$BF$104,2,FALSE),"") -> 46880320466 | C68: =IFERROR(VLOOKUP($B68,'Saisie Poussins'!$B$13:$AI$56,1+C$1,FALSE),0) -> HERMANN | D68: =IFERROR(VLOOKUP($B68,'Saisie Poussins'!$B$13:$AI$56,1+D$1,FALSE),0) -> Robin | E68: =IFERROR(VLOOKUP($B68,'Saisie Poussins'!$B$13:$AI$56,1+E$1,FALSE),0) -> H | F68: =IFERROR(VLOOKUP($B68,'Saisie Poussins'!$B$13:$AI$56,1+F$1,FALSE),0) -> CYCLE GOLBEEN | G68: =IFERROR(VLOOKUP($B68,'Saisie Poussins'!$B$13:$AI$56,1+G$1,FALSE),0) -> Poussin | H68: =IFERROR(VLOOKUP($B68,'Saisie Poussins'!$B$13:$AI$56,1+H$1,FALSE),0) -> 1 | I68: =IFERROR(VLOOKUP($B68,'Saisie Poussins'!$B$61:$AI$104,26+I$1,FALSE),0) -> 0 | J68: =IFERROR(VLOOKUP($B68,'Saisie Poussins'!$B$61:$AI$104,26+J$1,FALSE),0) -> 22 | K68: =IFERROR(VLOOKUP($B68,'Saisie Poussins'!$B$61:$AI$104,26+K$1,FALSE),0) -> 0 | L68: =IFERROR(VLOOKUP($B68,'Saisie Poussins'!$B$61:$AI$104,26+L$1,FALSE),0) -> 0 | M68: =IFERROR(VLOOKUP($B68,'Saisie Poussins'!$B$61:$AI$104,26+M$1,FALSE),0) -> 0 | N68: =IFERROR(VLOOKUP($B68,'Saisie Poussins'!$B$61:$AI$104,26+N$1,FALSE),0) -> 0 | O68: =IFERROR(VLOOKUP($B68,'Saisie Poussins'!$B$61:$AI$104,26+O$1,FALSE),0) -> 0 | P68: =IFERROR(VLOOKUP($B68,'Saisie Poussins'!$B$61:$AI$104,26+P$1,FALSE),0) -> 0 | Q68: 22
A69: =IFERROR(IF(A68+1<='Saisie Poussins'!$BF$12,A68+1,""),"") -> 16 | B69: =IFERROR(VLOOKUP(A69,'Saisie Poussins'!$BE$61:$BF$104,2,FALSE),"") -> 42700680168 | C69: =IFERROR(VLOOKUP($B69,'Saisie Poussins'!$B$13:$AI$56,1+C$1,FALSE),0) -> CLERC | D69: =IFERROR(VLOOKUP($B69,'Saisie Poussins'!$B$13:$AI$56,1+D$1,FALSE),0) -> Zoé | E69: =IFERROR(VLOOKUP($B69,'Saisie Poussins'!$B$13:$AI$56,1+E$1,FALSE),0) -> H | F69: =IFERROR(VLOOKUP($B69,'Saisie Poussins'!$B$13:$AI$56,1+F$1,FALSE),0) -> E.C. LUXEUIL VOSGES SAONO | G69: =IFERROR(VLOOKUP($B69,'Saisie Poussins'!$B$13:$AI$56,1+G$1,FALSE),0) -> Poussin | H69: =IFERROR(VLOOKUP($B69,'Saisie Poussins'!$B$13:$AI$56,1+H$1,FALSE),0) -> 2 | I69: =IFERROR(VLOOKUP($B69,'Saisie Poussins'!$B$61:$AI$104,26+I$1,FALSE),0) -> 20 | J69: =IFERROR(VLOOKUP($B69,'Saisie Poussins'!$B$61:$AI$104,26+J$1,FALSE),0) -> 0 | K69: =IFERROR(VLOOKUP($B69,'Saisie Poussins'!$B$61:$AI$104,26+K$1,FALSE),0) -> 0 | L69: =IFERROR(VLOOKUP($B69,'Saisie Poussins'!$B$61:$AI$104,26+L$1,FALSE),0) -> 0 | M69: =IFERROR(VLOOKUP($B69,'Saisie Poussins'!$B$61:$AI$104,26+M$1,FALSE),0) -> 0 | N69: =IFERROR(VLOOKUP($B69,'Saisie Poussins'!$B$61:$AI$104,26+N$1,FALSE),0) -> 0 | O69: =IFERROR(VLOOKUP($B69,'Saisie Poussins'!$B$61:$AI$104,26+O$1,FALSE),0) -> 0 | P69: =IFERROR(VLOOKUP($B69,'Saisie Poussins'!$B$61:$AI$104,26+P$1,FALSE),0) -> 0 | Q69: 20
A70: =IFERROR(IF(A69+1<='Saisie Poussins'!$BF$12,A69+1,""),"") ->  | B70: =IFERROR(VLOOKUP(A70,'Saisie Poussins'!$BE$61:$BF$104,2,FALSE),"") -> 0 | C70: =IFERROR(VLOOKUP($B70,'Saisie Poussins'!$B$13:$AI$56,1+C$1,FALSE),0) -> 0 | D70: =IFERROR(VLOOKUP($B70,'Saisie Poussins'!$B$13:$AI$56,1+D$1,FALSE),0) -> 0 | E70: =IFERROR(VLOOKUP($B70,'Saisie Poussins'!$B$13:$AI$56,1+E$1,FALSE),0) -> 0 | F70: =IFERROR(VLOOKUP($B70,'Saisie Poussins'!$B$13:$AI$56,1+F$1,FALSE),0) -> 0 | G70: =IFERROR(VLOOKUP($B70,'Saisie Poussins'!$B$13:$AI$56,1+G$1,FALSE),0) -> 0 | H70: =IFERROR(VLOOKUP($B70,'Saisie Poussins'!$B$13:$AI$56,1+H$1,FALSE),0) -> 0 | I70: =IFERROR(VLOOKUP($B70,'Saisie Poussins'!$B$61:$AI$104,26+I$1,FALSE),0) -> 0 | J70: =IFERROR(VLOOKUP($B70,'Saisie Poussins'!$B$61:$AI$104,26+J$1,FALSE),0) -> 0 | K70: =IFERROR(VLOOKUP($B70,'Saisie Poussins'!$B$61:$AI$104,26+K$1,FALSE),0) -> 0 | L70: =IFERROR(VLOOKUP($B70,'Saisie Poussins'!$B$61:$AI$104,26+L$1,FALSE),0) -> 0 | M70: =IFERROR(VLOOKUP($B70,'Saisie Poussins'!$B$61:$AI$104,26+M$1,FALSE),0) -> 0 | N70: =IFERROR(VLOOKUP($B70,'Saisie Poussins'!$B$61:$AI$104,26+N$1,FALSE),0) -> 0 | O70: =IFERROR(VLOOKUP($B70,'Saisie Poussins'!$B$61:$AI$104,26+O$1,FALSE),0) -> 0 | P70: =IFERROR(VLOOKUP($B70,'Saisie Poussins'!$B$61:$AI$104,26+P$1,FALSE),0) -> 0
A71: =IFERROR(IF(A70+1<='Saisie Poussins'!$BF$12,A70+1,""),"") ->  | B71: =IFERROR(VLOOKUP(A71,'Saisie Poussins'!$BE$61:$BF$104,2,FALSE),"") -> 0 | C71: =IFERROR(VLOOKUP($B71,'Saisie Poussins'!$B$13:$AI$56,1+C$1,FALSE),0) -> 0 | D71: =IFERROR(VLOOKUP($B71,'Saisie Poussins'!$B$13:$AI$56,1+D$1,FALSE),0) -> 0 | E71: =IFERROR(VLOOKUP($B71,'Saisie Poussins'!$B$13:$AI$56,1+E$1,FALSE),0) -> 0 | F71: =IFERROR(VLOOKUP($B71,'Saisie Poussins'!$B$13:$AI$56,1+F$1,FALSE),0) -> 0 | G71: =IFERROR(VLOOKUP($B71,'Saisie Poussins'!$B$13:$AI$56,1+G$1,FALSE),0) -> 0 | H71: =IFERROR(VLOOKUP($B71,'Saisie Poussins'!$B$13:$AI$56,1+H$1,FALSE),0) -> 0 | I71: =IFERROR(VLOOKUP($B71,'Saisie Poussins'!$B$61:$AI$104,26+I$1,FALSE),0) -> 0 | J71: =IFERROR(VLOOKUP($B71,'Saisie Poussins'!$B$61:$AI$104,26+J$1,FALSE),0) -> 0 | K71: =IFERROR(VLOOKUP($B71,'Saisie Poussins'!$B$61:$AI$104,26+K$1,FALSE),0) -> 0 | L71: =IFERROR(VLOOKUP($B71,'Saisie Poussins'!$B$61:$AI$104,26+L$1,FALSE),0) -> 0 | M71: =IFERROR(VLOOKUP($B71,'Saisie Poussins'!$B$61:$AI$104,26+M$1,FALSE),0) -> 0 | N71: =IFERROR(VLOOKUP($B71,'Saisie Poussins'!$B$61:$AI$104,26+N$1,FALSE),0) -> 0 | O71: =IFERROR(VLOOKUP($B71,'Saisie Poussins'!$B$61:$AI$104,26+O$1,FALSE),0) -> 0 | P71: =IFERROR(VLOOKUP($B71,'Saisie Poussins'!$B$61:$AI$104,26+P$1,FALSE),0) -> 0
A72: =IFERROR(IF(A71+1<='Saisie Poussins'!$BF$12,A71+1,""),"") ->  | B72: =IFERROR(VLOOKUP(A72,'Saisie Poussins'!$BE$61:$BF$104,2,FALSE),"") -> 0 | C72: =IFERROR(VLOOKUP($B72,'Saisie Poussins'!$B$13:$AI$56,1+C$1,FALSE),0) -> 0 | D72: =IFERROR(VLOOKUP($B72,'Saisie Poussins'!$B$13:$AI$56,1+D$1,FALSE),0) -> 0 | E72: =IFERROR(VLOOKUP($B72,'Saisie Poussins'!$B$13:$AI$56,1+E$1,FALSE),0) -> 0 | F72: =IFERROR(VLOOKUP($B72,'Saisie Poussins'!$B$13:$AI$56,1+F$1,FALSE),0) -> 0 | G72: =IFERROR(VLOOKUP($B72,'Saisie Poussins'!$B$13:$AI$56,1+G$1,FALSE),0) -> 0 | H72: =IFERROR(VLOOKUP($B72,'Saisie Poussins'!$B$13:$AI$56,1+H$1,FALSE),0) -> 0 | I72: =IFERROR(VLOOKUP($B72,'Saisie Poussins'!$B$61:$AI$104,26+I$1,FALSE),0) -> 0 | J72: =IFERROR(VLOOKUP($B72,'Saisie Poussins'!$B$61:$AI$104,26+J$1,FALSE),0) -> 0 | K72: =IFERROR(VLOOKUP($B72,'Saisie Poussins'!$B$61:$AI$104,26+K$1,FALSE),0) -> 0 | L72: =IFERROR(VLOOKUP($B72,'Saisie Poussins'!$B$61:$AI$104,26+L$1,FALSE),0) -> 0 | M72: =IFERROR(VLOOKUP($B72,'Saisie Poussins'!$B$61:$AI$104,26+M$1,FALSE),0) -> 0 | N72: =IFERROR(VLOOKUP($B72,'Saisie Poussins'!$B$61:$AI$104,26+N$1,FALSE),0) -> 0 | O72: =IFERROR(VLOOKUP($B72,'Saisie Poussins'!$B$61:$AI$104,26+O$1,FALSE),0) -> 0 | P72: =IFERROR(VLOOKUP($B72,'Saisie Poussins'!$B$61:$AI$104,26+P$1,FALSE),0) -> 0
A73: =IFERROR(IF(A72+1<='Saisie Poussins'!$BF$12,A72+1,""),"") ->  | B73: =IFERROR(VLOOKUP(A73,'Saisie Poussins'!$BE$61:$BF$104,2,FALSE),"") -> 0 | C73: =IFERROR(VLOOKUP($B73,'Saisie Poussins'!$B$13:$AI$56,1+C$1,FALSE),0) -> 0 | D73: =IFERROR(VLOOKUP($B73,'Saisie Poussins'!$B$13:$AI$56,1+D$1,FALSE),0) -> 0 | E73: =IFERROR(VLOOKUP($B73,'Saisie Poussins'!$B$13:$AI$56,1+E$1,FALSE),0) -> 0 | F73: =IFERROR(VLOOKUP($B73,'Saisie Poussins'!$B$13:$AI$56,1+F$1,FALSE),0) -> 0 | G73: =IFERROR(VLOOKUP($B73,'Saisie Poussins'!$B$13:$AI$56,1+G$1,FALSE),0) -> 0 | H73: =IFERROR(VLOOKUP($B73,'Saisie Poussins'!$B$13:$AI$56,1+H$1,FALSE),0) -> 0 | I73: =IFERROR(VLOOKUP($B73,'Saisie Poussins'!$B$61:$AI$104,26+I$1,FALSE),0) -> 0 | J73: =IFERROR(VLOOKUP($B73,'Saisie Poussins'!$B$61:$AI$104,26+J$1,FALSE),0) -> 0 | K73: =IFERROR(VLOOKUP($B73,'Saisie Poussins'!$B$61:$AI$104,26+K$1,FALSE),0) -> 0 | L73: =IFERROR(VLOOKUP($B73,'Saisie Poussins'!$B$61:$AI$104,26+L$1,FALSE),0) -> 0 | M73: =IFERROR(VLOOKUP($B73,'Saisie Poussins'!$B$61:$AI$104,26+M$1,FALSE),0) -> 0 | N73: =IFERROR(VLOOKUP($B73,'Saisie Poussins'!$B$61:$AI$104,26+N$1,FALSE),0) -> 0 | O73: =IFERROR(VLOOKUP($B73,'Saisie Poussins'!$B$61:$AI$104,26+O$1,FALSE),0) -> 0 | P73: =IFERROR(VLOOKUP($B73,'Saisie Poussins'!$B$61:$AI$104,26+P$1,FALSE),0) -> 0
A74: =IFERROR(IF(A73+1<='Saisie Poussins'!$BF$12,A73+1,""),"") ->  | B74: =IFERROR(VLOOKUP(A74,'Saisie Poussins'!$BE$61:$BF$104,2,FALSE),"") -> 0 | C74: =IFERROR(VLOOKUP($B74,'Saisie Poussins'!$B$13:$AI$56,1+C$1,FALSE),0) -> 0 | D74: =IFERROR(VLOOKUP($B74,'Saisie Poussins'!$B$13:$AI$56,1+D$1,FALSE),0) -> 0 | E74: =IFERROR(VLOOKUP($B74,'Saisie Poussins'!$B$13:$AI$56,1+E$1,FALSE),0) -> 0 | F74: =IFERROR(VLOOKUP($B74,'Saisie Poussins'!$B$13:$AI$56,1+F$1,FALSE),0) -> 0 | G74: =IFERROR(VLOOKUP($B74,'Saisie Poussins'!$B$13:$AI$56,1+G$1,FALSE),0) -> 0 | H74: =IFERROR(VLOOKUP($B74,'Saisie Poussins'!$B$13:$AI$56,1+H$1,FALSE),0) -> 0 | I74: =IFERROR(VLOOKUP($B74,'Saisie Poussins'!$B$61:$AI$104,26+I$1,FALSE),0) -> 0 | J74: =IFERROR(VLOOKUP($B74,'Saisie Poussins'!$B$61:$AI$104,26+J$1,FALSE),0) -> 0 | K74: =IFERROR(VLOOKUP($B74,'Saisie Poussins'!$B$61:$AI$104,26+K$1,FALSE),0) -> 0 | L74: =IFERROR(VLOOKUP($B74,'Saisie Poussins'!$B$61:$AI$104,26+L$1,FALSE),0) -> 0 | M74: =IFERROR(VLOOKUP($B74,'Saisie Poussins'!$B$61:$AI$104,26+M$1,FALSE),0) -> 0 | N74: =IFERROR(VLOOKUP($B74,'Saisie Poussins'!$B$61:$AI$104,26+N$1,FALSE),0) -> 0 | O74: =IFERROR(VLOOKUP($B74,'Saisie Poussins'!$B$61:$AI$104,26+O$1,FALSE),0) -> 0 | P74: =IFERROR(VLOOKUP($B74,'Saisie Poussins'!$B$61:$AI$104,26+P$1,FALSE),0) -> 0
A75: =IFERROR(IF(A74+1<='Saisie Poussins'!$BF$12,A74+1,""),"") ->  | B75: =IFERROR(VLOOKUP(A75,'Saisie Poussins'!$BE$61:$BF$104,2,FALSE),"") -> 0 | C75: =IFERROR(VLOOKUP($B75,'Saisie Poussins'!$B$13:$AI$56,1+C$1,FALSE),0) -> 0 | D75: =IFERROR(VLOOKUP($B75,'Saisie Poussins'!$B$13:$AI$56,1+D$1,FALSE),0) -> 0 | E75: =IFERROR(VLOOKUP($B75,'Saisie Poussins'!$B$13:$AI$56,1+E$1,FALSE),0) -> 0 | F75: =IFERROR(VLOOKUP($B75,'Saisie Poussins'!$B$13:$AI$56,1+F$1,FALSE),0) -> 0 | G75: =IFERROR(VLOOKUP($B75,'Saisie Poussins'!$B$13:$AI$56,1+G$1,FALSE),0) -> 0 | H75: =IFERROR(VLOOKUP($B75,'Saisie Poussins'!$B$13:$AI$56,1+H$1,FALSE),0) -> 0 | I75: =IFERROR(VLOOKUP($B75,'Saisie Poussins'!$B$61:$AI$104,26+I$1,FALSE),0) -> 0 | J75: =IFERROR(VLOOKUP($B75,'Saisie Poussins'!$B$61:$AI$104,26+J$1,FALSE),0) -> 0 | K75: =IFERROR(VLOOKUP($B75,'Saisie Poussins'!$B$61:$AI$104,26+K$1,FALSE),0) -> 0 | L75: =IFERROR(VLOOKUP($B75,'Saisie Poussins'!$B$61:$AI$104,26+L$1,FALSE),0) -> 0 | M75: =IFERROR(VLOOKUP($B75,'Saisie Poussins'!$B$61:$AI$104,26+M$1,FALSE),0) -> 0 | N75: =IFERROR(VLOOKUP($B75,'Saisie Poussins'!$B$61:$AI$104,26+N$1,FALSE),0) -> 0 | O75: =IFERROR(VLOOKUP($B75,'Saisie Poussins'!$B$61:$AI$104,26+O$1,FALSE),0) -> 0 | P75: =IFERROR(VLOOKUP($B75,'Saisie Poussins'!$B$61:$AI$104,26+P$1,FALSE),0) -> 0
A76: =IFERROR(IF(A75+1<='Saisie Poussins'!$BF$12,A75+1,""),"") ->  | B76: =IFERROR(VLOOKUP(A76,'Saisie Poussins'!$BE$61:$BF$104,2,FALSE),"") -> 0 | C76: =IFERROR(VLOOKUP($B76,'Saisie Poussins'!$B$13:$AI$56,1+C$1,FALSE),0) -> 0 | D76: =IFERROR(VLOOKUP($B76,'Saisie Poussins'!$B$13:$AI$56,1+D$1,FALSE),0) -> 0 | E76: =IFERROR(VLOOKUP($B76,'Saisie Poussins'!$B$13:$AI$56,1+E$1,FALSE),0) -> 0 | F76: =IFERROR(VLOOKUP($B76,'Saisie Poussins'!$B$13:$AI$56,1+F$1,FALSE),0) -> 0 | G76: =IFERROR(VLOOKUP($B76,'Saisie Poussins'!$B$13:$AI$56,1+G$1,FALSE),0) -> 0 | H76: =IFERROR(VLOOKUP($B76,'Saisie Poussins'!$B$13:$AI$56,1+H$1,FALSE),0) -> 0 | I76: =IFERROR(VLOOKUP($B76,'Saisie Poussins'!$B$61:$AI$104,26+I$1,FALSE),0) -> 0 | J76: =IFERROR(VLOOKUP($B76,'Saisie Poussins'!$B$61:$AI$104,26+J$1,FALSE),0) -> 0 | K76: =IFERROR(VLOOKUP($B76,'Saisie Poussins'!$B$61:$AI$104,26+K$1,FALSE),0) -> 0 | L76: =IFERROR(VLOOKUP($B76,'Saisie Poussins'!$B$61:$AI$104,26+L$1,FALSE),0) -> 0 | M76: =IFERROR(VLOOKUP($B76,'Saisie Poussins'!$B$61:$AI$104,26+M$1,FALSE),0) -> 0 | N76: =IFERROR(VLOOKUP($B76,'Saisie Poussins'!$B$61:$AI$104,26+N$1,FALSE),0) -> 0 | O76: =IFERROR(VLOOKUP($B76,'Saisie Poussins'!$B$61:$AI$104,26+O$1,FALSE),0) -> 0 | P76: =IFERROR(VLOOKUP($B76,'Saisie Poussins'!$B$61:$AI$104,26+P$1,FALSE),0) -> 0
A77: =IFERROR(IF(A76+1<='Saisie Poussins'!$BF$12,A76+1,""),"") ->  | B77: =IFERROR(VLOOKUP(A77,'Saisie Poussins'!$BE$61:$BF$104,2,FALSE),"") -> 0 | C77: =IFERROR(VLOOKUP($B77,'Saisie Poussins'!$B$13:$AI$56,1+C$1,FALSE),0) -> 0 | D77: =IFERROR(VLOOKUP($B77,'Saisie Poussins'!$B$13:$AI$56,1+D$1,FALSE),0) -> 0 | E77: =IFERROR(VLOOKUP($B77,'Saisie Poussins'!$B$13:$AI$56,1+E$1,FALSE),0) -> 0 | F77: =IFERROR(VLOOKUP($B77,'Saisie Poussins'!$B$13:$AI$56,1+F$1,FALSE),0) -> 0 | G77: =IFERROR(VLOOKUP($B77,'Saisie Poussins'!$B$13:$AI$56,1+G$1,FALSE),0) -> 0 | H77: =IFERROR(VLOOKUP($B77,'Saisie Poussins'!$B$13:$AI$56,1+H$1,FALSE),0) -> 0 | I77: =IFERROR(VLOOKUP($B77,'Saisie Poussins'!$B$61:$AI$104,26+I$1,FALSE),0) -> 0 | J77: =IFERROR(VLOOKUP($B77,'Saisie Poussins'!$B$61:$AI$104,26+J$1,FALSE),0) -> 0 | K77: =IFERROR(VLOOKUP($B77,'Saisie Poussins'!$B$61:$AI$104,26+K$1,FALSE),0) -> 0 | L77: =IFERROR(VLOOKUP($B77,'Saisie Poussins'!$B$61:$AI$104,26+L$1,FALSE),0) -> 0 | M77: =IFERROR(VLOOKUP($B77,'Saisie Poussins'!$B$61:$AI$104,26+M$1,FALSE),0) -> 0 | N77: =IFERROR(VLOOKUP($B77,'Saisie Poussins'!$B$61:$AI$104,26+N$1,FALSE),0) -> 0 | O77: =IFERROR(VLOOKUP($B77,'Saisie Poussins'!$B$61:$AI$104,26+O$1,FALSE),0) -> 0 | P77: =IFERROR(VLOOKUP($B77,'Saisie Poussins'!$B$61:$AI$104,26+P$1,FALSE),0) -> 0
A78: =IFERROR(IF(A77+1<='Saisie Poussins'!$BF$12,A77+1,""),"") ->  | B78: =IFERROR(VLOOKUP(A78,'Saisie Poussins'!$BE$61:$BF$104,2,FALSE),"") -> 0 | C78: =IFERROR(VLOOKUP($B78,'Saisie Poussins'!$B$13:$AI$56,1+C$1,FALSE),0) -> 0 | D78: =IFERROR(VLOOKUP($B78,'Saisie Poussins'!$B$13:$AI$56,1+D$1,FALSE),0) -> 0 | E78: =IFERROR(VLOOKUP($B78,'Saisie Poussins'!$B$13:$AI$56,1+E$1,FALSE),0) -> 0 | F78: =IFERROR(VLOOKUP($B78,'Saisie Poussins'!$B$13:$AI$56,1+F$1,FALSE),0) -> 0 | G78: =IFERROR(VLOOKUP($B78,'Saisie Poussins'!$B$13:$AI$56,1+G$1,FALSE),0) -> 0 | H78: =IFERROR(VLOOKUP($B78,'Saisie Poussins'!$B$13:$AI$56,1+H$1,FALSE),0) -> 0 | I78: =IFERROR(VLOOKUP($B78,'Saisie Poussins'!$B$61:$AI$104,26+I$1,FALSE),0) -> 0 | J78: =IFERROR(VLOOKUP($B78,'Saisie Poussins'!$B$61:$AI$104,26+J$1,FALSE),0) -> 0 | K78: =IFERROR(VLOOKUP($B78,'Saisie Poussins'!$B$61:$AI$104,26+K$1,FALSE),0) -> 0 | L78: =IFERROR(VLOOKUP($B78,'Saisie Poussins'!$B$61:$AI$104,26+L$1,FALSE),0) -> 0 | M78: =IFERROR(VLOOKUP($B78,'Saisie Poussins'!$B$61:$AI$104,26+M$1,FALSE),0) -> 0 | N78: =IFERROR(VLOOKUP($B78,'Saisie Poussins'!$B$61:$AI$104,26+N$1,FALSE),0) -> 0 | O78: =IFERROR(VLOOKUP($B78,'Saisie Poussins'!$B$61:$AI$104,26+O$1,FALSE),0) -> 0 | P78: =IFERROR(VLOOKUP($B78,'Saisie Poussins'!$B$61:$AI$104,26+P$1,FALSE),0) -> 0
A79: =IFERROR(IF(A78+1<='Saisie Poussins'!$BF$12,A78+1,""),"") ->  | B79: =IFERROR(VLOOKUP(A79,'Saisie Poussins'!$BE$61:$BF$104,2,FALSE),"") -> 0 | C79: =IFERROR(VLOOKUP($B79,'Saisie Poussins'!$B$13:$AI$56,1+C$1,FALSE),0) -> 0 | D79: =IFERROR(VLOOKUP($B79,'Saisie Poussins'!$B$13:$AI$56,1+D$1,FALSE),0) -> 0 | E79: =IFERROR(VLOOKUP($B79,'Saisie Poussins'!$B$13:$AI$56,1+E$1,FALSE),0) -> 0 | F79: =IFERROR(VLOOKUP($B79,'Saisie Poussins'!$B$13:$AI$56,1+F$1,FALSE),0) -> 0 | G79: =IFERROR(VLOOKUP($B79,'Saisie Poussins'!$B$13:$AI$56,1+G$1,FALSE),0) -> 0 | H79: =IFERROR(VLOOKUP($B79,'Saisie Poussins'!$B$13:$AI$56,1+H$1,FALSE),0) -> 0 | I79: =IFERROR(VLOOKUP($B79,'Saisie Poussins'!$B$61:$AI$104,26+I$1,FALSE),0) -> 0 | J79: =IFERROR(VLOOKUP($B79,'Saisie Poussins'!$B$61:$AI$104,26+J$1,FALSE),0) -> 0 | K79: =IFERROR(VLOOKUP($B79,'Saisie Poussins'!$B$61:$AI$104,26+K$1,FALSE),0) -> 0 | L79: =IFERROR(VLOOKUP($B79,'Saisie Poussins'!$B$61:$AI$104,26+L$1,FALSE),0) -> 0 | M79: =IFERROR(VLOOKUP($B79,'Saisie Poussins'!$B$61:$AI$104,26+M$1,FALSE),0) -> 0 | N79: =IFERROR(VLOOKUP($B79,'Saisie Poussins'!$B$61:$AI$104,26+N$1,FALSE),0) -> 0 | O79: =IFERROR(VLOOKUP($B79,'Saisie Poussins'!$B$61:$AI$104,26+O$1,FALSE),0) -> 0 | P79: =IFERROR(VLOOKUP($B79,'Saisie Poussins'!$B$61:$AI$104,26+P$1,FALSE),0) -> 0
A80: =IFERROR(IF(A79+1<='Saisie Poussins'!$BF$12,A79+1,""),"") ->  | B80: =IFERROR(VLOOKUP(A80,'Saisie Poussins'!$BE$61:$BF$104,2,FALSE),"") -> 0 | C80: =IFERROR(VLOOKUP($B80,'Saisie Poussins'!$B$13:$AI$56,1+C$1,FALSE),0) -> 0 | D80: =IFERROR(VLOOKUP($B80,'Saisie Poussins'!$B$13:$AI$56,1+D$1,FALSE),0) -> 0 | E80: =IFERROR(VLOOKUP($B80,'Saisie Poussins'!$B$13:$AI$56,1+E$1,FALSE),0) -> 0 | F80: =IFERROR(VLOOKUP($B80,'Saisie Poussins'!$B$13:$AI$56,1+F$1,FALSE),0) -> 0 | G80: =IFERROR(VLOOKUP($B80,'Saisie Poussins'!$B$13:$AI$56,1+G$1,FALSE),0) -> 0 | H80: =IFERROR(VLOOKUP($B80,'Saisie Poussins'!$B$13:$AI$56,1+H$1,FALSE),0) -> 0 | I80: =IFERROR(VLOOKUP($B80,'Saisie Poussins'!$B$61:$AI$104,26+I$1,FALSE),0) -> 0 | J80: =IFERROR(VLOOKUP($B80,'Saisie Poussins'!$B$61:$AI$104,26+J$1,FALSE),0) -> 0 | K80: =IFERROR(VLOOKUP($B80,'Saisie Poussins'!$B$61:$AI$104,26+K$1,FALSE),0) -> 0 | L80: =IFERROR(VLOOKUP($B80,'Saisie Poussins'!$B$61:$AI$104,26+L$1,FALSE),0) -> 0 | M80: =IFERROR(VLOOKUP($B80,'Saisie Poussins'!$B$61:$AI$104,26+M$1,FALSE),0) -> 0 | N80: =IFERROR(VLOOKUP($B80,'Saisie Poussins'!$B$61:$AI$104,26+N$1,FALSE),0) -> 0 | O80: =IFERROR(VLOOKUP($B80,'Saisie Poussins'!$B$61:$AI$104,26+O$1,FALSE),0) -> 0 | P80: =IFERROR(VLOOKUP($B80,'Saisie Poussins'!$B$61:$AI$104,26+P$1,FALSE),0) -> 0
A81: =IFERROR(IF(A80+1<='Saisie Poussins'!$BF$12,A80+1,""),"") ->  | B81: =IFERROR(VLOOKUP(A81,'Saisie Poussins'!$BE$61:$BF$104,2,FALSE),"") -> 0 | C81: =IFERROR(VLOOKUP($B81,'Saisie Poussins'!$B$13:$AI$56,1+C$1,FALSE),0) -> 0 | D81: =IFERROR(VLOOKUP($B81,'Saisie Poussins'!$B$13:$AI$56,1+D$1,FALSE),0) -> 0 | E81: =IFERROR(VLOOKUP($B81,'Saisie Poussins'!$B$13:$AI$56,1+E$1,FALSE),0) -> 0 | F81: =IFERROR(VLOOKUP($B81,'Saisie Poussins'!$B$13:$AI$56,1+F$1,FALSE),0) -> 0 | G81: =IFERROR(VLOOKUP($B81,'Saisie Poussins'!$B$13:$AI$56,1+G$1,FALSE),0) -> 0 | H81: =IFERROR(VLOOKUP($B81,'Saisie Poussins'!$B$13:$AI$56,1+H$1,FALSE),0) -> 0 | I81: =IFERROR(VLOOKUP($B81,'Saisie Poussins'!$B$61:$AI$104,26+I$1,FALSE),0) -> 0 | J81: =IFERROR(VLOOKUP($B81,'Saisie Poussins'!$B$61:$AI$104,26+J$1,FALSE),0) -> 0 | K81: =IFERROR(VLOOKUP($B81,'Saisie Poussins'!$B$61:$AI$104,26+K$1,FALSE),0) -> 0 | L81: =IFERROR(VLOOKUP($B81,'Saisie Poussins'!$B$61:$AI$104,26+L$1,FALSE),0) -> 0 | M81: =IFERROR(VLOOKUP($B81,'Saisie Poussins'!$B$61:$AI$104,26+M$1,FALSE),0) -> 0 | N81: =IFERROR(VLOOKUP($B81,'Saisie Poussins'!$B$61:$AI$104,26+N$1,FALSE),0) -> 0 | O81: =IFERROR(VLOOKUP($B81,'Saisie Poussins'!$B$61:$AI$104,26+O$1,FALSE),0) -> 0 | P81: =IFERROR(VLOOKUP($B81,'Saisie Poussins'!$B$61:$AI$104,26+P$1,FALSE),0) -> 0
A82: =IFERROR(IF(A81+1<='Saisie Poussins'!$BF$12,A81+1,""),"") ->  | B82: =IFERROR(VLOOKUP(A82,'Saisie Poussins'!$BE$61:$BF$104,2,FALSE),"") -> 0 | C82: =IFERROR(VLOOKUP($B82,'Saisie Poussins'!$B$13:$AI$56,1+C$1,FALSE),0) -> 0 | D82: =IFERROR(VLOOKUP($B82,'Saisie Poussins'!$B$13:$AI$56,1+D$1,FALSE),0) -> 0 | E82: =IFERROR(VLOOKUP($B82,'Saisie Poussins'!$B$13:$AI$56,1+E$1,FALSE),0) -> 0 | F82: =IFERROR(VLOOKUP($B82,'Saisie Poussins'!$B$13:$AI$56,1+F$1,FALSE),0) -> 0 | G82: =IFERROR(VLOOKUP($B82,'Saisie Poussins'!$B$13:$AI$56,1+G$1,FALSE),0) -> 0 | H82: =IFERROR(VLOOKUP($B82,'Saisie Poussins'!$B$13:$AI$56,1+H$1,FALSE),0) -> 0 | I82: =IFERROR(VLOOKUP($B82,'Saisie Poussins'!$B$61:$AI$104,26+I$1,FALSE),0) -> 0 | J82: =IFERROR(VLOOKUP($B82,'Saisie Poussins'!$B$61:$AI$104,26+J$1,FALSE),0) -> 0 | K82: =IFERROR(VLOOKUP($B82,'Saisie Poussins'!$B$61:$AI$104,26+K$1,FALSE),0) -> 0 | L82: =IFERROR(VLOOKUP($B82,'Saisie Poussins'!$B$61:$AI$104,26+L$1,FALSE),0) -> 0 | M82: =IFERROR(VLOOKUP($B82,'Saisie Poussins'!$B$61:$AI$104,26+M$1,FALSE),0) -> 0 | N82: =IFERROR(VLOOKUP($B82,'Saisie Poussins'!$B$61:$AI$104,26+N$1,FALSE),0) -> 0 | O82: =IFERROR(VLOOKUP($B82,'Saisie Poussins'!$B$61:$AI$104,26+O$1,FALSE),0) -> 0 | P82: =IFERROR(VLOOKUP($B82,'Saisie Poussins'!$B$61:$AI$104,26+P$1,FALSE),0) -> 0
A83: =IFERROR(IF(A82+1<='Saisie Poussins'!$BF$12,A82+1,""),"") ->  | B83: =IFERROR(VLOOKUP(A83,'Saisie Poussins'!$BE$61:$BF$104,2,FALSE),"") -> 0 | C83: =IFERROR(VLOOKUP($B83,'Saisie Poussins'!$B$13:$AI$56,1+C$1,FALSE),0) -> 0 | D83: =IFERROR(VLOOKUP($B83,'Saisie Poussins'!$B$13:$AI$56,1+D$1,FALSE),0) -> 0 | E83: =IFERROR(VLOOKUP($B83,'Saisie Poussins'!$B$13:$AI$56,1+E$1,FALSE),0) -> 0 | F83: =IFERROR(VLOOKUP($B83,'Saisie Poussins'!$B$13:$AI$56,1+F$1,FALSE),0) -> 0 | G83: =IFERROR(VLOOKUP($B83,'Saisie Poussins'!$B$13:$AI$56,1+G$1,FALSE),0) -> 0 | H83: =IFERROR(VLOOKUP($B83,'Saisie Poussins'!$B$13:$AI$56,1+H$1,FALSE),0) -> 0 | I83: =IFERROR(VLOOKUP($B83,'Saisie Poussins'!$B$61:$AI$104,26+I$1,FALSE),0) -> 0 | J83: =IFERROR(VLOOKUP($B83,'Saisie Poussins'!$B$61:$AI$104,26+J$1,FALSE),0) -> 0 | K83: =IFERROR(VLOOKUP($B83,'Saisie Poussins'!$B$61:$AI$104,26+K$1,FALSE),0) -> 0 | L83: =IFERROR(VLOOKUP($B83,'Saisie Poussins'!$B$61:$AI$104,26+L$1,FALSE),0) -> 0 | M83: =IFERROR(VLOOKUP($B83,'Saisie Poussins'!$B$61:$AI$104,26+M$1,FALSE),0) -> 0 | N83: =IFERROR(VLOOKUP($B83,'Saisie Poussins'!$B$61:$AI$104,26+N$1,FALSE),0) -> 0 | O83: =IFERROR(VLOOKUP($B83,'Saisie Poussins'!$B$61:$AI$104,26+O$1,FALSE),0) -> 0 | P83: =IFERROR(VLOOKUP($B83,'Saisie Poussins'!$B$61:$AI$104,26+P$1,FALSE),0) -> 0
A84: =IFERROR(IF(A83+1<='Saisie Poussins'!$BF$12,A83+1,""),"") ->  | B84: =IFERROR(VLOOKUP(A84,'Saisie Poussins'!$BE$61:$BF$104,2,FALSE),"") -> 0 | C84: =IFERROR(VLOOKUP($B84,'Saisie Poussins'!$B$13:$AI$56,1+C$1,FALSE),0) -> 0 | D84: =IFERROR(VLOOKUP($B84,'Saisie Poussins'!$B$13:$AI$56,1+D$1,FALSE),0) -> 0 | E84: =IFERROR(VLOOKUP($B84,'Saisie Poussins'!$B$13:$AI$56,1+E$1,FALSE),0) -> 0 | F84: =IFERROR(VLOOKUP($B84,'Saisie Poussins'!$B$13:$AI$56,1+F$1,FALSE),0) -> 0 | G84: =IFERROR(VLOOKUP($B84,'Saisie Poussins'!$B$13:$AI$56,1+G$1,FALSE),0) -> 0 | H84: =IFERROR(VLOOKUP($B84,'Saisie Poussins'!$B$13:$AI$56,1+H$1,FALSE),0) -> 0 | I84: =IFERROR(VLOOKUP($B84,'Saisie Poussins'!$B$61:$AI$104,26+I$1,FALSE),0) -> 0 | J84: =IFERROR(VLOOKUP($B84,'Saisie Poussins'!$B$61:$AI$104,26+J$1,FALSE),0) -> 0 | K84: =IFERROR(VLOOKUP($B84,'Saisie Poussins'!$B$61:$AI$104,26+K$1,FALSE),0) -> 0 | L84: =IFERROR(VLOOKUP($B84,'Saisie Poussins'!$B$61:$AI$104,26+L$1,FALSE),0) -> 0 | M84: =IFERROR(VLOOKUP($B84,'Saisie Poussins'!$B$61:$AI$104,26+M$1,FALSE),0) -> 0 | N84: =IFERROR(VLOOKUP($B84,'Saisie Poussins'!$B$61:$AI$104,26+N$1,FALSE),0) -> 0 | O84: =IFERROR(VLOOKUP($B84,'Saisie Poussins'!$B$61:$AI$104,26+O$1,FALSE),0) -> 0 | P84: =IFERROR(VLOOKUP($B84,'Saisie Poussins'!$B$61:$AI$104,26+P$1,FALSE),0) -> 0
A85: =IFERROR(IF(A84+1<='Saisie Poussins'!$BF$12,A84+1,""),"") ->  | B85: =IFERROR(VLOOKUP(A85,'Saisie Poussins'!$BE$61:$BF$104,2,FALSE),"") -> 0 | C85: =IFERROR(VLOOKUP($B85,'Saisie Poussins'!$B$13:$AI$56,1+C$1,FALSE),0) -> 0 | D85: =IFERROR(VLOOKUP($B85,'Saisie Poussins'!$B$13:$AI$56,1+D$1,FALSE),0) -> 0 | E85: =IFERROR(VLOOKUP($B85,'Saisie Poussins'!$B$13:$AI$56,1+E$1,FALSE),0) -> 0 | F85: =IFERROR(VLOOKUP($B85,'Saisie Poussins'!$B$13:$AI$56,1+F$1,FALSE),0) -> 0 | G85: =IFERROR(VLOOKUP($B85,'Saisie Poussins'!$B$13:$AI$56,1+G$1,FALSE),0) -> 0 | H85: =IFERROR(VLOOKUP($B85,'Saisie Poussins'!$B$13:$AI$56,1+H$1,FALSE),0) -> 0 | I85: =IFERROR(VLOOKUP($B85,'Saisie Poussins'!$B$61:$AI$104,26+I$1,FALSE),0) -> 0 | J85: =IFERROR(VLOOKUP($B85,'Saisie Poussins'!$B$61:$AI$104,26+J$1,FALSE),0) -> 0 | K85: =IFERROR(VLOOKUP($B85,'Saisie Poussins'!$B$61:$AI$104,26+K$1,FALSE),0) -> 0 | L85: =IFERROR(VLOOKUP($B85,'Saisie Poussins'!$B$61:$AI$104,26+L$1,FALSE),0) -> 0 | M85: =IFERROR(VLOOKUP($B85,'Saisie Poussins'!$B$61:$AI$104,26+M$1,FALSE),0) -> 0 | N85: =IFERROR(VLOOKUP($B85,'Saisie Poussins'!$B$61:$AI$104,26+N$1,FALSE),0) -> 0 | O85: =IFERROR(VLOOKUP($B85,'Saisie Poussins'!$B$61:$AI$104,26+O$1,FALSE),0) -> 0 | P85: =IFERROR(VLOOKUP($B85,'Saisie Poussins'!$B$61:$AI$104,26+P$1,FALSE),0) -> 0
A86: =IFERROR(IF(A85+1<='Saisie Poussins'!$BF$12,A85+1,""),"") ->  | B86: =IFERROR(VLOOKUP(A86,'Saisie Poussins'!$BE$61:$BF$104,2,FALSE),"") -> 0 | C86: =IFERROR(VLOOKUP($B86,'Saisie Poussins'!$B$13:$AI$56,1+C$1,FALSE),0) -> 0 | D86: =IFERROR(VLOOKUP($B86,'Saisie Poussins'!$B$13:$AI$56,1+D$1,FALSE),0) -> 0 | E86: =IFERROR(VLOOKUP($B86,'Saisie Poussins'!$B$13:$AI$56,1+E$1,FALSE),0) -> 0 | F86: =IFERROR(VLOOKUP($B86,'Saisie Poussins'!$B$13:$AI$56,1+F$1,FALSE),0) -> 0 | G86: =IFERROR(VLOOKUP($B86,'Saisie Poussins'!$B$13:$AI$56,1+G$1,FALSE),0) -> 0 | H86: =IFERROR(VLOOKUP($B86,'Saisie Poussins'!$B$13:$AI$56,1+H$1,FALSE),0) -> 0 | I86: =IFERROR(VLOOKUP($B86,'Saisie Poussins'!$B$61:$AI$104,26+I$1,FALSE),0) -> 0 | J86: =IFERROR(VLOOKUP($B86,'Saisie Poussins'!$B$61:$AI$104,26+J$1,FALSE),0) -> 0 | K86: =IFERROR(VLOOKUP($B86,'Saisie Poussins'!$B$61:$AI$104,26+K$1,FALSE),0) -> 0 | L86: =IFERROR(VLOOKUP($B86,'Saisie Poussins'!$B$61:$AI$104,26+L$1,FALSE),0) -> 0 | M86: =IFERROR(VLOOKUP($B86,'Saisie Poussins'!$B$61:$AI$104,26+M$1,FALSE),0) -> 0 | N86: =IFERROR(VLOOKUP($B86,'Saisie Poussins'!$B$61:$AI$104,26+N$1,FALSE),0) -> 0 | O86: =IFERROR(VLOOKUP($B86,'Saisie Poussins'!$B$61:$AI$104,26+O$1,FALSE),0) -> 0 | P86: =IFERROR(VLOOKUP($B86,'Saisie Poussins'!$B$61:$AI$104,26+P$1,FALSE),0) -> 0
A87: =IFERROR(IF(A86+1<='Saisie Poussins'!$BF$12,A86+1,""),"") ->  | B87: =IFERROR(VLOOKUP(A87,'Saisie Poussins'!$BE$61:$BF$104,2,FALSE),"") -> 0 | C87: =IFERROR(VLOOKUP($B87,'Saisie Poussins'!$B$13:$AI$56,1+C$1,FALSE),0) -> 0 | D87: =IFERROR(VLOOKUP($B87,'Saisie Poussins'!$B$13:$AI$56,1+D$1,FALSE),0) -> 0 | E87: =IFERROR(VLOOKUP($B87,'Saisie Poussins'!$B$13:$AI$56,1+E$1,FALSE),0) -> 0 | F87: =IFERROR(VLOOKUP($B87,'Saisie Poussins'!$B$13:$AI$56,1+F$1,FALSE),0) -> 0 | G87: =IFERROR(VLOOKUP($B87,'Saisie Poussins'!$B$13:$AI$56,1+G$1,FALSE),0) -> 0 | H87: =IFERROR(VLOOKUP($B87,'Saisie Poussins'!$B$13:$AI$56,1+H$1,FALSE),0) -> 0 | I87: =IFERROR(VLOOKUP($B87,'Saisie Poussins'!$B$61:$AI$104,26+I$1,FALSE),0) -> 0 | J87: =IFERROR(VLOOKUP($B87,'Saisie Poussins'!$B$61:$AI$104,26+J$1,FALSE),0) -> 0 | K87: =IFERROR(VLOOKUP($B87,'Saisie Poussins'!$B$61:$AI$104,26+K$1,FALSE),0) -> 0 | L87: =IFERROR(VLOOKUP($B87,'Saisie Poussins'!$B$61:$AI$104,26+L$1,FALSE),0) -> 0 | M87: =IFERROR(VLOOKUP($B87,'Saisie Poussins'!$B$61:$AI$104,26+M$1,FALSE),0) -> 0 | N87: =IFERROR(VLOOKUP($B87,'Saisie Poussins'!$B$61:$AI$104,26+N$1,FALSE),0) -> 0 | O87: =IFERROR(VLOOKUP($B87,'Saisie Poussins'!$B$61:$AI$104,26+O$1,FALSE),0) -> 0 | P87: =IFERROR(VLOOKUP($B87,'Saisie Poussins'!$B$61:$AI$104,26+P$1,FALSE),0) -> 0
A88: =IFERROR(IF(A87+1<='Saisie Poussins'!$BF$12,A87+1,""),"") ->  | B88: =IFERROR(VLOOKUP(A88,'Saisie Poussins'!$BE$61:$BF$104,2,FALSE),"") -> 0 | C88: =IFERROR(VLOOKUP($B88,'Saisie Poussins'!$B$13:$AI$56,1+C$1,FALSE),0) -> 0 | D88: =IFERROR(VLOOKUP($B88,'Saisie Poussins'!$B$13:$AI$56,1+D$1,FALSE),0) -> 0 | E88: =IFERROR(VLOOKUP($B88,'Saisie Poussins'!$B$13:$AI$56,1+E$1,FALSE),0) -> 0 | F88: =IFERROR(VLOOKUP($B88,'Saisie Poussins'!$B$13:$AI$56,1+F$1,FALSE),0) -> 0 | G88: =IFERROR(VLOOKUP($B88,'Saisie Poussins'!$B$13:$AI$56,1+G$1,FALSE),0) -> 0 | H88: =IFERROR(VLOOKUP($B88,'Saisie Poussins'!$B$13:$AI$56,1+H$1,FALSE),0) -> 0 | I88: =IFERROR(VLOOKUP($B88,'Saisie Poussins'!$B$61:$AI$104,26+I$1,FALSE),0) -> 0 | J88: =IFERROR(VLOOKUP($B88,'Saisie Poussins'!$B$61:$AI$104,26+J$1,FALSE),0) -> 0 | K88: =IFERROR(VLOOKUP($B88,'Saisie Poussins'!$B$61:$AI$104,26+K$1,FALSE),0) -> 0 | L88: =IFERROR(VLOOKUP($B88,'Saisie Poussins'!$B$61:$AI$104,26+L$1,FALSE),0) -> 0 | M88: =IFERROR(VLOOKUP($B88,'Saisie Poussins'!$B$61:$AI$104,26+M$1,FALSE),0) -> 0 | N88: =IFERROR(VLOOKUP($B88,'Saisie Poussins'!$B$61:$AI$104,26+N$1,FALSE),0) -> 0 | O88: =IFERROR(VLOOKUP($B88,'Saisie Poussins'!$B$61:$AI$104,26+O$1,FALSE),0) -> 0 | P88: =IFERROR(VLOOKUP($B88,'Saisie Poussins'!$B$61:$AI$104,26+P$1,FALSE),0) -> 0
A89: =IFERROR(IF(A88+1<='Saisie Poussins'!$BF$12,A88+1,""),"") ->  | B89: =IFERROR(VLOOKUP(A89,'Saisie Poussins'!$BE$61:$BF$104,2,FALSE),"") -> 0 | C89: =IFERROR(VLOOKUP($B89,'Saisie Poussins'!$B$13:$AI$56,1+C$1,FALSE),0) -> 0 | D89: =IFERROR(VLOOKUP($B89,'Saisie Poussins'!$B$13:$AI$56,1+D$1,FALSE),0) -> 0 | E89: =IFERROR(VLOOKUP($B89,'Saisie Poussins'!$B$13:$AI$56,1+E$1,FALSE),0) -> 0 | F89: =IFERROR(VLOOKUP($B89,'Saisie Poussins'!$B$13:$AI$56,1+F$1,FALSE),0) -> 0 | G89: =IFERROR(VLOOKUP($B89,'Saisie Poussins'!$B$13:$AI$56,1+G$1,FALSE),0) -> 0 | H89: =IFERROR(VLOOKUP($B89,'Saisie Poussins'!$B$13:$AI$56,1+H$1,FALSE),0) -> 0 | I89: =IFERROR(VLOOKUP($B89,'Saisie Poussins'!$B$61:$AI$104,26+I$1,FALSE),0) -> 0 | J89: =IFERROR(VLOOKUP($B89,'Saisie Poussins'!$B$61:$AI$104,26+J$1,FALSE),0) -> 0 | K89: =IFERROR(VLOOKUP($B89,'Saisie Poussins'!$B$61:$AI$104,26+K$1,FALSE),0) -> 0 | L89: =IFERROR(VLOOKUP($B89,'Saisie Poussins'!$B$61:$AI$104,26+L$1,FALSE),0) -> 0 | M89: =IFERROR(VLOOKUP($B89,'Saisie Poussins'!$B$61:$AI$104,26+M$1,FALSE),0) -> 0 | N89: =IFERROR(VLOOKUP($B89,'Saisie Poussins'!$B$61:$AI$104,26+N$1,FALSE),0) -> 0 | O89: =IFERROR(VLOOKUP($B89,'Saisie Poussins'!$B$61:$AI$104,26+O$1,FALSE),0) -> 0 | P89: =IFERROR(VLOOKUP($B89,'Saisie Poussins'!$B$61:$AI$104,26+P$1,FALSE),0) -> 0
A90: =IFERROR(IF(A89+1<='Saisie Poussins'!$BF$12,A89+1,""),"") ->  | B90: =IFERROR(VLOOKUP(A90,'Saisie Poussins'!$BE$61:$BF$104,2,FALSE),"") -> 0 | C90: =IFERROR(VLOOKUP($B90,'Saisie Poussins'!$B$13:$AI$56,1+C$1,FALSE),0) -> 0 | D90: =IFERROR(VLOOKUP($B90,'Saisie Poussins'!$B$13:$AI$56,1+D$1,FALSE),0) -> 0 | E90: =IFERROR(VLOOKUP($B90,'Saisie Poussins'!$B$13:$AI$56,1+E$1,FALSE),0) -> 0 | F90: =IFERROR(VLOOKUP($B90,'Saisie Poussins'!$B$13:$AI$56,1+F$1,FALSE),0) -> 0 | G90: =IFERROR(VLOOKUP($B90,'Saisie Poussins'!$B$13:$AI$56,1+G$1,FALSE),0) -> 0 | H90: =IFERROR(VLOOKUP($B90,'Saisie Poussins'!$B$13:$AI$56,1+H$1,FALSE),0) -> 0 | I90: =IFERROR(VLOOKUP($B90,'Saisie Poussins'!$B$61:$AI$104,26+I$1,FALSE),0) -> 0 | J90: =IFERROR(VLOOKUP($B90,'Saisie Poussins'!$B$61:$AI$104,26+J$1,FALSE),0) -> 0 | K90: =IFERROR(VLOOKUP($B90,'Saisie Poussins'!$B$61:$AI$104,26+K$1,FALSE),0) -> 0 | L90: =IFERROR(VLOOKUP($B90,'Saisie Poussins'!$B$61:$AI$104,26+L$1,FALSE),0) -> 0 | M90: =IFERROR(VLOOKUP($B90,'Saisie Poussins'!$B$61:$AI$104,26+M$1,FALSE),0) -> 0 | N90: =IFERROR(VLOOKUP($B90,'Saisie Poussins'!$B$61:$AI$104,26+N$1,FALSE),0) -> 0 | O90: =IFERROR(VLOOKUP($B90,'Saisie Poussins'!$B$61:$AI$104,26+O$1,FALSE),0) -> 0 | P90: =IFERROR(VLOOKUP($B90,'Saisie Poussins'!$B$61:$AI$104,26+P$1,FALSE),0) -> 0
A91: =IFERROR(IF(A90+1<='Saisie Poussins'!$BF$12,A90+1,""),"") ->  | B91: =IFERROR(VLOOKUP(A91,'Saisie Poussins'!$BE$61:$BF$104,2,FALSE),"") -> 0 | C91: =IFERROR(VLOOKUP($B91,'Saisie Poussins'!$B$13:$AI$56,1+C$1,FALSE),0) -> 0 | D91: =IFERROR(VLOOKUP($B91,'Saisie Poussins'!$B$13:$AI$56,1+D$1,FALSE),0) -> 0 | E91: =IFERROR(VLOOKUP($B91,'Saisie Poussins'!$B$13:$AI$56,1+E$1,FALSE),0) -> 0 | F91: =IFERROR(VLOOKUP($B91,'Saisie Poussins'!$B$13:$AI$56,1+F$1,FALSE),0) -> 0 | G91: =IFERROR(VLOOKUP($B91,'Saisie Poussins'!$B$13:$AI$56,1+G$1,FALSE),0) -> 0 | H91: =IFERROR(VLOOKUP($B91,'Saisie Poussins'!$B$13:$AI$56,1+H$1,FALSE),0) -> 0 | I91: =IFERROR(VLOOKUP($B91,'Saisie Poussins'!$B$61:$AI$104,26+I$1,FALSE),0) -> 0 | J91: =IFERROR(VLOOKUP($B91,'Saisie Poussins'!$B$61:$AI$104,26+J$1,FALSE),0) -> 0 | K91: =IFERROR(VLOOKUP($B91,'Saisie Poussins'!$B$61:$AI$104,26+K$1,FALSE),0) -> 0 | L91: =IFERROR(VLOOKUP($B91,'Saisie Poussins'!$B$61:$AI$104,26+L$1,FALSE),0) -> 0 | M91: =IFERROR(VLOOKUP($B91,'Saisie Poussins'!$B$61:$AI$104,26+M$1,FALSE),0) -> 0 | N91: =IFERROR(VLOOKUP($B91,'Saisie Poussins'!$B$61:$AI$104,26+N$1,FALSE),0) -> 0 | O91: =IFERROR(VLOOKUP($B91,'Saisie Poussins'!$B$61:$AI$104,26+O$1,FALSE),0) -> 0 | P91: =IFERROR(VLOOKUP($B91,'Saisie Poussins'!$B$61:$AI$104,26+P$1,FALSE),0) -> 0
A92: =IFERROR(IF(A91+1<='Saisie Poussins'!$BF$12,A91+1,""),"") ->  | B92: =IFERROR(VLOOKUP(A92,'Saisie Poussins'!$BE$61:$BF$104,2,FALSE),"") -> 0 | C92: =IFERROR(VLOOKUP($B92,'Saisie Poussins'!$B$13:$AI$56,1+C$1,FALSE),0) -> 0 | D92: =IFERROR(VLOOKUP($B92,'Saisie Poussins'!$B$13:$AI$56,1+D$1,FALSE),0) -> 0 | E92: =IFERROR(VLOOKUP($B92,'Saisie Poussins'!$B$13:$AI$56,1+E$1,FALSE),0) -> 0 | F92: =IFERROR(VLOOKUP($B92,'Saisie Poussins'!$B$13:$AI$56,1+F$1,FALSE),0) -> 0 | G92: =IFERROR(VLOOKUP($B92,'Saisie Poussins'!$B$13:$AI$56,1+G$1,FALSE),0) -> 0 | H92: =IFERROR(VLOOKUP($B92,'Saisie Poussins'!$B$13:$AI$56,1+H$1,FALSE),0) -> 0 | I92: =IFERROR(VLOOKUP($B92,'Saisie Poussins'!$B$61:$AI$104,26+I$1,FALSE),0) -> 0 | J92: =IFERROR(VLOOKUP($B92,'Saisie Poussins'!$B$61:$AI$104,26+J$1,FALSE),0) -> 0 | K92: =IFERROR(VLOOKUP($B92,'Saisie Poussins'!$B$61:$AI$104,26+K$1,FALSE),0) -> 0 | L92: =IFERROR(VLOOKUP($B92,'Saisie Poussins'!$B$61:$AI$104,26+L$1,FALSE),0) -> 0 | M92: =IFERROR(VLOOKUP($B92,'Saisie Poussins'!$B$61:$AI$104,26+M$1,FALSE),0) -> 0 | N92: =IFERROR(VLOOKUP($B92,'Saisie Poussins'!$B$61:$AI$104,26+N$1,FALSE),0) -> 0 | O92: =IFERROR(VLOOKUP($B92,'Saisie Poussins'!$B$61:$AI$104,26+O$1,FALSE),0) -> 0 | P92: =IFERROR(VLOOKUP($B92,'Saisie Poussins'!$B$61:$AI$104,26+P$1,FALSE),0) -> 0
A93: =IFERROR(IF(A92+1<='Saisie Poussins'!$BF$12,A92+1,""),"") ->  | B93: =IFERROR(VLOOKUP(A93,'Saisie Poussins'!$BE$61:$BF$104,2,FALSE),"") -> 0 | C93: =IFERROR(VLOOKUP($B93,'Saisie Poussins'!$B$13:$AI$56,1+C$1,FALSE),0) -> 0 | D93: =IFERROR(VLOOKUP($B93,'Saisie Poussins'!$B$13:$AI$56,1+D$1,FALSE),0) -> 0 | E93: =IFERROR(VLOOKUP($B93,'Saisie Poussins'!$B$13:$AI$56,1+E$1,FALSE),0) -> 0 | F93: =IFERROR(VLOOKUP($B93,'Saisie Poussins'!$B$13:$AI$56,1+F$1,FALSE),0) -> 0 | G93: =IFERROR(VLOOKUP($B93,'Saisie Poussins'!$B$13:$AI$56,1+G$1,FALSE),0) -> 0 | H93: =IFERROR(VLOOKUP($B93,'Saisie Poussins'!$B$13:$AI$56,1+H$1,FALSE),0) -> 0 | I93: =IFERROR(VLOOKUP($B93,'Saisie Poussins'!$B$61:$AI$104,26+I$1,FALSE),0) -> 0 | J93: =IFERROR(VLOOKUP($B93,'Saisie Poussins'!$B$61:$AI$104,26+J$1,FALSE),0) -> 0 | K93: =IFERROR(VLOOKUP($B93,'Saisie Poussins'!$B$61:$AI$104,26+K$1,FALSE),0) -> 0 | L93: =IFERROR(VLOOKUP($B93,'Saisie Poussins'!$B$61:$AI$104,26+L$1,FALSE),0) -> 0 | M93: =IFERROR(VLOOKUP($B93,'Saisie Poussins'!$B$61:$AI$104,26+M$1,FALSE),0) -> 0 | N93: =IFERROR(VLOOKUP($B93,'Saisie Poussins'!$B$61:$AI$104,26+N$1,FALSE),0) -> 0 | O93: =IFERROR(VLOOKUP($B93,'Saisie Poussins'!$B$61:$AI$104,26+O$1,FALSE),0) -> 0 | P93: =IFERROR(VLOOKUP($B93,'Saisie Poussins'!$B$61:$AI$104,26+P$1,FALSE),0) -> 0
A94: =IFERROR(IF(A93+1<='Saisie Poussins'!$BF$12,A93+1,""),"") ->  | B94: =IFERROR(VLOOKUP(A94,'Saisie Poussins'!$BE$61:$BF$104,2,FALSE),"") -> 0 | C94: =IFERROR(VLOOKUP($B94,'Saisie Poussins'!$B$13:$AI$56,1+C$1,FALSE),0) -> 0 | D94: =IFERROR(VLOOKUP($B94,'Saisie Poussins'!$B$13:$AI$56,1+D$1,FALSE),0) -> 0 | E94: =IFERROR(VLOOKUP($B94,'Saisie Poussins'!$B$13:$AI$56,1+E$1,FALSE),0) -> 0 | F94: =IFERROR(VLOOKUP($B94,'Saisie Poussins'!$B$13:$AI$56,1+F$1,FALSE),0) -> 0 | G94: =IFERROR(VLOOKUP($B94,'Saisie Poussins'!$B$13:$AI$56,1+G$1,FALSE),0) -> 0 | H94: =IFERROR(VLOOKUP($B94,'Saisie Poussins'!$B$13:$AI$56,1+H$1,FALSE),0) -> 0 | I94: =IFERROR(VLOOKUP($B94,'Saisie Poussins'!$B$61:$AI$104,26+I$1,FALSE),0) -> 0 | J94: =IFERROR(VLOOKUP($B94,'Saisie Poussins'!$B$61:$AI$104,26+J$1,FALSE),0) -> 0 | K94: =IFERROR(VLOOKUP($B94,'Saisie Poussins'!$B$61:$AI$104,26+K$1,FALSE),0) -> 0 | L94: =IFERROR(VLOOKUP($B94,'Saisie Poussins'!$B$61:$AI$104,26+L$1,FALSE),0) -> 0 | M94: =IFERROR(VLOOKUP($B94,'Saisie Poussins'!$B$61:$AI$104,26+M$1,FALSE),0) -> 0 | N94: =IFERROR(VLOOKUP($B94,'Saisie Poussins'!$B$61:$AI$104,26+N$1,FALSE),0) -> 0 | O94: =IFERROR(VLOOKUP($B94,'Saisie Poussins'!$B$61:$AI$104,26+O$1,FALSE),0) -> 0 | P94: =IFERROR(VLOOKUP($B94,'Saisie Poussins'!$B$61:$AI$104,26+P$1,FALSE),0) -> 0
A95: =IFERROR(IF(A94+1<='Saisie Poussins'!$BF$12,A94+1,""),"") ->  | B95: =IFERROR(VLOOKUP(A95,'Saisie Poussins'!$BE$61:$BF$104,2,FALSE),"") -> 0 | C95: =IFERROR(VLOOKUP($B95,'Saisie Poussins'!$B$13:$AI$56,1+C$1,FALSE),0) -> 0 | D95: =IFERROR(VLOOKUP($B95,'Saisie Poussins'!$B$13:$AI$56,1+D$1,FALSE),0) -> 0 | E95: =IFERROR(VLOOKUP($B95,'Saisie Poussins'!$B$13:$AI$56,1+E$1,FALSE),0) -> 0 | F95: =IFERROR(VLOOKUP($B95,'Saisie Poussins'!$B$13:$AI$56,1+F$1,FALSE),0) -> 0 | G95: =IFERROR(VLOOKUP($B95,'Saisie Poussins'!$B$13:$AI$56,1+G$1,FALSE),0) -> 0 | H95: =IFERROR(VLOOKUP($B95,'Saisie Poussins'!$B$13:$AI$56,1+H$1,FALSE),0) -> 0 | I95: =IFERROR(VLOOKUP($B95,'Saisie Poussins'!$B$61:$AI$104,26+I$1,FALSE),0) -> 0 | J95: =IFERROR(VLOOKUP($B95,'Saisie Poussins'!$B$61:$AI$104,26+J$1,FALSE),0) -> 0 | K95: =IFERROR(VLOOKUP($B95,'Saisie Poussins'!$B$61:$AI$104,26+K$1,FALSE),0) -> 0 | L95: =IFERROR(VLOOKUP($B95,'Saisie Poussins'!$B$61:$AI$104,26+L$1,FALSE),0) -> 0 | M95: =IFERROR(VLOOKUP($B95,'Saisie Poussins'!$B$61:$AI$104,26+M$1,FALSE),0) -> 0 | N95: =IFERROR(VLOOKUP($B95,'Saisie Poussins'!$B$61:$AI$104,26+N$1,FALSE),0) -> 0 | O95: =IFERROR(VLOOKUP($B95,'Saisie Poussins'!$B$61:$AI$104,26+O$1,FALSE),0) -> 0 | P95: =IFERROR(VLOOKUP($B95,'Saisie Poussins'!$B$61:$AI$104,26+P$1,FALSE),0) -> 0
A96: =IFERROR(IF(A95+1<='Saisie Poussins'!$BF$12,A95+1,""),"") ->  | B96: =IFERROR(VLOOKUP(A96,'Saisie Poussins'!$BE$61:$BF$104,2,FALSE),"") -> 0 | C96: =IFERROR(VLOOKUP($B96,'Saisie Poussins'!$B$13:$AI$56,1+C$1,FALSE),0) -> 0 | D96: =IFERROR(VLOOKUP($B96,'Saisie Poussins'!$B$13:$AI$56,1+D$1,FALSE),0) -> 0 | E96: =IFERROR(VLOOKUP($B96,'Saisie Poussins'!$B$13:$AI$56,1+E$1,FALSE),0) -> 0 | F96: =IFERROR(VLOOKUP($B96,'Saisie Poussins'!$B$13:$AI$56,1+F$1,FALSE),0) -> 0 | G96: =IFERROR(VLOOKUP($B96,'Saisie Poussins'!$B$13:$AI$56,1+G$1,FALSE),0) -> 0 | H96: =IFERROR(VLOOKUP($B96,'Saisie Poussins'!$B$13:$AI$56,1+H$1,FALSE),0) -> 0 | I96: =IFERROR(VLOOKUP($B96,'Saisie Poussins'!$B$61:$AI$104,26+I$1,FALSE),0) -> 0 | J96: =IFERROR(VLOOKUP($B96,'Saisie Poussins'!$B$61:$AI$104,26+J$1,FALSE),0) -> 0 | K96: =IFERROR(VLOOKUP($B96,'Saisie Poussins'!$B$61:$AI$104,26+K$1,FALSE),0) -> 0 | L96: =IFERROR(VLOOKUP($B96,'Saisie Poussins'!$B$61:$AI$104,26+L$1,FALSE),0) -> 0 | M96: =IFERROR(VLOOKUP($B96,'Saisie Poussins'!$B$61:$AI$104,26+M$1,FALSE),0) -> 0 | N96: =IFERROR(VLOOKUP($B96,'Saisie Poussins'!$B$61:$AI$104,26+N$1,FALSE),0) -> 0 | O96: =IFERROR(VLOOKUP($B96,'Saisie Poussins'!$B$61:$AI$104,26+O$1,FALSE),0) -> 0 | P96: =IFERROR(VLOOKUP($B96,'Saisie Poussins'!$B$61:$AI$104,26+P$1,FALSE),0) -> 0
A97: =IFERROR(IF(A96+1<='Saisie Poussins'!$BF$12,A96+1,""),"") ->  | B97: =IFERROR(VLOOKUP(A97,'Saisie Poussins'!$BE$61:$BF$104,2,FALSE),"") -> 0 | C97: =IFERROR(VLOOKUP($B97,'Saisie Poussins'!$B$13:$AI$56,1+C$1,FALSE),0) -> 0 | D97: =IFERROR(VLOOKUP($B97,'Saisie Poussins'!$B$13:$AI$56,1+D$1,FALSE),0) -> 0 | E97: =IFERROR(VLOOKUP($B97,'Saisie Poussins'!$B$13:$AI$56,1+E$1,FALSE),0) -> 0 | F97: =IFERROR(VLOOKUP($B97,'Saisie Poussins'!$B$13:$AI$56,1+F$1,FALSE),0) -> 0 | G97: =IFERROR(VLOOKUP($B97,'Saisie Poussins'!$B$13:$AI$56,1+G$1,FALSE),0) -> 0 | H97: =IFERROR(VLOOKUP($B97,'Saisie Poussins'!$B$13:$AI$56,1+H$1,FALSE),0) -> 0 | I97: =IFERROR(VLOOKUP($B97,'Saisie Poussins'!$B$61:$AI$104,26+I$1,FALSE),0) -> 0 | J97: =IFERROR(VLOOKUP($B97,'Saisie Poussins'!$B$61:$AI$104,26+J$1,FALSE),0) -> 0 | K97: =IFERROR(VLOOKUP($B97,'Saisie Poussins'!$B$61:$AI$104,26+K$1,FALSE),0) -> 0 | L97: =IFERROR(VLOOKUP($B97,'Saisie Poussins'!$B$61:$AI$104,26+L$1,FALSE),0) -> 0 | M97: =IFERROR(VLOOKUP($B97,'Saisie Poussins'!$B$61:$AI$104,26+M$1,FALSE),0) -> 0 | N97: =IFERROR(VLOOKUP($B97,'Saisie Poussins'!$B$61:$AI$104,26+N$1,FALSE),0) -> 0 | O97: =IFERROR(VLOOKUP($B97,'Saisie Poussins'!$B$61:$AI$104,26+O$1,FALSE),0) -> 0 | P97: =IFERROR(VLOOKUP($B97,'Saisie Poussins'!$B$61:$AI$104,26+P$1,FALSE),0) -> 0
B98: Leader Sprint | D98: ='Saisie Poussins'!E4 -> JOURNET Paul - CC BELFORT MIOTTE | I98: ="Challenge régional "&Accueil!$C$3&" - "&Accueil!$C$5 -> Challenge régional BOURGOGNE FRANCHE COMTE - 2022
B99: Classement Sprint
A100: Place | B100: Licence | C100: Nom | D100: Prénom | F100: Club | G100: Catégorie | H100: Année | J100: =RIGHT(CELL("nomfichier",$A$1), LEN(CELL("nomfichier",$A$1))-FIND("]", CELL("nomfichier",$A$1))) -> Classement Poussins
I101: =Accueil!B$10 -> 03/04/2022 Luxeuil | J101: =Accueil!C$10 -> 24/04/2022 Noidans les Vesoul | K101: =Accueil!D$10 -> 1/05/2022 Vescemont | L101: =Accueil!E$10 -> 08/05/2022 Morteau | M101: =Accueil!F$10 -> 22/05/2022 Pontarlier | N101: =Accueil!G$10 -> 05/06/2022 Vadans | O101: =Accueil!H$10 -> 12/06/2022 Montbéliard | P101: =Accueil!I$10 -> 02 et 03/07/2022 Bletterans | Q101: Total des 5 meilleurs
A102: 1 | B102: =IFERROR(VLOOKUP(A102,'Saisie Poussins'!$BE$113:$BF$156,2,FALSE),"") -> 42700680182 | C102: =IFERROR(VLOOKUP($B102,'Saisie Poussins'!$B$13:$AI$56,1+C$1,FALSE),0) -> BOURGES | D102: =IFERROR(VLOOKUP($B102,'Saisie Poussins'!$B$13:$AI$56,1+D$1,FALSE),0) -> Martin | E102: =IFERROR(VLOOKUP($B102,'Saisie Poussins'!$B$13:$AI$56,1+E$1,FALSE),0) -> H | F102: =IFERROR(VLOOKUP($B102,'Saisie Poussins'!$B$13:$AI$56,1+F$1,FALSE),0) -> E.C. LUXEUIL VOSGES SAONO | G102: =IFERROR(VLOOKUP($B102,'Saisie Poussins'!$B$13:$AI$56,1+G$1,FALSE),0) -> Poussin | H102: =IFERROR(VLOOKUP($B102,'Saisie Poussins'!$B$13:$AI$56,1+H$1,FALSE),0) -> 2 | I102: =IFERROR(VLOOKUP($B102,'Saisie Poussins'!$B$113:$AI$156,26+I$1,FALSE),0) -> 50 | J102: =IFERROR(VLOOKUP($B102,'Saisie Poussins'!$B$113:$AI$156,26+J$1,FALSE),0) -> 50 | K102: =IFERROR(VLOOKUP($B102,'Saisie Poussins'!$B$113:$AI$156,26+K$1,FALSE),0) -> 0 | L102: =IFERROR(VLOOKUP($B102,'Saisie Poussins'!$B$113:$AI$156,26+L$1,FALSE),0) -> 0 | M102: =IFERROR(VLOOKUP($B102,'Saisie Poussins'!$B$113:$AI$156,26+M$1,FALSE),0) -> 0 | N102: =IFERROR(VLOOKUP($B102,'Saisie Poussins'!$B$113:$AI$156,26+N$1,FALSE),0) -> 0 | O102: =IFERROR(VLOOKUP($B102,'Saisie Poussins'!$B$113:$AI$156,26+O$1,FALSE),0) -> 0 | P102: =IFERROR(VLOOKUP($B102,'Saisie Poussins'!$B$113:$AI$156,26+P$1,FALSE),0) -> 0 | Q102: =IF(B102>0,SUM(I102:P102),"") -> 100
A103: =IFERROR(IF(A102+1<='Saisie Poussins'!$BF$12,A102+1,""),"") -> 2 | B103: =IFERROR(VLOOKUP(A103,'Saisie Poussins'!$BE$113:$BF$156,2,FALSE),"") -> 42900480124 | C103: =IFERROR(VLOOKUP($B103,'Saisie Poussins'!$B$13:$AI$56,1+C$1,FALSE),0) -> JOURNET | D103: =IFERROR(VLOOKUP($B103,'Saisie Poussins'!$B$13:$AI$56,1+D$1,FALSE),0) -> Paul | E103: =IFERROR(VLOOKUP($B103,'Saisie Poussins'!$B$13:$AI$56,1+E$1,FALSE),0) -> H | F103: =IFERROR(VLOOKUP($B103,'Saisie Poussins'!$B$13:$AI$56,1+F$1,FALSE),0) -> CC BELFORT MIOTTE | G103: =IFERROR(VLOOKUP($B103,'Saisie Poussins'!$B$13:$AI$56,1+G$1,FALSE),0) -> Poussin | H103: =IFERROR(VLOOKUP($B103,'Saisie Poussins'!$B$13:$AI$56,1+H$1,FALSE),0) -> 2 | I103: =IFERROR(VLOOKUP($B103,'Saisie Poussins'!$B$113:$AI$156,26+I$1,FALSE),0) -> 37 | J103: =IFERROR(VLOOKUP($B103,'Saisie Poussins'!$B$113:$AI$156,26+J$1,FALSE),0) -> 44 | K103: =IFERROR(VLOOKUP($B103,'Saisie Poussins'!$B$113:$AI$156,26+K$1,FALSE),0) -> 0 | L103: =IFERROR(VLOOKUP($B103,'Saisie Poussins'!$B$113:$AI$156,26+L$1,FALSE),0) -> 0 | M103: =IFERROR(VLOOKUP($B103,'Saisie Poussins'!$B$113:$AI$156,26+M$1,FALSE),0) -> 0 | N103: =IFERROR(VLOOKUP($B103,'Saisie Poussins'!$B$113:$AI$156,26+N$1,FALSE),0) -> 0 | O103: =IFERROR(VLOOKUP($B103,'Saisie Poussins'!$B$113:$AI$156,26+O$1,FALSE),0) -> 0 | P103: =IFERROR(VLOOKUP($B103,'Saisie Poussins'!$B$113:$AI$156,26+P$1,FALSE),0) -> 0 | Q103: =IF(B103>0,SUM(I103:P103),"") -> 81
A104: =IFERROR(IF(A103+1<='Saisie Poussins'!$BF$12,A103+1,""),"") -> 3 | B104: =IFERROR(VLOOKUP(A104,'Saisie Poussins'!$BE$113:$BF$156,2,FALSE),"") -> 42900480168 | C104: =IFERROR(VLOOKUP($B104,'Saisie Poussins'!$B$13:$AI$56,1+C$1,FALSE),0) -> MURATORI | D104: =IFERROR(VLOOKUP($B104,'Saisie Poussins'!$B$13:$AI$56,1+D$1,FALSE),0) -> EZYO | E104: =IFERROR(VLOOKUP($B104,'Saisie Poussins'!$B$13:$AI$56,1+E$1,FALSE),0) -> H | F104: =IFERROR(VLOOKUP($B104,'Saisie Poussins'!$B$13:$AI$56,1+F$1,FALSE),0) -> CC BELFORT MIOTTE | G104: =IFERROR(VLOOKUP($B104,'Saisie Poussins'!$B$13:$AI$56,1+G$1,FALSE),0) -> Poussin | H104: =IFERROR(VLOOKUP($B104,'Saisie Poussins'!$B$13:$AI$56,1+H$1,FALSE),0) -> 2 | I104: =IFERROR(VLOOKUP($B104,'Saisie Poussins'!$B$113:$AI$156,26+I$1,FALSE),0) -> 40 | J104: =IFERROR(VLOOKUP($B104,'Saisie Poussins'!$B$113:$AI$156,26+J$1,FALSE),0) -> 40 | K104: =IFERROR(VLOOKUP($B104,'Saisie Poussins'!$B$113:$AI$156,26+K$1,FALSE),0) -> 0 | L104: =IFERROR(VLOOKUP($B104,'Saisie Poussins'!$B$113:$AI$156,26+L$1,FALSE),0) -> 0 | M104: =IFERROR(VLOOKUP($B104,'Saisie Poussins'!$B$113:$AI$156,26+M$1,FALSE),0) -> 0 | N104: =IFERROR(VLOOKUP($B104,'Saisie Poussins'!$B$113:$AI$156,26+N$1,FALSE),0) -> 0 | O104: =IFERROR(VLOOKUP($B104,'Saisie Poussins'!$B$113:$AI$156,26+O$1,FALSE),0) -> 0 | P104: =IFERROR(VLOOKUP($B104,'Saisie Poussins'!$B$113:$AI$156,26+P$1,FALSE),0) -> 0 | Q104: 80
A105: =IFERROR(IF(A104+1<='Saisie Poussins'!$BF$12,A104+1,""),"") -> 4 | B105: =IFERROR(VLOOKUP(A105,'Saisie Poussins'!$BE$113:$BF$156,2,FALSE),"") -> 42250181212 | C105: =IFERROR(VLOOKUP($B105,'Saisie Poussins'!$B$13:$AI$56,1+C$1,FALSE),0) -> DEVILLERS | D105: =IFERROR(VLOOKUP($B105,'Saisie Poussins'!$B$13:$AI$56,1+D$1,FALSE),0) -> Louis | E105: =IFERROR(VLOOKUP($B105,'Saisie Poussins'!$B$13:$AI$56,1+E$1,FALSE),0) -> H | F105: =IFERROR(VLOOKUP($B105,'Saisie Poussins'!$B$13:$AI$56,1+F$1,FALSE),0) -> VC MORTEAU MONTBENOIT | G105: =IFERROR(VLOOKUP($B105,'Saisie Poussins'!$B$13:$AI$56,1+G$1,FALSE),0) -> Poussin | H105: =IFERROR(VLOOKUP($B105,'Saisie Poussins'!$B$13:$AI$56,1+H$1,FALSE),0) -> 1 | I105: =IFERROR(VLOOKUP($B105,'Saisie Poussins'!$B$113:$AI$156,26+I$1,FALSE),0) -> 34 | J105: =IFERROR(VLOOKUP($B105,'Saisie Poussins'!$B$113:$AI$156,26+J$1,FALSE),0) -> 34 | K105: =IFERROR(VLOOKUP($B105,'Saisie Poussins'!$B$113:$AI$156,26+K$1,FALSE),0) -> 0 | L105: =IFERROR(VLOOKUP($B105,'Saisie Poussins'!$B$113:$AI$156,26+L$1,FALSE),0) -> 0 | M105: =IFERROR(VLOOKUP($B105,'Saisie Poussins'!$B$113:$AI$156,26+M$1,FALSE),0) -> 0 | N105: =IFERROR(VLOOKUP($B105,'Saisie Poussins'!$B$113:$AI$156,26+N$1,FALSE),0) -> 0 | O105: =IFERROR(VLOOKUP($B105,'Saisie Poussins'!$B$113:$AI$156,26+O$1,FALSE),0) -> 0 | P105: =IFERROR(VLOOKUP($B105,'Saisie Poussins'!$B$113:$AI$156,26+P$1,FALSE),0) -> 0 | Q105: 68
A106: =IFERROR(IF(A105+1<='Saisie Poussins'!$BF$12,A105+1,""),"") -> 5 | B106: =IFERROR(VLOOKUP(A106,'Saisie Poussins'!$BE$113:$BF$156,2,FALSE),"") -> 42700680157 | C106: =IFERROR(VLOOKUP($B106,'Saisie Poussins'!$B$13:$AI$56,1+C$1,FALSE),0) -> BARBASON | D106: =IFERROR(VLOOKUP($B106,'Saisie Poussins'!$B$13:$AI$56,1+D$1,FALSE),0) -> Jean | E106: =IFERROR(VLOOKUP($B106,'Saisie Poussins'!$B$13:$AI$56,1+E$1,FALSE),0) -> H | F106: =IFERROR(VLOOKUP($B106,'Saisie Poussins'!$B$13:$AI$56,1+F$1,FALSE),0) -> E.C. LUXEUIL VOSGES SAONO | G106: =IFERROR(VLOOKUP($B106,'Saisie Poussins'!$B$13:$AI$56,1+G$1,FALSE),0) -> Poussin | H106: =IFERROR(VLOOKUP($B106,'Saisie Poussins'!$B$13:$AI$56,1+H$1,FALSE),0) -> 2 | I106: =IFERROR(VLOOKUP($B106,'Saisie Poussins'!$B$113:$AI$156,26+I$1,FALSE),0) -> 28 | J106: =IFERROR(VLOOKUP($B106,'Saisie Poussins'!$B$113:$AI$156,26+J$1,FALSE),0) -> 37 | K106: =IFERROR(VLOOKUP($B106,'Saisie Poussins'!$B$113:$AI$156,26+K$1,FALSE),0) -> 0 | L106: =IFERROR(VLOOKUP($B106,'Saisie Poussins'!$B$113:$AI$156,26+L$1,FALSE),0) -> 0 | M106: =IFERROR(VLOOKUP($B106,'Saisie Poussins'!$B$113:$AI$156,26+M$1,FALSE),0) -> 0 | N106: =IFERROR(VLOOKUP($B106,'Saisie Poussins'!$B$113:$AI$156,26+N$1,FALSE),0) -> 0 | O106: =IFERROR(VLOOKUP($B106,'Saisie Poussins'!$B$113:$AI$156,26+O$1,FALSE),0) -> 0 | P106: =IFERROR(VLOOKUP($B106,'Saisie Poussins'!$B$113:$AI$156,26+P$1,FALSE),0) -> 0 | Q106: 65
A107: =IFERROR(IF(A106+1<='Saisie Poussins'!$BF$12,A106+1,""),"") -> 6 | B107: =IFERROR(VLOOKUP(A107,'Saisie Poussins'!$BE$113:$BF$156,2,FALSE),"") -> 42700060248 | C107: =IFERROR(VLOOKUP($B107,'Saisie Poussins'!$B$13:$AI$56,1+C$1,FALSE),0) -> BOISSON | D107: =IFERROR(VLOOKUP($B107,'Saisie Poussins'!$B$13:$AI$56,1+D$1,FALSE),0) -> Marius | E107: =IFERROR(VLOOKUP($B107,'Saisie Poussins'!$B$13:$AI$56,1+E$1,FALSE),0) -> H | F107: =IFERROR(VLOOKUP($B107,'Saisie Poussins'!$B$13:$AI$56,1+F$1,FALSE),0) -> ROUE D`OR NOIDANS | G107: =IFERROR(VLOOKUP($B107,'Saisie Poussins'!$B$13:$AI$56,1+G$1,FALSE),0) -> Poussin | H107: =IFERROR(VLOOKUP($B107,'Saisie Poussins'!$B$13:$AI$56,1+H$1,FALSE),0) -> 1 | I107: =IFERROR(VLOOKUP($B107,'Saisie Poussins'!$B$113:$AI$156,26+I$1,FALSE),0) -> 32 | J107: =IFERROR(VLOOKUP($B107,'Saisie Poussins'!$B$113:$AI$156,26+J$1,FALSE),0) -> 32 | K107: =IFERROR(VLOOKUP($B107,'Saisie Poussins'!$B$113:$AI$156,26+K$1,FALSE),0) -> 0 | L107: =IFERROR(VLOOKUP($B107,'Saisie Poussins'!$B$113:$AI$156,26+L$1,FALSE),0) -> 0 | M107: =IFERROR(VLOOKUP($B107,'Saisie Poussins'!$B$113:$AI$156,26+M$1,FALSE),0) -> 0 | N107: =IFERROR(VLOOKUP($B107,'Saisie Poussins'!$B$113:$AI$156,26+N$1,FALSE),0) -> 0 | O107: =IFERROR(VLOOKUP($B107,'Saisie Poussins'!$B$113:$AI$156,26+O$1,FALSE),0) -> 0 | P107: =IFERROR(VLOOKUP($B107,'Saisie Poussins'!$B$113:$AI$156,26+P$1,FALSE),0) -> 0 | Q107: 64
A108: =IFERROR(IF(A107+1<='Saisie Poussins'!$BF$12,A107+1,""),"") -> 7 | B108: =IFERROR(VLOOKUP(A108,'Saisie Poussins'!$BE$113:$BF$156,2,FALSE),"") -> 42250181174 | C108: =IFERROR(VLOOKUP($B108,'Saisie Poussins'!$B$13:$AI$56,1+C$1,FALSE),0) -> DEVILLERS | D108: =IFERROR(VLOOKUP($B108,'Saisie Poussins'!$B$13:$AI$56,1+D$1,FALSE),0) -> Lylou | E108: =IFERROR(VLOOKUP($B108,'Saisie Poussins'!$B$13:$AI$56,1+E$1,FALSE),0) -> D | F108: =IFERROR(VLOOKUP($B108,'Saisie Poussins'!$B$13:$AI$56,1+F$1,FALSE),0) -> VC MORTEAU MONTBENOIT | G108: =IFERROR(VLOOKUP($B108,'Saisie Poussins'!$B$13:$AI$56,1+G$1,FALSE),0) -> Poussin | H108: =IFERROR(VLOOKUP($B108,'Saisie Poussins'!$B$13:$AI$56,1+H$1,FALSE),0) -> 2 | I108: =IFERROR(VLOOKUP($B108,'Saisie Poussins'!$B$113:$AI$156,26+I$1,FALSE),0) -> 22 | J108: =IFERROR(VLOOKUP($B108,'Saisie Poussins'!$B$113:$AI$156,26+J$1,FALSE),0) -> 28 | K108: =IFERROR(VLOOKUP($B108,'Saisie Poussins'!$B$113:$AI$156,26+K$1,FALSE),0) -> 0 | L108: =IFERROR(VLOOKUP($B108,'Saisie Poussins'!$B$113:$AI$156,26+L$1,FALSE),0) -> 0 | M108: =IFERROR(VLOOKUP($B108,'Saisie Poussins'!$B$113:$AI$156,26+M$1,FALSE),0) -> 0 | N108: =IFERROR(VLOOKUP($B108,'Saisie Poussins'!$B$113:$AI$156,26+N$1,FALSE),0) -> 0 | O108: =IFERROR(VLOOKUP($B108,'Saisie Poussins'!$B$113:$AI$156,26+O$1,FALSE),0) -> 0 | P108: =IFERROR(VLOOKUP($B108,'Saisie Poussins'!$B$113:$AI$156,26+P$1,FALSE),0) -> 0 | Q108: 50
A109: =IFERROR(IF(A108+1<='Saisie Poussins'!$BF$12,A108+1,""),"") -> 8 | B109: =IFERROR(VLOOKUP(A109,'Saisie Poussins'!$BE$113:$BF$156,2,FALSE),"") -> 42700680166 | C109: =IFERROR(VLOOKUP($B109,'Saisie Poussins'!$B$13:$AI$56,1+C$1,FALSE),0) -> ANDRE | D109: =IFERROR(VLOOKUP($B109,'Saisie Poussins'!$B$13:$AI$56,1+D$1,FALSE),0) -> Louane | E109: =IFERROR(VLOOKUP($B109,'Saisie Poussins'!$B$13:$AI$56,1+E$1,FALSE),0) -> D | F109: =IFERROR(VLOOKUP($B109,'Saisie Poussins'!$B$13:$AI$56,1+F$1,FALSE),0) -> E.C. LUXEUIL VOSGES SAONO | G109: =IFERROR(VLOOKUP($B109,'Saisie Poussins'!$B$13:$AI$56,1+G$1,FALSE),0) -> Poussin | H109: =IFERROR(VLOOKUP($B109,'Saisie Poussins'!$B$13:$AI$56,1+H$1,FALSE),0) -> 2 | I109: =IFERROR(VLOOKUP($B109,'Saisie Poussins'!$B$113:$AI$156,26+I$1,FALSE),0) -> 24 | J109: =IFERROR(VLOOKUP($B109,'Saisie Poussins'!$B$113:$AI$156,26+J$1,FALSE),0) -> 24 | K109: =IFERROR(VLOOKUP($B109,'Saisie Poussins'!$B$113:$AI$156,26+K$1,FALSE),0) -> 0 | L109: =IFERROR(VLOOKUP($B109,'Saisie Poussins'!$B$113:$AI$156,26+L$1,FALSE),0) -> 0 | M109: =IFERROR(VLOOKUP($B109,'Saisie Poussins'!$B$113:$AI$156,26+M$1,FALSE),0) -> 0 | N109: =IFERROR(VLOOKUP($B109,'Saisie Poussins'!$B$113:$AI$156,26+N$1,FALSE),0) -> 0 | O109: =IFERROR(VLOOKUP($B109,'Saisie Poussins'!$B$113:$AI$156,26+O$1,FALSE),0) -> 0 | P109: =IFERROR(VLOOKUP($B109,'Saisie Poussins'!$B$113:$AI$156,26+P$1,FALSE),0) -> 0 | Q109: 48
A110: =IFERROR(IF(A109+1<='Saisie Poussins'!$BF$12,A109+1,""),"") -> 9 | B110: =IFERROR(VLOOKUP(A110,'Saisie Poussins'!$BE$113:$BF$156,2,FALSE),"") -> 42900360346 | C110: =IFERROR(VLOOKUP($B110,'Saisie Poussins'!$B$13:$AI$56,1+C$1,FALSE),0) -> STADLER | D110: =IFERROR(VLOOKUP($B110,'Saisie Poussins'!$B$13:$AI$56,1+D$1,FALSE),0) -> Gwennaelle | E110: =IFERROR(VLOOKUP($B110,'Saisie Poussins'!$B$13:$AI$56,1+E$1,FALSE),0) -> D | F110: =IFERROR(VLOOKUP($B110,'Saisie Poussins'!$B$13:$AI$56,1+F$1,FALSE),0) -> A.C.T. BELFORT | G110: =IFERROR(VLOOKUP($B110,'Saisie Poussins'!$B$13:$AI$56,1+G$1,FALSE),0) -> Poussin | H110: =IFERROR(VLOOKUP($B110,'Saisie Poussins'!$B$13:$AI$56,1+H$1,FALSE),0) -> 1 | I110: =IFERROR(VLOOKUP($B110,'Saisie Poussins'!$B$113:$AI$156,26+I$1,FALSE),0) -> 21 | J110: =IFERROR(VLOOKUP($B110,'Saisie Poussins'!$B$113:$AI$156,26+J$1,FALSE),0) -> 26 | K110: =IFERROR(VLOOKUP($B110,'Saisie Poussins'!$B$113:$AI$156,26+K$1,FALSE),0) -> 0 | L110: =IFERROR(VLOOKUP($B110,'Saisie Poussins'!$B$113:$AI$156,26+L$1,FALSE),0) -> 0 | M110: =IFERROR(VLOOKUP($B110,'Saisie Poussins'!$B$113:$AI$156,26+M$1,FALSE),0) -> 0 | N110: =IFERROR(VLOOKUP($B110,'Saisie Poussins'!$B$113:$AI$156,26+N$1,FALSE),0) -> 0 | O110: =IFERROR(VLOOKUP($B110,'Saisie Poussins'!$B$113:$AI$156,26+O$1,FALSE),0) -> 0 | P110: =IFERROR(VLOOKUP($B110,'Saisie Poussins'!$B$113:$AI$156,26+P$1,FALSE),0) -> 0 | Q110: 47
A111: =IFERROR(IF(A110+1<='Saisie Poussins'!$BF$12,A110+1,""),"") -> 10 | B111: =IFERROR(VLOOKUP(A111,'Saisie Poussins'!$BE$113:$BF$156,2,FALSE),"") -> 42250120321 | C111: =IFERROR(VLOOKUP($B111,'Saisie Poussins'!$B$13:$AI$56,1+C$1,FALSE),0) -> GRIME | D111: =IFERROR(VLOOKUP($B111,'Saisie Poussins'!$B$13:$AI$56,1+D$1,FALSE),0) -> Lucas | E111: =IFERROR(VLOOKUP($B111,'Saisie Poussins'!$B$13:$AI$56,1+E$1,FALSE),0) -> H | F111: =IFERROR(VLOOKUP($B111,'Saisie Poussins'!$B$13:$AI$56,1+F$1,FALSE),0) -> V.C.DE MONTBELIARD | G111: =IFERROR(VLOOKUP($B111,'Saisie Poussins'!$B$13:$AI$56,1+G$1,FALSE),0) -> Poussin | H111: =IFERROR(VLOOKUP($B111,'Saisie Poussins'!$B$13:$AI$56,1+H$1,FALSE),0) -> 2 | I111: =IFERROR(VLOOKUP($B111,'Saisie Poussins'!$B$113:$AI$156,26+I$1,FALSE),0) -> 44 | J111: =IFERROR(VLOOKUP($B111,'Saisie Poussins'!$B$113:$AI$156,26+J$1,FALSE),0) -> 0 | K111: =IFERROR(VLOOKUP($B111,'Saisie Poussins'!$B$113:$AI$156,26+K$1,FALSE),0) -> 0 | L111: =IFERROR(VLOOKUP($B111,'Saisie Poussins'!$B$113:$AI$156,26+L$1,FALSE),0) -> 0 | M111: =IFERROR(VLOOKUP($B111,'Saisie Poussins'!$B$113:$AI$156,26+M$1,FALSE),0) -> 0 | N111: =IFERROR(VLOOKUP($B111,'Saisie Poussins'!$B$113:$AI$156,26+N$1,FALSE),0) -> 0 | O111: =IFERROR(VLOOKUP($B111,'Saisie Poussins'!$B$113:$AI$156,26+O$1,FALSE),0) -> 0 | P111: =IFERROR(VLOOKUP($B111,'Saisie Poussins'!$B$113:$AI$156,26+P$1,FALSE),0) -> 0 | Q111: 44
A112: =IFERROR(IF(A111+1<='Saisie Poussins'!$BF$12,A111+1,""),"") -> 11 | B112: =IFERROR(VLOOKUP(A112,'Saisie Poussins'!$BE$113:$BF$156,2,FALSE),"") -> 42900480124 | C112: =IFERROR(VLOOKUP($B112,'Saisie Poussins'!$B$13:$AI$56,1+C$1,FALSE),0) -> JOURNET | D112: =IFERROR(VLOOKUP($B112,'Saisie Poussins'!$B$13:$AI$56,1+D$1,FALSE),0) -> Paul | E112: =IFERROR(VLOOKUP($B112,'Saisie Poussins'!$B$13:$AI$56,1+E$1,FALSE),0) -> H | F112: =IFERROR(VLOOKUP($B112,'Saisie Poussins'!$B$13:$AI$56,1+F$1,FALSE),0) -> CC BELFORT MIOTTE | G112: =IFERROR(VLOOKUP($B112,'Saisie Poussins'!$B$13:$AI$56,1+G$1,FALSE),0) -> Poussin | H112: =IFERROR(VLOOKUP($B112,'Saisie Poussins'!$B$13:$AI$56,1+H$1,FALSE),0) -> 2 | I112: =IFERROR(VLOOKUP($B112,'Saisie Poussins'!$B$113:$AI$156,26+I$1,FALSE),0) -> 37 | J112: =IFERROR(VLOOKUP($B112,'Saisie Poussins'!$B$113:$AI$156,26+J$1,FALSE),0) -> 44 | K112: =IFERROR(VLOOKUP($B112,'Saisie Poussins'!$B$113:$AI$156,26+K$1,FALSE),0) -> 0 | L112: =IFERROR(VLOOKUP($B112,'Saisie Poussins'!$B$113:$AI$156,26+L$1,FALSE),0) -> 0 | M112: =IFERROR(VLOOKUP($B112,'Saisie Poussins'!$B$113:$AI$156,26+M$1,FALSE),0) -> 0 | N112: =IFERROR(VLOOKUP($B112,'Saisie Poussins'!$B$113:$AI$156,26+N$1,FALSE),0) -> 0 | O112: =IFERROR(VLOOKUP($B112,'Saisie Poussins'!$B$113:$AI$156,26+O$1,FALSE),0) -> 0 | P112: =IFERROR(VLOOKUP($B112,'Saisie Poussins'!$B$113:$AI$156,26+P$1,FALSE),0) -> 0 | Q112: 81
A113: =IFERROR(IF(A112+1<='Saisie Poussins'!$BF$12,A112+1,""),"") -> 12 | B113: =IFERROR(VLOOKUP(A113,'Saisie Poussins'!$BE$113:$BF$156,2,FALSE),"") -> 42700060276 | C113: =IFERROR(VLOOKUP($B113,'Saisie Poussins'!$B$13:$AI$56,1+C$1,FALSE),0) -> TAILHARDAT | D113: =IFERROR(VLOOKUP($B113,'Saisie Poussins'!$B$13:$AI$56,1+D$1,FALSE),0) -> Célestin | E113: =IFERROR(VLOOKUP($B113,'Saisie Poussins'!$B$13:$AI$56,1+E$1,FALSE),0) -> H | F113: =IFERROR(VLOOKUP($B113,'Saisie Poussins'!$B$13:$AI$56,1+F$1,FALSE),0) -> ROUE D`OR NOIDANS | G113: =IFERROR(VLOOKUP($B113,'Saisie Poussins'!$B$13:$AI$56,1+G$1,FALSE),0) -> Poussin | H113: =IFERROR(VLOOKUP($B113,'Saisie Poussins'!$B$13:$AI$56,1+H$1,FALSE),0) -> 1 | I113: =IFERROR(VLOOKUP($B113,'Saisie Poussins'!$B$113:$AI$156,26+I$1,FALSE),0) -> 30 | J113: =IFERROR(VLOOKUP($B113,'Saisie Poussins'!$B$113:$AI$156,26+J$1,FALSE),0) -> 0 | K113: =IFERROR(VLOOKUP($B113,'Saisie Poussins'!$B$113:$AI$156,26+K$1,FALSE),0) -> 0 | L113: =IFERROR(VLOOKUP($B113,'Saisie Poussins'!$B$113:$AI$156,26+L$1,FALSE),0) -> 0 | M113: =IFERROR(VLOOKUP($B113,'Saisie Poussins'!$B$113:$AI$156,26+M$1,FALSE),0) -> 0 | N113: =IFERROR(VLOOKUP($B113,'Saisie Poussins'!$B$113:$AI$156,26+N$1,FALSE),0) -> 0 | O113: =IFERROR(VLOOKUP($B113,'Saisie Poussins'!$B$113:$AI$156,26+O$1,FALSE),0) -> 0 | P113: =IFERROR(VLOOKUP($B113,'Saisie Poussins'!$B$113:$AI$156,26+P$1,FALSE),0) -> 0 | Q113: 30
A114: =IFERROR(IF(A113+1<='Saisie Poussins'!$BF$12,A113+1,""),"") -> 13 | B114: =IFERROR(VLOOKUP(A114,'Saisie Poussins'!$BE$113:$BF$156,2,FALSE),"") -> 42700680169 | C114: =IFERROR(VLOOKUP($B114,'Saisie Poussins'!$B$13:$AI$56,1+C$1,FALSE),0) -> BRY | D114: =IFERROR(VLOOKUP($B114,'Saisie Poussins'!$B$13:$AI$56,1+D$1,FALSE),0) -> Eliott | E114: =IFERROR(VLOOKUP($B114,'Saisie Poussins'!$B$13:$AI$56,1+E$1,FALSE),0) -> H | F114: =IFERROR(VLOOKUP($B114,'Saisie Poussins'!$B$13:$AI$56,1+F$1,FALSE),0) -> E.C. LUXEUIL VOSGES SAONO | G114: =IFERROR(VLOOKUP($B114,'Saisie Poussins'!$B$13:$AI$56,1+G$1,FALSE),0) -> Poussin | H114: =IFERROR(VLOOKUP($B114,'Saisie Poussins'!$B$13:$AI$56,1+H$1,FALSE),0) -> 1 | I114: =IFERROR(VLOOKUP($B114,'Saisie Poussins'!$B$113:$AI$156,26+I$1,FALSE),0) -> 26 | J114: =IFERROR(VLOOKUP($B114,'Saisie Poussins'!$B$113:$AI$156,26+J$1,FALSE),0) -> 0 | K114: =IFERROR(VLOOKUP($B114,'Saisie Poussins'!$B$113:$AI$156,26+K$1,FALSE),0) -> 0 | L114: =IFERROR(VLOOKUP($B114,'Saisie Poussins'!$B$113:$AI$156,26+L$1,FALSE),0) -> 0 | M114: =IFERROR(VLOOKUP($B114,'Saisie Poussins'!$B$113:$AI$156,26+M$1,FALSE),0) -> 0 | N114: =IFERROR(VLOOKUP($B114,'Saisie Poussins'!$B$113:$AI$156,26+N$1,FALSE),0) -> 0 | O114: =IFERROR(VLOOKUP($B114,'Saisie Poussins'!$B$113:$AI$156,26+O$1,FALSE),0) -> 0 | P114: =IFERROR(VLOOKUP($B114,'Saisie Poussins'!$B$113:$AI$156,26+P$1,FALSE),0) -> 0 | Q114: 26
A115: =IFERROR(IF(A114+1<='Saisie Poussins'!$BF$12,A114+1,""),"") -> 14 | B115: =IFERROR(VLOOKUP(A115,'Saisie Poussins'!$BE$113:$BF$156,2,FALSE),"") -> 46880320466 | C115: =IFERROR(VLOOKUP($B115,'Saisie Poussins'!$B$13:$AI$56,1+C$1,FALSE),0) -> HERMANN | D115: =IFERROR(VLOOKUP($B115,'Saisie Poussins'!$B$13:$AI$56,1+D$1,FALSE),0) -> Robin | E115: =IFERROR(VLOOKUP($B115,'Saisie Poussins'!$B$13:$AI$56,1+E$1,FALSE),0) -> H | F115: =IFERROR(VLOOKUP($B115,'Saisie Poussins'!$B$13:$AI$56,1+F$1,FALSE),0) -> CYCLE GOLBEEN | G115: =IFERROR(VLOOKUP($B115,'Saisie Poussins'!$B$13:$AI$56,1+G$1,FALSE),0) -> Poussin | H115: =IFERROR(VLOOKUP($B115,'Saisie Poussins'!$B$13:$AI$56,1+H$1,FALSE),0) -> 1 | I115: =IFERROR(VLOOKUP($B115,'Saisie Poussins'!$B$113:$AI$156,26+I$1,FALSE),0) -> 0 | J115: =IFERROR(VLOOKUP($B115,'Saisie Poussins'!$B$113:$AI$156,26+J$1,FALSE),0) -> 24 | K115: =IFERROR(VLOOKUP($B115,'Saisie Poussins'!$B$113:$AI$156,26+K$1,FALSE),0) -> 0 | L115: =IFERROR(VLOOKUP($B115,'Saisie Poussins'!$B$113:$AI$156,26+L$1,FALSE),0) -> 0 | M115: =IFERROR(VLOOKUP($B115,'Saisie Poussins'!$B$113:$AI$156,26+M$1,FALSE),0) -> 0 | N115: =IFERROR(VLOOKUP($B115,'Saisie Poussins'!$B$113:$AI$156,26+N$1,FALSE),0) -> 0 | O115: =IFERROR(VLOOKUP($B115,'Saisie Poussins'!$B$113:$AI$156,26+O$1,FALSE),0) -> 0 | P115: =IFERROR(VLOOKUP($B115,'Saisie Poussins'!$B$113:$AI$156,26+P$1,FALSE),0) -> 0 | Q115: 24
A116: =IFERROR(IF(A115+1<='Saisie Poussins'!$BF$12,A115+1,""),"") -> 15 | B116: =IFERROR(VLOOKUP(A116,'Saisie Poussins'!$BE$113:$BF$156,2,FALSE),"") -> 42250120377 | C116: =IFERROR(VLOOKUP($B116,'Saisie Poussins'!$B$13:$AI$56,1+C$1,FALSE),0) -> GAUROIS | D116: =IFERROR(VLOOKUP($B116,'Saisie Poussins'!$B$13:$AI$56,1+D$1,FALSE),0) -> Matthias | E116: =IFERROR(VLOOKUP($B116,'Saisie Poussins'!$B$13:$AI$56,1+E$1,FALSE),0) -> H | F116: =IFERROR(VLOOKUP($B116,'Saisie Poussins'!$B$13:$AI$56,1+F$1,FALSE),0) -> V.C.DE MONTBELIARD | G116: =IFERROR(VLOOKUP($B116,'Saisie Poussins'!$B$13:$AI$56,1+G$1,FALSE),0) -> Poussin | H116: =IFERROR(VLOOKUP($B116,'Saisie Poussins'!$B$13:$AI$56,1+H$1,FALSE),0) -> 2 | I116: =IFERROR(VLOOKUP($B116,'Saisie Poussins'!$B$113:$AI$156,26+I$1,FALSE),0) -> 0 | J116: =IFERROR(VLOOKUP($B116,'Saisie Poussins'!$B$113:$AI$156,26+J$1,FALSE),0) -> 24 | K116: =IFERROR(VLOOKUP($B116,'Saisie Poussins'!$B$113:$AI$156,26+K$1,FALSE),0) -> 0 | L116: =IFERROR(VLOOKUP($B116,'Saisie Poussins'!$B$113:$AI$156,26+L$1,FALSE),0) -> 0 | M116: =IFERROR(VLOOKUP($B116,'Saisie Poussins'!$B$113:$AI$156,26+M$1,FALSE),0) -> 0 | N116: =IFERROR(VLOOKUP($B116,'Saisie Poussins'!$B$113:$AI$156,26+N$1,FALSE),0) -> 0 | O116: =IFERROR(VLOOKUP($B116,'Saisie Poussins'!$B$113:$AI$156,26+O$1,FALSE),0) -> 0 | P116: =IFERROR(VLOOKUP($B116,'Saisie Poussins'!$B$113:$AI$156,26+P$1,FALSE),0) -> 0 | Q116: 24
A117: =IFERROR(IF(A116+1<='Saisie Poussins'!$BF$12,A116+1,""),"") -> 16 | B117: =IFERROR(VLOOKUP(A117,'Saisie Poussins'!$BE$113:$BF$156,2,FALSE),"") -> 42700680168 | C117: =IFERROR(VLOOKUP($B117,'Saisie Poussins'!$B$13:$AI$56,1+C$1,FALSE),0) -> CLERC | D117: =IFERROR(VLOOKUP($B117,'Saisie Poussins'!$B$13:$AI$56,1+D$1,FALSE),0) -> Zoé | E117: =IFERROR(VLOOKUP($B117,'Saisie Poussins'!$B$13:$AI$56,1+E$1,FALSE),0) -> H | F117: =IFERROR(VLOOKUP($B117,'Saisie Poussins'!$B$13:$AI$56,1+F$1,FALSE),0) -> E.C. LUXEUIL VOSGES SAONO | G117: =IFERROR(VLOOKUP($B117,'Saisie Poussins'!$B$13:$AI$56,1+G$1,FALSE),0) -> Poussin | H117: =IFERROR(VLOOKUP($B117,'Saisie Poussins'!$B$13:$AI$56,1+H$1,FALSE),0) -> 2 | I117: =IFERROR(VLOOKUP($B117,'Saisie Poussins'!$B$113:$AI$156,26+I$1,FALSE),0) -> 20 | J117: =IFERROR(VLOOKUP($B117,'Saisie Poussins'!$B$113:$AI$156,26+J$1,FALSE),0) -> 0 | K117: =IFERROR(VLOOKUP($B117,'Saisie Poussins'!$B$113:$AI$156,26+K$1,FALSE),0) -> 0 | L117: =IFERROR(VLOOKUP($B117,'Saisie Poussins'!$B$113:$AI$156,26+L$1,FALSE),0) -> 0 | M117: =IFERROR(VLOOKUP($B117,'Saisie Poussins'!$B$113:$AI$156,26+M$1,FALSE),0) -> 0 | N117: =IFERROR(VLOOKUP($B117,'Saisie Poussins'!$B$113:$AI$156,26+N$1,FALSE),0) -> 0 | O117: =IFERROR(VLOOKUP($B117,'Saisie Poussins'!$B$113:$AI$156,26+O$1,FALSE),0) -> 0 | P117: =IFERROR(VLOOKUP($B117,'Saisie Poussins'!$B$113:$AI$156,26+P$1,FALSE),0) -> 0 | Q117: 20
A118: =IFERROR(IF(A117+1<='Saisie Poussins'!$BF$12,A117+1,""),"") ->  | B118: =IFERROR(VLOOKUP(A118,'Saisie Poussins'!$BE$113:$BF$156,2,FALSE),"") -> 0 | C118: =IFERROR(VLOOKUP($B118,'Saisie Poussins'!$B$13:$AI$56,1+C$1,FALSE),0) -> 0 | D118: =IFERROR(VLOOKUP($B118,'Saisie Poussins'!$B$13:$AI$56,1+D$1,FALSE),0) -> 0 | E118: =IFERROR(VLOOKUP($B118,'Saisie Poussins'!$B$13:$AI$56,1+E$1,FALSE),0) -> 0 | F118: =IFERROR(VLOOKUP($B118,'Saisie Poussins'!$B$13:$AI$56,1+F$1,FALSE),0) -> 0 | G118: =IFERROR(VLOOKUP($B118,'Saisie Poussins'!$B$13:$AI$56,1+G$1,FALSE),0) -> 0 | H118: =IFERROR(VLOOKUP($B118,'Saisie Poussins'!$B$13:$AI$56,1+H$1,FALSE),0) -> 0 | I118: =IFERROR(VLOOKUP($B118,'Saisie Poussins'!$B$113:$AI$156,26+I$1,FALSE),0) -> 0 | J118: =IFERROR(VLOOKUP($B118,'Saisie Poussins'!$B$113:$AI$156,26+J$1,FALSE),0) -> 0 | K118: =IFERROR(VLOOKUP($B118,'Saisie Poussins'!$B$113:$AI$156,26+K$1,FALSE),0) -> 0 | L118: =IFERROR(VLOOKUP($B118,'Saisie Poussins'!$B$113:$AI$156,26+L$1,FALSE),0) -> 0 | M118: =IFERROR(VLOOKUP($B118,'Saisie Poussins'!$B$113:$AI$156,26+M$1,FALSE),0) -> 0 | N118: =IFERROR(VLOOKUP($B118,'Saisie Poussins'!$B$113:$AI$156,26+N$1,FALSE),0) -> 0 | O118: =IFERROR(VLOOKUP($B118,'Saisie Poussins'!$B$113:$AI$156,26+O$1,FALSE),0) -> 0 | P118: =IFERROR(VLOOKUP($B118,'Saisie Poussins'!$B$113:$AI$156,26+P$1,FALSE),0) -> 0
A119: =IFERROR(IF(A118+1<='Saisie Poussins'!$BF$12,A118+1,""),"") ->  | B119: =IFERROR(VLOOKUP(A119,'Saisie Poussins'!$BE$113:$BF$156,2,FALSE),"") -> 0 | C119: =IFERROR(VLOOKUP($B119,'Saisie Poussins'!$B$13:$AI$56,1+C$1,FALSE),0) -> 0 | D119: =IFERROR(VLOOKUP($B119,'Saisie Poussins'!$B$13:$AI$56,1+D$1,FALSE),0) -> 0 | E119: =IFERROR(VLOOKUP($B119,'Saisie Poussins'!$B$13:$AI$56,1+E$1,FALSE),0) -> 0 | F119: =IFERROR(VLOOKUP($B119,'Saisie Poussins'!$B$13:$AI$56,1+F$1,FALSE),0) -> 0 | G119: =IFERROR(VLOOKUP($B119,'Saisie Poussins'!$B$13:$AI$56,1+G$1,FALSE),0) -> 0 | H119: =IFERROR(VLOOKUP($B119,'Saisie Poussins'!$B$13:$AI$56,1+H$1,FALSE),0) -> 0 | I119: =IFERROR(VLOOKUP($B119,'Saisie Poussins'!$B$113:$AI$156,26+I$1,FALSE),0) -> 0 | J119: =IFERROR(VLOOKUP($B119,'Saisie Poussins'!$B$113:$AI$156,26+J$1,FALSE),0) -> 0 | K119: =IFERROR(VLOOKUP($B119,'Saisie Poussins'!$B$113:$AI$156,26+K$1,FALSE),0) -> 0 | L119: =IFERROR(VLOOKUP($B119,'Saisie Poussins'!$B$113:$AI$156,26+L$1,FALSE),0) -> 0 | M119: =IFERROR(VLOOKUP($B119,'Saisie Poussins'!$B$113:$AI$156,26+M$1,FALSE),0) -> 0 | N119: =IFERROR(VLOOKUP($B119,'Saisie Poussins'!$B$113:$AI$156,26+N$1,FALSE),0) -> 0 | O119: =IFERROR(VLOOKUP($B119,'Saisie Poussins'!$B$113:$AI$156,26+O$1,FALSE),0) -> 0 | P119: =IFERROR(VLOOKUP($B119,'Saisie Poussins'!$B$113:$AI$156,26+P$1,FALSE),0) -> 0
A120: =IFERROR(IF(A119+1<='Saisie Poussins'!$BF$12,A119+1,""),"") ->  | B120: =IFERROR(VLOOKUP(A120,'Saisie Poussins'!$BE$113:$BF$156,2,FALSE),"") -> 0 | C120: =IFERROR(VLOOKUP($B120,'Saisie Poussins'!$B$13:$AI$56,1+C$1,FALSE),0) -> 0 | D120: =IFERROR(VLOOKUP($B120,'Saisie Poussins'!$B$13:$AI$56,1+D$1,FALSE),0) -> 0 | E120: =IFERROR(VLOOKUP($B120,'Saisie Poussins'!$B$13:$AI$56,1+E$1,FALSE),0) -> 0 | F120: =IFERROR(VLOOKUP($B120,'Saisie Poussins'!$B$13:$AI$56,1+F$1,FALSE),0) -> 0 | G120: =IFERROR(VLOOKUP($B120,'Saisie Poussins'!$B$13:$AI$56,1+G$1,FALSE),0) -> 0 | H120: =IFERROR(VLOOKUP($B120,'Saisie Poussins'!$B$13:$AI$56,1+H$1,FALSE),0) -> 0 | I120: =IFERROR(VLOOKUP($B120,'Saisie Poussins'!$B$113:$AI$156,26+I$1,FALSE),0) -> 0 | J120: =IFERROR(VLOOKUP($B120,'Saisie Poussins'!$B$113:$AI$156,26+J$1,FALSE),0) -> 0 | K120: =IFERROR(VLOOKUP($B120,'Saisie Poussins'!$B$113:$AI$156,26+K$1,FALSE),0) -> 0 | L120: =IFERROR(VLOOKUP($B120,'Saisie Poussins'!$B$113:$AI$156,26+L$1,FALSE),0) -> 0 | M120: =IFERROR(VLOOKUP($B120,'Saisie Poussins'!$B$113:$AI$156,26+M$1,FALSE),0) -> 0 | N120: =IFERROR(VLOOKUP($B120,'Saisie Poussins'!$B$113:$AI$156,26+N$1,FALSE),0) -> 0 | O120: =IFERROR(VLOOKUP($B120,'Saisie Poussins'!$B$113:$AI$156,26+O$1,FALSE),0) -> 0 | P120: =IFERROR(VLOOKUP($B120,'Saisie Poussins'!$B$113:$AI$156,26+P$1,FALSE),0) -> 0
A121: =IFERROR(IF(A120+1<='Saisie Poussins'!$BF$12,A120+1,""),"") ->  | B121: =IFERROR(VLOOKUP(A121,'Saisie Poussins'!$BE$113:$BF$156,2,FALSE),"") -> 0 | C121: =IFERROR(VLOOKUP($B121,'Saisie Poussins'!$B$13:$AI$56,1+C$1,FALSE),0) -> 0 | D121: =IFERROR(VLOOKUP($B121,'Saisie Poussins'!$B$13:$AI$56,1+D$1,FALSE),0) -> 0 | E121: =IFERROR(VLOOKUP($B121,'Saisie Poussins'!$B$13:$AI$56,1+E$1,FALSE),0) -> 0 | F121: =IFERROR(VLOOKUP($B121,'Saisie Poussins'!$B$13:$AI$56,1+F$1,FALSE),0) -> 0 | G121: =IFERROR(VLOOKUP($B121,'Saisie Poussins'!$B$13:$AI$56,1+G$1,FALSE),0) -> 0 | H121: =IFERROR(VLOOKUP($B121,'Saisie Poussins'!$B$13:$AI$56,1+H$1,FALSE),0) -> 0 | I121: =IFERROR(VLOOKUP($B121,'Saisie Poussins'!$B$113:$AI$156,26+I$1,FALSE),0) -> 0 | J121: =IFERROR(VLOOKUP($B121,'Saisie Poussins'!$B$113:$AI$156,26+J$1,FALSE),0) -> 0 | K121: =IFERROR(VLOOKUP($B121,'Saisie Poussins'!$B$113:$AI$156,26+K$1,FALSE),0) -> 0 | L121: =IFERROR(VLOOKUP($B121,'Saisie Poussins'!$B$113:$AI$156,26+L$1,FALSE),0) -> 0 | M121: =IFERROR(VLOOKUP($B121,'Saisie Poussins'!$B$113:$AI$156,26+M$1,FALSE),0) -> 0 | N121: =IFERROR(VLOOKUP($B121,'Saisie Poussins'!$B$113:$AI$156,26+N$1,FALSE),0) -> 0 | O121: =IFERROR(VLOOKUP($B121,'Saisie Poussins'!$B$113:$AI$156,26+O$1,FALSE),0) -> 0 | P121: =IFERROR(VLOOKUP($B121,'Saisie Poussins'!$B$113:$AI$156,26+P$1,FALSE),0) -> 0
A122: =IFERROR(IF(A121+1<='Saisie Poussins'!$BF$12,A121+1,""),"") ->  | B122: =IFERROR(VLOOKUP(A122,'Saisie Poussins'!$BE$113:$BF$156,2,FALSE),"") -> 0 | C122: =IFERROR(VLOOKUP($B122,'Saisie Poussins'!$B$13:$AI$56,1+C$1,FALSE),0) -> 0 | D122: =IFERROR(VLOOKUP($B122,'Saisie Poussins'!$B$13:$AI$56,1+D$1,FALSE),0) -> 0 | E122: =IFERROR(VLOOKUP($B122,'Saisie Poussins'!$B$13:$AI$56,1+E$1,FALSE),0) -> 0 | F122: =IFERROR(VLOOKUP($B122,'Saisie Poussins'!$B$13:$AI$56,1+F$1,FALSE),0) -> 0 | G122: =IFERROR(VLOOKUP($B122,'Saisie Poussins'!$B$13:$AI$56,1+G$1,FALSE),0) -> 0 | H122: =IFERROR(VLOOKUP($B122,'Saisie Poussins'!$B$13:$AI$56,1+H$1,FALSE),0) -> 0 | I122: =IFERROR(VLOOKUP($B122,'Saisie Poussins'!$B$113:$AI$156,26+I$1,FALSE),0) -> 0 | J122: =IFERROR(VLOOKUP($B122,'Saisie Poussins'!$B$113:$AI$156,26+J$1,FALSE),0) -> 0 | K122: =IFERROR(VLOOKUP($B122,'Saisie Poussins'!$B$113:$AI$156,26+K$1,FALSE),0) -> 0 | L122: =IFERROR(VLOOKUP($B122,'Saisie Poussins'!$B$113:$AI$156,26+L$1,FALSE),0) -> 0 | M122: =IFERROR(VLOOKUP($B122,'Saisie Poussins'!$B$113:$AI$156,26+M$1,FALSE),0) -> 0 | N122: =IFERROR(VLOOKUP($B122,'Saisie Poussins'!$B$113:$AI$156,26+N$1,FALSE),0) -> 0 | O122: =IFERROR(VLOOKUP($B122,'Saisie Poussins'!$B$113:$AI$156,26+O$1,FALSE),0) -> 0 | P122: =IFERROR(VLOOKUP($B122,'Saisie Poussins'!$B$113:$AI$156,26+P$1,FALSE),0) -> 0
A123: =IFERROR(IF(A122+1<='Saisie Poussins'!$BF$12,A122+1,""),"") ->  | B123: =IFERROR(VLOOKUP(A123,'Saisie Poussins'!$BE$113:$BF$156,2,FALSE),"") -> 0 | C123: =IFERROR(VLOOKUP($B123,'Saisie Poussins'!$B$13:$AI$56,1+C$1,FALSE),0) -> 0 | D123: =IFERROR(VLOOKUP($B123,'Saisie Poussins'!$B$13:$AI$56,1+D$1,FALSE),0) -> 0 | E123: =IFERROR(VLOOKUP($B123,'Saisie Poussins'!$B$13:$AI$56,1+E$1,FALSE),0) -> 0 | F123: =IFERROR(VLOOKUP($B123,'Saisie Poussins'!$B$13:$AI$56,1+F$1,FALSE),0) -> 0 | G123: =IFERROR(VLOOKUP($B123,'Saisie Poussins'!$B$13:$AI$56,1+G$1,FALSE),0) -> 0 | H123: =IFERROR(VLOOKUP($B123,'Saisie Poussins'!$B$13:$AI$56,1+H$1,FALSE),0) -> 0 | I123: =IFERROR(VLOOKUP($B123,'Saisie Poussins'!$B$113:$AI$156,26+I$1,FALSE),0) -> 0 | J123: =IFERROR(VLOOKUP($B123,'Saisie Poussins'!$B$113:$AI$156,26+J$1,FALSE),0) -> 0 | K123: =IFERROR(VLOOKUP($B123,'Saisie Poussins'!$B$113:$AI$156,26+K$1,FALSE),0) -> 0 | L123: =IFERROR(VLOOKUP($B123,'Saisie Poussins'!$B$113:$AI$156,26+L$1,FALSE),0) -> 0 | M123: =IFERROR(VLOOKUP($B123,'Saisie Poussins'!$B$113:$AI$156,26+M$1,FALSE),0) -> 0 | N123: =IFERROR(VLOOKUP($B123,'Saisie Poussins'!$B$113:$AI$156,26+N$1,FALSE),0) -> 0 | O123: =IFERROR(VLOOKUP($B123,'Saisie Poussins'!$B$113:$AI$156,26+O$1,FALSE),0) -> 0 | P123: =IFERROR(VLOOKUP($B123,'Saisie Poussins'!$B$113:$AI$156,26+P$1,FALSE),0) -> 0
A124: =IFERROR(IF(A123+1<='Saisie Poussins'!$BF$12,A123+1,""),"") ->  | B124: =IFERROR(VLOOKUP(A124,'Saisie Poussins'!$BE$113:$BF$156,2,FALSE),"") -> 0 | C124: =IFERROR(VLOOKUP($B124,'Saisie Poussins'!$B$13:$AI$56,1+C$1,FALSE),0) -> 0 | D124: =IFERROR(VLOOKUP($B124,'Saisie Poussins'!$B$13:$AI$56,1+D$1,FALSE),0) -> 0 | E124: =IFERROR(VLOOKUP($B124,'Saisie Poussins'!$B$13:$AI$56,1+E$1,FALSE),0) -> 0 | F124: =IFERROR(VLOOKUP($B124,'Saisie Poussins'!$B$13:$AI$56,1+F$1,FALSE),0) -> 0 | G124: =IFERROR(VLOOKUP($B124,'Saisie Poussins'!$B$13:$AI$56,1+G$1,FALSE),0) -> 0 | H124: =IFERROR(VLOOKUP($B124,'Saisie Poussins'!$B$13:$AI$56,1+H$1,FALSE),0) -> 0 | I124: =IFERROR(VLOOKUP($B124,'Saisie Poussins'!$B$113:$AI$156,26+I$1,FALSE),0) -> 0 | J124: =IFERROR(VLOOKUP($B124,'Saisie Poussins'!$B$113:$AI$156,26+J$1,FALSE),0) -> 0 | K124: =IFERROR(VLOOKUP($B124,'Saisie Poussins'!$B$113:$AI$156,26+K$1,FALSE),0) -> 0 | L124: =IFERROR(VLOOKUP($B124,'Saisie Poussins'!$B$113:$AI$156,26+L$1,FALSE),0) -> 0 | M124: =IFERROR(VLOOKUP($B124,'Saisie Poussins'!$B$113:$AI$156,26+M$1,FALSE),0) -> 0 | N124: =IFERROR(VLOOKUP($B124,'Saisie Poussins'!$B$113:$AI$156,26+N$1,FALSE),0) -> 0 | O124: =IFERROR(VLOOKUP($B124,'Saisie Poussins'!$B$113:$AI$156,26+O$1,FALSE),0) -> 0 | P124: =IFERROR(VLOOKUP($B124,'Saisie Poussins'!$B$113:$AI$156,26+P$1,FALSE),0) -> 0
A125: =IFERROR(IF(A124+1<='Saisie Poussins'!$BF$12,A124+1,""),"") ->  | B125: =IFERROR(VLOOKUP(A125,'Saisie Poussins'!$BE$113:$BF$156,2,FALSE),"") -> 0 | C125: =IFERROR(VLOOKUP($B125,'Saisie Poussins'!$B$13:$AI$56,1+C$1,FALSE),0) -> 0 | D125: =IFERROR(VLOOKUP($B125,'Saisie Poussins'!$B$13:$AI$56,1+D$1,FALSE),0) -> 0 | E125: =IFERROR(VLOOKUP($B125,'Saisie Poussins'!$B$13:$AI$56,1+E$1,FALSE),0) -> 0 | F125: =IFERROR(VLOOKUP($B125,'Saisie Poussins'!$B$13:$AI$56,1+F$1,FALSE),0) -> 0 | G125: =IFERROR(VLOOKUP($B125,'Saisie Poussins'!$B$13:$AI$56,1+G$1,FALSE),0) -> 0 | H125: =IFERROR(VLOOKUP($B125,'Saisie Poussins'!$B$13:$AI$56,1+H$1,FALSE),0) -> 0 | I125: =IFERROR(VLOOKUP($B125,'Saisie Poussins'!$B$113:$AI$156,26+I$1,FALSE),0) -> 0 | J125: =IFERROR(VLOOKUP($B125,'Saisie Poussins'!$B$113:$AI$156,26+J$1,FALSE),0) -> 0 | K125: =IFERROR(VLOOKUP($B125,'Saisie Poussins'!$B$113:$AI$156,26+K$1,FALSE),0) -> 0 | L125: =IFERROR(VLOOKUP($B125,'Saisie Poussins'!$B$113:$AI$156,26+L$1,FALSE),0) -> 0 | M125: =IFERROR(VLOOKUP($B125,'Saisie Poussins'!$B$113:$AI$156,26+M$1,FALSE),0) -> 0 | N125: =IFERROR(VLOOKUP($B125,'Saisie Poussins'!$B$113:$AI$156,26+N$1,FALSE),0) -> 0 | O125: =IFERROR(VLOOKUP($B125,'Saisie Poussins'!$B$113:$AI$156,26+O$1,FALSE),0) -> 0 | P125: =IFERROR(VLOOKUP($B125,'Saisie Poussins'!$B$113:$AI$156,26+P$1,FALSE),0) -> 0
A126: =IFERROR(IF(A125+1<='Saisie Poussins'!$BF$12,A125+1,""),"") ->  | B126: =IFERROR(VLOOKUP(A126,'Saisie Poussins'!$BE$113:$BF$156,2,FALSE),"") -> 0 | C126: =IFERROR(VLOOKUP($B126,'Saisie Poussins'!$B$13:$AI$56,1+C$1,FALSE),0) -> 0 | D126: =IFERROR(VLOOKUP($B126,'Saisie Poussins'!$B$13:$AI$56,1+D$1,FALSE),0) -> 0 | E126: =IFERROR(VLOOKUP($B126,'Saisie Poussins'!$B$13:$AI$56,1+E$1,FALSE),0) -> 0 | F126: =IFERROR(VLOOKUP($B126,'Saisie Poussins'!$B$13:$AI$56,1+F$1,FALSE),0) -> 0 | G126: =IFERROR(VLOOKUP($B126,'Saisie Poussins'!$B$13:$AI$56,1+G$1,FALSE),0) -> 0 | H126: =IFERROR(VLOOKUP($B126,'Saisie Poussins'!$B$13:$AI$56,1+H$1,FALSE),0) -> 0 | I126: =IFERROR(VLOOKUP($B126,'Saisie Poussins'!$B$113:$AI$156,26+I$1,FALSE),0) -> 0 | J126: =IFERROR(VLOOKUP($B126,'Saisie Poussins'!$B$113:$AI$156,26+J$1,FALSE),0) -> 0 | K126: =IFERROR(VLOOKUP($B126,'Saisie Poussins'!$B$113:$AI$156,26+K$1,FALSE),0) -> 0 | L126: =IFERROR(VLOOKUP($B126,'Saisie Poussins'!$B$113:$AI$156,26+L$1,FALSE),0) -> 0 | M126: =IFERROR(VLOOKUP($B126,'Saisie Poussins'!$B$113:$AI$156,26+M$1,FALSE),0) -> 0 | N126: =IFERROR(VLOOKUP($B126,'Saisie Poussins'!$B$113:$AI$156,26+N$1,FALSE),0) -> 0 | O126: =IFERROR(VLOOKUP($B126,'Saisie Poussins'!$B$113:$AI$156,26+O$1,FALSE),0) -> 0 | P126: =IFERROR(VLOOKUP($B126,'Saisie Poussins'!$B$113:$AI$156,26+P$1,FALSE),0) -> 0
A127: =IFERROR(IF(A126+1<='Saisie Poussins'!$BF$12,A126+1,""),"") ->  | B127: =IFERROR(VLOOKUP(A127,'Saisie Poussins'!$BE$113:$BF$156,2,FALSE),"") -> 0 | C127: =IFERROR(VLOOKUP($B127,'Saisie Poussins'!$B$13:$AI$56,1+C$1,FALSE),0) -> 0 | D127: =IFERROR(VLOOKUP($B127,'Saisie Poussins'!$B$13:$AI$56,1+D$1,FALSE),0) -> 0 | E127: =IFERROR(VLOOKUP($B127,'Saisie Poussins'!$B$13:$AI$56,1+E$1,FALSE),0) -> 0 | F127: =IFERROR(VLOOKUP($B127,'Saisie Poussins'!$B$13:$AI$56,1+F$1,FALSE),0) -> 0 | G127: =IFERROR(VLOOKUP($B127,'Saisie Poussins'!$B$13:$AI$56,1+G$1,FALSE),0) -> 0 | H127: =IFERROR(VLOOKUP($B127,'Saisie Poussins'!$B$13:$AI$56,1+H$1,FALSE),0) -> 0 | I127: =IFERROR(VLOOKUP($B127,'Saisie Poussins'!$B$113:$AI$156,26+I$1,FALSE),0) -> 0 | J127: =IFERROR(VLOOKUP($B127,'Saisie Poussins'!$B$113:$AI$156,26+J$1,FALSE),0) -> 0 | K127: =IFERROR(VLOOKUP($B127,'Saisie Poussins'!$B$113:$AI$156,26+K$1,FALSE),0) -> 0 | L127: =IFERROR(VLOOKUP($B127,'Saisie Poussins'!$B$113:$AI$156,26+L$1,FALSE),0) -> 0 | M127: =IFERROR(VLOOKUP($B127,'Saisie Poussins'!$B$113:$AI$156,26+M$1,FALSE),0) -> 0 | N127: =IFERROR(VLOOKUP($B127,'Saisie Poussins'!$B$113:$AI$156,26+N$1,FALSE),0) -> 0 | O127: =IFERROR(VLOOKUP($B127,'Saisie Poussins'!$B$113:$AI$156,26+O$1,FALSE),0) -> 0 | P127: =IFERROR(VLOOKUP($B127,'Saisie Poussins'!$B$113:$AI$156,26+P$1,FALSE),0) -> 0
A128: =IFERROR(IF(A127+1<='Saisie Poussins'!$BF$12,A127+1,""),"") ->  | B128: =IFERROR(VLOOKUP(A128,'Saisie Poussins'!$BE$113:$BF$156,2,FALSE),"") -> 0 | C128: =IFERROR(VLOOKUP($B128,'Saisie Poussins'!$B$13:$AI$56,1+C$1,FALSE),0) -> 0 | D128: =IFERROR(VLOOKUP($B128,'Saisie Poussins'!$B$13:$AI$56,1+D$1,FALSE),0) -> 0 | E128: =IFERROR(VLOOKUP($B128,'Saisie Poussins'!$B$13:$AI$56,1+E$1,FALSE),0) -> 0 | F128: =IFERROR(VLOOKUP($B128,'Saisie Poussins'!$B$13:$AI$56,1+F$1,FALSE),0) -> 0 | G128: =IFERROR(VLOOKUP($B128,'Saisie Poussins'!$B$13:$AI$56,1+G$1,FALSE),0) -> 0 | H128: =IFERROR(VLOOKUP($B128,'Saisie Poussins'!$B$13:$AI$56,1+H$1,FALSE),0) -> 0 | I128: =IFERROR(VLOOKUP($B128,'Saisie Poussins'!$B$113:$AI$156,26+I$1,FALSE),0) -> 0 | J128: =IFERROR(VLOOKUP($B128,'Saisie Poussins'!$B$113:$AI$156,26+J$1,FALSE),0) -> 0 | K128: =IFERROR(VLOOKUP($B128,'Saisie Poussins'!$B$113:$AI$156,26+K$1,FALSE),0) -> 0 | L128: =IFERROR(VLOOKUP($B128,'Saisie Poussins'!$B$113:$AI$156,26+L$1,FALSE),0) -> 0 | M128: =IFERROR(VLOOKUP($B128,'Saisie Poussins'!$B$113:$AI$156,26+M$1,FALSE),0) -> 0 | N128: =IFERROR(VLOOKUP($B128,'Saisie Poussins'!$B$113:$AI$156,26+N$1,FALSE),0) -> 0 | O128: =IFERROR(VLOOKUP($B128,'Saisie Poussins'!$B$113:$AI$156,26+O$1,FALSE),0) -> 0 | P128: =IFERROR(VLOOKUP($B128,'Saisie Poussins'!$B$113:$AI$156,26+P$1,FALSE),0) -> 0
A129: =IFERROR(IF(A128+1<='Saisie Poussins'!$BF$12,A128+1,""),"") ->  | B129: =IFERROR(VLOOKUP(A129,'Saisie Poussins'!$BE$113:$BF$156,2,FALSE),"") -> 0 | C129: =IFERROR(VLOOKUP($B129,'Saisie Poussins'!$B$13:$AI$56,1+C$1,FALSE),0) -> 0 | D129: =IFERROR(VLOOKUP($B129,'Saisie Poussins'!$B$13:$AI$56,1+D$1,FALSE),0) -> 0 | E129: =IFERROR(VLOOKUP($B129,'Saisie Poussins'!$B$13:$AI$56,1+E$1,FALSE),0) -> 0 | F129: =IFERROR(VLOOKUP($B129,'Saisie Poussins'!$B$13:$AI$56,1+F$1,FALSE),0) -> 0 | G129: =IFERROR(VLOOKUP($B129,'Saisie Poussins'!$B$13:$AI$56,1+G$1,FALSE),0) -> 0 | H129: =IFERROR(VLOOKUP($B129,'Saisie Poussins'!$B$13:$AI$56,1+H$1,FALSE),0) -> 0 | I129: =IFERROR(VLOOKUP($B129,'Saisie Poussins'!$B$113:$AI$156,26+I$1,FALSE),0) -> 0 | J129: =IFERROR(VLOOKUP($B129,'Saisie Poussins'!$B$113:$AI$156,26+J$1,FALSE),0) -> 0 | K129: =IFERROR(VLOOKUP($B129,'Saisie Poussins'!$B$113:$AI$156,26+K$1,FALSE),0) -> 0 | L129: =IFERROR(VLOOKUP($B129,'Saisie Poussins'!$B$113:$AI$156,26+L$1,FALSE),0) -> 0 | M129: =IFERROR(VLOOKUP($B129,'Saisie Poussins'!$B$113:$AI$156,26+M$1,FALSE),0) -> 0 | N129: =IFERROR(VLOOKUP($B129,'Saisie Poussins'!$B$113:$AI$156,26+N$1,FALSE),0) -> 0 | O129: =IFERROR(VLOOKUP($B129,'Saisie Poussins'!$B$113:$AI$156,26+O$1,FALSE),0) -> 0 | P129: =IFERROR(VLOOKUP($B129,'Saisie Poussins'!$B$113:$AI$156,26+P$1,FALSE),0) -> 0
A130: =IFERROR(IF(A129+1<='Saisie Poussins'!$BF$12,A129+1,""),"") ->  | B130: =IFERROR(VLOOKUP(A130,'Saisie Poussins'!$BE$113:$BF$156,2,FALSE),"") -> 0 | C130: =IFERROR(VLOOKUP($B130,'Saisie Poussins'!$B$13:$AI$56,1+C$1,FALSE),0) -> 0 | D130: =IFERROR(VLOOKUP($B130,'Saisie Poussins'!$B$13:$AI$56,1+D$1,FALSE),0) -> 0 | E130: =IFERROR(VLOOKUP($B130,'Saisie Poussins'!$B$13:$AI$56,1+E$1,FALSE),0) -> 0 | F130: =IFERROR(VLOOKUP($B130,'Saisie Poussins'!$B$13:$AI$56,1+F$1,FALSE),0) -> 0 | G130: =IFERROR(VLOOKUP($B130,'Saisie Poussins'!$B$13:$AI$56,1+G$1,FALSE),0) -> 0 | H130: =IFERROR(VLOOKUP($B130,'Saisie Poussins'!$B$13:$AI$56,1+H$1,FALSE),0) -> 0 | I130: =IFERROR(VLOOKUP($B130,'Saisie Poussins'!$B$113:$AI$156,26+I$1,FALSE),0) -> 0 | J130: =IFERROR(VLOOKUP($B130,'Saisie Poussins'!$B$113:$AI$156,26+J$1,FALSE),0) -> 0 | K130: =IFERROR(VLOOKUP($B130,'Saisie Poussins'!$B$113:$AI$156,26+K$1,FALSE),0) -> 0 | L130: =IFERROR(VLOOKUP($B130,'Saisie Poussins'!$B$113:$AI$156,26+L$1,FALSE),0) -> 0 | M130: =IFERROR(VLOOKUP($B130,'Saisie Poussins'!$B$113:$AI$156,26+M$1,FALSE),0) -> 0 | N130: =IFERROR(VLOOKUP($B130,'Saisie Poussins'!$B$113:$AI$156,26+N$1,FALSE),0) -> 0 | O130: =IFERROR(VLOOKUP($B130,'Saisie Poussins'!$B$113:$AI$156,26+O$1,FALSE),0) -> 0 | P130: =IFERROR(VLOOKUP($B130,'Saisie Poussins'!$B$113:$AI$156,26+P$1,FALSE),0) -> 0
A131: =IFERROR(IF(A130+1<='Saisie Poussins'!$BF$12,A130+1,""),"") ->  | B131: =IFERROR(VLOOKUP(A131,'Saisie Poussins'!$BE$113:$BF$156,2,FALSE),"") -> 0 | C131: =IFERROR(VLOOKUP($B131,'Saisie Poussins'!$B$13:$AI$56,1+C$1,FALSE),0) -> 0 | D131: =IFERROR(VLOOKUP($B131,'Saisie Poussins'!$B$13:$AI$56,1+D$1,FALSE),0) -> 0 | E131: =IFERROR(VLOOKUP($B131,'Saisie Poussins'!$B$13:$AI$56,1+E$1,FALSE),0) -> 0 | F131: =IFERROR(VLOOKUP($B131,'Saisie Poussins'!$B$13:$AI$56,1+F$1,FALSE),0) -> 0 | G131: =IFERROR(VLOOKUP($B131,'Saisie Poussins'!$B$13:$AI$56,1+G$1,FALSE),0) -> 0 | H131: =IFERROR(VLOOKUP($B131,'Saisie Poussins'!$B$13:$AI$56,1+H$1,FALSE),0) -> 0 | I131: =IFERROR(VLOOKUP($B131,'Saisie Poussins'!$B$113:$AI$156,26+I$1,FALSE),0) -> 0 | J131: =IFERROR(VLOOKUP($B131,'Saisie Poussins'!$B$113:$AI$156,26+J$1,FALSE),0) -> 0 | K131: =IFERROR(VLOOKUP($B131,'Saisie Poussins'!$B$113:$AI$156,26+K$1,FALSE),0) -> 0 | L131: =IFERROR(VLOOKUP($B131,'Saisie Poussins'!$B$113:$AI$156,26+L$1,FALSE),0) -> 0 | M131: =IFERROR(VLOOKUP($B131,'Saisie Poussins'!$B$113:$AI$156,26+M$1,FALSE),0) -> 0 | N131: =IFERROR(VLOOKUP($B131,'Saisie Poussins'!$B$113:$AI$156,26+N$1,FALSE),0) -> 0 | O131: =IFERROR(VLOOKUP($B131,'Saisie Poussins'!$B$113:$AI$156,26+O$1,FALSE),0) -> 0 | P131: =IFERROR(VLOOKUP($B131,'Saisie Poussins'!$B$113:$AI$156,26+P$1,FALSE),0) -> 0
A132: =IFERROR(IF(A131+1<='Saisie Poussins'!$BF$12,A131+1,""),"") ->  | B132: =IFERROR(VLOOKUP(A132,'Saisie Poussins'!$BE$113:$BF$156,2,FALSE),"") -> 0 | C132: =IFERROR(VLOOKUP($B132,'Saisie Poussins'!$B$13:$AI$56,1+C$1,FALSE),0) -> 0 | D132: =IFERROR(VLOOKUP($B132,'Saisie Poussins'!$B$13:$AI$56,1+D$1,FALSE),0) -> 0 | E132: =IFERROR(VLOOKUP($B132,'Saisie Poussins'!$B$13:$AI$56,1+E$1,FALSE),0) -> 0 | F132: =IFERROR(VLOOKUP($B132,'Saisie Poussins'!$B$13:$AI$56,1+F$1,FALSE),0) -> 0 | G132: =IFERROR(VLOOKUP($B132,'Saisie Poussins'!$B$13:$AI$56,1+G$1,FALSE),0) -> 0 | H132: =IFERROR(VLOOKUP($B132,'Saisie Poussins'!$B$13:$AI$56,1+H$1,FALSE),0) -> 0 | I132: =IFERROR(VLOOKUP($B132,'Saisie Poussins'!$B$113:$AI$156,26+I$1,FALSE),0) -> 0 | J132: =IFERROR(VLOOKUP($B132,'Saisie Poussins'!$B$113:$AI$156,26+J$1,FALSE),0) -> 0 | K132: =IFERROR(VLOOKUP($B132,'Saisie Poussins'!$B$113:$AI$156,26+K$1,FALSE),0) -> 0 | L132: =IFERROR(VLOOKUP($B132,'Saisie Poussins'!$B$113:$AI$156,26+L$1,FALSE),0) -> 0 | M132: =IFERROR(VLOOKUP($B132,'Saisie Poussins'!$B$113:$AI$156,26+M$1,FALSE),0) -> 0 | N132: =IFERROR(VLOOKUP($B132,'Saisie Poussins'!$B$113:$AI$156,26+N$1,FALSE),0) -> 0 | O132: =IFERROR(VLOOKUP($B132,'Saisie Poussins'!$B$113:$AI$156,26+O$1,FALSE),0) -> 0 | P132: =IFERROR(VLOOKUP($B132,'Saisie Poussins'!$B$113:$AI$156,26+P$1,FALSE),0) -> 0
A133: =IFERROR(IF(A132+1<='Saisie Poussins'!$BF$12,A132+1,""),"") ->  | B133: =IFERROR(VLOOKUP(A133,'Saisie Poussins'!$BE$113:$BF$156,2,FALSE),"") -> 0 | C133: =IFERROR(VLOOKUP($B133,'Saisie Poussins'!$B$13:$AI$56,1+C$1,FALSE),0) -> 0 | D133: =IFERROR(VLOOKUP($B133,'Saisie Poussins'!$B$13:$AI$56,1+D$1,FALSE),0) -> 0 | E133: =IFERROR(VLOOKUP($B133,'Saisie Poussins'!$B$13:$AI$56,1+E$1,FALSE),0) -> 0 | F133: =IFERROR(VLOOKUP($B133,'Saisie Poussins'!$B$13:$AI$56,1+F$1,FALSE),0) -> 0 | G133: =IFERROR(VLOOKUP($B133,'Saisie Poussins'!$B$13:$AI$56,1+G$1,FALSE),0) -> 0 | H133: =IFERROR(VLOOKUP($B133,'Saisie Poussins'!$B$13:$AI$56,1+H$1,FALSE),0) -> 0 | I133: =IFERROR(VLOOKUP($B133,'Saisie Poussins'!$B$113:$AI$156,26+I$1,FALSE),0) -> 0 | J133: =IFERROR(VLOOKUP($B133,'Saisie Poussins'!$B$113:$AI$156,26+J$1,FALSE),0) -> 0 | K133: =IFERROR(VLOOKUP($B133,'Saisie Poussins'!$B$113:$AI$156,26+K$1,FALSE),0) -> 0 | L133: =IFERROR(VLOOKUP($B133,'Saisie Poussins'!$B$113:$AI$156,26+L$1,FALSE),0) -> 0 | M133: =IFERROR(VLOOKUP($B133,'Saisie Poussins'!$B$113:$AI$156,26+M$1,FALSE),0) -> 0 | N133: =IFERROR(VLOOKUP($B133,'Saisie Poussins'!$B$113:$AI$156,26+N$1,FALSE),0) -> 0 | O133: =IFERROR(VLOOKUP($B133,'Saisie Poussins'!$B$113:$AI$156,26+O$1,FALSE),0) -> 0 | P133: =IFERROR(VLOOKUP($B133,'Saisie Poussins'!$B$113:$AI$156,26+P$1,FALSE),0) -> 0
A134: =IFERROR(IF(A133+1<='Saisie Poussins'!$BF$12,A133+1,""),"") ->  | B134: =IFERROR(VLOOKUP(A134,'Saisie Poussins'!$BE$113:$BF$156,2,FALSE),"") -> 0 | C134: =IFERROR(VLOOKUP($B134,'Saisie Poussins'!$B$13:$AI$56,1+C$1,FALSE),0) -> 0 | D134: =IFERROR(VLOOKUP($B134,'Saisie Poussins'!$B$13:$AI$56,1+D$1,FALSE),0) -> 0 | E134: =IFERROR(VLOOKUP($B134,'Saisie Poussins'!$B$13:$AI$56,1+E$1,FALSE),0) -> 0 | F134: =IFERROR(VLOOKUP($B134,'Saisie Poussins'!$B$13:$AI$56,1+F$1,FALSE),0) -> 0 | G134: =IFERROR(VLOOKUP($B134,'Saisie Poussins'!$B$13:$AI$56,1+G$1,FALSE),0) -> 0 | H134: =IFERROR(VLOOKUP($B134,'Saisie Poussins'!$B$13:$AI$56,1+H$1,FALSE),0) -> 0 | I134: =IFERROR(VLOOKUP($B134,'Saisie Poussins'!$B$113:$AI$156,26+I$1,FALSE),0) -> 0 | J134: =IFERROR(VLOOKUP($B134,'Saisie Poussins'!$B$113:$AI$156,26+J$1,FALSE),0) -> 0 | K134: =IFERROR(VLOOKUP($B134,'Saisie Poussins'!$B$113:$AI$156,26+K$1,FALSE),0) -> 0 | L134: =IFERROR(VLOOKUP($B134,'Saisie Poussins'!$B$113:$AI$156,26+L$1,FALSE),0) -> 0 | M134: =IFERROR(VLOOKUP($B134,'Saisie Poussins'!$B$113:$AI$156,26+M$1,FALSE),0) -> 0 | N134: =IFERROR(VLOOKUP($B134,'Saisie Poussins'!$B$113:$AI$156,26+N$1,FALSE),0) -> 0 | O134: =IFERROR(VLOOKUP($B134,'Saisie Poussins'!$B$113:$AI$156,26+O$1,FALSE),0) -> 0 | P134: =IFERROR(VLOOKUP($B134,'Saisie Poussins'!$B$113:$AI$156,26+P$1,FALSE),0) -> 0
A135: =IFERROR(IF(A134+1<='Saisie Poussins'!$BF$12,A134+1,""),"") ->  | B135: =IFERROR(VLOOKUP(A135,'Saisie Poussins'!$BE$113:$BF$156,2,FALSE),"") -> 0 | C135: =IFERROR(VLOOKUP($B135,'Saisie Poussins'!$B$13:$AI$56,1+C$1,FALSE),0) -> 0 | D135: =IFERROR(VLOOKUP($B135,'Saisie Poussins'!$B$13:$AI$56,1+D$1,FALSE),0) -> 0 | E135: =IFERROR(VLOOKUP($B135,'Saisie Poussins'!$B$13:$AI$56,1+E$1,FALSE),0) -> 0 | F135: =IFERROR(VLOOKUP($B135,'Saisie Poussins'!$B$13:$AI$56,1+F$1,FALSE),0) -> 0 | G135: =IFERROR(VLOOKUP($B135,'Saisie Poussins'!$B$13:$AI$56,1+G$1,FALSE),0) -> 0 | H135: =IFERROR(VLOOKUP($B135,'Saisie Poussins'!$B$13:$AI$56,1+H$1,FALSE),0) -> 0 | I135: =IFERROR(VLOOKUP($B135,'Saisie Poussins'!$B$113:$AI$156,26+I$1,FALSE),0) -> 0 | J135: =IFERROR(VLOOKUP($B135,'Saisie Poussins'!$B$113:$AI$156,26+J$1,FALSE),0) -> 0 | K135: =IFERROR(VLOOKUP($B135,'Saisie Poussins'!$B$113:$AI$156,26+K$1,FALSE),0) -> 0 | L135: =IFERROR(VLOOKUP($B135,'Saisie Poussins'!$B$113:$AI$156,26+L$1,FALSE),0) -> 0 | M135: =IFERROR(VLOOKUP($B135,'Saisie Poussins'!$B$113:$AI$156,26+M$1,FALSE),0) -> 0 | N135: =IFERROR(VLOOKUP($B135,'Saisie Poussins'!$B$113:$AI$156,26+N$1,FALSE),0) -> 0 | O135: =IFERROR(VLOOKUP($B135,'Saisie Poussins'!$B$113:$AI$156,26+O$1,FALSE),0) -> 0 | P135: =IFERROR(VLOOKUP($B135,'Saisie Poussins'!$B$113:$AI$156,26+P$1,FALSE),0) -> 0
A136: =IFERROR(IF(A135+1<='Saisie Poussins'!$BF$12,A135+1,""),"") ->  | B136: =IFERROR(VLOOKUP(A136,'Saisie Poussins'!$BE$113:$BF$156,2,FALSE),"") -> 0 | C136: =IFERROR(VLOOKUP($B136,'Saisie Poussins'!$B$13:$AI$56,1+C$1,FALSE),0) -> 0 | D136: =IFERROR(VLOOKUP($B136,'Saisie Poussins'!$B$13:$AI$56,1+D$1,FALSE),0) -> 0 | E136: =IFERROR(VLOOKUP($B136,'Saisie Poussins'!$B$13:$AI$56,1+E$1,FALSE),0) -> 0 | F136: =IFERROR(VLOOKUP($B136,'Saisie Poussins'!$B$13:$AI$56,1+F$1,FALSE),0) -> 0 | G136: =IFERROR(VLOOKUP($B136,'Saisie Poussins'!$B$13:$AI$56,1+G$1,FALSE),0) -> 0 | H136: =IFERROR(VLOOKUP($B136,'Saisie Poussins'!$B$13:$AI$56,1+H$1,FALSE),0) -> 0 | I136: =IFERROR(VLOOKUP($B136,'Saisie Poussins'!$B$113:$AI$156,26+I$1,FALSE),0) -> 0 | J136: =IFERROR(VLOOKUP($B136,'Saisie Poussins'!$B$113:$AI$156,26+J$1,FALSE),0) -> 0 | K136: =IFERROR(VLOOKUP($B136,'Saisie Poussins'!$B$113:$AI$156,26+K$1,FALSE),0) -> 0 | L136: =IFERROR(VLOOKUP($B136,'Saisie Poussins'!$B$113:$AI$156,26+L$1,FALSE),0) -> 0 | M136: =IFERROR(VLOOKUP($B136,'Saisie Poussins'!$B$113:$AI$156,26+M$1,FALSE),0) -> 0 | N136: =IFERROR(VLOOKUP($B136,'Saisie Poussins'!$B$113:$AI$156,26+N$1,FALSE),0) -> 0 | O136: =IFERROR(VLOOKUP($B136,'Saisie Poussins'!$B$113:$AI$156,26+O$1,FALSE),0) -> 0 | P136: =IFERROR(VLOOKUP($B136,'Saisie Poussins'!$B$113:$AI$156,26+P$1,FALSE),0) -> 0
A137: =IFERROR(IF(A136+1<='Saisie Poussins'!$BF$12,A136+1,""),"") ->  | B137: =IFERROR(VLOOKUP(A137,'Saisie Poussins'!$BE$113:$BF$156,2,FALSE),"") -> 0 | C137: =IFERROR(VLOOKUP($B137,'Saisie Poussins'!$B$13:$AI$56,1+C$1,FALSE),0) -> 0 | D137: =IFERROR(VLOOKUP($B137,'Saisie Poussins'!$B$13:$AI$56,1+D$1,FALSE),0) -> 0 | E137: =IFERROR(VLOOKUP($B137,'Saisie Poussins'!$B$13:$AI$56,1+E$1,FALSE),0) -> 0 | F137: =IFERROR(VLOOKUP($B137,'Saisie Poussins'!$B$13:$AI$56,1+F$1,FALSE),0) -> 0 | G137: =IFERROR(VLOOKUP($B137,'Saisie Poussins'!$B$13:$AI$56,1+G$1,FALSE),0) -> 0 | H137: =IFERROR(VLOOKUP($B137,'Saisie Poussins'!$B$13:$AI$56,1+H$1,FALSE),0) -> 0 | I137: =IFERROR(VLOOKUP($B137,'Saisie Poussins'!$B$113:$AI$156,26+I$1,FALSE),0) -> 0 | J137: =IFERROR(VLOOKUP($B137,'Saisie Poussins'!$B$113:$AI$156,26+J$1,FALSE),0) -> 0 | K137: =IFERROR(VLOOKUP($B137,'Saisie Poussins'!$B$113:$AI$156,26+K$1,FALSE),0) -> 0 | L137: =IFERROR(VLOOKUP($B137,'Saisie Poussins'!$B$113:$AI$156,26+L$1,FALSE),0) -> 0 | M137: =IFERROR(VLOOKUP($B137,'Saisie Poussins'!$B$113:$AI$156,26+M$1,FALSE),0) -> 0 | N137: =IFERROR(VLOOKUP($B137,'Saisie Poussins'!$B$113:$AI$156,26+N$1,FALSE),0) -> 0 | O137: =IFERROR(VLOOKUP($B137,'Saisie Poussins'!$B$113:$AI$156,26+O$1,FALSE),0) -> 0 | P137: =IFERROR(VLOOKUP($B137,'Saisie Poussins'!$B$113:$AI$156,26+P$1,FALSE),0) -> 0
A138: =IFERROR(IF(A137+1<='Saisie Poussins'!$BF$12,A137+1,""),"") ->  | B138: =IFERROR(VLOOKUP(A138,'Saisie Poussins'!$BE$113:$BF$156,2,FALSE),"") -> 0 | C138: =IFERROR(VLOOKUP($B138,'Saisie Poussins'!$B$13:$AI$56,1+C$1,FALSE),0) -> 0 | D138: =IFERROR(VLOOKUP($B138,'Saisie Poussins'!$B$13:$AI$56,1+D$1,FALSE),0) -> 0 | E138: =IFERROR(VLOOKUP($B138,'Saisie Poussins'!$B$13:$AI$56,1+E$1,FALSE),0) -> 0 | F138: =IFERROR(VLOOKUP($B138,'Saisie Poussins'!$B$13:$AI$56,1+F$1,FALSE),0) -> 0 | G138: =IFERROR(VLOOKUP($B138,'Saisie Poussins'!$B$13:$AI$56,1+G$1,FALSE),0) -> 0 | H138: =IFERROR(VLOOKUP($B138,'Saisie Poussins'!$B$13:$AI$56,1+H$1,FALSE),0) -> 0 | I138: =IFERROR(VLOOKUP($B138,'Saisie Poussins'!$B$113:$AI$156,26+I$1,FALSE),0) -> 0 | J138: =IFERROR(VLOOKUP($B138,'Saisie Poussins'!$B$113:$AI$156,26+J$1,FALSE),0) -> 0 | K138: =IFERROR(VLOOKUP($B138,'Saisie Poussins'!$B$113:$AI$156,26+K$1,FALSE),0) -> 0 | L138: =IFERROR(VLOOKUP($B138,'Saisie Poussins'!$B$113:$AI$156,26+L$1,FALSE),0) -> 0 | M138: =IFERROR(VLOOKUP($B138,'Saisie Poussins'!$B$113:$AI$156,26+M$1,FALSE),0) -> 0 | N138: =IFERROR(VLOOKUP($B138,'Saisie Poussins'!$B$113:$AI$156,26+N$1,FALSE),0) -> 0 | O138: =IFERROR(VLOOKUP($B138,'Saisie Poussins'!$B$113:$AI$156,26+O$1,FALSE),0) -> 0 | P138: =IFERROR(VLOOKUP($B138,'Saisie Poussins'!$B$113:$AI$156,26+P$1,FALSE),0) -> 0
A139: =IFERROR(IF(A138+1<='Saisie Poussins'!$BF$12,A138+1,""),"") ->  | B139: =IFERROR(VLOOKUP(A139,'Saisie Poussins'!$BE$113:$BF$156,2,FALSE),"") -> 0 | C139: =IFERROR(VLOOKUP($B139,'Saisie Poussins'!$B$13:$AI$56,1+C$1,FALSE),0) -> 0 | D139: =IFERROR(VLOOKUP($B139,'Saisie Poussins'!$B$13:$AI$56,1+D$1,FALSE),0) -> 0 | E139: =IFERROR(VLOOKUP($B139,'Saisie Poussins'!$B$13:$AI$56,1+E$1,FALSE),0) -> 0 | F139: =IFERROR(VLOOKUP($B139,'Saisie Poussins'!$B$13:$AI$56,1+F$1,FALSE),0) -> 0 | G139: =IFERROR(VLOOKUP($B139,'Saisie Poussins'!$B$13:$AI$56,1+G$1,FALSE),0) -> 0 | H139: =IFERROR(VLOOKUP($B139,'Saisie Poussins'!$B$13:$AI$56,1+H$1,FALSE),0) -> 0 | I139: =IFERROR(VLOOKUP($B139,'Saisie Poussins'!$B$113:$AI$156,26+I$1,FALSE),0) -> 0 | J139: =IFERROR(VLOOKUP($B139,'Saisie Poussins'!$B$113:$AI$156,26+J$1,FALSE),0) -> 0 | K139: =IFERROR(VLOOKUP($B139,'Saisie Poussins'!$B$113:$AI$156,26+K$1,FALSE),0) -> 0 | L139: =IFERROR(VLOOKUP($B139,'Saisie Poussins'!$B$113:$AI$156,26+L$1,FALSE),0) -> 0 | M139: =IFERROR(VLOOKUP($B139,'Saisie Poussins'!$B$113:$AI$156,26+M$1,FALSE),0) -> 0 | N139: =IFERROR(VLOOKUP($B139,'Saisie Poussins'!$B$113:$AI$156,26+N$1,FALSE),0) -> 0 | O139: =IFERROR(VLOOKUP($B139,'Saisie Poussins'!$B$113:$AI$156,26+O$1,FALSE),0) -> 0 | P139: =IFERROR(VLOOKUP($B139,'Saisie Poussins'!$B$113:$AI$156,26+P$1,FALSE),0) -> 0
A140: =IFERROR(IF(A139+1<='Saisie Poussins'!$BF$12,A139+1,""),"") ->  | B140: =IFERROR(VLOOKUP(A140,'Saisie Poussins'!$BE$113:$BF$156,2,FALSE),"") -> 0 | C140: =IFERROR(VLOOKUP($B140,'Saisie Poussins'!$B$13:$AI$56,1+C$1,FALSE),0) -> 0 | D140: =IFERROR(VLOOKUP($B140,'Saisie Poussins'!$B$13:$AI$56,1+D$1,FALSE),0) -> 0 | E140: =IFERROR(VLOOKUP($B140,'Saisie Poussins'!$B$13:$AI$56,1+E$1,FALSE),0) -> 0 | F140: =IFERROR(VLOOKUP($B140,'Saisie Poussins'!$B$13:$AI$56,1+F$1,FALSE),0) -> 0 | G140: =IFERROR(VLOOKUP($B140,'Saisie Poussins'!$B$13:$AI$56,1+G$1,FALSE),0) -> 0 | H140: =IFERROR(VLOOKUP($B140,'Saisie Poussins'!$B$13:$AI$56,1+H$1,FALSE),0) -> 0 | I140: =IFERROR(VLOOKUP($B140,'Saisie Poussins'!$B$113:$AI$156,26+I$1,FALSE),0) -> 0 | J140: =IFERROR(VLOOKUP($B140,'Saisie Poussins'!$B$113:$AI$156,26+J$1,FALSE),0) -> 0 | K140: =IFERROR(VLOOKUP($B140,'Saisie Poussins'!$B$113:$AI$156,26+K$1,FALSE),0) -> 0 | L140: =IFERROR(VLOOKUP($B140,'Saisie Poussins'!$B$113:$AI$156,26+L$1,FALSE),0) -> 0 | M140: =IFERROR(VLOOKUP($B140,'Saisie Poussins'!$B$113:$AI$156,26+M$1,FALSE),0) -> 0 | N140: =IFERROR(VLOOKUP($B140,'Saisie Poussins'!$B$113:$AI$156,26+N$1,FALSE),0) -> 0 | O140: =IFERROR(VLOOKUP($B140,'Saisie Poussins'!$B$113:$AI$156,26+O$1,FALSE),0) -> 0 | P140: =IFERROR(VLOOKUP($B140,'Saisie Poussins'!$B$113:$AI$156,26+P$1,FALSE),0) -> 0
A141: =IFERROR(IF(A140+1<='Saisie Poussins'!$BF$12,A140+1,""),"") ->  | B141: =IFERROR(VLOOKUP(A141,'Saisie Poussins'!$BE$113:$BF$156,2,FALSE),"") -> 0 | C141: =IFERROR(VLOOKUP($B141,'Saisie Poussins'!$B$13:$AI$56,1+C$1,FALSE),0) -> 0 | D141: =IFERROR(VLOOKUP($B141,'Saisie Poussins'!$B$13:$AI$56,1+D$1,FALSE),0) -> 0 | E141: =IFERROR(VLOOKUP($B141,'Saisie Poussins'!$B$13:$AI$56,1+E$1,FALSE),0) -> 0 | F141: =IFERROR(VLOOKUP($B141,'Saisie Poussins'!$B$13:$AI$56,1+F$1,FALSE),0) -> 0 | G141: =IFERROR(VLOOKUP($B141,'Saisie Poussins'!$B$13:$AI$56,1+G$1,FALSE),0) -> 0 | H141: =IFERROR(VLOOKUP($B141,'Saisie Poussins'!$B$13:$AI$56,1+H$1,FALSE),0) -> 0 | I141: =IFERROR(VLOOKUP($B141,'Saisie Poussins'!$B$113:$AI$156,26+I$1,FALSE),0) -> 0 | J141: =IFERROR(VLOOKUP($B141,'Saisie Poussins'!$B$113:$AI$156,26+J$1,FALSE),0) -> 0 | K141: =IFERROR(VLOOKUP($B141,'Saisie Poussins'!$B$113:$AI$156,26+K$1,FALSE),0) -> 0 | L141: =IFERROR(VLOOKUP($B141,'Saisie Poussins'!$B$113:$AI$156,26+L$1,FALSE),0) -> 0 | M141: =IFERROR(VLOOKUP($B141,'Saisie Poussins'!$B$113:$AI$156,26+M$1,FALSE),0) -> 0 | N141: =IFERROR(VLOOKUP($B141,'Saisie Poussins'!$B$113:$AI$156,26+N$1,FALSE),0) -> 0 | O141: =IFERROR(VLOOKUP($B141,'Saisie Poussins'!$B$113:$AI$156,26+O$1,FALSE),0) -> 0 | P141: =IFERROR(VLOOKUP($B141,'Saisie Poussins'!$B$113:$AI$156,26+P$1,FALSE),0) -> 0
A142: =IFERROR(IF(A141+1<='Saisie Poussins'!$BF$12,A141+1,""),"") ->  | B142: =IFERROR(VLOOKUP(A142,'Saisie Poussins'!$BE$113:$BF$156,2,FALSE),"") -> 0 | C142: =IFERROR(VLOOKUP($B142,'Saisie Poussins'!$B$13:$AI$56,1+C$1,FALSE),0) -> 0 | D142: =IFERROR(VLOOKUP($B142,'Saisie Poussins'!$B$13:$AI$56,1+D$1,FALSE),0) -> 0 | E142: =IFERROR(VLOOKUP($B142,'Saisie Poussins'!$B$13:$AI$56,1+E$1,FALSE),0) -> 0 | F142: =IFERROR(VLOOKUP($B142,'Saisie Poussins'!$B$13:$AI$56,1+F$1,FALSE),0) -> 0 | G142: =IFERROR(VLOOKUP($B142,'Saisie Poussins'!$B$13:$AI$56,1+G$1,FALSE),0) -> 0 | H142: =IFERROR(VLOOKUP($B142,'Saisie Poussins'!$B$13:$AI$56,1+H$1,FALSE),0) -> 0 | I142: =IFERROR(VLOOKUP($B142,'Saisie Poussins'!$B$113:$AI$156,26+I$1,FALSE),0) -> 0 | J142: =IFERROR(VLOOKUP($B142,'Saisie Poussins'!$B$113:$AI$156,26+J$1,FALSE),0) -> 0 | K142: =IFERROR(VLOOKUP($B142,'Saisie Poussins'!$B$113:$AI$156,26+K$1,FALSE),0) -> 0 | L142: =IFERROR(VLOOKUP($B142,'Saisie Poussins'!$B$113:$AI$156,26+L$1,FALSE),0) -> 0 | M142: =IFERROR(VLOOKUP($B142,'Saisie Poussins'!$B$113:$AI$156,26+M$1,FALSE),0) -> 0 | N142: =IFERROR(VLOOKUP($B142,'Saisie Poussins'!$B$113:$AI$156,26+N$1,FALSE),0) -> 0 | O142: =IFERROR(VLOOKUP($B142,'Saisie Poussins'!$B$113:$AI$156,26+O$1,FALSE),0) -> 0 | P142: =IFERROR(VLOOKUP($B142,'Saisie Poussins'!$B$113:$AI$156,26+P$1,FALSE),0) -> 0
A143: =IFERROR(IF(A142+1<='Saisie Poussins'!$BF$12,A142+1,""),"") ->  | B143: =IFERROR(VLOOKUP(A143,'Saisie Poussins'!$BE$113:$BF$156,2,FALSE),"") -> 0 | C143: =IFERROR(VLOOKUP($B143,'Saisie Poussins'!$B$13:$AI$56,1+C$1,FALSE),0) -> 0 | D143: =IFERROR(VLOOKUP($B143,'Saisie Poussins'!$B$13:$AI$56,1+D$1,FALSE),0) -> 0 | E143: =IFERROR(VLOOKUP($B143,'Saisie Poussins'!$B$13:$AI$56,1+E$1,FALSE),0) -> 0 | F143: =IFERROR(VLOOKUP($B143,'Saisie Poussins'!$B$13:$AI$56,1+F$1,FALSE),0) -> 0 | G143: =IFERROR(VLOOKUP($B143,'Saisie Poussins'!$B$13:$AI$56,1+G$1,FALSE),0) -> 0 | H143: =IFERROR(VLOOKUP($B143,'Saisie Poussins'!$B$13:$AI$56,1+H$1,FALSE),0) -> 0 | I143: =IFERROR(VLOOKUP($B143,'Saisie Poussins'!$B$113:$AI$156,26+I$1,FALSE),0) -> 0 | J143: =IFERROR(VLOOKUP($B143,'Saisie Poussins'!$B$113:$AI$156,26+J$1,FALSE),0) -> 0 | K143: =IFERROR(VLOOKUP($B143,'Saisie Poussins'!$B$113:$AI$156,26+K$1,FALSE),0) -> 0 | L143: =IFERROR(VLOOKUP($B143,'Saisie Poussins'!$B$113:$AI$156,26+L$1,FALSE),0) -> 0 | M143: =IFERROR(VLOOKUP($B143,'Saisie Poussins'!$B$113:$AI$156,26+M$1,FALSE),0) -> 0 | N143: =IFERROR(VLOOKUP($B143,'Saisie Poussins'!$B$113:$AI$156,26+N$1,FALSE),0) -> 0 | O143: =IFERROR(VLOOKUP($B143,'Saisie Poussins'!$B$113:$AI$156,26+O$1,FALSE),0) -> 0 | P143: =IFERROR(VLOOKUP($B143,'Saisie Poussins'!$B$113:$AI$156,26+P$1,FALSE),0) -> 0
A144: =IFERROR(IF(A143+1<='Saisie Poussins'!$BF$12,A143+1,""),"") ->  | B144: =IFERROR(VLOOKUP(A144,'Saisie Poussins'!$BE$113:$BF$156,2,FALSE),"") -> 0 | C144: =IFERROR(VLOOKUP($B144,'Saisie Poussins'!$B$13:$AI$56,1+C$1,FALSE),0) -> 0 | D144: =IFERROR(VLOOKUP($B144,'Saisie Poussins'!$B$13:$AI$56,1+D$1,FALSE),0) -> 0 | E144: =IFERROR(VLOOKUP($B144,'Saisie Poussins'!$B$13:$AI$56,1+E$1,FALSE),0) -> 0 | F144: =IFERROR(VLOOKUP($B144,'Saisie Poussins'!$B$13:$AI$56,1+F$1,FALSE),0) -> 0 | G144: =IFERROR(VLOOKUP($B144,'Saisie Poussins'!$B$13:$AI$56,1+G$1,FALSE),0) -> 0 | H144: =IFERROR(VLOOKUP($B144,'Saisie Poussins'!$B$13:$AI$56,1+H$1,FALSE),0) -> 0 | I144: =IFERROR(VLOOKUP($B144,'Saisie Poussins'!$B$113:$AI$156,26+I$1,FALSE),0) -> 0 | J144: =IFERROR(VLOOKUP($B144,'Saisie Poussins'!$B$113:$AI$156,26+J$1,FALSE),0) -> 0 | K144: =IFERROR(VLOOKUP($B144,'Saisie Poussins'!$B$113:$AI$156,26+K$1,FALSE),0) -> 0 | L144: =IFERROR(VLOOKUP($B144,'Saisie Poussins'!$B$113:$AI$156,26+L$1,FALSE),0) -> 0 | M144: =IFERROR(VLOOKUP($B144,'Saisie Poussins'!$B$113:$AI$156,26+M$1,FALSE),0) -> 0 | N144: =IFERROR(VLOOKUP($B144,'Saisie Poussins'!$B$113:$AI$156,26+N$1,FALSE),0) -> 0 | O144: =IFERROR(VLOOKUP($B144,'Saisie Poussins'!$B$113:$AI$156,26+O$1,FALSE),0) -> 0 | P144: =IFERROR(VLOOKUP($B144,'Saisie Poussins'!$B$113:$AI$156,26+P$1,FALSE),0) -> 0
A145: =IFERROR(IF(A144+1<='Saisie Poussins'!$BF$12,A144+1,""),"") ->  | B145: =IFERROR(VLOOKUP(A145,'Saisie Poussins'!$BE$113:$BF$156,2,FALSE),"") -> 0 | C145: =IFERROR(VLOOKUP($B145,'Saisie Poussins'!$B$13:$AI$56,1+C$1,FALSE),0) -> 0 | D145: =IFERROR(VLOOKUP($B145,'Saisie Poussins'!$B$13:$AI$56,1+D$1,FALSE),0) -> 0 | E145: =IFERROR(VLOOKUP($B145,'Saisie Poussins'!$B$13:$AI$56,1+E$1,FALSE),0) -> 0 | F145: =IFERROR(VLOOKUP($B145,'Saisie Poussins'!$B$13:$AI$56,1+F$1,FALSE),0) -> 0 | G145: =IFERROR(VLOOKUP($B145,'Saisie Poussins'!$B$13:$AI$56,1+G$1,FALSE),0) -> 0 | H145: =IFERROR(VLOOKUP($B145,'Saisie Poussins'!$B$13:$AI$56,1+H$1,FALSE),0) -> 0 | I145: =IFERROR(VLOOKUP($B145,'Saisie Poussins'!$B$113:$AI$156,26+I$1,FALSE),0) -> 0 | J145: =IFERROR(VLOOKUP($B145,'Saisie Poussins'!$B$113:$AI$156,26+J$1,FALSE),0) -> 0 | K145: =IFERROR(VLOOKUP($B145,'Saisie Poussins'!$B$113:$AI$156,26+K$1,FALSE),0) -> 0 | L145: =IFERROR(VLOOKUP($B145,'Saisie Poussins'!$B$113:$AI$156,26+L$1,FALSE),0) -> 0 | M145: =IFERROR(VLOOKUP($B145,'Saisie Poussins'!$B$113:$AI$156,26+M$1,FALSE),0) -> 0 | N145: =IFERROR(VLOOKUP($B145,'Saisie Poussins'!$B$113:$AI$156,26+N$1,FALSE),0) -> 0 | O145: =IFERROR(VLOOKUP($B145,'Saisie Poussins'!$B$113:$AI$156,26+O$1,FALSE),0) -> 0 | P145: =IFERROR(VLOOKUP($B145,'Saisie Poussins'!$B$113:$AI$156,26+P$1,FALSE),0) -> 0
B146: Leader Cyclo-Cross | D146: ='Saisie Poussins'!E5 -> GRIME Lucas - V.C.DE MONTBELIARD | I146: ="Challenge régional "&Accueil!$C$3&" - "&Accueil!$C$5 -> Challenge régional BOURGOGNE FRANCHE COMTE - 2022
B147: Classement Cyclo-Cross
A148: Place | B148: Licence | C148: Nom | D148: Prénom | F148: Club | G148: Catégorie | H148: Année | J148: =RIGHT(CELL("nomfichier",$A$1), LEN(CELL("nomfichier",$A$1))-FIND("]", CELL("nomfichier",$A$1))) -> Classement Poussins
I149: =Accueil!B$10 -> 03/04/2022 Luxeuil | J149: =Accueil!C$10 -> 24/04/2022 Noidans les Vesoul | K149: =Accueil!D$10 -> 1/05/2022 Vescemont | L149: =Accueil!E$10 -> 08/05/2022 Morteau | M149: =Accueil!F$10 -> 22/05/2022 Pontarlier | N149: =Accueil!G$10 -> 05/06/2022 Vadans | O149: =Accueil!H$10 -> 12/06/2022 Montbéliard | P149: =Accueil!I$10 -> 02 et 03/07/2022 Bletterans | Q149: Total des 5 meilleurs
A150: 1 | B150: =IFERROR(VLOOKUP(A150,'Saisie Poussins'!$BE$165:$BF$208,2,FALSE),"") -> 42250120321 | C150: =IFERROR(VLOOKUP($B150,'Saisie Poussins'!$B$13:$AI$56,1+C$1,FALSE),0) -> GRIME | D150: =IFERROR(VLOOKUP($B150,'Saisie Poussins'!$B$13:$AI$56,1+D$1,FALSE),0) -> Lucas | E150: =IFERROR(VLOOKUP($B150,'Saisie Poussins'!$B$13:$AI$56,1+E$1,FALSE),0) -> H | F150: =IFERROR(VLOOKUP($B150,'Saisie Poussins'!$B$13:$AI$56,1+F$1,FALSE),0) -> V.C.DE MONTBELIARD | G150: =IFERROR(VLOOKUP($B150,'Saisie Poussins'!$B$13:$AI$56,1+G$1,FALSE),0) -> Poussin | H150: =IFERROR(VLOOKUP($B150,'Saisie Poussins'!$B$13:$AI$56,1+H$1,FALSE),0) -> 2 | I150: =IFERROR(VLOOKUP($B150,'Saisie Poussins'!$B$165:$AI$208,26+I$1,FALSE),0) -> 50 | J150: =IFERROR(VLOOKUP($B150,'Saisie Poussins'!$B$165:$AI$208,26+J$1,FALSE),0) -> 0 | K150: =IFERROR(VLOOKUP($B150,'Saisie Poussins'!$B$165:$AI$208,26+K$1,FALSE),0) -> 0 | L150: =IFERROR(VLOOKUP($B150,'Saisie Poussins'!$B$165:$AI$208,26+L$1,FALSE),0) -> 0 | M150: =IFERROR(VLOOKUP($B150,'Saisie Poussins'!$B$165:$AI$208,26+M$1,FALSE),0) -> 0 | N150: =IFERROR(VLOOKUP($B150,'Saisie Poussins'!$B$165:$AI$208,26+N$1,FALSE),0) -> 0 | O150: =IFERROR(VLOOKUP($B150,'Saisie Poussins'!$B$165:$AI$208,26+O$1,FALSE),0) -> 0 | P150: =IFERROR(VLOOKUP($B150,'Saisie Poussins'!$B$165:$AI$208,26+P$1,FALSE),0) -> 0 | Q150: =IF(B150>0,SUM(I150:P150),"") -> 50
A151: =IFERROR(IF(A150+1<='Saisie Poussins'!$AJ$163,A150+1,""),"") -> 2 | B151: =IFERROR(VLOOKUP(A151,'Saisie Poussins'!$BE$165:$BF$208,2,FALSE),"") -> 42900480124 | C151: =IFERROR(VLOOKUP($B151,'Saisie Poussins'!$B$13:$AI$56,1+C$1,FALSE),0) -> JOURNET | D151: =IFERROR(VLOOKUP($B151,'Saisie Poussins'!$B$13:$AI$56,1+D$1,FALSE),0) -> Paul | E151: =IFERROR(VLOOKUP($B151,'Saisie Poussins'!$B$13:$AI$56,1+E$1,FALSE),0) -> H | F151: =IFERROR(VLOOKUP($B151,'Saisie Poussins'!$B$13:$AI$56,1+F$1,FALSE),0) -> CC BELFORT MIOTTE | G151: =IFERROR(VLOOKUP($B151,'Saisie Poussins'!$B$13:$AI$56,1+G$1,FALSE),0) -> Poussin | H151: =IFERROR(VLOOKUP($B151,'Saisie Poussins'!$B$13:$AI$56,1+H$1,FALSE),0) -> 2 | I151: =IFERROR(VLOOKUP($B151,'Saisie Poussins'!$B$165:$AI$208,26+I$1,FALSE),0) -> 44 | J151: =IFERROR(VLOOKUP($B151,'Saisie Poussins'!$B$165:$AI$208,26+J$1,FALSE),0) -> 0 | K151: =IFERROR(VLOOKUP($B151,'Saisie Poussins'!$B$165:$AI$208,26+K$1,FALSE),0) -> 0 | L151: =IFERROR(VLOOKUP($B151,'Saisie Poussins'!$B$165:$AI$208,26+L$1,FALSE),0) -> 0 | M151: =IFERROR(VLOOKUP($B151,'Saisie Poussins'!$B$165:$AI$208,26+M$1,FALSE),0) -> 0 | N151: =IFERROR(VLOOKUP($B151,'Saisie Poussins'!$B$165:$AI$208,26+N$1,FALSE),0) -> 0 | O151: =IFERROR(VLOOKUP($B151,'Saisie Poussins'!$B$165:$AI$208,26+O$1,FALSE),0) -> 0 | P151: =IFERROR(VLOOKUP($B151,'Saisie Poussins'!$B$165:$AI$208,26+P$1,FALSE),0) -> 0 | Q151: =IF(B151>0,SUM(I151:P151),"") -> 44
A152: =IFERROR(IF(A151+1<='Saisie Poussins'!$AJ$163,A151+1,""),"") -> 3 | B152: =IFERROR(VLOOKUP(A152,'Saisie Poussins'!$BE$165:$BF$208,2,FALSE),"") -> 42900480168 | C152: =IFERROR(VLOOKUP($B152,'Saisie Poussins'!$B$13:$AI$56,1+C$1,FALSE),0) -> MURATORI | D152: =IFERROR(VLOOKUP($B152,'Saisie Poussins'!$B$13:$AI$56,1+D$1,FALSE),0) -> EZYO | E152: =IFERROR(VLOOKUP($B152,'Saisie Poussins'!$B$13:$AI$56,1+E$1,FALSE),0) -> H | F152: =IFERROR(VLOOKUP($B152,'Saisie Poussins'!$B$13:$AI$56,1+F$1,FALSE),0) -> CC BELFORT MIOTTE | G152: =IFERROR(VLOOKUP($B152,'Saisie Poussins'!$B$13:$AI$56,1+G$1,FALSE),0) -> Poussin | H152: =IFERROR(VLOOKUP($B152,'Saisie Poussins'!$B$13:$AI$56,1+H$1,FALSE),0) -> 2 | I152: =IFERROR(VLOOKUP($B152,'Saisie Poussins'!$B$165:$AI$208,26+I$1,FALSE),0) -> 40 | J152: =IFERROR(VLOOKUP($B152,'Saisie Poussins'!$B$165:$AI$208,26+J$1,FALSE),0) -> 0 | K152: =IFERROR(VLOOKUP($B152,'Saisie Poussins'!$B$165:$AI$208,26+K$1,FALSE),0) -> 0 | L152: =IFERROR(VLOOKUP($B152,'Saisie Poussins'!$B$165:$AI$208,26+L$1,FALSE),0) -> 0 | M152: =IFERROR(VLOOKUP($B152,'Saisie Poussins'!$B$165:$AI$208,26+M$1,FALSE),0) -> 0 | N152: =IFERROR(VLOOKUP($B152,'Saisie Poussins'!$B$165:$AI$208,26+N$1,FALSE),0) -> 0 | O152: =IFERROR(VLOOKUP($B152,'Saisie Poussins'!$B$165:$AI$208,26+O$1,FALSE),0) -> 0 | P152: =IFERROR(VLOOKUP($B152,'Saisie Poussins'!$B$165:$AI$208,26+P$1,FALSE),0) -> 0 | Q152: 40
A153: =IFERROR(IF(A152+1<='Saisie Poussins'!$AJ$163,A152+1,""),"") -> 4 | B153: =IFERROR(VLOOKUP(A153,'Saisie Poussins'!$BE$165:$BF$208,2,FALSE),"") -> 42700680182 | C153: =IFERROR(VLOOKUP($B153,'Saisie Poussins'!$B$13:$AI$56,1+C$1,FALSE),0) -> BOURGES | D153: =IFERROR(VLOOKUP($B153,'Saisie Poussins'!$B$13:$AI$56,1+D$1,FALSE),0) -> Martin | E153: =IFERROR(VLOOKUP($B153,'Saisie Poussins'!$B$13:$AI$56,1+E$1,FALSE),0) -> H | F153: =IFERROR(VLOOKUP($B153,'Saisie Poussins'!$B$13:$AI$56,1+F$1,FALSE),0) -> E.C. LUXEUIL VOSGES SAONO | G153: =IFERROR(VLOOKUP($B153,'Saisie Poussins'!$B$13:$AI$56,1+G$1,FALSE),0) -> Poussin | H153: =IFERROR(VLOOKUP($B153,'Saisie Poussins'!$B$13:$AI$56,1+H$1,FALSE),0) -> 2 | I153: =IFERROR(VLOOKUP($B153,'Saisie Poussins'!$B$165:$AI$208,26+I$1,FALSE),0) -> 37 | J153: =IFERROR(VLOOKUP($B153,'Saisie Poussins'!$B$165:$AI$208,26+J$1,FALSE),0) -> 0 | K153: =IFERROR(VLOOKUP($B153,'Saisie Poussins'!$B$165:$AI$208,26+K$1,FALSE),0) -> 0 | L153: =IFERROR(VLOOKUP($B153,'Saisie Poussins'!$B$165:$AI$208,26+L$1,FALSE),0) -> 0 | M153: =IFERROR(VLOOKUP($B153,'Saisie Poussins'!$B$165:$AI$208,26+M$1,FALSE),0) -> 0 | N153: =IFERROR(VLOOKUP($B153,'Saisie Poussins'!$B$165:$AI$208,26+N$1,FALSE),0) -> 0 | O153: =IFERROR(VLOOKUP($B153,'Saisie Poussins'!$B$165:$AI$208,26+O$1,FALSE),0) -> 0 | P153: =IFERROR(VLOOKUP($B153,'Saisie Poussins'!$B$165:$AI$208,26+P$1,FALSE),0) -> 0 | Q153: 37
A154: =IFERROR(IF(A153+1<='Saisie Poussins'!$AJ$163,A153+1,""),"") -> 5 | B154: =IFERROR(VLOOKUP(A154,'Saisie Poussins'!$BE$165:$BF$208,2,FALSE),"") -> 42250181212 | C154: =IFERROR(VLOOKUP($B154,'Saisie Poussins'!$B$13:$AI$56,1+C$1,FALSE),0) -> DEVILLERS | D154: =IFERROR(VLOOKUP($B154,'Saisie Poussins'!$B$13:$AI$56,1+D$1,FALSE),0) -> Louis | E154: =IFERROR(VLOOKUP($B154,'Saisie Poussins'!$B$13:$AI$56,1+E$1,FALSE),0) -> H | F154: =IFERROR(VLOOKUP($B154,'Saisie Poussins'!$B$13:$AI$56,1+F$1,FALSE),0) -> VC MORTEAU MONTBENOIT | G154: =IFERROR(VLOOKUP($B154,'Saisie Poussins'!$B$13:$AI$56,1+G$1,FALSE),0) -> Poussin | H154: =IFERROR(VLOOKUP($B154,'Saisie Poussins'!$B$13:$AI$56,1+H$1,FALSE),0) -> 1 | I154: =IFERROR(VLOOKUP($B154,'Saisie Poussins'!$B$165:$AI$208,26+I$1,FALSE),0) -> 34 | J154: =IFERROR(VLOOKUP($B154,'Saisie Poussins'!$B$165:$AI$208,26+J$1,FALSE),0) -> 0 | K154: =IFERROR(VLOOKUP($B154,'Saisie Poussins'!$B$165:$AI$208,26+K$1,FALSE),0) -> 0 | L154: =IFERROR(VLOOKUP($B154,'Saisie Poussins'!$B$165:$AI$208,26+L$1,FALSE),0) -> 0 | M154: =IFERROR(VLOOKUP($B154,'Saisie Poussins'!$B$165:$AI$208,26+M$1,FALSE),0) -> 0 | N154: =IFERROR(VLOOKUP($B154,'Saisie Poussins'!$B$165:$AI$208,26+N$1,FALSE),0) -> 0 | O154: =IFERROR(VLOOKUP($B154,'Saisie Poussins'!$B$165:$AI$208,26+O$1,FALSE),0) -> 0 | P154: =IFERROR(VLOOKUP($B154,'Saisie Poussins'!$B$165:$AI$208,26+P$1,FALSE),0) -> 0 | Q154: 34
A155: =IFERROR(IF(A154+1<='Saisie Poussins'!$AJ$163,A154+1,""),"") -> 6 | B155: =IFERROR(VLOOKUP(A155,'Saisie Poussins'!$BE$165:$BF$208,2,FALSE),"") -> 42250181174 | C155: =IFERROR(VLOOKUP($B155,'Saisie Poussins'!$B$13:$AI$56,1+C$1,FALSE),0) -> DEVILLERS | D155: =IFERROR(VLOOKUP($B155,'Saisie Poussins'!$B$13:$AI$56,1+D$1,FALSE),0) -> Lylou | E155: =IFERROR(VLOOKUP($B155,'Saisie Poussins'!$B$13:$AI$56,1+E$1,FALSE),0) -> D | F155: =IFERROR(VLOOKUP($B155,'Saisie Poussins'!$B$13:$AI$56,1+F$1,FALSE),0) -> VC MORTEAU MONTBENOIT | G155: =IFERROR(VLOOKUP($B155,'Saisie Poussins'!$B$13:$AI$56,1+G$1,FALSE),0) -> Poussin | H155: =IFERROR(VLOOKUP($B155,'Saisie Poussins'!$B$13:$AI$56,1+H$1,FALSE),0) -> 2 | I155: =IFERROR(VLOOKUP($B155,'Saisie Poussins'!$B$165:$AI$208,26+I$1,FALSE),0) -> 32 | J155: =IFERROR(VLOOKUP($B155,'Saisie Poussins'!$B$165:$AI$208,26+J$1,FALSE),0) -> 0 | K155: =IFERROR(VLOOKUP($B155,'Saisie Poussins'!$B$165:$AI$208,26+K$1,FALSE),0) -> 0 | L155: =IFERROR(VLOOKUP($B155,'Saisie Poussins'!$B$165:$AI$208,26+L$1,FALSE),0) -> 0 | M155: =IFERROR(VLOOKUP($B155,'Saisie Poussins'!$B$165:$AI$208,26+M$1,FALSE),0) -> 0 | N155: =IFERROR(VLOOKUP($B155,'Saisie Poussins'!$B$165:$AI$208,26+N$1,FALSE),0) -> 0 | O155: =IFERROR(VLOOKUP($B155,'Saisie Poussins'!$B$165:$AI$208,26+O$1,FALSE),0) -> 0 | P155: =IFERROR(VLOOKUP($B155,'Saisie Poussins'!$B$165:$AI$208,26+P$1,FALSE),0) -> 0 | Q155: 32
A156: =IFERROR(IF(A155+1<='Saisie Poussins'!$AJ$163,A155+1,""),"") -> 7 | B156: =IFERROR(VLOOKUP(A156,'Saisie Poussins'!$BE$165:$BF$208,2,FALSE),"") -> 42700680168 | C156: =IFERROR(VLOOKUP($B156,'Saisie Poussins'!$B$13:$AI$56,1+C$1,FALSE),0) -> CLERC | D156: =IFERROR(VLOOKUP($B156,'Saisie Poussins'!$B$13:$AI$56,1+D$1,FALSE),0) -> Zoé | E156: =IFERROR(VLOOKUP($B156,'Saisie Poussins'!$B$13:$AI$56,1+E$1,FALSE),0) -> H | F156: =IFERROR(VLOOKUP($B156,'Saisie Poussins'!$B$13:$AI$56,1+F$1,FALSE),0) -> E.C. LUXEUIL VOSGES SAONO | G156: =IFERROR(VLOOKUP($B156,'Saisie Poussins'!$B$13:$AI$56,1+G$1,FALSE),0) -> Poussin | H156: =IFERROR(VLOOKUP($B156,'Saisie Poussins'!$B$13:$AI$56,1+H$1,FALSE),0) -> 2 | I156: =IFERROR(VLOOKUP($B156,'Saisie Poussins'!$B$165:$AI$208,26+I$1,FALSE),0) -> 30 | J156: =IFERROR(VLOOKUP($B156,'Saisie Poussins'!$B$165:$AI$208,26+J$1,FALSE),0) -> 0 | K156: =IFERROR(VLOOKUP($B156,'Saisie Poussins'!$B$165:$AI$208,26+K$1,FALSE),0) -> 0 | L156: =IFERROR(VLOOKUP($B156,'Saisie Poussins'!$B$165:$AI$208,26+L$1,FALSE),0) -> 0 | M156: =IFERROR(VLOOKUP($B156,'Saisie Poussins'!$B$165:$AI$208,26+M$1,FALSE),0) -> 0 | N156: =IFERROR(VLOOKUP($B156,'Saisie Poussins'!$B$165:$AI$208,26+N$1,FALSE),0) -> 0 | O156: =IFERROR(VLOOKUP($B156,'Saisie Poussins'!$B$165:$AI$208,26+O$1,FALSE),0) -> 0 | P156: =IFERROR(VLOOKUP($B156,'Saisie Poussins'!$B$165:$AI$208,26+P$1,FALSE),0) -> 0 | Q156: 30
A157: =IFERROR(IF(A156+1<='Saisie Poussins'!$AJ$163,A156+1,""),"") -> 8 | B157: =IFERROR(VLOOKUP(A157,'Saisie Poussins'!$BE$165:$BF$208,2,FALSE),"") -> 42700680169 | C157: =IFERROR(VLOOKUP($B157,'Saisie Poussins'!$B$13:$AI$56,1+C$1,FALSE),0) -> BRY | D157: =IFERROR(VLOOKUP($B157,'Saisie Poussins'!$B$13:$AI$56,1+D$1,FALSE),0) -> Eliott | E157: =IFERROR(VLOOKUP($B157,'Saisie Poussins'!$B$13:$AI$56,1+E$1,FALSE),0) -> H | F157: =IFERROR(VLOOKUP($B157,'Saisie Poussins'!$B$13:$AI$56,1+F$1,FALSE),0) -> E.C. LUXEUIL VOSGES SAONO | G157: =IFERROR(VLOOKUP($B157,'Saisie Poussins'!$B$13:$AI$56,1+G$1,FALSE),0) -> Poussin | H157: =IFERROR(VLOOKUP($B157,'Saisie Poussins'!$B$13:$AI$56,1+H$1,FALSE),0) -> 1 | I157: =IFERROR(VLOOKUP($B157,'Saisie Poussins'!$B$165:$AI$208,26+I$1,FALSE),0) -> 28 | J157: =IFERROR(VLOOKUP($B157,'Saisie Poussins'!$B$165:$AI$208,26+J$1,FALSE),0) -> 0 | K157: =IFERROR(VLOOKUP($B157,'Saisie Poussins'!$B$165:$AI$208,26+K$1,FALSE),0) -> 0 | L157: =IFERROR(VLOOKUP($B157,'Saisie Poussins'!$B$165:$AI$208,26+L$1,FALSE),0) -> 0 | M157: =IFERROR(VLOOKUP($B157,'Saisie Poussins'!$B$165:$AI$208,26+M$1,FALSE),0) -> 0 | N157: =IFERROR(VLOOKUP($B157,'Saisie Poussins'!$B$165:$AI$208,26+N$1,FALSE),0) -> 0 | O157: =IFERROR(VLOOKUP($B157,'Saisie Poussins'!$B$165:$AI$208,26+O$1,FALSE),0) -> 0 | P157: =IFERROR(VLOOKUP($B157,'Saisie Poussins'!$B$165:$AI$208,26+P$1,FALSE),0) -> 0 | Q157: 28
A158: =IFERROR(IF(A157+1<='Saisie Poussins'!$AJ$163,A157+1,""),"") -> 9 | B158: =IFERROR(VLOOKUP(A158,'Saisie Poussins'!$BE$165:$BF$208,2,FALSE),"") -> 42700680157 | C158: =IFERROR(VLOOKUP($B158,'Saisie Poussins'!$B$13:$AI$56,1+C$1,FALSE),0) -> BARBASON | D158: =IFERROR(VLOOKUP($B158,'Saisie Poussins'!$B$13:$AI$56,1+D$1,FALSE),0) -> Jean | E158: =IFERROR(VLOOKUP($B158,'Saisie Poussins'!$B$13:$AI$56,1+E$1,FALSE),0) -> H | F158: =IFERROR(VLOOKUP($B158,'Saisie Poussins'!$B$13:$AI$56,1+F$1,FALSE),0) -> E.C. LUXEUIL VOSGES SAONO | G158: =IFERROR(VLOOKUP($B158,'Saisie Poussins'!$B$13:$AI$56,1+G$1,FALSE),0) -> Poussin | H158: =IFERROR(VLOOKUP($B158,'Saisie Poussins'!$B$13:$AI$56,1+H$1,FALSE),0) -> 2 | I158: =IFERROR(VLOOKUP($B158,'Saisie Poussins'!$B$165:$AI$208,26+I$1,FALSE),0) -> 26 | J158: =IFERROR(VLOOKUP($B158,'Saisie Poussins'!$B$165:$AI$208,26+J$1,FALSE),0) -> 0 | K158: =IFERROR(VLOOKUP($B158,'Saisie Poussins'!$B$165:$AI$208,26+K$1,FALSE),0) -> 0 | L158: =IFERROR(VLOOKUP($B158,'Saisie Poussins'!$B$165:$AI$208,26+L$1,FALSE),0) -> 0 | M158: =IFERROR(VLOOKUP($B158,'Saisie Poussins'!$B$165:$AI$208,26+M$1,FALSE),0) -> 0 | N158: =IFERROR(VLOOKUP($B158,'Saisie Poussins'!$B$165:$AI$208,26+N$1,FALSE),0) -> 0 | O158: =IFERROR(VLOOKUP($B158,'Saisie Poussins'!$B$165:$AI$208,26+O$1,FALSE),0) -> 0 | P158: =IFERROR(VLOOKUP($B158,'Saisie Poussins'!$B$165:$AI$208,26+P$1,FALSE),0) -> 0 | Q158: 26
A159: =IFERROR(IF(A158+1<='Saisie Poussins'!$AJ$163,A158+1,""),"") -> 10 | B159: =IFERROR(VLOOKUP(A159,'Saisie Poussins'!$BE$165:$BF$208,2,FALSE),"") -> 42700060276 | C159: =IFERROR(VLOOKUP($B159,'Saisie Poussins'!$B$13:$AI$56,1+C$1,FALSE),0) -> TAILHARDAT | D159: =IFERROR(VLOOKUP($B159,'Saisie Poussins'!$B$13:$AI$56,1+D$1,FALSE),0) -> Célestin | E159: =IFERROR(VLOOKUP($B159,'Saisie Poussins'!$B$13:$AI$56,1+E$1,FALSE),0) -> H | F159: =IFERROR(VLOOKUP($B159,'Saisie Poussins'!$B$13:$AI$56,1+F$1,FALSE),0) -> ROUE D`OR NOIDANS | G159: =IFERROR(VLOOKUP($B159,'Saisie Poussins'!$B$13:$AI$56,1+G$1,FALSE),0) -> Poussin | H159: =IFERROR(VLOOKUP($B159,'Saisie Poussins'!$B$13:$AI$56,1+H$1,FALSE),0) -> 1 | I159: =IFERROR(VLOOKUP($B159,'Saisie Poussins'!$B$165:$AI$208,26+I$1,FALSE),0) -> 24 | J159: =IFERROR(VLOOKUP($B159,'Saisie Poussins'!$B$165:$AI$208,26+J$1,FALSE),0) -> 0 | K159: =IFERROR(VLOOKUP($B159,'Saisie Poussins'!$B$165:$AI$208,26+K$1,FALSE),0) -> 0 | L159: =IFERROR(VLOOKUP($B159,'Saisie Poussins'!$B$165:$AI$208,26+L$1,FALSE),0) -> 0 | M159: =IFERROR(VLOOKUP($B159,'Saisie Poussins'!$B$165:$AI$208,26+M$1,FALSE),0) -> 0 | N159: =IFERROR(VLOOKUP($B159,'Saisie Poussins'!$B$165:$AI$208,26+N$1,FALSE),0) -> 0 | O159: =IFERROR(VLOOKUP($B159,'Saisie Poussins'!$B$165:$AI$208,26+O$1,FALSE),0) -> 0 | P159: =IFERROR(VLOOKUP($B159,'Saisie Poussins'!$B$165:$AI$208,26+P$1,FALSE),0) -> 0 | Q159: 24
A160: =IFERROR(IF(A159+1<='Saisie Poussins'!$AJ$163,A159+1,""),"") -> 11 | B160: =IFERROR(VLOOKUP(A160,'Saisie Poussins'!$BE$165:$BF$208,2,FALSE),"") -> 42700060248 | C160: =IFERROR(VLOOKUP($B160,'Saisie Poussins'!$B$13:$AI$56,1+C$1,FALSE),0) -> BOISSON | D160: =IFERROR(VLOOKUP($B160,'Saisie Poussins'!$B$13:$AI$56,1+D$1,FALSE),0) -> Marius | E160: =IFERROR(VLOOKUP($B160,'Saisie Poussins'!$B$13:$AI$56,1+E$1,FALSE),0) -> H | F160: =IFERROR(VLOOKUP($B160,'Saisie Poussins'!$B$13:$AI$56,1+F$1,FALSE),0) -> ROUE D`OR NOIDANS | G160: =IFERROR(VLOOKUP($B160,'Saisie Poussins'!$B$13:$AI$56,1+G$1,FALSE),0) -> Poussin | H160: =IFERROR(VLOOKUP($B160,'Saisie Poussins'!$B$13:$AI$56,1+H$1,FALSE),0) -> 1 | I160: =IFERROR(VLOOKUP($B160,'Saisie Poussins'!$B$165:$AI$208,26+I$1,FALSE),0) -> 22 | J160: =IFERROR(VLOOKUP($B160,'Saisie Poussins'!$B$165:$AI$208,26+J$1,FALSE),0) -> 0 | K160: =IFERROR(VLOOKUP($B160,'Saisie Poussins'!$B$165:$AI$208,26+K$1,FALSE),0) -> 0 | L160: =IFERROR(VLOOKUP($B160,'Saisie Poussins'!$B$165:$AI$208,26+L$1,FALSE),0) -> 0 | M160: =IFERROR(VLOOKUP($B160,'Saisie Poussins'!$B$165:$AI$208,26+M$1,FALSE),0) -> 0 | N160: =IFERROR(VLOOKUP($B160,'Saisie Poussins'!$B$165:$AI$208,26+N$1,FALSE),0) -> 0 | O160: =IFERROR(VLOOKUP($B160,'Saisie Poussins'!$B$165:$AI$208,26+O$1,FALSE),0) -> 0 | P160: =IFERROR(VLOOKUP($B160,'Saisie Poussins'!$B$165:$AI$208,26+P$1,FALSE),0) -> 0 | Q160: 22
A161: =IFERROR(IF(A160+1<='Saisie Poussins'!$AJ$163,A160+1,""),"") -> 12 | B161: =IFERROR(VLOOKUP(A161,'Saisie Poussins'!$BE$165:$BF$208,2,FALSE),"") -> 42900360346 | C161: =IFERROR(VLOOKUP($B161,'Saisie Poussins'!$B$13:$AI$56,1+C$1,FALSE),0) -> STADLER | D161: =IFERROR(VLOOKUP($B161,'Saisie Poussins'!$B$13:$AI$56,1+D$1,FALSE),0) -> Gwennaelle | E161: =IFERROR(VLOOKUP($B161,'Saisie Poussins'!$B$13:$AI$56,1+E$1,FALSE),0) -> D | F161: =IFERROR(VLOOKUP($B161,'Saisie Poussins'!$B$13:$AI$56,1+F$1,FALSE),0) -> A.C.T. BELFORT | G161: =IFERROR(VLOOKUP($B161,'Saisie Poussins'!$B$13:$AI$56,1+G$1,FALSE),0) -> Poussin | H161: =IFERROR(VLOOKUP($B161,'Saisie Poussins'!$B$13:$AI$56,1+H$1,FALSE),0) -> 1 | I161: =IFERROR(VLOOKUP($B161,'Saisie Poussins'!$B$165:$AI$208,26+I$1,FALSE),0) -> 21 | J161: =IFERROR(VLOOKUP($B161,'Saisie Poussins'!$B$165:$AI$208,26+J$1,FALSE),0) -> 0 | K161: =IFERROR(VLOOKUP($B161,'Saisie Poussins'!$B$165:$AI$208,26+K$1,FALSE),0) -> 0 | L161: =IFERROR(VLOOKUP($B161,'Saisie Poussins'!$B$165:$AI$208,26+L$1,FALSE),0) -> 0 | M161: =IFERROR(VLOOKUP($B161,'Saisie Poussins'!$B$165:$AI$208,26+M$1,FALSE),0) -> 0 | N161: =IFERROR(VLOOKUP($B161,'Saisie Poussins'!$B$165:$AI$208,26+N$1,FALSE),0) -> 0 | O161: =IFERROR(VLOOKUP($B161,'Saisie Poussins'!$B$165:$AI$208,26+O$1,FALSE),0) -> 0 | P161: =IFERROR(VLOOKUP($B161,'Saisie Poussins'!$B$165:$AI$208,26+P$1,FALSE),0) -> 0 | Q161: 21
A162: =IFERROR(IF(A161+1<='Saisie Poussins'!$AJ$163,A161+1,""),"") -> 13 | B162: =IFERROR(VLOOKUP(A162,'Saisie Poussins'!$BE$165:$BF$208,2,FALSE),"") -> 42700680166 | C162: =IFERROR(VLOOKUP($B162,'Saisie Poussins'!$B$13:$AI$56,1+C$1,FALSE),0) -> ANDRE | D162: =IFERROR(VLOOKUP($B162,'Saisie Poussins'!$B$13:$AI$56,1+D$1,FALSE),0) -> Louane | E162: =IFERROR(VLOOKUP($B162,'Saisie Poussins'!$B$13:$AI$56,1+E$1,FALSE),0) -> D | F162: =IFERROR(VLOOKUP($B162,'Saisie Poussins'!$B$13:$AI$56,1+F$1,FALSE),0) -> E.C. LUXEUIL VOSGES SAONO | G162: =IFERROR(VLOOKUP($B162,'Saisie Poussins'!$B$13:$AI$56,1+G$1,FALSE),0) -> Poussin | H162: =IFERROR(VLOOKUP($B162,'Saisie Poussins'!$B$13:$AI$56,1+H$1,FALSE),0) -> 2 | I162: =IFERROR(VLOOKUP($B162,'Saisie Poussins'!$B$165:$AI$208,26+I$1,FALSE),0) -> 20 | J162: =IFERROR(VLOOKUP($B162,'Saisie Poussins'!$B$165:$AI$208,26+J$1,FALSE),0) -> 0 | K162: =IFERROR(VLOOKUP($B162,'Saisie Poussins'!$B$165:$AI$208,26+K$1,FALSE),0) -> 0 | L162: =IFERROR(VLOOKUP($B162,'Saisie Poussins'!$B$165:$AI$208,26+L$1,FALSE),0) -> 0 | M162: =IFERROR(VLOOKUP($B162,'Saisie Poussins'!$B$165:$AI$208,26+M$1,FALSE),0) -> 0 | N162: =IFERROR(VLOOKUP($B162,'Saisie Poussins'!$B$165:$AI$208,26+N$1,FALSE),0) -> 0 | O162: =IFERROR(VLOOKUP($B162,'Saisie Poussins'!$B$165:$AI$208,26+O$1,FALSE),0) -> 0 | P162: =IFERROR(VLOOKUP($B162,'Saisie Poussins'!$B$165:$AI$208,26+P$1,FALSE),0) -> 0 | Q162: 20
A163: =IFERROR(IF(A162+1<='Saisie Poussins'!$AJ$163,A162+1,""),"") ->  | B163: =IFERROR(VLOOKUP(A163,'Saisie Poussins'!$BE$165:$BF$208,2,FALSE),"") -> 0 | C163: =IFERROR(VLOOKUP($B163,'Saisie Poussins'!$B$13:$AI$56,1+C$1,FALSE),0) -> 0 | D163: =IFERROR(VLOOKUP($B163,'Saisie Poussins'!$B$13:$AI$56,1+D$1,FALSE),0) -> 0 | E163: =IFERROR(VLOOKUP($B163,'Saisie Poussins'!$B$13:$AI$56,1+E$1,FALSE),0) -> 0 | F163: =IFERROR(VLOOKUP($B163,'Saisie Poussins'!$B$13:$AI$56,1+F$1,FALSE),0) -> 0 | G163: =IFERROR(VLOOKUP($B163,'Saisie Poussins'!$B$13:$AI$56,1+G$1,FALSE),0) -> 0 | H163: =IFERROR(VLOOKUP($B163,'Saisie Poussins'!$B$13:$AI$56,1+H$1,FALSE),0) -> 0 | I163: =IFERROR(VLOOKUP($B163,'Saisie Poussins'!$B$165:$AI$208,26+I$1,FALSE),0) -> 0 | J163: =IFERROR(VLOOKUP($B163,'Saisie Poussins'!$B$165:$AI$208,26+J$1,FALSE),0) -> 0 | K163: =IFERROR(VLOOKUP($B163,'Saisie Poussins'!$B$165:$AI$208,26+K$1,FALSE),0) -> 0 | L163: =IFERROR(VLOOKUP($B163,'Saisie Poussins'!$B$165:$AI$208,26+L$1,FALSE),0) -> 0 | M163: =IFERROR(VLOOKUP($B163,'Saisie Poussins'!$B$165:$AI$208,26+M$1,FALSE),0) -> 0 | N163: =IFERROR(VLOOKUP($B163,'Saisie Poussins'!$B$165:$AI$208,26+N$1,FALSE),0) -> 0 | O163: =IFERROR(VLOOKUP($B163,'Saisie Poussins'!$B$165:$AI$208,26+O$1,FALSE),0) -> 0 | P163: =IFERROR(VLOOKUP($B163,'Saisie Poussins'!$B$165:$AI$208,26+P$1,FALSE),0) -> 0
A164: =IFERROR(IF(A163+1<='Saisie Poussins'!$AJ$163,A163+1,""),"") ->  | B164: =IFERROR(VLOOKUP(A164,'Saisie Poussins'!$BE$165:$BF$208,2,FALSE),"") -> 0 | C164: =IFERROR(VLOOKUP($B164,'Saisie Poussins'!$B$13:$AI$56,1+C$1,FALSE),0) -> 0 | D164: =IFERROR(VLOOKUP($B164,'Saisie Poussins'!$B$13:$AI$56,1+D$1,FALSE),0) -> 0 | E164: =IFERROR(VLOOKUP($B164,'Saisie Poussins'!$B$13:$AI$56,1+E$1,FALSE),0) -> 0 | F164: =IFERROR(VLOOKUP($B164,'Saisie Poussins'!$B$13:$AI$56,1+F$1,FALSE),0) -> 0 | G164: =IFERROR(VLOOKUP($B164,'Saisie Poussins'!$B$13:$AI$56,1+G$1,FALSE),0) -> 0 | H164: =IFERROR(VLOOKUP($B164,'Saisie Poussins'!$B$13:$AI$56,1+H$1,FALSE),0) -> 0 | I164: =IFERROR(VLOOKUP($B164,'Saisie Poussins'!$B$165:$AI$208,26+I$1,FALSE),0) -> 0 | J164: =IFERROR(VLOOKUP($B164,'Saisie Poussins'!$B$165:$AI$208,26+J$1,FALSE),0) -> 0 | K164: =IFERROR(VLOOKUP($B164,'Saisie Poussins'!$B$165:$AI$208,26+K$1,FALSE),0) -> 0 | L164: =IFERROR(VLOOKUP($B164,'Saisie Poussins'!$B$165:$AI$208,26+L$1,FALSE),0) -> 0 | M164: =IFERROR(VLOOKUP($B164,'Saisie Poussins'!$B$165:$AI$208,26+M$1,FALSE),0) -> 0 | N164: =IFERROR(VLOOKUP($B164,'Saisie Poussins'!$B$165:$AI$208,26+N$1,FALSE),0) -> 0 | O164: =IFERROR(VLOOKUP($B164,'Saisie Poussins'!$B$165:$AI$208,26+O$1,FALSE),0) -> 0 | P164: =IFERROR(VLOOKUP($B164,'Saisie Poussins'!$B$165:$AI$208,26+P$1,FALSE),0) -> 0
A165: =IFERROR(IF(A164+1<='Saisie Poussins'!$AJ$163,A164+1,""),"") ->  | B165: =IFERROR(VLOOKUP(A165,'Saisie Poussins'!$BE$165:$BF$208,2,FALSE),"") -> 0 | C165: =IFERROR(VLOOKUP($B165,'Saisie Poussins'!$B$13:$AI$56,1+C$1,FALSE),0) -> 0 | D165: =IFERROR(VLOOKUP($B165,'Saisie Poussins'!$B$13:$AI$56,1+D$1,FALSE),0) -> 0 | E165: =IFERROR(VLOOKUP($B165,'Saisie Poussins'!$B$13:$AI$56,1+E$1,FALSE),0) -> 0 | F165: =IFERROR(VLOOKUP($B165,'Saisie Poussins'!$B$13:$AI$56,1+F$1,FALSE),0) -> 0 | G165: =IFERROR(VLOOKUP($B165,'Saisie Poussins'!$B$13:$AI$56,1+G$1,FALSE),0) -> 0 | H165: =IFERROR(VLOOKUP($B165,'Saisie Poussins'!$B$13:$AI$56,1+H$1,FALSE),0) -> 0 | I165: =IFERROR(VLOOKUP($B165,'Saisie Poussins'!$B$165:$AI$208,26+I$1,FALSE),0) -> 0 | J165: =IFERROR(VLOOKUP($B165,'Saisie Poussins'!$B$165:$AI$208,26+J$1,FALSE),0) -> 0 | K165: =IFERROR(VLOOKUP($B165,'Saisie Poussins'!$B$165:$AI$208,26+K$1,FALSE),0) -> 0 | L165: =IFERROR(VLOOKUP($B165,'Saisie Poussins'!$B$165:$AI$208,26+L$1,FALSE),0) -> 0 | M165: =IFERROR(VLOOKUP($B165,'Saisie Poussins'!$B$165:$AI$208,26+M$1,FALSE),0) -> 0 | N165: =IFERROR(VLOOKUP($B165,'Saisie Poussins'!$B$165:$AI$208,26+N$1,FALSE),0) -> 0 | O165: =IFERROR(VLOOKUP($B165,'Saisie Poussins'!$B$165:$AI$208,26+O$1,FALSE),0) -> 0 | P165: =IFERROR(VLOOKUP($B165,'Saisie Poussins'!$B$165:$AI$208,26+P$1,FALSE),0) -> 0
A166: =IFERROR(IF(A165+1<='Saisie Poussins'!$AJ$163,A165+1,""),"") ->  | B166: =IFERROR(VLOOKUP(A166,'Saisie Poussins'!$BE$165:$BF$208,2,FALSE),"") -> 0 | C166: =IFERROR(VLOOKUP($B166,'Saisie Poussins'!$B$13:$AI$56,1+C$1,FALSE),0) -> 0 | D166: =IFERROR(VLOOKUP($B166,'Saisie Poussins'!$B$13:$AI$56,1+D$1,FALSE),0) -> 0 | E166: =IFERROR(VLOOKUP($B166,'Saisie Poussins'!$B$13:$AI$56,1+E$1,FALSE),0) -> 0 | F166: =IFERROR(VLOOKUP($B166,'Saisie Poussins'!$B$13:$AI$56,1+F$1,FALSE),0) -> 0 | G166: =IFERROR(VLOOKUP($B166,'Saisie Poussins'!$B$13:$AI$56,1+G$1,FALSE),0) -> 0 | H166: =IFERROR(VLOOKUP($B166,'Saisie Poussins'!$B$13:$AI$56,1+H$1,FALSE),0) -> 0 | I166: =IFERROR(VLOOKUP($B166,'Saisie Poussins'!$B$165:$AI$208,26+I$1,FALSE),0) -> 0 | J166: =IFERROR(VLOOKUP($B166,'Saisie Poussins'!$B$165:$AI$208,26+J$1,FALSE),0) -> 0 | K166: =IFERROR(VLOOKUP($B166,'Saisie Poussins'!$B$165:$AI$208,26+K$1,FALSE),0) -> 0 | L166: =IFERROR(VLOOKUP($B166,'Saisie Poussins'!$B$165:$AI$208,26+L$1,FALSE),0) -> 0 | M166: =IFERROR(VLOOKUP($B166,'Saisie Poussins'!$B$165:$AI$208,26+M$1,FALSE),0) -> 0 | N166: =IFERROR(VLOOKUP($B166,'Saisie Poussins'!$B$165:$AI$208,26+N$1,FALSE),0) -> 0 | O166: =IFERROR(VLOOKUP($B166,'Saisie Poussins'!$B$165:$AI$208,26+O$1,FALSE),0) -> 0 | P166: =IFERROR(VLOOKUP($B166,'Saisie Poussins'!$B$165:$AI$208,26+P$1,FALSE),0) -> 0
A167: =IFERROR(IF(A166+1<='Saisie Poussins'!$AJ$163,A166+1,""),"") ->  | B167: =IFERROR(VLOOKUP(A167,'Saisie Poussins'!$BE$165:$BF$208,2,FALSE),"") -> 0 | C167: =IFERROR(VLOOKUP($B167,'Saisie Poussins'!$B$13:$AI$56,1+C$1,FALSE),0) -> 0 | D167: =IFERROR(VLOOKUP($B167,'Saisie Poussins'!$B$13:$AI$56,1+D$1,FALSE),0) -> 0 | E167: =IFERROR(VLOOKUP($B167,'Saisie Poussins'!$B$13:$AI$56,1+E$1,FALSE),0) -> 0 | F167: =IFERROR(VLOOKUP($B167,'Saisie Poussins'!$B$13:$AI$56,1+F$1,FALSE),0) -> 0 | G167: =IFERROR(VLOOKUP($B167,'Saisie Poussins'!$B$13:$AI$56,1+G$1,FALSE),0) -> 0 | H167: =IFERROR(VLOOKUP($B167,'Saisie Poussins'!$B$13:$AI$56,1+H$1,FALSE),0) -> 0 | I167: =IFERROR(VLOOKUP($B167,'Saisie Poussins'!$B$165:$AI$208,26+I$1,FALSE),0) -> 0 | J167: =IFERROR(VLOOKUP($B167,'Saisie Poussins'!$B$165:$AI$208,26+J$1,FALSE),0) -> 0 | K167: =IFERROR(VLOOKUP($B167,'Saisie Poussins'!$B$165:$AI$208,26+K$1,FALSE),0) -> 0 | L167: =IFERROR(VLOOKUP($B167,'Saisie Poussins'!$B$165:$AI$208,26+L$1,FALSE),0) -> 0 | M167: =IFERROR(VLOOKUP($B167,'Saisie Poussins'!$B$165:$AI$208,26+M$1,FALSE),0) -> 0 | N167: =IFERROR(VLOOKUP($B167,'Saisie Poussins'!$B$165:$AI$208,26+N$1,FALSE),0) -> 0 | O167: =IFERROR(VLOOKUP($B167,'Saisie Poussins'!$B$165:$AI$208,26+O$1,FALSE),0) -> 0 | P167: =IFERROR(VLOOKUP($B167,'Saisie Poussins'!$B$165:$AI$208,26+P$1,FALSE),0) -> 0
A168: =IFERROR(IF(A167+1<='Saisie Poussins'!$AJ$163,A167+1,""),"") ->  | B168: =IFERROR(VLOOKUP(A168,'Saisie Poussins'!$BE$165:$BF$208,2,FALSE),"") -> 0 | C168: =IFERROR(VLOOKUP($B168,'Saisie Poussins'!$B$13:$AI$56,1+C$1,FALSE),0) -> 0 | D168: =IFERROR(VLOOKUP($B168,'Saisie Poussins'!$B$13:$AI$56,1+D$1,FALSE),0) -> 0 | E168: =IFERROR(VLOOKUP($B168,'Saisie Poussins'!$B$13:$AI$56,1+E$1,FALSE),0) -> 0 | F168: =IFERROR(VLOOKUP($B168,'Saisie Poussins'!$B$13:$AI$56,1+F$1,FALSE),0) -> 0 | G168: =IFERROR(VLOOKUP($B168,'Saisie Poussins'!$B$13:$AI$56,1+G$1,FALSE),0) -> 0 | H168: =IFERROR(VLOOKUP($B168,'Saisie Poussins'!$B$13:$AI$56,1+H$1,FALSE),0) -> 0 | I168: =IFERROR(VLOOKUP($B168,'Saisie Poussins'!$B$165:$AI$208,26+I$1,FALSE),0) -> 0 | J168: =IFERROR(VLOOKUP($B168,'Saisie Poussins'!$B$165:$AI$208,26+J$1,FALSE),0) -> 0 | K168: =IFERROR(VLOOKUP($B168,'Saisie Poussins'!$B$165:$AI$208,26+K$1,FALSE),0) -> 0 | L168: =IFERROR(VLOOKUP($B168,'Saisie Poussins'!$B$165:$AI$208,26+L$1,FALSE),0) -> 0 | M168: =IFERROR(VLOOKUP($B168,'Saisie Poussins'!$B$165:$AI$208,26+M$1,FALSE),0) -> 0 | N168: =IFERROR(VLOOKUP($B168,'Saisie Poussins'!$B$165:$AI$208,26+N$1,FALSE),0) -> 0 | O168: =IFERROR(VLOOKUP($B168,'Saisie Poussins'!$B$165:$AI$208,26+O$1,FALSE),0) -> 0 | P168: =IFERROR(VLOOKUP($B168,'Saisie Poussins'!$B$165:$AI$208,26+P$1,FALSE),0) -> 0
A169: =IFERROR(IF(A168+1<='Saisie Poussins'!$AJ$163,A168+1,""),"") ->  | B169: =IFERROR(VLOOKUP(A169,'Saisie Poussins'!$BE$165:$BF$208,2,FALSE),"") -> 0 | C169: =IFERROR(VLOOKUP($B169,'Saisie Poussins'!$B$13:$AI$56,1+C$1,FALSE),0) -> 0 | D169: =IFERROR(VLOOKUP($B169,'Saisie Poussins'!$B$13:$AI$56,1+D$1,FALSE),0) -> 0 | E169: =IFERROR(VLOOKUP($B169,'Saisie Poussins'!$B$13:$AI$56,1+E$1,FALSE),0) -> 0 | F169: =IFERROR(VLOOKUP($B169,'Saisie Poussins'!$B$13:$AI$56,1+F$1,FALSE),0) -> 0 | G169: =IFERROR(VLOOKUP($B169,'Saisie Poussins'!$B$13:$AI$56,1+G$1,FALSE),0) -> 0 | H169: =IFERROR(VLOOKUP($B169,'Saisie Poussins'!$B$13:$AI$56,1+H$1,FALSE),0) -> 0 | I169: =IFERROR(VLOOKUP($B169,'Saisie Poussins'!$B$165:$AI$208,26+I$1,FALSE),0) -> 0 | J169: =IFERROR(VLOOKUP($B169,'Saisie Poussins'!$B$165:$AI$208,26+J$1,FALSE),0) -> 0 | K169: =IFERROR(VLOOKUP($B169,'Saisie Poussins'!$B$165:$AI$208,26+K$1,FALSE),0) -> 0 | L169: =IFERROR(VLOOKUP($B169,'Saisie Poussins'!$B$165:$AI$208,26+L$1,FALSE),0) -> 0 | M169: =IFERROR(VLOOKUP($B169,'Saisie Poussins'!$B$165:$AI$208,26+M$1,FALSE),0) -> 0 | N169: =IFERROR(VLOOKUP($B169,'Saisie Poussins'!$B$165:$AI$208,26+N$1,FALSE),0) -> 0 | O169: =IFERROR(VLOOKUP($B169,'Saisie Poussins'!$B$165:$AI$208,26+O$1,FALSE),0) -> 0 | P169: =IFERROR(VLOOKUP($B169,'Saisie Poussins'!$B$165:$AI$208,26+P$1,FALSE),0) -> 0
A170: =IFERROR(IF(A169+1<='Saisie Poussins'!$AJ$163,A169+1,""),"") ->  | B170: =IFERROR(VLOOKUP(A170,'Saisie Poussins'!$BE$165:$BF$208,2,FALSE),"") -> 0 | C170: =IFERROR(VLOOKUP($B170,'Saisie Poussins'!$B$13:$AI$56,1+C$1,FALSE),0) -> 0 | D170: =IFERROR(VLOOKUP($B170,'Saisie Poussins'!$B$13:$AI$56,1+D$1,FALSE),0) -> 0 | E170: =IFERROR(VLOOKUP($B170,'Saisie Poussins'!$B$13:$AI$56,1+E$1,FALSE),0) -> 0 | F170: =IFERROR(VLOOKUP($B170,'Saisie Poussins'!$B$13:$AI$56,1+F$1,FALSE),0) -> 0 | G170: =IFERROR(VLOOKUP($B170,'Saisie Poussins'!$B$13:$AI$56,1+G$1,FALSE),0) -> 0 | H170: =IFERROR(VLOOKUP($B170,'Saisie Poussins'!$B$13:$AI$56,1+H$1,FALSE),0) -> 0 | I170: =IFERROR(VLOOKUP($B170,'Saisie Poussins'!$B$165:$AI$208,26+I$1,FALSE),0) -> 0 | J170: =IFERROR(VLOOKUP($B170,'Saisie Poussins'!$B$165:$AI$208,26+J$1,FALSE),0) -> 0 | K170: =IFERROR(VLOOKUP($B170,'Saisie Poussins'!$B$165:$AI$208,26+K$1,FALSE),0) -> 0 | L170: =IFERROR(VLOOKUP($B170,'Saisie Poussins'!$B$165:$AI$208,26+L$1,FALSE),0) -> 0 | M170: =IFERROR(VLOOKUP($B170,'Saisie Poussins'!$B$165:$AI$208,26+M$1,FALSE),0) -> 0 | N170: =IFERROR(VLOOKUP($B170,'Saisie Poussins'!$B$165:$AI$208,26+N$1,FALSE),0) -> 0 | O170: =IFERROR(VLOOKUP($B170,'Saisie Poussins'!$B$165:$AI$208,26+O$1,FALSE),0) -> 0 | P170: =IFERROR(VLOOKUP($B170,'Saisie Poussins'!$B$165:$AI$208,26+P$1,FALSE),0) -> 0
A171: =IFERROR(IF(A170+1<='Saisie Poussins'!$AJ$163,A170+1,""),"") ->  | B171: =IFERROR(VLOOKUP(A171,'Saisie Poussins'!$BE$165:$BF$208,2,FALSE),"") -> 0 | C171: =IFERROR(VLOOKUP($B171,'Saisie Poussins'!$B$13:$AI$56,1+C$1,FALSE),0) -> 0 | D171: =IFERROR(VLOOKUP($B171,'Saisie Poussins'!$B$13:$AI$56,1+D$1,FALSE),0) -> 0 | E171: =IFERROR(VLOOKUP($B171,'Saisie Poussins'!$B$13:$AI$56,1+E$1,FALSE),0) -> 0 | F171: =IFERROR(VLOOKUP($B171,'Saisie Poussins'!$B$13:$AI$56,1+F$1,FALSE),0) -> 0 | G171: =IFERROR(VLOOKUP($B171,'Saisie Poussins'!$B$13:$AI$56,1+G$1,FALSE),0) -> 0 | H171: =IFERROR(VLOOKUP($B171,'Saisie Poussins'!$B$13:$AI$56,1+H$1,FALSE),0) -> 0 | I171: =IFERROR(VLOOKUP($B171,'Saisie Poussins'!$B$165:$AI$208,26+I$1,FALSE),0) -> 0 | J171: =IFERROR(VLOOKUP($B171,'Saisie Poussins'!$B$165:$AI$208,26+J$1,FALSE),0) -> 0 | K171: =IFERROR(VLOOKUP($B171,'Saisie Poussins'!$B$165:$AI$208,26+K$1,FALSE),0) -> 0 | L171: =IFERROR(VLOOKUP($B171,'Saisie Poussins'!$B$165:$AI$208,26+L$1,FALSE),0) -> 0 | M171: =IFERROR(VLOOKUP($B171,'Saisie Poussins'!$B$165:$AI$208,26+M$1,FALSE),0) -> 0 | N171: =IFERROR(VLOOKUP($B171,'Saisie Poussins'!$B$165:$AI$208,26+N$1,FALSE),0) -> 0 | O171: =IFERROR(VLOOKUP($B171,'Saisie Poussins'!$B$165:$AI$208,26+O$1,FALSE),0) -> 0 | P171: =IFERROR(VLOOKUP($B171,'Saisie Poussins'!$B$165:$AI$208,26+P$1,FALSE),0) -> 0
A172: =IFERROR(IF(A171+1<='Saisie Poussins'!$AJ$163,A171+1,""),"") ->  | B172: =IFERROR(VLOOKUP(A172,'Saisie Poussins'!$BE$165:$BF$208,2,FALSE),"") -> 0 | C172: =IFERROR(VLOOKUP($B172,'Saisie Poussins'!$B$13:$AI$56,1+C$1,FALSE),0) -> 0 | D172: =IFERROR(VLOOKUP($B172,'Saisie Poussins'!$B$13:$AI$56,1+D$1,FALSE),0) -> 0 | E172: =IFERROR(VLOOKUP($B172,'Saisie Poussins'!$B$13:$AI$56,1+E$1,FALSE),0) -> 0 | F172: =IFERROR(VLOOKUP($B172,'Saisie Poussins'!$B$13:$AI$56,1+F$1,FALSE),0) -> 0 | G172: =IFERROR(VLOOKUP($B172,'Saisie Poussins'!$B$13:$AI$56,1+G$1,FALSE),0) -> 0 | H172: =IFERROR(VLOOKUP($B172,'Saisie Poussins'!$B$13:$AI$56,1+H$1,FALSE),0) -> 0 | I172: =IFERROR(VLOOKUP($B172,'Saisie Poussins'!$B$165:$AI$208,26+I$1,FALSE),0) -> 0 | J172: =IFERROR(VLOOKUP($B172,'Saisie Poussins'!$B$165:$AI$208,26+J$1,FALSE),0) -> 0 | K172: =IFERROR(VLOOKUP($B172,'Saisie Poussins'!$B$165:$AI$208,26+K$1,FALSE),0) -> 0 | L172: =IFERROR(VLOOKUP($B172,'Saisie Poussins'!$B$165:$AI$208,26+L$1,FALSE),0) -> 0 | M172: =IFERROR(VLOOKUP($B172,'Saisie Poussins'!$B$165:$AI$208,26+M$1,FALSE),0) -> 0 | N172: =IFERROR(VLOOKUP($B172,'Saisie Poussins'!$B$165:$AI$208,26+N$1,FALSE),0) -> 0 | O172: =IFERROR(VLOOKUP($B172,'Saisie Poussins'!$B$165:$AI$208,26+O$1,FALSE),0) -> 0 | P172: =IFERROR(VLOOKUP($B172,'Saisie Poussins'!$B$165:$AI$208,26+P$1,FALSE),0) -> 0
A173: =IFERROR(IF(A172+1<='Saisie Poussins'!$AJ$163,A172+1,""),"") ->  | B173: =IFERROR(VLOOKUP(A173,'Saisie Poussins'!$BE$165:$BF$208,2,FALSE),"") -> 0 | C173: =IFERROR(VLOOKUP($B173,'Saisie Poussins'!$B$13:$AI$56,1+C$1,FALSE),0) -> 0 | D173: =IFERROR(VLOOKUP($B173,'Saisie Poussins'!$B$13:$AI$56,1+D$1,FALSE),0) -> 0 | E173: =IFERROR(VLOOKUP($B173,'Saisie Poussins'!$B$13:$AI$56,1+E$1,FALSE),0) -> 0 | F173: =IFERROR(VLOOKUP($B173,'Saisie Poussins'!$B$13:$AI$56,1+F$1,FALSE),0) -> 0 | G173: =IFERROR(VLOOKUP($B173,'Saisie Poussins'!$B$13:$AI$56,1+G$1,FALSE),0) -> 0 | H173: =IFERROR(VLOOKUP($B173,'Saisie Poussins'!$B$13:$AI$56,1+H$1,FALSE),0) -> 0 | I173: =IFERROR(VLOOKUP($B173,'Saisie Poussins'!$B$165:$AI$208,26+I$1,FALSE),0) -> 0 | J173: =IFERROR(VLOOKUP($B173,'Saisie Poussins'!$B$165:$AI$208,26+J$1,FALSE),0) -> 0 | K173: =IFERROR(VLOOKUP($B173,'Saisie Poussins'!$B$165:$AI$208,26+K$1,FALSE),0) -> 0 | L173: =IFERROR(VLOOKUP($B173,'Saisie Poussins'!$B$165:$AI$208,26+L$1,FALSE),0) -> 0 | M173: =IFERROR(VLOOKUP($B173,'Saisie Poussins'!$B$165:$AI$208,26+M$1,FALSE),0) -> 0 | N173: =IFERROR(VLOOKUP($B173,'Saisie Poussins'!$B$165:$AI$208,26+N$1,FALSE),0) -> 0 | O173: =IFERROR(VLOOKUP($B173,'Saisie Poussins'!$B$165:$AI$208,26+O$1,FALSE),0) -> 0 | P173: =IFERROR(VLOOKUP($B173,'Saisie Poussins'!$B$165:$AI$208,26+P$1,FALSE),0) -> 0
A174: =IFERROR(IF(A173+1<='Saisie Poussins'!$AJ$163,A173+1,""),"") ->  | B174: =IFERROR(VLOOKUP(A174,'Saisie Poussins'!$BE$165:$BF$208,2,FALSE),"") -> 0 | C174: =IFERROR(VLOOKUP($B174,'Saisie Poussins'!$B$13:$AI$56,1+C$1,FALSE),0) -> 0 | D174: =IFERROR(VLOOKUP($B174,'Saisie Poussins'!$B$13:$AI$56,1+D$1,FALSE),0) -> 0 | E174: =IFERROR(VLOOKUP($B174,'Saisie Poussins'!$B$13:$AI$56,1+E$1,FALSE),0) -> 0 | F174: =IFERROR(VLOOKUP($B174,'Saisie Poussins'!$B$13:$AI$56,1+F$1,FALSE),0) -> 0 | G174: =IFERROR(VLOOKUP($B174,'Saisie Poussins'!$B$13:$AI$56,1+G$1,FALSE),0) -> 0 | H174: =IFERROR(VLOOKUP($B174,'Saisie Poussins'!$B$13:$AI$56,1+H$1,FALSE),0) -> 0 | I174: =IFERROR(VLOOKUP($B174,'Saisie Poussins'!$B$165:$AI$208,26+I$1,FALSE),0) -> 0 | J174: =IFERROR(VLOOKUP($B174,'Saisie Poussins'!$B$165:$AI$208,26+J$1,FALSE),0) -> 0 | K174: =IFERROR(VLOOKUP($B174,'Saisie Poussins'!$B$165:$AI$208,26+K$1,FALSE),0) -> 0 | L174: =IFERROR(VLOOKUP($B174,'Saisie Poussins'!$B$165:$AI$208,26+L$1,FALSE),0) -> 0 | M174: =IFERROR(VLOOKUP($B174,'Saisie Poussins'!$B$165:$AI$208,26+M$1,FALSE),0) -> 0 | N174: =IFERROR(VLOOKUP($B174,'Saisie Poussins'!$B$165:$AI$208,26+N$1,FALSE),0) -> 0 | O174: =IFERROR(VLOOKUP($B174,'Saisie Poussins'!$B$165:$AI$208,26+O$1,FALSE),0) -> 0 | P174: =IFERROR(VLOOKUP($B174,'Saisie Poussins'!$B$165:$AI$208,26+P$1,FALSE),0) -> 0
A175: =IFERROR(IF(A174+1<='Saisie Poussins'!$AJ$163,A174+1,""),"") ->  | B175: =IFERROR(VLOOKUP(A175,'Saisie Poussins'!$BE$165:$BF$208,2,FALSE),"") -> 0 | C175: =IFERROR(VLOOKUP($B175,'Saisie Poussins'!$B$13:$AI$56,1+C$1,FALSE),0) -> 0 | D175: =IFERROR(VLOOKUP($B175,'Saisie Poussins'!$B$13:$AI$56,1+D$1,FALSE),0) -> 0 | E175: =IFERROR(VLOOKUP($B175,'Saisie Poussins'!$B$13:$AI$56,1+E$1,FALSE),0) -> 0 | F175: =IFERROR(VLOOKUP($B175,'Saisie Poussins'!$B$13:$AI$56,1+F$1,FALSE),0) -> 0 | G175: =IFERROR(VLOOKUP($B175,'Saisie Poussins'!$B$13:$AI$56,1+G$1,FALSE),0) -> 0 | H175: =IFERROR(VLOOKUP($B175,'Saisie Poussins'!$B$13:$AI$56,1+H$1,FALSE),0) -> 0 | I175: =IFERROR(VLOOKUP($B175,'Saisie Poussins'!$B$165:$AI$208,26+I$1,FALSE),0) -> 0 | J175: =IFERROR(VLOOKUP($B175,'Saisie Poussins'!$B$165:$AI$208,26+J$1,FALSE),0) -> 0 | K175: =IFERROR(VLOOKUP($B175,'Saisie Poussins'!$B$165:$AI$208,26+K$1,FALSE),0) -> 0 | L175: =IFERROR(VLOOKUP($B175,'Saisie Poussins'!$B$165:$AI$208,26+L$1,FALSE),0) -> 0 | M175: =IFERROR(VLOOKUP($B175,'Saisie Poussins'!$B$165:$AI$208,26+M$1,FALSE),0) -> 0 | N175: =IFERROR(VLOOKUP($B175,'Saisie Poussins'!$B$165:$AI$208,26+N$1,FALSE),0) -> 0 | O175: =IFERROR(VLOOKUP($B175,'Saisie Poussins'!$B$165:$AI$208,26+O$1,FALSE),0) -> 0 | P175: =IFERROR(VLOOKUP($B175,'Saisie Poussins'!$B$165:$AI$208,26+P$1,FALSE),0) -> 0
A176: =IFERROR(IF(A175+1<='Saisie Poussins'!$AJ$163,A175+1,""),"") ->  | B176: =IFERROR(VLOOKUP(A176,'Saisie Poussins'!$BE$165:$BF$208,2,FALSE),"") -> 0 | C176: =IFERROR(VLOOKUP($B176,'Saisie Poussins'!$B$13:$AI$56,1+C$1,FALSE),0) -> 0 | D176: =IFERROR(VLOOKUP($B176,'Saisie Poussins'!$B$13:$AI$56,1+D$1,FALSE),0) -> 0 | E176: =IFERROR(VLOOKUP($B176,'Saisie Poussins'!$B$13:$AI$56,1+E$1,FALSE),0) -> 0 | F176: =IFERROR(VLOOKUP($B176,'Saisie Poussins'!$B$13:$AI$56,1+F$1,FALSE),0) -> 0 | G176: =IFERROR(VLOOKUP($B176,'Saisie Poussins'!$B$13:$AI$56,1+G$1,FALSE),0) -> 0 | H176: =IFERROR(VLOOKUP($B176,'Saisie Poussins'!$B$13:$AI$56,1+H$1,FALSE),0) -> 0 | I176: =IFERROR(VLOOKUP($B176,'Saisie Poussins'!$B$165:$AI$208,26+I$1,FALSE),0) -> 0 | J176: =IFERROR(VLOOKUP($B176,'Saisie Poussins'!$B$165:$AI$208,26+J$1,FALSE),0) -> 0 | K176: =IFERROR(VLOOKUP($B176,'Saisie Poussins'!$B$165:$AI$208,26+K$1,FALSE),0) -> 0 | L176: =IFERROR(VLOOKUP($B176,'Saisie Poussins'!$B$165:$AI$208,26+L$1,FALSE),0) -> 0 | M176: =IFERROR(VLOOKUP($B176,'Saisie Poussins'!$B$165:$AI$208,26+M$1,FALSE),0) -> 0 | N176: =IFERROR(VLOOKUP($B176,'Saisie Poussins'!$B$165:$AI$208,26+N$1,FALSE),0) -> 0 | O176: =IFERROR(VLOOKUP($B176,'Saisie Poussins'!$B$165:$AI$208,26+O$1,FALSE),0) -> 0 | P176: =IFERROR(VLOOKUP($B176,'Saisie Poussins'!$B$165:$AI$208,26+P$1,FALSE),0) -> 0
A177: =IFERROR(IF(A176+1<='Saisie Poussins'!$AJ$163,A176+1,""),"") ->  | B177: =IFERROR(VLOOKUP(A177,'Saisie Poussins'!$BE$165:$BF$208,2,FALSE),"") -> 0 | C177: =IFERROR(VLOOKUP($B177,'Saisie Poussins'!$B$13:$AI$56,1+C$1,FALSE),0) -> 0 | D177: =IFERROR(VLOOKUP($B177,'Saisie Poussins'!$B$13:$AI$56,1+D$1,FALSE),0) -> 0 | E177: =IFERROR(VLOOKUP($B177,'Saisie Poussins'!$B$13:$AI$56,1+E$1,FALSE),0) -> 0 | F177: =IFERROR(VLOOKUP($B177,'Saisie Poussins'!$B$13:$AI$56,1+F$1,FALSE),0) -> 0 | G177: =IFERROR(VLOOKUP($B177,'Saisie Poussins'!$B$13:$AI$56,1+G$1,FALSE),0) -> 0 | H177: =IFERROR(VLOOKUP($B177,'Saisie Poussins'!$B$13:$AI$56,1+H$1,FALSE),0) -> 0 | I177: =IFERROR(VLOOKUP($B177,'Saisie Poussins'!$B$165:$AI$208,26+I$1,FALSE),0) -> 0 | J177: =IFERROR(VLOOKUP($B177,'Saisie Poussins'!$B$165:$AI$208,26+J$1,FALSE),0) -> 0 | K177: =IFERROR(VLOOKUP($B177,'Saisie Poussins'!$B$165:$AI$208,26+K$1,FALSE),0) -> 0 | L177: =IFERROR(VLOOKUP($B177,'Saisie Poussins'!$B$165:$AI$208,26+L$1,FALSE),0) -> 0 | M177: =IFERROR(VLOOKUP($B177,'Saisie Poussins'!$B$165:$AI$208,26+M$1,FALSE),0) -> 0 | N177: =IFERROR(VLOOKUP($B177,'Saisie Poussins'!$B$165:$AI$208,26+N$1,FALSE),0) -> 0 | O177: =IFERROR(VLOOKUP($B177,'Saisie Poussins'!$B$165:$AI$208,26+O$1,FALSE),0) -> 0 | P177: =IFERROR(VLOOKUP($B177,'Saisie Poussins'!$B$165:$AI$208,26+P$1,FALSE),0) -> 0
A178: =IFERROR(IF(A177+1<='Saisie Poussins'!$AJ$163,A177+1,""),"") ->  | B178: =IFERROR(VLOOKUP(A178,'Saisie Poussins'!$BE$165:$BF$208,2,FALSE),"") -> 0 | C178: =IFERROR(VLOOKUP($B178,'Saisie Poussins'!$B$13:$AI$56,1+C$1,FALSE),0) -> 0 | D178: =IFERROR(VLOOKUP($B178,'Saisie Poussins'!$B$13:$AI$56,1+D$1,FALSE),0) -> 0 | E178: =IFERROR(VLOOKUP($B178,'Saisie Poussins'!$B$13:$AI$56,1+E$1,FALSE),0) -> 0 | F178: =IFERROR(VLOOKUP($B178,'Saisie Poussins'!$B$13:$AI$56,1+F$1,FALSE),0) -> 0 | G178: =IFERROR(VLOOKUP($B178,'Saisie Poussins'!$B$13:$AI$56,1+G$1,FALSE),0) -> 0 | H178: =IFERROR(VLOOKUP($B178,'Saisie Poussins'!$B$13:$AI$56,1+H$1,FALSE),0) -> 0 | I178: =IFERROR(VLOOKUP($B178,'Saisie Poussins'!$B$165:$AI$208,26+I$1,FALSE),0) -> 0 | J178: =IFERROR(VLOOKUP($B178,'Saisie Poussins'!$B$165:$AI$208,26+J$1,FALSE),0) -> 0 | K178: =IFERROR(VLOOKUP($B178,'Saisie Poussins'!$B$165:$AI$208,26+K$1,FALSE),0) -> 0 | L178: =IFERROR(VLOOKUP($B178,'Saisie Poussins'!$B$165:$AI$208,26+L$1,FALSE),0) -> 0 | M178: =IFERROR(VLOOKUP($B178,'Saisie Poussins'!$B$165:$AI$208,26+M$1,FALSE),0) -> 0 | N178: =IFERROR(VLOOKUP($B178,'Saisie Poussins'!$B$165:$AI$208,26+N$1,FALSE),0) -> 0 | O178: =IFERROR(VLOOKUP($B178,'Saisie Poussins'!$B$165:$AI$208,26+O$1,FALSE),0) -> 0 | P178: =IFERROR(VLOOKUP($B178,'Saisie Poussins'!$B$165:$AI$208,26+P$1,FALSE),0) -> 0
A179: =IFERROR(IF(A178+1<='Saisie Poussins'!$AJ$163,A178+1,""),"") ->  | B179: =IFERROR(VLOOKUP(A179,'Saisie Poussins'!$BE$165:$BF$208,2,FALSE),"") -> 0 | C179: =IFERROR(VLOOKUP($B179,'Saisie Poussins'!$B$13:$AI$56,1+C$1,FALSE),0) -> 0 | D179: =IFERROR(VLOOKUP($B179,'Saisie Poussins'!$B$13:$AI$56,1+D$1,FALSE),0) -> 0 | E179: =IFERROR(VLOOKUP($B179,'Saisie Poussins'!$B$13:$AI$56,1+E$1,FALSE),0) -> 0 | F179: =IFERROR(VLOOKUP($B179,'Saisie Poussins'!$B$13:$AI$56,1+F$1,FALSE),0) -> 0 | G179: =IFERROR(VLOOKUP($B179,'Saisie Poussins'!$B$13:$AI$56,1+G$1,FALSE),0) -> 0 | H179: =IFERROR(VLOOKUP($B179,'Saisie Poussins'!$B$13:$AI$56,1+H$1,FALSE),0) -> 0 | I179: =IFERROR(VLOOKUP($B179,'Saisie Poussins'!$B$165:$AI$208,26+I$1,FALSE),0) -> 0 | J179: =IFERROR(VLOOKUP($B179,'Saisie Poussins'!$B$165:$AI$208,26+J$1,FALSE),0) -> 0 | K179: =IFERROR(VLOOKUP($B179,'Saisie Poussins'!$B$165:$AI$208,26+K$1,FALSE),0) -> 0 | L179: =IFERROR(VLOOKUP($B179,'Saisie Poussins'!$B$165:$AI$208,26+L$1,FALSE),0) -> 0 | M179: =IFERROR(VLOOKUP($B179,'Saisie Poussins'!$B$165:$AI$208,26+M$1,FALSE),0) -> 0 | N179: =IFERROR(VLOOKUP($B179,'Saisie Poussins'!$B$165:$AI$208,26+N$1,FALSE),0) -> 0 | O179: =IFERROR(VLOOKUP($B179,'Saisie Poussins'!$B$165:$AI$208,26+O$1,FALSE),0) -> 0 | P179: =IFERROR(VLOOKUP($B179,'Saisie Poussins'!$B$165:$AI$208,26+P$1,FALSE),0) -> 0
A180: =IFERROR(IF(A179+1<='Saisie Poussins'!$AJ$163,A179+1,""),"") ->  | B180: =IFERROR(VLOOKUP(A180,'Saisie Poussins'!$BE$165:$BF$208,2,FALSE),"") -> 0 | C180: =IFERROR(VLOOKUP($B180,'Saisie Poussins'!$B$13:$AI$56,1+C$1,FALSE),0) -> 0 | D180: =IFERROR(VLOOKUP($B180,'Saisie Poussins'!$B$13:$AI$56,1+D$1,FALSE),0) -> 0 | E180: =IFERROR(VLOOKUP($B180,'Saisie Poussins'!$B$13:$AI$56,1+E$1,FALSE),0) -> 0 | F180: =IFERROR(VLOOKUP($B180,'Saisie Poussins'!$B$13:$AI$56,1+F$1,FALSE),0) -> 0 | G180: =IFERROR(VLOOKUP($B180,'Saisie Poussins'!$B$13:$AI$56,1+G$1,FALSE),0) -> 0 | H180: =IFERROR(VLOOKUP($B180,'Saisie Poussins'!$B$13:$AI$56,1+H$1,FALSE),0) -> 0 | I180: =IFERROR(VLOOKUP($B180,'Saisie Poussins'!$B$165:$AI$208,26+I$1,FALSE),0) -> 0 | J180: =IFERROR(VLOOKUP($B180,'Saisie Poussins'!$B$165:$AI$208,26+J$1,FALSE),0) -> 0 | K180: =IFERROR(VLOOKUP($B180,'Saisie Poussins'!$B$165:$AI$208,26+K$1,FALSE),0) -> 0 | L180: =IFERROR(VLOOKUP($B180,'Saisie Poussins'!$B$165:$AI$208,26+L$1,FALSE),0) -> 0 | M180: =IFERROR(VLOOKUP($B180,'Saisie Poussins'!$B$165:$AI$208,26+M$1,FALSE),0) -> 0 | N180: =IFERROR(VLOOKUP($B180,'Saisie Poussins'!$B$165:$AI$208,26+N$1,FALSE),0) -> 0 | O180: =IFERROR(VLOOKUP($B180,'Saisie Poussins'!$B$165:$AI$208,26+O$1,FALSE),0) -> 0 | P180: =IFERROR(VLOOKUP($B180,'Saisie Poussins'!$B$165:$AI$208,26+P$1,FALSE),0) -> 0
A181: =IFERROR(IF(A180+1<='Saisie Poussins'!$AJ$163,A180+1,""),"") ->  | B181: =IFERROR(VLOOKUP(A181,'Saisie Poussins'!$BE$165:$BF$208,2,FALSE),"") -> 0 | C181: =IFERROR(VLOOKUP($B181,'Saisie Poussins'!$B$13:$AI$56,1+C$1,FALSE),0) -> 0 | D181: =IFERROR(VLOOKUP($B181,'Saisie Poussins'!$B$13:$AI$56,1+D$1,FALSE),0) -> 0 | E181: =IFERROR(VLOOKUP($B181,'Saisie Poussins'!$B$13:$AI$56,1+E$1,FALSE),0) -> 0 | F181: =IFERROR(VLOOKUP($B181,'Saisie Poussins'!$B$13:$AI$56,1+F$1,FALSE),0) -> 0 | G181: =IFERROR(VLOOKUP($B181,'Saisie Poussins'!$B$13:$AI$56,1+G$1,FALSE),0) -> 0 | H181: =IFERROR(VLOOKUP($B181,'Saisie Poussins'!$B$13:$AI$56,1+H$1,FALSE),0) -> 0 | I181: =IFERROR(VLOOKUP($B181,'Saisie Poussins'!$B$165:$AI$208,26+I$1,FALSE),0) -> 0 | J181: =IFERROR(VLOOKUP($B181,'Saisie Poussins'!$B$165:$AI$208,26+J$1,FALSE),0) -> 0 | K181: =IFERROR(VLOOKUP($B181,'Saisie Poussins'!$B$165:$AI$208,26+K$1,FALSE),0) -> 0 | L181: =IFERROR(VLOOKUP($B181,'Saisie Poussins'!$B$165:$AI$208,26+L$1,FALSE),0) -> 0 | M181: =IFERROR(VLOOKUP($B181,'Saisie Poussins'!$B$165:$AI$208,26+M$1,FALSE),0) -> 0 | N181: =IFERROR(VLOOKUP($B181,'Saisie Poussins'!$B$165:$AI$208,26+N$1,FALSE),0) -> 0 | O181: =IFERROR(VLOOKUP($B181,'Saisie Poussins'!$B$165:$AI$208,26+O$1,FALSE),0) -> 0 | P181: =IFERROR(VLOOKUP($B181,'Saisie Poussins'!$B$165:$AI$208,26+P$1,FALSE),0) -> 0
A182: =IFERROR(IF(A181+1<='Saisie Poussins'!$AJ$163,A181+1,""),"") ->  | B182: =IFERROR(VLOOKUP(A182,'Saisie Poussins'!$BE$165:$BF$208,2,FALSE),"") -> 0 | C182: =IFERROR(VLOOKUP($B182,'Saisie Poussins'!$B$13:$AI$56,1+C$1,FALSE),0) -> 0 | D182: =IFERROR(VLOOKUP($B182,'Saisie Poussins'!$B$13:$AI$56,1+D$1,FALSE),0) -> 0 | E182: =IFERROR(VLOOKUP($B182,'Saisie Poussins'!$B$13:$AI$56,1+E$1,FALSE),0) -> 0 | F182: =IFERROR(VLOOKUP($B182,'Saisie Poussins'!$B$13:$AI$56,1+F$1,FALSE),0) -> 0 | G182: =IFERROR(VLOOKUP($B182,'Saisie Poussins'!$B$13:$AI$56,1+G$1,FALSE),0) -> 0 | H182: =IFERROR(VLOOKUP($B182,'Saisie Poussins'!$B$13:$AI$56,1+H$1,FALSE),0) -> 0 | I182: =IFERROR(VLOOKUP($B182,'Saisie Poussins'!$B$165:$AI$208,26+I$1,FALSE),0) -> 0 | J182: =IFERROR(VLOOKUP($B182,'Saisie Poussins'!$B$165:$AI$208,26+J$1,FALSE),0) -> 0 | K182: =IFERROR(VLOOKUP($B182,'Saisie Poussins'!$B$165:$AI$208,26+K$1,FALSE),0) -> 0 | L182: =IFERROR(VLOOKUP($B182,'Saisie Poussins'!$B$165:$AI$208,26+L$1,FALSE),0) -> 0 | M182: =IFERROR(VLOOKUP($B182,'Saisie Poussins'!$B$165:$AI$208,26+M$1,FALSE),0) -> 0 | N182: =IFERROR(VLOOKUP($B182,'Saisie Poussins'!$B$165:$AI$208,26+N$1,FALSE),0) -> 0 | O182: =IFERROR(VLOOKUP($B182,'Saisie Poussins'!$B$165:$AI$208,26+O$1,FALSE),0) -> 0 | P182: =IFERROR(VLOOKUP($B182,'Saisie Poussins'!$B$165:$AI$208,26+P$1,FALSE),0) -> 0
A183: =IFERROR(IF(A182+1<='Saisie Poussins'!$AJ$163,A182+1,""),"") ->  | B183: =IFERROR(VLOOKUP(A183,'Saisie Poussins'!$BE$165:$BF$208,2,FALSE),"") -> 0 | C183: =IFERROR(VLOOKUP($B183,'Saisie Poussins'!$B$13:$AI$56,1+C$1,FALSE),0) -> 0 | D183: =IFERROR(VLOOKUP($B183,'Saisie Poussins'!$B$13:$AI$56,1+D$1,FALSE),0) -> 0 | E183: =IFERROR(VLOOKUP($B183,'Saisie Poussins'!$B$13:$AI$56,1+E$1,FALSE),0) -> 0 | F183: =IFERROR(VLOOKUP($B183,'Saisie Poussins'!$B$13:$AI$56,1+F$1,FALSE),0) -> 0 | G183: =IFERROR(VLOOKUP($B183,'Saisie Poussins'!$B$13:$AI$56,1+G$1,FALSE),0) -> 0 | H183: =IFERROR(VLOOKUP($B183,'Saisie Poussins'!$B$13:$AI$56,1+H$1,FALSE),0) -> 0 | I183: =IFERROR(VLOOKUP($B183,'Saisie Poussins'!$B$165:$AI$208,26+I$1,FALSE),0) -> 0 | J183: =IFERROR(VLOOKUP($B183,'Saisie Poussins'!$B$165:$AI$208,26+J$1,FALSE),0) -> 0 | K183: =IFERROR(VLOOKUP($B183,'Saisie Poussins'!$B$165:$AI$208,26+K$1,FALSE),0) -> 0 | L183: =IFERROR(VLOOKUP($B183,'Saisie Poussins'!$B$165:$AI$208,26+L$1,FALSE),0) -> 0 | M183: =IFERROR(VLOOKUP($B183,'Saisie Poussins'!$B$165:$AI$208,26+M$1,FALSE),0) -> 0 | N183: =IFERROR(VLOOKUP($B183,'Saisie Poussins'!$B$165:$AI$208,26+N$1,FALSE),0) -> 0 | O183: =IFERROR(VLOOKUP($B183,'Saisie Poussins'!$B$165:$AI$208,26+O$1,FALSE),0) -> 0 | P183: =IFERROR(VLOOKUP($B183,'Saisie Poussins'!$B$165:$AI$208,26+P$1,FALSE),0) -> 0
A184: =IFERROR(IF(A183+1<='Saisie Poussins'!$AJ$163,A183+1,""),"") ->  | B184: =IFERROR(VLOOKUP(A184,'Saisie Poussins'!$BE$165:$BF$208,2,FALSE),"") -> 0 | C184: =IFERROR(VLOOKUP($B184,'Saisie Poussins'!$B$13:$AI$56,1+C$1,FALSE),0) -> 0 | D184: =IFERROR(VLOOKUP($B184,'Saisie Poussins'!$B$13:$AI$56,1+D$1,FALSE),0) -> 0 | E184: =IFERROR(VLOOKUP($B184,'Saisie Poussins'!$B$13:$AI$56,1+E$1,FALSE),0) -> 0 | F184: =IFERROR(VLOOKUP($B184,'Saisie Poussins'!$B$13:$AI$56,1+F$1,FALSE),0) -> 0 | G184: =IFERROR(VLOOKUP($B184,'Saisie Poussins'!$B$13:$AI$56,1+G$1,FALSE),0) -> 0 | H184: =IFERROR(VLOOKUP($B184,'Saisie Poussins'!$B$13:$AI$56,1+H$1,FALSE),0) -> 0 | I184: =IFERROR(VLOOKUP($B184,'Saisie Poussins'!$B$165:$AI$208,26+I$1,FALSE),0) -> 0 | J184: =IFERROR(VLOOKUP($B184,'Saisie Poussins'!$B$165:$AI$208,26+J$1,FALSE),0) -> 0 | K184: =IFERROR(VLOOKUP($B184,'Saisie Poussins'!$B$165:$AI$208,26+K$1,FALSE),0) -> 0 | L184: =IFERROR(VLOOKUP($B184,'Saisie Poussins'!$B$165:$AI$208,26+L$1,FALSE),0) -> 0 | M184: =IFERROR(VLOOKUP($B184,'Saisie Poussins'!$B$165:$AI$208,26+M$1,FALSE),0) -> 0 | N184: =IFERROR(VLOOKUP($B184,'Saisie Poussins'!$B$165:$AI$208,26+N$1,FALSE),0) -> 0 | O184: =IFERROR(VLOOKUP($B184,'Saisie Poussins'!$B$165:$AI$208,26+O$1,FALSE),0) -> 0 | P184: =IFERROR(VLOOKUP($B184,'Saisie Poussins'!$B$165:$AI$208,26+P$1,FALSE),0) -> 0
A185: =IFERROR(IF(A184+1<='Saisie Poussins'!$AJ$163,A184+1,""),"") ->  | B185: =IFERROR(VLOOKUP(A185,'Saisie Poussins'!$BE$165:$BF$208,2,FALSE),"") -> 0 | C185: =IFERROR(VLOOKUP($B185,'Saisie Poussins'!$B$13:$AI$56,1+C$1,FALSE),0) -> 0 | D185: =IFERROR(VLOOKUP($B185,'Saisie Poussins'!$B$13:$AI$56,1+D$1,FALSE),0) -> 0 | E185: =IFERROR(VLOOKUP($B185,'Saisie Poussins'!$B$13:$AI$56,1+E$1,FALSE),0) -> 0 | F185: =IFERROR(VLOOKUP($B185,'Saisie Poussins'!$B$13:$AI$56,1+F$1,FALSE),0) -> 0 | G185: =IFERROR(VLOOKUP($B185,'Saisie Poussins'!$B$13:$AI$56,1+G$1,FALSE),0) -> 0 | H185: =IFERROR(VLOOKUP($B185,'Saisie Poussins'!$B$13:$AI$56,1+H$1,FALSE),0) -> 0 | I185: =IFERROR(VLOOKUP($B185,'Saisie Poussins'!$B$165:$AI$208,26+I$1,FALSE),0) -> 0 | J185: =IFERROR(VLOOKUP($B185,'Saisie Poussins'!$B$165:$AI$208,26+J$1,FALSE),0) -> 0 | K185: =IFERROR(VLOOKUP($B185,'Saisie Poussins'!$B$165:$AI$208,26+K$1,FALSE),0) -> 0 | L185: =IFERROR(VLOOKUP($B185,'Saisie Poussins'!$B$165:$AI$208,26+L$1,FALSE),0) -> 0 | M185: =IFERROR(VLOOKUP($B185,'Saisie Poussins'!$B$165:$AI$208,26+M$1,FALSE),0) -> 0 | N185: =IFERROR(VLOOKUP($B185,'Saisie Poussins'!$B$165:$AI$208,26+N$1,FALSE),0) -> 0 | O185: =IFERROR(VLOOKUP($B185,'Saisie Poussins'!$B$165:$AI$208,26+O$1,FALSE),0) -> 0 | P185: =IFERROR(VLOOKUP($B185,'Saisie Poussins'!$B$165:$AI$208,26+P$1,FALSE),0) -> 0
A186: =IFERROR(IF(A185+1<='Saisie Poussins'!$AJ$163,A185+1,""),"") ->  | B186: =IFERROR(VLOOKUP(A186,'Saisie Poussins'!$BE$165:$BF$208,2,FALSE),"") -> 0 | C186: =IFERROR(VLOOKUP($B186,'Saisie Poussins'!$B$13:$AI$56,1+C$1,FALSE),0) -> 0 | D186: =IFERROR(VLOOKUP($B186,'Saisie Poussins'!$B$13:$AI$56,1+D$1,FALSE),0) -> 0 | E186: =IFERROR(VLOOKUP($B186,'Saisie Poussins'!$B$13:$AI$56,1+E$1,FALSE),0) -> 0 | F186: =IFERROR(VLOOKUP($B186,'Saisie Poussins'!$B$13:$AI$56,1+F$1,FALSE),0) -> 0 | G186: =IFERROR(VLOOKUP($B186,'Saisie Poussins'!$B$13:$AI$56,1+G$1,FALSE),0) -> 0 | H186: =IFERROR(VLOOKUP($B186,'Saisie Poussins'!$B$13:$AI$56,1+H$1,FALSE),0) -> 0 | I186: =IFERROR(VLOOKUP($B186,'Saisie Poussins'!$B$165:$AI$208,26+I$1,FALSE),0) -> 0 | J186: =IFERROR(VLOOKUP($B186,'Saisie Poussins'!$B$165:$AI$208,26+J$1,FALSE),0) -> 0 | K186: =IFERROR(VLOOKUP($B186,'Saisie Poussins'!$B$165:$AI$208,26+K$1,FALSE),0) -> 0 | L186: =IFERROR(VLOOKUP($B186,'Saisie Poussins'!$B$165:$AI$208,26+L$1,FALSE),0) -> 0 | M186: =IFERROR(VLOOKUP($B186,'Saisie Poussins'!$B$165:$AI$208,26+M$1,FALSE),0) -> 0 | N186: =IFERROR(VLOOKUP($B186,'Saisie Poussins'!$B$165:$AI$208,26+N$1,FALSE),0) -> 0 | O186: =IFERROR(VLOOKUP($B186,'Saisie Poussins'!$B$165:$AI$208,26+O$1,FALSE),0) -> 0 | P186: =IFERROR(VLOOKUP($B186,'Saisie Poussins'!$B$165:$AI$208,26+P$1,FALSE),0) -> 0
A187: =IFERROR(IF(A186+1<='Saisie Poussins'!$AJ$163,A186+1,""),"") ->  | B187: =IFERROR(VLOOKUP(A187,'Saisie Poussins'!$BE$165:$BF$208,2,FALSE),"") -> 0 | C187: =IFERROR(VLOOKUP($B187,'Saisie Poussins'!$B$13:$AI$56,1+C$1,FALSE),0) -> 0 | D187: =IFERROR(VLOOKUP($B187,'Saisie Poussins'!$B$13:$AI$56,1+D$1,FALSE),0) -> 0 | E187: =IFERROR(VLOOKUP($B187,'Saisie Poussins'!$B$13:$AI$56,1+E$1,FALSE),0) -> 0 | F187: =IFERROR(VLOOKUP($B187,'Saisie Poussins'!$B$13:$AI$56,1+F$1,FALSE),0) -> 0 | G187: =IFERROR(VLOOKUP($B187,'Saisie Poussins'!$B$13:$AI$56,1+G$1,FALSE),0) -> 0 | H187: =IFERROR(VLOOKUP($B187,'Saisie Poussins'!$B$13:$AI$56,1+H$1,FALSE),0) -> 0 | I187: =IFERROR(VLOOKUP($B187,'Saisie Poussins'!$B$165:$AI$208,26+I$1,FALSE),0) -> 0 | J187: =IFERROR(VLOOKUP($B187,'Saisie Poussins'!$B$165:$AI$208,26+J$1,FALSE),0) -> 0 | K187: =IFERROR(VLOOKUP($B187,'Saisie Poussins'!$B$165:$AI$208,26+K$1,FALSE),0) -> 0 | L187: =IFERROR(VLOOKUP($B187,'Saisie Poussins'!$B$165:$AI$208,26+L$1,FALSE),0) -> 0 | M187: =IFERROR(VLOOKUP($B187,'Saisie Poussins'!$B$165:$AI$208,26+M$1,FALSE),0) -> 0 | N187: =IFERROR(VLOOKUP($B187,'Saisie Poussins'!$B$165:$AI$208,26+N$1,FALSE),0) -> 0 | O187: =IFERROR(VLOOKUP($B187,'Saisie Poussins'!$B$165:$AI$208,26+O$1,FALSE),0) -> 0 | P187: =IFERROR(VLOOKUP($B187,'Saisie Poussins'!$B$165:$AI$208,26+P$1,FALSE),0) -> 0
A188: =IFERROR(IF(A187+1<='Saisie Poussins'!$AJ$163,A187+1,""),"") ->  | B188: =IFERROR(VLOOKUP(A188,'Saisie Poussins'!$BE$165:$BF$208,2,FALSE),"") -> 0 | C188: =IFERROR(VLOOKUP($B188,'Saisie Poussins'!$B$13:$AI$56,1+C$1,FALSE),0) -> 0 | D188: =IFERROR(VLOOKUP($B188,'Saisie Poussins'!$B$13:$AI$56,1+D$1,FALSE),0) -> 0 | E188: =IFERROR(VLOOKUP($B188,'Saisie Poussins'!$B$13:$AI$56,1+E$1,FALSE),0) -> 0 | F188: =IFERROR(VLOOKUP($B188,'Saisie Poussins'!$B$13:$AI$56,1+F$1,FALSE),0) -> 0 | G188: =IFERROR(VLOOKUP($B188,'Saisie Poussins'!$B$13:$AI$56,1+G$1,FALSE),0) -> 0 | H188: =IFERROR(VLOOKUP($B188,'Saisie Poussins'!$B$13:$AI$56,1+H$1,FALSE),0) -> 0 | I188: =IFERROR(VLOOKUP($B188,'Saisie Poussins'!$B$165:$AI$208,26+I$1,FALSE),0) -> 0 | J188: =IFERROR(VLOOKUP($B188,'Saisie Poussins'!$B$165:$AI$208,26+J$1,FALSE),0) -> 0 | K188: =IFERROR(VLOOKUP($B188,'Saisie Poussins'!$B$165:$AI$208,26+K$1,FALSE),0) -> 0 | L188: =IFERROR(VLOOKUP($B188,'Saisie Poussins'!$B$165:$AI$208,26+L$1,FALSE),0) -> 0 | M188: =IFERROR(VLOOKUP($B188,'Saisie Poussins'!$B$165:$AI$208,26+M$1,FALSE),0) -> 0 | N188: =IFERROR(VLOOKUP($B188,'Saisie Poussins'!$B$165:$AI$208,26+N$1,FALSE),0) -> 0 | O188: =IFERROR(VLOOKUP($B188,'Saisie Poussins'!$B$165:$AI$208,26+O$1,FALSE),0) -> 0 | P188: =IFERROR(VLOOKUP($B188,'Saisie Poussins'!$B$165:$AI$208,26+P$1,FALSE),0) -> 0
A189: =IFERROR(IF(A188+1<='Saisie Poussins'!$AJ$163,A188+1,""),"") ->  | B189: =IFERROR(VLOOKUP(A189,'Saisie Poussins'!$BE$165:$BF$208,2,FALSE),"") -> 0 | C189: =IFERROR(VLOOKUP($B189,'Saisie Poussins'!$B$13:$AI$56,1+C$1,FALSE),0) -> 0 | D189: =IFERROR(VLOOKUP($B189,'Saisie Poussins'!$B$13:$AI$56,1+D$1,FALSE),0) -> 0 | E189: =IFERROR(VLOOKUP($B189,'Saisie Poussins'!$B$13:$AI$56,1+E$1,FALSE),0) -> 0 | F189: =IFERROR(VLOOKUP($B189,'Saisie Poussins'!$B$13:$AI$56,1+F$1,FALSE),0) -> 0 | G189: =IFERROR(VLOOKUP($B189,'Saisie Poussins'!$B$13:$AI$56,1+G$1,FALSE),0) -> 0 | H189: =IFERROR(VLOOKUP($B189,'Saisie Poussins'!$B$13:$AI$56,1+H$1,FALSE),0) -> 0 | I189: =IFERROR(VLOOKUP($B189,'Saisie Poussins'!$B$165:$AI$208,26+I$1,FALSE),0) -> 0 | J189: =IFERROR(VLOOKUP($B189,'Saisie Poussins'!$B$165:$AI$208,26+J$1,FALSE),0) -> 0 | K189: =IFERROR(VLOOKUP($B189,'Saisie Poussins'!$B$165:$AI$208,26+K$1,FALSE),0) -> 0 | L189: =IFERROR(VLOOKUP($B189,'Saisie Poussins'!$B$165:$AI$208,26+L$1,FALSE),0) -> 0 | M189: =IFERROR(VLOOKUP($B189,'Saisie Poussins'!$B$165:$AI$208,26+M$1,FALSE),0) -> 0 | N189: =IFERROR(VLOOKUP($B189,'Saisie Poussins'!$B$165:$AI$208,26+N$1,FALSE),0) -> 0 | O189: =IFERROR(VLOOKUP($B189,'Saisie Poussins'!$B$165:$AI$208,26+O$1,FALSE),0) -> 0 | P189: =IFERROR(VLOOKUP($B189,'Saisie Poussins'!$B$165:$AI$208,26+P$1,FALSE),0) -> 0
A190: =IFERROR(IF(A189+1<='Saisie Poussins'!$AJ$163,A189+1,""),"") ->  | B190: =IFERROR(VLOOKUP(A190,'Saisie Poussins'!$BE$165:$BF$208,2,FALSE),"") -> 0 | C190: =IFERROR(VLOOKUP($B190,'Saisie Poussins'!$B$13:$AI$56,1+C$1,FALSE),0) -> 0 | D190: =IFERROR(VLOOKUP($B190,'Saisie Poussins'!$B$13:$AI$56,1+D$1,FALSE),0) -> 0 | E190: =IFERROR(VLOOKUP($B190,'Saisie Poussins'!$B$13:$AI$56,1+E$1,FALSE),0) -> 0 | F190: =IFERROR(VLOOKUP($B190,'Saisie Poussins'!$B$13:$AI$56,1+F$1,FALSE),0) -> 0 | G190: =IFERROR(VLOOKUP($B190,'Saisie Poussins'!$B$13:$AI$56,1+G$1,FALSE),0) -> 0 | H190: =IFERROR(VLOOKUP($B190,'Saisie Poussins'!$B$13:$AI$56,1+H$1,FALSE),0) -> 0 | I190: =IFERROR(VLOOKUP($B190,'Saisie Poussins'!$B$165:$AI$208,26+I$1,FALSE),0) -> 0 | J190: =IFERROR(VLOOKUP($B190,'Saisie Poussins'!$B$165:$AI$208,26+J$1,FALSE),0) -> 0 | K190: =IFERROR(VLOOKUP($B190,'Saisie Poussins'!$B$165:$AI$208,26+K$1,FALSE),0) -> 0 | L190: =IFERROR(VLOOKUP($B190,'Saisie Poussins'!$B$165:$AI$208,26+L$1,FALSE),0) -> 0 | M190: =IFERROR(VLOOKUP($B190,'Saisie Poussins'!$B$165:$AI$208,26+M$1,FALSE),0) -> 0 | N190: =IFERROR(VLOOKUP($B190,'Saisie Poussins'!$B$165:$AI$208,26+N$1,FALSE),0) -> 0 | O190: =IFERROR(VLOOKUP($B190,'Saisie Poussins'!$B$165:$AI$208,26+O$1,FALSE),0) -> 0 | P190: =IFERROR(VLOOKUP($B190,'Saisie Poussins'!$B$165:$AI$208,26+P$1,FALSE),0) -> 0
A191: =IFERROR(IF(A190+1<='Saisie Poussins'!$AJ$163,A190+1,""),"") ->  | B191: =IFERROR(VLOOKUP(A191,'Saisie Poussins'!$BE$165:$BF$208,2,FALSE),"") -> 0 | C191: =IFERROR(VLOOKUP($B191,'Saisie Poussins'!$B$13:$AI$56,1+C$1,FALSE),0) -> 0 | D191: =IFERROR(VLOOKUP($B191,'Saisie Poussins'!$B$13:$AI$56,1+D$1,FALSE),0) -> 0 | E191: =IFERROR(VLOOKUP($B191,'Saisie Poussins'!$B$13:$AI$56,1+E$1,FALSE),0) -> 0 | F191: =IFERROR(VLOOKUP($B191,'Saisie Poussins'!$B$13:$AI$56,1+F$1,FALSE),0) -> 0 | G191: =IFERROR(VLOOKUP($B191,'Saisie Poussins'!$B$13:$AI$56,1+G$1,FALSE),0) -> 0 | H191: =IFERROR(VLOOKUP($B191,'Saisie Poussins'!$B$13:$AI$56,1+H$1,FALSE),0) -> 0 | I191: =IFERROR(VLOOKUP($B191,'Saisie Poussins'!$B$165:$AI$208,26+I$1,FALSE),0) -> 0 | J191: =IFERROR(VLOOKUP($B191,'Saisie Poussins'!$B$165:$AI$208,26+J$1,FALSE),0) -> 0 | K191: =IFERROR(VLOOKUP($B191,'Saisie Poussins'!$B$165:$AI$208,26+K$1,FALSE),0) -> 0 | L191: =IFERROR(VLOOKUP($B191,'Saisie Poussins'!$B$165:$AI$208,26+L$1,FALSE),0) -> 0 | M191: =IFERROR(VLOOKUP($B191,'Saisie Poussins'!$B$165:$AI$208,26+M$1,FALSE),0) -> 0 | N191: =IFERROR(VLOOKUP($B191,'Saisie Poussins'!$B$165:$AI$208,26+N$1,FALSE),0) -> 0 | O191: =IFERROR(VLOOKUP($B191,'Saisie Poussins'!$B$165:$AI$208,26+O$1,FALSE),0) -> 0 | P191: =IFERROR(VLOOKUP($B191,'Saisie Poussins'!$B$165:$AI$208,26+P$1,FALSE),0) -> 0
A192: =IFERROR(IF(A191+1<='Saisie Poussins'!$AJ$163,A191+1,""),"") ->  | B192: =IFERROR(VLOOKUP(A192,'Saisie Poussins'!$BE$165:$BF$208,2,FALSE),"") -> 0 | C192: =IFERROR(VLOOKUP($B192,'Saisie Poussins'!$B$13:$AI$56,1+C$1,FALSE),0) -> 0 | D192: =IFERROR(VLOOKUP($B192,'Saisie Poussins'!$B$13:$AI$56,1+D$1,FALSE),0) -> 0 | E192: =IFERROR(VLOOKUP($B192,'Saisie Poussins'!$B$13:$AI$56,1+E$1,FALSE),0) -> 0 | F192: =IFERROR(VLOOKUP($B192,'Saisie Poussins'!$B$13:$AI$56,1+F$1,FALSE),0) -> 0 | G192: =IFERROR(VLOOKUP($B192,'Saisie Poussins'!$B$13:$AI$56,1+G$1,FALSE),0) -> 0 | H192: =IFERROR(VLOOKUP($B192,'Saisie Poussins'!$B$13:$AI$56,1+H$1,FALSE),0) -> 0 | I192: =IFERROR(VLOOKUP($B192,'Saisie Poussins'!$B$165:$AI$208,26+I$1,FALSE),0) -> 0 | J192: =IFERROR(VLOOKUP($B192,'Saisie Poussins'!$B$165:$AI$208,26+J$1,FALSE),0) -> 0 | K192: =IFERROR(VLOOKUP($B192,'Saisie Poussins'!$B$165:$AI$208,26+K$1,FALSE),0) -> 0 | L192: =IFERROR(VLOOKUP($B192,'Saisie Poussins'!$B$165:$AI$208,26+L$1,FALSE),0) -> 0 | M192: =IFERROR(VLOOKUP($B192,'Saisie Poussins'!$B$165:$AI$208,26+M$1,FALSE),0) -> 0 | N192: =IFERROR(VLOOKUP($B192,'Saisie Poussins'!$B$165:$AI$208,26+N$1,FALSE),0) -> 0 | O192: =IFERROR(VLOOKUP($B192,'Saisie Poussins'!$B$165:$AI$208,26+O$1,FALSE),0) -> 0 | P192: =IFERROR(VLOOKUP($B192,'Saisie Poussins'!$B$165:$AI$208,26+P$1,FALSE),0) -> 0
A193: =IFERROR(IF(A192+1<='Saisie Poussins'!$AJ$163,A192+1,""),"") ->  | B193: =IFERROR(VLOOKUP(A193,'Saisie Poussins'!$BE$165:$BF$208,2,FALSE),"") -> 0 | C193: =IFERROR(VLOOKUP($B193,'Saisie Poussins'!$B$13:$AI$56,1+C$1,FALSE),0) -> 0 | D193: =IFERROR(VLOOKUP($B193,'Saisie Poussins'!$B$13:$AI$56,1+D$1,FALSE),0) -> 0 | E193: =IFERROR(VLOOKUP($B193,'Saisie Poussins'!$B$13:$AI$56,1+E$1,FALSE),0) -> 0 | F193: =IFERROR(VLOOKUP($B193,'Saisie Poussins'!$B$13:$AI$56,1+F$1,FALSE),0) -> 0 | G193: =IFERROR(VLOOKUP($B193,'Saisie Poussins'!$B$13:$AI$56,1+G$1,FALSE),0) -> 0 | H193: =IFERROR(VLOOKUP($B193,'Saisie Poussins'!$B$13:$AI$56,1+H$1,FALSE),0) -> 0 | I193: =IFERROR(VLOOKUP($B193,'Saisie Poussins'!$B$165:$AI$208,26+I$1,FALSE),0) -> 0 | J193: =IFERROR(VLOOKUP($B193,'Saisie Poussins'!$B$165:$AI$208,26+J$1,FALSE),0) -> 0 | K193: =IFERROR(VLOOKUP($B193,'Saisie Poussins'!$B$165:$AI$208,26+K$1,FALSE),0) -> 0 | L193: =IFERROR(VLOOKUP($B193,'Saisie Poussins'!$B$165:$AI$208,26+L$1,FALSE),0) -> 0 | M193: =IFERROR(VLOOKUP($B193,'Saisie Poussins'!$B$165:$AI$208,26+M$1,FALSE),0) -> 0 | N193: =IFERROR(VLOOKUP($B193,'Saisie Poussins'!$B$165:$AI$208,26+N$1,FALSE),0) -> 0 | O193: =IFERROR(VLOOKUP($B193,'Saisie Poussins'!$B$165:$AI$208,26+O$1,FALSE),0) -> 0 | P193: =IFERROR(VLOOKUP($B193,'Saisie Poussins'!$B$165:$AI$208,26+P$1,FALSE),0) -> 0
B194: Leader Agilité | D194: ='Saisie Poussins'!E6 -> BOISSON Marius - ROUE D`OR NOIDANS | I194: ="Challenge régional "&Accueil!$C$3&" - "&Accueil!$C$5 -> Challenge régional BOURGOGNE FRANCHE COMTE - 2022
B195: Classement Agilité
A196: Place | B196: Licence | C196: Nom | D196: Prénom | F196: Club | G196: Catégorie | H196: Année | J196: =RIGHT(CELL("nomfichier",$A$1), LEN(CELL("nomfichier",$A$1))-FIND("]", CELL("nomfichier",$A$1))) -> Classement Poussins
I197: =Accueil!B$10 -> 03/04/2022 Luxeuil | J197: =Accueil!C$10 -> 24/04/2022 Noidans les Vesoul | K197: =Accueil!D$10 -> 1/05/2022 Vescemont | L197: =Accueil!E$10 -> 08/05/2022 Morteau | M197: =Accueil!F$10 -> 22/05/2022 Pontarlier | N197: =Accueil!G$10 -> 05/06/2022 Vadans | O197: =Accueil!H$10 -> 12/06/2022 Montbéliard | P197: =Accueil!I$10 -> 02 et 03/07/2022 Bletterans | Q197: Total des 5 meilleurs
A198: 1 | B198: =IFERROR(IF(A198<>"",VLOOKUP(A198,'Saisie Poussins'!$BE$219:$BF$262,2,FALSE),""),"") -> 42900480168 | C198: =IFERROR(VLOOKUP($B198,'Saisie Poussins'!$B$13:$AI$56,1+C$1,FALSE),0) -> MURATORI | D198: =IFERROR(VLOOKUP($B198,'Saisie Poussins'!$B$13:$AI$56,1+D$1,FALSE),0) -> EZYO | E198: =IFERROR(VLOOKUP($B198,'Saisie Poussins'!$B$13:$AI$56,1+E$1,FALSE),0) -> H | F198: =IFERROR(VLOOKUP($B198,'Saisie Poussins'!$B$13:$AI$56,1+F$1,FALSE),0) -> CC BELFORT MIOTTE | G198: =IFERROR(VLOOKUP($B198,'Saisie Poussins'!$B$13:$AI$56,1+G$1,FALSE),0) -> Poussin | H198: =IFERROR(VLOOKUP($B198,'Saisie Poussins'!$B$13:$AI$56,1+H$1,FALSE),0) -> 2 | I198: =IFERROR(VLOOKUP($B198,'Saisie Poussins'!$B$219:$AI$262,26+I$1,FALSE),0) -> 0 | J198: =IFERROR(VLOOKUP($B198,'Saisie Poussins'!$B$219:$AI$262,26+J$1,FALSE),0) -> 25 | K198: =IFERROR(VLOOKUP($B198,'Saisie Poussins'!$B$219:$AI$262,26+K$1,FALSE),0) -> 0 | L198: =IFERROR(VLOOKUP($B198,'Saisie Poussins'!$B$219:$AI$262,26+L$1,FALSE),0) -> 0 | M198: =IFERROR(VLOOKUP($B198,'Saisie Poussins'!$B$219:$AI$262,26+M$1,FALSE),0) -> 0 | N198: =IFERROR(VLOOKUP($B198,'Saisie Poussins'!$B$219:$AI$262,26+N$1,FALSE),0) -> 0 | O198: =IFERROR(VLOOKUP($B198,'Saisie Poussins'!$B$219:$AI$262,26+O$1,FALSE),0) -> 0 | P198: =IFERROR(VLOOKUP($B198,'Saisie Poussins'!$B$219:$AI$262,26+P$1,FALSE),0) -> 0 | Q198: =IF(B198>0,SUM(I198:P198),"") -> 25
A199: =IFERROR(IF(A198+1<='Saisie Poussins'!$BF$218,A198+1,""),"") -> 2 | B199: =IFERROR(IF(A199<>"",VLOOKUP(A199,'Saisie Poussins'!$BE$219:$BF$262,2,FALSE),""),"") -> 42700060248 | C199: =IFERROR(VLOOKUP($B199,'Saisie Poussins'!$B$13:$AI$56,1+C$1,FALSE),0) -> BOISSON | D199: =IFERROR(VLOOKUP($B199,'Saisie Poussins'!$B$13:$AI$56,1+D$1,FALSE),0) -> Marius | E199: =IFERROR(VLOOKUP($B199,'Saisie Poussins'!$B$13:$AI$56,1+E$1,FALSE),0) -> H | F199: =IFERROR(VLOOKUP($B199,'Saisie Poussins'!$B$13:$AI$56,1+F$1,FALSE),0) -> ROUE D`OR NOIDANS | G199: =IFERROR(VLOOKUP($B199,'Saisie Poussins'!$B$13:$AI$56,1+G$1,FALSE),0) -> Poussin | H199: =IFERROR(VLOOKUP($B199,'Saisie Poussins'!$B$13:$AI$56,1+H$1,FALSE),0) -> 1 | I199: =IFERROR(VLOOKUP($B199,'Saisie Poussins'!$B$219:$AI$262,26+I$1,FALSE),0) -> 0 | J199: =IFERROR(VLOOKUP($B199,'Saisie Poussins'!$B$219:$AI$262,26+J$1,FALSE),0) -> 25 | K199: =IFERROR(VLOOKUP($B199,'Saisie Poussins'!$B$219:$AI$262,26+K$1,FALSE),0) -> 0 | L199: =IFERROR(VLOOKUP($B199,'Saisie Poussins'!$B$219:$AI$262,26+L$1,FALSE),0) -> 0 | M199: =IFERROR(VLOOKUP($B199,'Saisie Poussins'!$B$219:$AI$262,26+M$1,FALSE),0) -> 0 | N199: =IFERROR(VLOOKUP($B199,'Saisie Poussins'!$B$219:$AI$262,26+N$1,FALSE),0) -> 0 | O199: =IFERROR(VLOOKUP($B199,'Saisie Poussins'!$B$219:$AI$262,26+O$1,FALSE),0) -> 0 | P199: =IFERROR(VLOOKUP($B199,'Saisie Poussins'!$B$219:$AI$262,26+P$1,FALSE),0) -> 0 | Q199: =IF(B199>0,SUM(I199:P199),"") -> 25
A200: =IFERROR(IF(A199+1<='Saisie Poussins'!$BF$218,A199+1,""),"") -> 3 | B200: =IFERROR(IF(A200<>"",VLOOKUP(A200,'Saisie Poussins'!$BE$219:$BF$262,2,FALSE),""),"") -> 42250181174 | C200: =IFERROR(VLOOKUP($B200,'Saisie Poussins'!$B$13:$AI$56,1+C$1,FALSE),0) -> DEVILLERS | D200: =IFERROR(VLOOKUP($B200,'Saisie Poussins'!$B$13:$AI$56,1+D$1,FALSE),0) -> Lylou | E200: =IFERROR(VLOOKUP($B200,'Saisie Poussins'!$B$13:$AI$56,1+E$1,FALSE),0) -> D | F200: =IFERROR(VLOOKUP($B200,'Saisie Poussins'!$B$13:$AI$56,1+F$1,FALSE),0) -> VC MORTEAU MONTBENOIT | G200: =IFERROR(VLOOKUP($B200,'Saisie Poussins'!$B$13:$AI$56,1+G$1,FALSE),0) -> Poussin | H200: =IFERROR(VLOOKUP($B200,'Saisie Poussins'!$B$13:$AI$56,1+H$1,FALSE),0) -> 2 | I200: =IFERROR(VLOOKUP($B200,'Saisie Poussins'!$B$219:$AI$262,26+I$1,FALSE),0) -> 0 | J200: =IFERROR(VLOOKUP($B200,'Saisie Poussins'!$B$219:$AI$262,26+J$1,FALSE),0) -> 20 | K200: =IFERROR(VLOOKUP($B200,'Saisie Poussins'!$B$219:$AI$262,26+K$1,FALSE),0) -> 0 | L200: =IFERROR(VLOOKUP($B200,'Saisie Poussins'!$B$219:$AI$262,26+L$1,FALSE),0) -> 0 | M200: =IFERROR(VLOOKUP($B200,'Saisie Poussins'!$B$219:$AI$262,26+M$1,FALSE),0) -> 0 | N200: =IFERROR(VLOOKUP($B200,'Saisie Poussins'!$B$219:$AI$262,26+N$1,FALSE),0) -> 0 | O200: =IFERROR(VLOOKUP($B200,'Saisie Poussins'!$B$219:$AI$262,26+O$1,FALSE),0) -> 0 | P200: =IFERROR(VLOOKUP($B200,'Saisie Poussins'!$B$219:$AI$262,26+P$1,FALSE),0) -> 0 | Q200: 20
... 86 more rows

Sheet Classement Pupilles
C1: 1 | D1: 2 | E1: 3 | F1: 5 | G1: 6 | H1: 7 | I1: 1 | J1: 2 | K1: 3 | L1: 4 | M1: 5 | N1: 6 | O1: 7 | P1: 8
B2: Leader maillot Jaune | D2: ='Saisie Pupilles'!E2 -> LEHERLE Thibaut - V.C.DE MONTBELIARD | I2: ="Challenge régional "&Accueil!$C$3&" - "&Accueil!$C$5 -> Challenge régional BOURGOGNE FRANCHE COMTE - 2022
B3: Classement Général
A4: Place | B4: Licence | C4: Nom | D4: Prénom | F4: Club | G4: Catégorie | H4: Année | J4: =RIGHT(CELL("nomfichier",$A$1), LEN(CELL("nomfichier",$A$1))-FIND("]", CELL("nomfichier",$A$1))) -> Classement Pupilles
I5: =Accueil!B$10 -> 03/04/2022 Luxeuil | J5: =Accueil!C$10 -> 24/04/2022 Noidans les Vesoul | K5: =Accueil!D$10 -> 1/05/2022 Vescemont | L5: =Accueil!E$10 -> 08/05/2022 Morteau | M5: =Accueil!F$10 -> 22/05/2022 Pontarlier | N5: =Accueil!G$10 -> 05/06/2022 Vadans | O5: =Accueil!H$10 -> 12/06/2022 Montbéliard | P5: =Accueil!I$10 -> 02 et 03/07/2022 Bletterans | Q5: Total des 5 meilleurs
A6: 1 | B6: =IFERROR(IF(A6<>"",VLOOKUP(A6,'Saisie Pupilles'!$BE$13:$BF$56,2,FALSE),""),"") -> 42250120128 | C6: =IFERROR(VLOOKUP($B6,'Saisie Pupilles'!$B$13:$AI$56,1+C$1,FALSE),0) -> LEHERLE | D6: =IFERROR(VLOOKUP($B6,'Saisie Pupilles'!$B$13:$AI$56,1+D$1,FALSE),0) -> Thibaut | E6: =IFERROR(VLOOKUP($B6,'Saisie Pupilles'!$B$13:$AI$56,1+E$1,FALSE),0) -> H | F6: =IFERROR(VLOOKUP($B6,'Saisie Pupilles'!$B$13:$AI$56,1+F$1,FALSE),0) -> V.C.DE MONTBELIARD | G6: =IFERROR(VLOOKUP($B6,'Saisie Pupilles'!$B$13:$AI$56,1+G$1,FALSE),0) -> Pupille | H6: =IFERROR(VLOOKUP($B6,'Saisie Pupilles'!$B$13:$AI$56,1+H$1,FALSE),0) -> 1 | I6: =IFERROR(VLOOKUP($B6,'Saisie Pupilles'!$B$13:$AI$56,26+I$1,FALSE),0) -> 44 | J6: =IFERROR(VLOOKUP($B6,'Saisie Pupilles'!$B$13:$AI$56,26+J$1,FALSE),0) -> 40 | K6: =IFERROR(VLOOKUP($B6,'Saisie Pupilles'!$B$13:$AI$56,26+K$1,FALSE),0) -> 0 | L6: =IFERROR(VLOOKUP($B6,'Saisie Pupilles'!$B$13:$AI$56,26+L$1,FALSE),0) -> 0 | M6: =IFERROR(VLOOKUP($B6,'Saisie Pupilles'!$B$13:$AI$56,26+M$1,FALSE),0) -> 0 | N6: =IFERROR(VLOOKUP($B6,'Saisie Pupilles'!$B$13:$AI$56,26+N$1,FALSE),0) -> 0 | O6: =IFERROR(VLOOKUP($B6,'Saisie Pupilles'!$B$13:$AI$56,26+O$1,FALSE),0) -> 0 | P6: =IFERROR(VLOOKUP($B6,'Saisie Pupilles'!$B$13:$AI$56,26+P$1,FALSE),0) -> 0 | Q6: =IF(B6>0,SUM(I6:P6),"") -> 84
A7: =IFERROR(IF(A6+1<='Saisie Pupilles'!$BF$12,A6+1,""),"") -> 2 | B7: =IFERROR(IF(A7<>"",VLOOKUP(A7,'Saisie Pupilles'!$BE$13:$BF$56,2,FALSE),""),"") -> 42250181120 | C7: =IFERROR(VLOOKUP($B7,'Saisie Pupilles'!$B$13:$AI$56,1+C$1,FALSE),0) -> BORNERT | D7: =IFERROR(VLOOKUP($B7,'Saisie Pupilles'!$B$13:$AI$56,1+D$1,FALSE),0) -> Lucien | E7: =IFERROR(VLOOKUP($B7,'Saisie Pupilles'!$B$13:$AI$56,1+E$1,FALSE),0) -> H | F7: =IFERROR(VLOOKUP($B7,'Saisie Pupilles'!$B$13:$AI$56,1+F$1,FALSE),0) -> VC MORTEAU MONTBENOIT | G7: =IFERROR(VLOOKUP($B7,'Saisie Pupilles'!$B$13:$AI$56,1+G$1,FALSE),0) -> Pupille | H7: =IFERROR(VLOOKUP($B7,'Saisie Pupilles'!$B$13:$AI$56,1+H$1,FALSE),0) -> 2 | I7: =IFERROR(VLOOKUP($B7,'Saisie Pupilles'!$B$13:$AI$56,26+I$1,FALSE),0) -> 50 | J7: =IFERROR(VLOOKUP($B7,'Saisie Pupilles'!$B$13:$AI$56,26+J$1,FALSE),0) -> 34 | K7: =IFERROR(VLOOKUP($B7,'Saisie Pupilles'!$B$13:$AI$56,26+K$1,FALSE),0) -> 0 | L7: =IFERROR(VLOOKUP($B7,'Saisie Pupilles'!$B$13:$AI$56,26+L$1,FALSE),0) -> 0 | M7: =IFERROR(VLOOKUP($B7,'Saisie Pupilles'!$B$13:$AI$56,26+M$1,FALSE),0) -> 0 | N7: =IFERROR(VLOOKUP($B7,'Saisie Pupilles'!$B$13:$AI$56,26+N$1,FALSE),0) -> 0 | O7: =IFERROR(VLOOKUP($B7,'Saisie Pupilles'!$B$13:$AI$56,26+O$1,FALSE),0) -> 0 | P7: =IFERROR(VLOOKUP($B7,'Saisie Pupilles'!$B$13:$AI$56,26+P$1,FALSE),0) -> 0 | Q7: =IF(B7>0,SUM(I7:P7),"") -> 84
A8: =IFERROR(IF(A7+1<='Saisie Pupilles'!$BF$12,A7+1,""),"") -> 3 | B8: =IFERROR(IF(A8<>"",VLOOKUP(A8,'Saisie Pupilles'!$BE$13:$BF$56,2,FALSE),""),"") -> 42700680145 | C8: =IFERROR(VLOOKUP($B8,'Saisie Pupilles'!$B$13:$AI$56,1+C$1,FALSE),0) -> PETITGIRARD | D8: =IFERROR(VLOOKUP($B8,'Saisie Pupilles'!$B$13:$AI$56,1+D$1,FALSE),0) -> Léa | E8: =IFERROR(VLOOKUP($B8,'Saisie Pupilles'!$B$13:$AI$56,1+E$1,FALSE),0) -> D | F8: =IFERROR(VLOOKUP($B8,'Saisie Pupilles'!$B$13:$AI$56,1+F$1,FALSE),0) -> E.C. LUXEUIL VOSGES SAONO | G8: =IFERROR(VLOOKUP($B8,'Saisie Pupilles'!$B$13:$AI$56,1+G$1,FALSE),0) -> Pupille | H8: =IFERROR(VLOOKUP($B8,'Saisie Pupilles'!$B$13:$AI$56,1+H$1,FALSE),0) -> 2 | I8: =IFERROR(VLOOKUP($B8,'Saisie Pupilles'!$B$13:$AI$56,26+I$1,FALSE),0) -> 34 | J8: =IFERROR(VLOOKUP($B8,'Saisie Pupilles'!$B$13:$AI$56,26+J$1,FALSE),0) -> 44 | K8: =IFERROR(VLOOKUP($B8,'Saisie Pupilles'!$B$13:$AI$56,26+K$1,FALSE),0) -> 0 | L8: =IFERROR(VLOOKUP($B8,'Saisie Pupilles'!$B$13:$AI$56,26+L$1,FALSE),0) -> 0 | M8: =IFERROR(VLOOKUP($B8,'Saisie Pupilles'!$B$13:$AI$56,26+M$1,FALSE),0) -> 0 | N8: =IFERROR(VLOOKUP($B8,'Saisie Pupilles'!$B$13:$AI$56,26+N$1,FALSE),0) -> 0 | O8: =IFERROR(VLOOKUP($B8,'Saisie Pupilles'!$B$13:$AI$56,26+O$1,FALSE),0) -> 0 | P8: =IFERROR(VLOOKUP($B8,'Saisie Pupilles'!$B$13:$AI$56,26+P$1,FALSE),0) -> 0 | Q8: 78
A9: =IFERROR(IF(A8+1<='Saisie Pupilles'!$BF$12,A8+1,""),"") -> 4 | B9: =IFERROR(IF(A9<>"",VLOOKUP(A9,'Saisie Pupilles'!$BE$13:$BF$56,2,FALSE),""),"") -> 42900480109 | C9: =IFERROR(VLOOKUP($B9,'Saisie Pupilles'!$B$13:$AI$56,1+C$1,FALSE),0) -> SIMON | D9: =IFERROR(VLOOKUP($B9,'Saisie Pupilles'!$B$13:$AI$56,1+D$1,FALSE),0) -> Adam | E9: =IFERROR(VLOOKUP($B9,'Saisie Pupilles'!$B$13:$AI$56,1+E$1,FALSE),0) -> H | F9: =IFERROR(VLOOKUP($B9,'Saisie Pupilles'!$B$13:$AI$56,1+F$1,FALSE),0) -> CC BELFORT MIOTTE | G9: =IFERROR(VLOOKUP($B9,'Saisie Pupilles'!$B$13:$AI$56,1+G$1,FALSE),0) -> Pupille | H9: =IFERROR(VLOOKUP($B9,'Saisie Pupilles'!$B$13:$AI$56,1+H$1,FALSE),0) -> 2 | I9: =IFERROR(VLOOKUP($B9,'Saisie Pupilles'!$B$13:$AI$56,26+I$1,FALSE),0) -> 30 | J9: =IFERROR(VLOOKUP($B9,'Saisie Pupilles'!$B$13:$AI$56,26+J$1,FALSE),0) -> 40 | K9: =IFERROR(VLOOKUP($B9,'Saisie Pupilles'!$B$13:$AI$56,26+K$1,FALSE),0) -> 0 | L9: =IFERROR(VLOOKUP($B9,'Saisie Pupilles'!$B$13:$AI$56,26+L$1,FALSE),0) -> 0 | M9: =IFERROR(VLOOKUP($B9,'Saisie Pupilles'!$B$13:$AI$56,26+M$1,FALSE),0) -> 0 | N9: =IFERROR(VLOOKUP($B9,'Saisie Pupilles'!$B$13:$AI$56,26+N$1,FALSE),0) -> 0 | O9: =IFERROR(VLOOKUP($B9,'Saisie Pupilles'!$B$13:$AI$56,26+O$1,FALSE),0) -> 0 | P9: =IFERROR(VLOOKUP($B9,'Saisie Pupilles'!$B$13:$AI$56,26+P$1,FALSE),0) -> 0 | Q9: 70
A10: =IFERROR(IF(A9+1<='Saisie Pupilles'!$BF$12,A9+1,""),"") -> 5 | B10: =IFERROR(IF(A10<>"",VLOOKUP(A10,'Saisie Pupilles'!$BE$13:$BF$56,2,FALSE),""),"") -> 42390330243 | C10: =IFERROR(VLOOKUP($B10,'Saisie Pupilles'!$B$13:$AI$56,1+C$1,FALSE),0) -> VICHARD | D10: =IFERROR(VLOOKUP($B10,'Saisie Pupilles'!$B$13:$AI$56,1+D$1,FALSE),0) -> Maxime | E10: =IFERROR(VLOOKUP($B10,'Saisie Pupilles'!$B$13:$AI$56,1+E$1,FALSE),0) -> H | F10: =IFERROR(VLOOKUP($B10,'Saisie Pupilles'!$B$13:$AI$56,1+F$1,FALSE),0) -> GUIDON BLETTERANOIS | G10: =IFERROR(VLOOKUP($B10,'Saisie Pupilles'!$B$13:$AI$56,1+G$1,FALSE),0) -> Pupille | H10: =IFERROR(VLOOKUP($B10,'Saisie Pupilles'!$B$13:$AI$56,1+H$1,FALSE),0) -> 2 | I10: =IFERROR(VLOOKUP($B10,'Saisie Pupilles'!$B$13:$AI$56,26+I$1,FALSE),0) -> 37 | J10: =IFERROR(VLOOKUP($B10,'Saisie Pupilles'!$B$13:$AI$56,26+J$1,FALSE),0) -> 26 | K10: =IFERROR(VLOOKUP($B10,'Saisie Pupilles'!$B$13:$AI$56,26+K$1,FALSE),0) -> 0 | L10: =IFERROR(VLOOKUP($B10,'Saisie Pupilles'!$B$13:$AI$56,26+L$1,FALSE),0) -> 0 | M10: =IFERROR(VLOOKUP($B10,'Saisie Pupilles'!$B$13:$AI$56,26+M$1,FALSE),0) -> 0 | N10: =IFERROR(VLOOKUP($B10,'Saisie Pupilles'!$B$13:$AI$56,26+N$1,FALSE),0) -> 0 | O10: =IFERROR(VLOOKUP($B10,'Saisie Pupilles'!$B$13:$AI$56,26+O$1,FALSE),0) -> 0 | P10: =IFERROR(VLOOKUP($B10,'Saisie Pupilles'!$B$13:$AI$56,26+P$1,FALSE),0) -> 0 | Q10: 63
A11: =IFERROR(IF(A10+1<='Saisie Pupilles'!$BF$12,A10+1,""),"") -> 6 | B11: =IFERROR(IF(A11<>"",VLOOKUP(A11,'Saisie Pupilles'!$BE$13:$BF$56,2,FALSE),""),"") -> 46520180127 | C11: =IFERROR(VLOOKUP($B11,'Saisie Pupilles'!$B$13:$AI$56,1+C$1,FALSE),0) -> MATIS | D11: =IFERROR(VLOOKUP($B11,'Saisie Pupilles'!$B$13:$AI$56,1+D$1,FALSE),0) -> Juliette | E11: =IFERROR(VLOOKUP($B11,'Saisie Pupilles'!$B$13:$AI$56,1+E$1,FALSE),0) -> D | F11: =IFERROR(VLOOKUP($B11,'Saisie Pupilles'!$B$13:$AI$56,1+F$1,FALSE),0) -> V.C.LANGROIS | G11: =IFERROR(VLOOKUP($B11,'Saisie Pupilles'!$B$13:$AI$56,1+G$1,FALSE),0) -> Pupille | H11: =IFERROR(VLOOKUP($B11,'Saisie Pupilles'!$B$13:$AI$56,1+H$1,FALSE),0) -> 1 | I11: =IFERROR(VLOOKUP($B11,'Saisie Pupilles'!$B$13:$AI$56,26+I$1,FALSE),0) -> 32 | J11: =IFERROR(VLOOKUP($B11,'Saisie Pupilles'!$B$13:$AI$56,26+J$1,FALSE),0) -> 30 | K11: =IFERROR(VLOOKUP($B11,'Saisie Pupilles'!$B$13:$AI$56,26+K$1,FALSE),0) -> 0 | L11: =IFERROR(VLOOKUP($B11,'Saisie Pupilles'!$B$13:$AI$56,26+L$1,FALSE),0) -> 0 | M11: =IFERROR(VLOOKUP($B11,'Saisie Pupilles'!$B$13:$AI$56,26+M$1,FALSE),0) -> 0 | N11: =IFERROR(VLOOKUP($B11,'Saisie Pupilles'!$B$13:$AI$56,26+N$1,FALSE),0) -> 0 | O11: =IFERROR(VLOOKUP($B11,'Saisie Pupilles'!$B$13:$AI$56,26+O$1,FALSE),0) -> 0 | P11: =IFERROR(VLOOKUP($B11,'Saisie Pupilles'!$B$13:$AI$56,26+P$1,FALSE),0) -> 0 | Q11: 62
A12: =IFERROR(IF(A11+1<='Saisie Pupilles'!$BF$12,A11+1,""),"") -> 7 | B12: =IFERROR(IF(A12<>"",VLOOKUP(A12,'Saisie Pupilles'!$BE$13:$BF$56,2,FALSE),""),"") -> 42700680171 | C12: =IFERROR(VLOOKUP($B12,'Saisie Pupilles'!$B$13:$AI$56,1+C$1,FALSE),0) -> THALGOTT | D12: =IFERROR(VLOOKUP($B12,'Saisie Pupilles'!$B$13:$AI$56,1+D$1,FALSE),0) -> Timeo | E12: =IFERROR(VLOOKUP($B12,'Saisie Pupilles'!$B$13:$AI$56,1+E$1,FALSE),0) -> H | F12: =IFERROR(VLOOKUP($B12,'Saisie Pupilles'!$B$13:$AI$56,1+F$1,FALSE),0) -> E.C. LUXEUIL VOSGES SAONO | G12: =IFERROR(VLOOKUP($B12,'Saisie Pupilles'!$B$13:$AI$56,1+G$1,FALSE),0) -> Pupille | H12: =IFERROR(VLOOKUP($B12,'Saisie Pupilles'!$B$13:$AI$56,1+H$1,FALSE),0) -> 1 | I12: =IFERROR(VLOOKUP($B12,'Saisie Pupilles'!$B$13:$AI$56,26+I$1,FALSE),0) -> 26 | J12: =IFERROR(VLOOKUP($B12,'Saisie Pupilles'!$B$13:$AI$56,26+J$1,FALSE),0) -> 28 | K12: =IFERROR(VLOOKUP($B12,'Saisie Pupilles'!$B$13:$AI$56,26+K$1,FALSE),0) -> 0 | L12: =IFERROR(VLOOKUP($B12,'Saisie Pupilles'!$B$13:$AI$56,26+L$1,FALSE),0) -> 0 | M12: =IFERROR(VLOOKUP($B12,'Saisie Pupilles'!$B$13:$AI$56,26+M$1,FALSE),0) -> 0 | N12: =IFERROR(VLOOKUP($B12,'Saisie Pupilles'!$B$13:$AI$56,26+N$1,FALSE),0) -> 0 | O12: =IFERROR(VLOOKUP($B12,'Saisie Pupilles'!$B$13:$AI$56,26+O$1,FALSE),0) -> 0 | P12: =IFERROR(VLOOKUP($B12,'Saisie Pupilles'!$B$13:$AI$56,26+P$1,FALSE),0) -> 0 | Q12: 54
A13: =IFERROR(IF(A12+1<='Saisie Pupilles'!$BF$12,A12+1,""),"") -> 8 | B13: =IFERROR(IF(A13<>"",VLOOKUP(A13,'Saisie Pupilles'!$BE$13:$BF$56,2,FALSE),""),"") -> 42250120335 | C13: =IFERROR(VLOOKUP($B13,'Saisie Pupilles'!$B$13:$AI$56,1+C$1,FALSE),0) -> CONVERSET | D13: =IFERROR(VLOOKUP($B13,'Saisie Pupilles'!$B$13:$AI$56,1+D$1,FALSE),0) -> Lucas | E13: =IFERROR(VLOOKUP($B13,'Saisie Pupilles'!$B$13:$AI$56,1+E$1,FALSE),0) -> H | F13: =IFERROR(VLOOKUP($B13,'Saisie Pupilles'!$B$13:$AI$56,1+F$1,FALSE),0) -> V.C.DE MONTBELIARD | G13: =IFERROR(VLOOKUP($B13,'Saisie Pupilles'!$B$13:$AI$56,1+G$1,FALSE),0) -> Pupille | H13: =IFERROR(VLOOKUP($B13,'Saisie Pupilles'!$B$13:$AI$56,1+H$1,FALSE),0) -> 2 | I13: =IFERROR(VLOOKUP($B13,'Saisie Pupilles'!$B$13:$AI$56,26+I$1,FALSE),0) -> 0 | J13: =IFERROR(VLOOKUP($B13,'Saisie Pupilles'!$B$13:$AI$56,26+J$1,FALSE),0) -> 50 | K13: =IFERROR(VLOOKUP($B13,'Saisie Pupilles'!$B$13:$AI$56,26+K$1,FALSE),0) -> 0 | L13: =IFERROR(VLOOKUP($B13,'Saisie Pupilles'!$B$13:$AI$56,26+L$1,FALSE),0) -> 0 | M13: =IFERROR(VLOOKUP($B13,'Saisie Pupilles'!$B$13:$AI$56,26+M$1,FALSE),0) -> 0 | N13: =IFERROR(VLOOKUP($B13,'Saisie Pupilles'!$B$13:$AI$56,26+N$1,FALSE),0) -> 0 | O13: =IFERROR(VLOOKUP($B13,'Saisie Pupilles'!$B$13:$AI$56,26+O$1,FALSE),0) -> 0 | P13: =IFERROR(VLOOKUP($B13,'Saisie Pupilles'!$B$13:$AI$56,26+P$1,FALSE),0) -> 0 | Q13: 50
A14: =IFERROR(IF(A13+1<='Saisie Pupilles'!$BF$12,A13+1,""),"") -> 9 | B14: =IFERROR(IF(A14<>"",VLOOKUP(A14,'Saisie Pupilles'!$BE$13:$BF$56,2,FALSE),""),"") -> 46880320418 | C14: =IFERROR(VLOOKUP($B14,'Saisie Pupilles'!$B$13:$AI$56,1+C$1,FALSE),0) -> SIBILLE | D14: =IFERROR(VLOOKUP($B14,'Saisie Pupilles'!$B$13:$AI$56,1+D$1,FALSE),0) -> Léo | E14: =IFERROR(VLOOKUP($B14,'Saisie Pupilles'!$B$13:$AI$56,1+E$1,FALSE),0) -> H | F14: =IFERROR(VLOOKUP($B14,'Saisie Pupilles'!$B$13:$AI$56,1+F$1,FALSE),0) -> CYCLE GOLBEEN | G14: =IFERROR(VLOOKUP($B14,'Saisie Pupilles'!$B$13:$AI$56,1+G$1,FALSE),0) -> Pupille | H14: =IFERROR(VLOOKUP($B14,'Saisie Pupilles'!$B$13:$AI$56,1+H$1,FALSE),0) -> 2 | I14: =IFERROR(VLOOKUP($B14,'Saisie Pupilles'!$B$13:$AI$56,26+I$1,FALSE),0) -> 40 | J14: =IFERROR(VLOOKUP($B14,'Saisie Pupilles'!$B$13:$AI$56,26+J$1,FALSE),0) -> 0 | K14: =IFERROR(VLOOKUP($B14,'Saisie Pupilles'!$B$13:$AI$56,26+K$1,FALSE),0) -> 0 | L14: =IFERROR(VLOOKUP($B14,'Saisie Pupilles'!$B$13:$AI$56,26+L$1,FALSE),0) -> 0 | M14: =IFERROR(VLOOKUP($B14,'Saisie Pupilles'!$B$13:$AI$56,26+M$1,FALSE),0) -> 0 | N14: =IFERROR(VLOOKUP($B14,'Saisie Pupilles'!$B$13:$AI$56,26+N$1,FALSE),0) -> 0 | O14: =IFERROR(VLOOKUP($B14,'Saisie Pupilles'!$B$13:$AI$56,26+O$1,FALSE),0) -> 0 | P14: =IFERROR(VLOOKUP($B14,'Saisie Pupilles'!$B$13:$AI$56,26+P$1,FALSE),0) -> 0 | Q14: 40
A15: =IFERROR(IF(A14+1<='Saisie Pupilles'!$BF$12,A14+1,""),"") -> 10 | B15: =IFERROR(IF(A15<>"",VLOOKUP(A15,'Saisie Pupilles'!$BE$13:$BF$56,2,FALSE),""),"") -> 42700680163 | C15: =IFERROR(VLOOKUP($B15,'Saisie Pupilles'!$B$13:$AI$56,1+C$1,FALSE),0) -> RIANDET | D15: =IFERROR(VLOOKUP($B15,'Saisie Pupilles'!$B$13:$AI$56,1+D$1,FALSE),0) -> Gabriel | E15: =IFERROR(VLOOKUP($B15,'Saisie Pupilles'!$B$13:$AI$56,1+E$1,FALSE),0) -> H | F15: =IFERROR(VLOOKUP($B15,'Saisie Pupilles'!$B$13:$AI$56,1+F$1,FALSE),0) -> E.C. LUXEUIL VOSGES SAONO | G15: =IFERROR(VLOOKUP($B15,'Saisie Pupilles'!$B$13:$AI$56,1+G$1,FALSE),0) -> Pupille | H15: =IFERROR(VLOOKUP($B15,'Saisie Pupilles'!$B$13:$AI$56,1+H$1,FALSE),0) -> 2 | I15: =IFERROR(VLOOKUP($B15,'Saisie Pupilles'!$B$13:$AI$56,26+I$1,FALSE),0) -> 21 | J15: =IFERROR(VLOOKUP($B15,'Saisie Pupilles'!$B$13:$AI$56,26+J$1,FALSE),0) -> 19 | K15: =IFERROR(VLOOKUP($B15,'Saisie Pupilles'!$B$13:$AI$56,26+K$1,FALSE),0) -> 0 | L15: =IFERROR(VLOOKUP($B15,'Saisie Pupilles'!$B$13:$AI$56,26+L$1,FALSE),0) -> 0 | M15: =IFERROR(VLOOKUP($B15,'Saisie Pupilles'!$B$13:$AI$56,26+M$1,FALSE),0) -> 0 | N15: =IFERROR(VLOOKUP($B15,'Saisie Pupilles'!$B$13:$AI$56,26+N$1,FALSE),0) -> 0 | O15: =IFERROR(VLOOKUP($B15,'Saisie Pupilles'!$B$13:$AI$56,26+O$1,FALSE),0) -> 0 | P15: =IFERROR(VLOOKUP($B15,'Saisie Pupilles'!$B$13:$AI$56,26+P$1,FALSE),0) -> 0 | Q15: 40
A16: =IFERROR(IF(A15+1<='Saisie Pupilles'!$BF$12,A15+1,""),"") -> 11 | B16: =IFERROR(IF(A16<>"",VLOOKUP(A16,'Saisie Pupilles'!$BE$13:$BF$56,2,FALSE),""),"") -> 42250120325 | C16: =IFERROR(VLOOKUP($B16,'Saisie Pupilles'!$B$13:$AI$56,1+C$1,FALSE),0) -> BOONE | D16: =IFERROR(VLOOKUP($B16,'Saisie Pupilles'!$B$13:$AI$56,1+D$1,FALSE),0) -> Ancelin | E16: =IFERROR(VLOOKUP($B16,'Saisie Pupilles'!$B$13:$AI$56,1+E$1,FALSE),0) -> H | F16: =IFERROR(VLOOKUP($B16,'Saisie Pupilles'!$B$13:$AI$56,1+F$1,FALSE),0) -> V.C.DE MONTBELIARD | G16: =IFERROR(VLOOKUP($B16,'Saisie Pupilles'!$B$13:$AI$56,1+G$1,FALSE),0) -> Pupille | H16: =IFERROR(VLOOKUP($B16,'Saisie Pupilles'!$B$13:$AI$56,1+H$1,FALSE),0) -> 1 | I16: =IFERROR(VLOOKUP($B16,'Saisie Pupilles'!$B$13:$AI$56,26+I$1,FALSE),0) -> 0 | J16: =IFERROR(VLOOKUP($B16,'Saisie Pupilles'!$B$13:$AI$56,26+J$1,FALSE),0) -> 32 | K16: =IFERROR(VLOOKUP($B16,'Saisie Pupilles'!$B$13:$AI$56,26+K$1,FALSE),0) -> 0 | L16: =IFERROR(VLOOKUP($B16,'Saisie Pupilles'!$B$13:$AI$56,26+L$1,FALSE),0) -> 0 | M16: =IFERROR(VLOOKUP($B16,'Saisie Pupilles'!$B$13:$AI$56,26+M$1,FALSE),0) -> 0 | N16: =IFERROR(VLOOKUP($B16,'Saisie Pupilles'!$B$13:$AI$56,26+N$1,FALSE),0) -> 0 | O16: =IFERROR(VLOOKUP($B16,'Saisie Pupilles'!$B$13:$AI$56,26+O$1,FALSE),0) -> 0 | P16: =IFERROR(VLOOKUP($B16,'Saisie Pupilles'!$B$13:$AI$56,26+P$1,FALSE),0) -> 0 | Q16: 32
A17: =IFERROR(IF(A16+1<='Saisie Pupilles'!$BF$12,A16+1,""),"") -> 12 | B17: =IFERROR(IF(A17<>"",VLOOKUP(A17,'Saisie Pupilles'!$BE$13:$BF$56,2,FALSE),""),"") -> 46880320572 | C17: =IFERROR(VLOOKUP($B17,'Saisie Pupilles'!$B$13:$AI$56,1+C$1,FALSE),0) -> GENTER | D17: =IFERROR(VLOOKUP($B17,'Saisie Pupilles'!$B$13:$AI$56,1+D$1,FALSE),0) -> Victoire | E17: =IFERROR(VLOOKUP($B17,'Saisie Pupilles'!$B$13:$AI$56,1+E$1,FALSE),0) -> D | F17: =IFERROR(VLOOKUP($B17,'Saisie Pupilles'!$B$13:$AI$56,1+F$1,FALSE),0) -> CYCLE GOLBEEN | G17: =IFERROR(VLOOKUP($B17,'Saisie Pupilles'!$B$13:$AI$56,1+G$1,FALSE),0) -> Pupille | H17: =IFERROR(VLOOKUP($B17,'Saisie Pupilles'!$B$13:$AI$56,1+H$1,FALSE),0) -> 2 | I17: =IFERROR(VLOOKUP($B17,'Saisie Pupilles'!$B$13:$AI$56,26+I$1,FALSE),0) -> 28 | J17: =IFERROR(VLOOKUP($B17,'Saisie Pupilles'!$B$13:$AI$56,26+J$1,FALSE),0) -> 0 | K17: =IFERROR(VLOOKUP($B17,'Saisie Pupilles'!$B$13:$AI$56,26+K$1,FALSE),0) -> 0 | L17: =IFERROR(VLOOKUP($B17,'Saisie Pupilles'!$B$13:$AI$56,26+L$1,FALSE),0) -> 0 | M17: =IFERROR(VLOOKUP($B17,'Saisie Pupilles'!$B$13:$AI$56,26+M$1,FALSE),0) -> 0 | N17: =IFERROR(VLOOKUP($B17,'Saisie Pupilles'!$B$13:$AI$56,26+N$1,FALSE),0) -> 0 | O17: =IFERROR(VLOOKUP($B17,'Saisie Pupilles'!$B$13:$AI$56,26+O$1,FALSE),0) -> 0 | P17: =IFERROR(VLOOKUP($B17,'Saisie Pupilles'!$B$13:$AI$56,26+P$1,FALSE),0) -> 0 | Q17: 28
A18: =IFERROR(IF(A17+1<='Saisie Pupilles'!$BF$12,A17+1,""),"") -> 13 | B18: =IFERROR(IF(A18<>"",VLOOKUP(A18,'Saisie Pupilles'!$BE$13:$BF$56,2,FALSE),""),"") -> 42250120354 | C18: =IFERROR(VLOOKUP($B18,'Saisie Pupilles'!$B$13:$AI$56,1+C$1,FALSE),0) -> BOURQUIN DROUART | D18: =IFERROR(VLOOKUP($B18,'Saisie Pupilles'!$B$13:$AI$56,1+D$1,FALSE),0) -> Loris | E18: =IFERROR(VLOOKUP($B18,'Saisie Pupilles'!$B$13:$AI$56,1+E$1,FALSE),0) -> H | F18: =IFERROR(VLOOKUP($B18,'Saisie Pupilles'!$B$13:$AI$56,1+F$1,FALSE),0) -> V.C.DE MONTBELIARD | G18: =IFERROR(VLOOKUP($B18,'Saisie Pupilles'!$B$13:$AI$56,1+G$1,FALSE),0) -> Pupille | H18: =IFERROR(VLOOKUP($B18,'Saisie Pupilles'!$B$13:$AI$56,1+H$1,FALSE),0) -> 1 | I18: =IFERROR(VLOOKUP($B18,'Saisie Pupilles'!$B$13:$AI$56,26+I$1,FALSE),0) -> 0 | J18: =IFERROR(VLOOKUP($B18,'Saisie Pupilles'!$B$13:$AI$56,26+J$1,FALSE),0) -> 24 | K18: =IFERROR(VLOOKUP($B18,'Saisie Pupilles'!$B$13:$AI$56,26+K$1,FALSE),0) -> 0 | L18: =IFERROR(VLOOKUP($B18,'Saisie Pupilles'!$B$13:$AI$56,26+L$1,FALSE),0) -> 0 | M18: =IFERROR(VLOOKUP($B18,'Saisie Pupilles'!$B$13:$AI$56,26+M$1,FALSE),0) -> 0 | N18: =IFERROR(VLOOKUP($B18,'Saisie Pupilles'!$B$13:$AI$56,26+N$1,FALSE),0) -> 0 | O18: =IFERROR(VLOOKUP($B18,'Saisie Pupilles'!$B$13:$AI$56,26+O$1,FALSE),0) -> 0 | P18: =IFERROR(VLOOKUP($B18,'Saisie Pupilles'!$B$13:$AI$56,26+P$1,FALSE),0) -> 0 | Q18: 24
A19: =IFERROR(IF(A18+1<='Saisie Pupilles'!$BF$12,A18+1,""),"") -> 14 | B19: =IFERROR(IF(A19<>"",VLOOKUP(A19,'Saisie Pupilles'!$BE$13:$BF$56,2,FALSE),""),"") -> 42700680155 | C19: =IFERROR(VLOOKUP($B19,'Saisie Pupilles'!$B$13:$AI$56,1+C$1,FALSE),0) -> MAUFFREY | D19: =IFERROR(VLOOKUP($B19,'Saisie Pupilles'!$B$13:$AI$56,1+D$1,FALSE),0) -> Adèle | E19: =IFERROR(VLOOKUP($B19,'Saisie Pupilles'!$B$13:$AI$56,1+E$1,FALSE),0) -> D | F19: =IFERROR(VLOOKUP($B19,'Saisie Pupilles'!$B$13:$AI$56,1+F$1,FALSE),0) -> E.C. LUXEUIL VOSGES SAONO | G19: =IFERROR(VLOOKUP($B19,'Saisie Pupilles'!$B$13:$AI$56,1+G$1,FALSE),0) -> Pupille | H19: =IFERROR(VLOOKUP($B19,'Saisie Pupilles'!$B$13:$AI$56,1+H$1,FALSE),0) -> 1 | I19: =IFERROR(VLOOKUP($B19,'Saisie Pupilles'!$B$13:$AI$56,26+I$1,FALSE),0) -> 24 | J19: =IFERROR(VLOOKUP($B19,'Saisie Pupilles'!$B$13:$AI$56,26+J$1,FALSE),0) -> 0 | K19: =IFERROR(VLOOKUP($B19,'Saisie Pupilles'!$B$13:$AI$56,26+K$1,FALSE),0) -> 0 | L19: =IFERROR(VLOOKUP($B19,'Saisie Pupilles'!$B$13:$AI$56,26+L$1,FALSE),0) -> 0 | M19: =IFERROR(VLOOKUP($B19,'Saisie Pupilles'!$B$13:$AI$56,26+M$1,FALSE),0) -> 0 | N19: =IFERROR(VLOOKUP($B19,'Saisie Pupilles'!$B$13:$AI$56,26+N$1,FALSE),0) -> 0 | O19: =IFERROR(VLOOKUP($B19,'Saisie Pupilles'!$B$13:$AI$56,26+O$1,FALSE),0) -> 0 | P19: =IFERROR(VLOOKUP($B19,'Saisie Pupilles'!$B$13:$AI$56,26+P$1,FALSE),0) -> 0 | Q19: 24
A20: =IFERROR(IF(A19+1<='Saisie Pupilles'!$BF$12,A19+1,""),"") -> 15 | B20: =IFERROR(IF(A20<>"",VLOOKUP(A20,'Saisie Pupilles'!$BE$13:$BF$56,2,FALSE),""),"") -> 42250181188 | C20: =IFERROR(VLOOKUP($B20,'Saisie Pupilles'!$B$13:$AI$56,1+C$1,FALSE),0) -> MYOTTE DUQUET | D20: =IFERROR(VLOOKUP($B20,'Saisie Pupilles'!$B$13:$AI$56,1+D$1,FALSE),0) -> Thiago | E20: =IFERROR(VLOOKUP($B20,'Saisie Pupilles'!$B$13:$AI$56,1+E$1,FALSE),0) -> H | F20: =IFERROR(VLOOKUP($B20,'Saisie Pupilles'!$B$13:$AI$56,1+F$1,FALSE),0) -> VC MORTEAU MONTBENOIT | G20: =IFERROR(VLOOKUP($B20,'Saisie Pupilles'!$B$13:$AI$56,1+G$1,FALSE),0) -> Pupille | H20: =IFERROR(VLOOKUP($B20,'Saisie Pupilles'!$B$13:$AI$56,1+H$1,FALSE),0) -> 2 | I20: =IFERROR(VLOOKUP($B20,'Saisie Pupilles'!$B$13:$AI$56,26+I$1,FALSE),0) -> 0 | J20: =IFERROR(VLOOKUP($B20,'Saisie Pupilles'!$B$13:$AI$56,26+J$1,FALSE),0) -> 22 | K20: =IFERROR(VLOOKUP($B20,'Saisie Pupilles'!$B$13:$AI$56,26+K$1,FALSE),0) -> 0 | L20: =IFERROR(VLOOKUP($B20,'Saisie Pupilles'!$B$13:$AI$56,26+L$1,FALSE),0) -> 0 | M20: =IFERROR(VLOOKUP($B20,'Saisie Pupilles'!$B$13:$AI$56,26+M$1,FALSE),0) -> 0 | N20: =IFERROR(VLOOKUP($B20,'Saisie Pupilles'!$B$13:$AI$56,26+N$1,FALSE),0) -> 0 | O20: =IFERROR(VLOOKUP($B20,'Saisie Pupilles'!$B$13:$AI$56,26+O$1,FALSE),0) -> 0 | P20: =IFERROR(VLOOKUP($B20,'Saisie Pupilles'!$B$13:$AI$56,26+P$1,FALSE),0) -> 0 | Q20: 22
A21: =IFERROR(IF(A20+1<='Saisie Pupilles'!$BF$12,A20+1,""),"") -> 16 | B21: =IFERROR(IF(A21<>"",VLOOKUP(A21,'Saisie Pupilles'!$BE$13:$BF$56,2,FALSE),""),"") -> 42700680175 | C21: =IFERROR(VLOOKUP($B21,'Saisie Pupilles'!$B$13:$AI$56,1+C$1,FALSE),0) -> CREMEL | D21: =IFERROR(VLOOKUP($B21,'Saisie Pupilles'!$B$13:$AI$56,1+D$1,FALSE),0) -> Robin | E21: =IFERROR(VLOOKUP($B21,'Saisie Pupilles'!$B$13:$AI$56,1+E$1,FALSE),0) -> H | F21: =IFERROR(VLOOKUP($B21,'Saisie Pupilles'!$B$13:$AI$56,1+F$1,FALSE),0) -> E.C. LUXEUIL VOSGES SAONO | G21: =IFERROR(VLOOKUP($B21,'Saisie Pupilles'!$B$13:$AI$56,1+G$1,FALSE),0) -> Pupille | H21: =IFERROR(VLOOKUP($B21,'Saisie Pupilles'!$B$13:$AI$56,1+H$1,FALSE),0) -> 2 | I21: =IFERROR(VLOOKUP($B21,'Saisie Pupilles'!$B$13:$AI$56,26+I$1,FALSE),0) -> 22 | J21: =IFERROR(VLOOKUP($B21,'Saisie Pupilles'!$B$13:$AI$56,26+J$1,FALSE),0) -> 0 | K21: =IFERROR(VLOOKUP($B21,'Saisie Pupilles'!$B$13:$AI$56,26+K$1,FALSE),0) -> 0 | L21: =IFERROR(VLOOKUP($B21,'Saisie Pupilles'!$B$13:$AI$56,26+L$1,FALSE),0) -> 0 | M21: =IFERROR(VLOOKUP($B21,'Saisie Pupilles'!$B$13:$AI$56,26+M$1,FALSE),0) -> 0 | N21: =IFERROR(VLOOKUP($B21,'Saisie Pupilles'!$B$13:$AI$56,26+N$1,FALSE),0) -> 0 | O21: =IFERROR(VLOOKUP($B21,'Saisie Pupilles'!$B$13:$AI$56,26+O$1,FALSE),0) -> 0 | P21: =IFERROR(VLOOKUP($B21,'Saisie Pupilles'!$B$13:$AI$56,26+P$1,FALSE),0) -> 0 | Q21: 22
A22: =IFERROR(IF(A21+1<='Saisie Pupilles'!$BF$12,A21+1,""),"") -> 17 | B22: =IFERROR(IF(A22<>"",VLOOKUP(A22,'Saisie Pupilles'!$BE$13:$BF$56,2,FALSE),""),"") -> 42700060270 | C22: =IFERROR(VLOOKUP($B22,'Saisie Pupilles'!$B$13:$AI$56,1+C$1,FALSE),0) -> DESGRANCHAMPS | D22: =IFERROR(VLOOKUP($B22,'Saisie Pupilles'!$B$13:$AI$56,1+D$1,FALSE),0) -> Maxence | E22: =IFERROR(VLOOKUP($B22,'Saisie Pupilles'!$B$13:$AI$56,1+E$1,FALSE),0) -> H | F22: =IFERROR(VLOOKUP($B22,'Saisie Pupilles'!$B$13:$AI$56,1+F$1,FALSE),0) -> ROUE D`OR NOIDANS | G22: =IFERROR(VLOOKUP($B22,'Saisie Pupilles'!$B$13:$AI$56,1+G$1,FALSE),0) -> Pupille | H22: =IFERROR(VLOOKUP($B22,'Saisie Pupilles'!$B$13:$AI$56,1+H$1,FALSE),0) -> 1 | I22: =IFERROR(VLOOKUP($B22,'Saisie Pupilles'!$B$13:$AI$56,26+I$1,FALSE),0) -> 0 | J22: =IFERROR(VLOOKUP($B22,'Saisie Pupilles'!$B$13:$AI$56,26+J$1,FALSE),0) -> 21 | K22: =IFERROR(VLOOKUP($B22,'Saisie Pupilles'!$B$13:$AI$56,26+K$1,FALSE),0) -> 0 | L22: =IFERROR(VLOOKUP($B22,'Saisie Pupilles'!$B$13:$AI$56,26+L$1,FALSE),0) -> 0 | M22: =IFERROR(VLOOKUP($B22,'Saisie Pupilles'!$B$13:$AI$56,26+M$1,FALSE),0) -> 0 | N22: =IFERROR(VLOOKUP($B22,'Saisie Pupilles'!$B$13:$AI$56,26+N$1,FALSE),0) -> 0 | O22: =IFERROR(VLOOKUP($B22,'Saisie Pupilles'!$B$13:$AI$56,26+O$1,FALSE),0) -> 0 | P22: =IFERROR(VLOOKUP($B22,'Saisie Pupilles'!$B$13:$AI$56,26+P$1,FALSE),0) -> 0 | Q22: 21
A23: =IFERROR(IF(A22+1<='Saisie Pupilles'!$BF$12,A22+1,""),"") -> 18 | B23: =IFERROR(IF(A23<>"",VLOOKUP(A23,'Saisie Pupilles'!$BE$13:$BF$56,2,FALSE),""),"") -> 42250181146 | C23: =IFERROR(VLOOKUP($B23,'Saisie Pupilles'!$B$13:$AI$56,1+C$1,FALSE),0) -> MARTINI | D23: =IFERROR(VLOOKUP($B23,'Saisie Pupilles'!$B$13:$AI$56,1+D$1,FALSE),0) -> Mila | E23: =IFERROR(VLOOKUP($B23,'Saisie Pupilles'!$B$13:$AI$56,1+E$1,FALSE),0) -> D | F23: =IFERROR(VLOOKUP($B23,'Saisie Pupilles'!$B$13:$AI$56,1+F$1,FALSE),0) -> VC MORTEAU MONTBENOIT | G23: =IFERROR(VLOOKUP($B23,'Saisie Pupilles'!$B$13:$AI$56,1+G$1,FALSE),0) -> Pupille | H23: =IFERROR(VLOOKUP($B23,'Saisie Pupilles'!$B$13:$AI$56,1+H$1,FALSE),0) -> 1 | I23: =IFERROR(VLOOKUP($B23,'Saisie Pupilles'!$B$13:$AI$56,26+I$1,FALSE),0) -> 0 | J23: =IFERROR(VLOOKUP($B23,'Saisie Pupilles'!$B$13:$AI$56,26+J$1,FALSE),0) -> 20 | K23: =IFERROR(VLOOKUP($B23,'Saisie Pupilles'!$B$13:$AI$56,26+K$1,FALSE),0) -> 0 | L23: =IFERROR(VLOOKUP($B23,'Saisie Pupilles'!$B$13:$AI$56,26+L$1,FALSE),0) -> 0 | M23: =IFERROR(VLOOKUP($B23,'Saisie Pupilles'!$B$13:$AI$56,26+M$1,FALSE),0) -> 0 | N23: =IFERROR(VLOOKUP($B23,'Saisie Pupilles'!$B$13:$AI$56,26+N$1,FALSE),0) -> 0 | O23: =IFERROR(VLOOKUP($B23,'Saisie Pupilles'!$B$13:$AI$56,26+O$1,FALSE),0) -> 0 | P23: =IFERROR(VLOOKUP($B23,'Saisie Pupilles'!$B$13:$AI$56,26+P$1,FALSE),0) -> 0 | Q23: 20
A24: =IFERROR(IF(A23+1<='Saisie Pupilles'!$BF$12,A23+1,""),"") -> 19 | B24: =IFERROR(IF(A24<>"",VLOOKUP(A24,'Saisie Pupilles'!$BE$13:$BF$56,2,FALSE),""),"") -> 42700680180 | C24: =IFERROR(VLOOKUP($B24,'Saisie Pupilles'!$B$13:$AI$56,1+C$1,FALSE),0) -> SAGUIN | D24: =IFERROR(VLOOKUP($B24,'Saisie Pupilles'!$B$13:$AI$56,1+D$1,FALSE),0) -> Antoine | E24: =IFERROR(VLOOKUP($B24,'Saisie Pupilles'!$B$13:$AI$56,1+E$1,FALSE),0) -> H | F24: =IFERROR(VLOOKUP($B24,'Saisie Pupilles'!$B$13:$AI$56,1+F$1,FALSE),0) -> E.C. LUXEUIL VOSGES SAONO | G24: =IFERROR(VLOOKUP($B24,'Saisie Pupilles'!$B$13:$AI$56,1+G$1,FALSE),0) -> Pupille | H24: =IFERROR(VLOOKUP($B24,'Saisie Pupilles'!$B$13:$AI$56,1+H$1,FALSE),0) -> 1 | I24: =IFERROR(VLOOKUP($B24,'Saisie Pupilles'!$B$13:$AI$56,26+I$1,FALSE),0) -> 20 | J24: =IFERROR(VLOOKUP($B24,'Saisie Pupilles'!$B$13:$AI$56,26+J$1,FALSE),0) -> 0 | K24: =IFERROR(VLOOKUP($B24,'Saisie Pupilles'!$B$13:$AI$56,26+K$1,FALSE),0) -> 0 | L24: =IFERROR(VLOOKUP($B24,'Saisie Pupilles'!$B$13:$AI$56,26+L$1,FALSE),0) -> 0 | M24: =IFERROR(VLOOKUP($B24,'Saisie Pupilles'!$B$13:$AI$56,26+M$1,FALSE),0) -> 0 | N24: =IFERROR(VLOOKUP($B24,'Saisie Pupilles'!$B$13:$AI$56,26+N$1,FALSE),0) -> 0 | O24: =IFERROR(VLOOKUP($B24,'Saisie Pupilles'!$B$13:$AI$56,26+O$1,FALSE),0) -> 0 | P24: =IFERROR(VLOOKUP($B24,'Saisie Pupilles'!$B$13:$AI$56,26+P$1,FALSE),0) -> 0 | Q24: 20
A25: =IFERROR(IF(A24+1<='Saisie Pupilles'!$BF$12,A24+1,""),"") -> 20 | B25: =IFERROR(IF(A25<>"",VLOOKUP(A25,'Saisie Pupilles'!$BE$13:$BF$56,2,FALSE),""),"") -> 42900480167 | C25: =IFERROR(VLOOKUP($B25,'Saisie Pupilles'!$B$13:$AI$56,1+C$1,FALSE),0) -> MORLAND | D25: =IFERROR(VLOOKUP($B25,'Saisie Pupilles'!$B$13:$AI$56,1+D$1,FALSE),0) -> LUC | E25: =IFERROR(VLOOKUP($B25,'Saisie Pupilles'!$B$13:$AI$56,1+E$1,FALSE),0) -> H | F25: =IFERROR(VLOOKUP($B25,'Saisie Pupilles'!$B$13:$AI$56,1+F$1,FALSE),0) -> CC BELFORT MIOTTE | G25: =IFERROR(VLOOKUP($B25,'Saisie Pupilles'!$B$13:$AI$56,1+G$1,FALSE),0) -> Pupille | H25: =IFERROR(VLOOKUP($B25,'Saisie Pupilles'!$B$13:$AI$56,1+H$1,FALSE),0) -> 1 | I25: =IFERROR(VLOOKUP($B25,'Saisie Pupilles'!$B$13:$AI$56,26+I$1,FALSE),0) -> 19 | J25: =IFERROR(VLOOKUP($B25,'Saisie Pupilles'!$B$13:$AI$56,26+J$1,FALSE),0) -> 0 | K25: =IFERROR(VLOOKUP($B25,'Saisie Pupilles'!$B$13:$AI$56,26+K$1,FALSE),0) -> 0 | L25: =IFERROR(VLOOKUP($B25,'Saisie Pupilles'!$B$13:$AI$56,26+L$1,FALSE),0) -> 0 | M25: =IFERROR(VLOOKUP($B25,'Saisie Pupilles'!$B$13:$AI$56,26+M$1,FALSE),0) -> 0 | N25: =IFERROR(VLOOKUP($B25,'Saisie Pupilles'!$B$13:$AI$56,26+N$1,FALSE),0) -> 0 | O25: =IFERROR(VLOOKUP($B25,'Saisie Pupilles'!$B$13:$AI$56,26+O$1,FALSE),0) -> 0 | P25: =IFERROR(VLOOKUP($B25,'Saisie Pupilles'!$B$13:$AI$56,26+P$1,FALSE),0) -> 0 | Q25: 19
A26: =IFERROR(IF(A25+1<='Saisie Pupilles'!$BF$12,A25+1,""),"") -> 21 | B26: =IFERROR(IF(A26<>"",VLOOKUP(A26,'Saisie Pupilles'!$BE$13:$BF$56,2,FALSE),""),"") -> 42250181211 | C26: =IFERROR(VLOOKUP($B26,'Saisie Pupilles'!$B$13:$AI$56,1+C$1,FALSE),0) -> BROCHARD | D26: =IFERROR(VLOOKUP($B26,'Saisie Pupilles'!$B$13:$AI$56,1+D$1,FALSE),0) -> Mathys | E26: =IFERROR(VLOOKUP($B26,'Saisie Pupilles'!$B$13:$AI$56,1+E$1,FALSE),0) -> H | F26: =IFERROR(VLOOKUP($B26,'Saisie Pupilles'!$B$13:$AI$56,1+F$1,FALSE),0) -> VC MORTEAU MONTBENOIT | G26: =IFERROR(VLOOKUP($B26,'Saisie Pupilles'!$B$13:$AI$56,1+G$1,FALSE),0) -> Pupille | H26: =IFERROR(VLOOKUP($B26,'Saisie Pupilles'!$B$13:$AI$56,1+H$1,FALSE),0) -> 2 | I26: =IFERROR(VLOOKUP($B26,'Saisie Pupilles'!$B$13:$AI$56,26+I$1,FALSE),0) -> 0 | J26: =IFERROR(VLOOKUP($B26,'Saisie Pupilles'!$B$13:$AI$56,26+J$1,FALSE),0) -> 18 | K26: =IFERROR(VLOOKUP($B26,'Saisie Pupilles'!$B$13:$AI$56,26+K$1,FALSE),0) -> 0 | L26: =IFERROR(VLOOKUP($B26,'Saisie Pupilles'!$B$13:$AI$56,26+L$1,FALSE),0) -> 0 | M26: =IFERROR(VLOOKUP($B26,'Saisie Pupilles'!$B$13:$AI$56,26+M$1,FALSE),0) -> 0 | N26: =IFERROR(VLOOKUP($B26,'Saisie Pupilles'!$B$13:$AI$56,26+N$1,FALSE),0) -> 0 | O26: =IFERROR(VLOOKUP($B26,'Saisie Pupilles'!$B$13:$AI$56,26+O$1,FALSE),0) -> 0 | P26: =IFERROR(VLOOKUP($B26,'Saisie Pupilles'!$B$13:$AI$56,26+P$1,FALSE),0) -> 0 | Q26: 18
A27: =IFERROR(IF(A26+1<='Saisie Pupilles'!$BF$12,A26+1,""),"") -> 22 | B27: =IFERROR(IF(A27<>"",VLOOKUP(A27,'Saisie Pupilles'!$BE$13:$BF$56,2,FALSE),""),"") -> 42250120359 | C27: =IFERROR(VLOOKUP($B27,'Saisie Pupilles'!$B$13:$AI$56,1+C$1,FALSE),0) -> BEY | D27: =IFERROR(VLOOKUP($B27,'Saisie Pupilles'!$B$13:$AI$56,1+D$1,FALSE),0) -> Giulian | E27: =IFERROR(VLOOKUP($B27,'Saisie Pupilles'!$B$13:$AI$56,1+E$1,FALSE),0) -> H | F27: =IFERROR(VLOOKUP($B27,'Saisie Pupilles'!$B$13:$AI$56,1+F$1,FALSE),0) -> V.C.DE MONTBELIARD | G27: =IFERROR(VLOOKUP($B27,'Saisie Pupilles'!$B$13:$AI$56,1+G$1,FALSE),0) -> Pupille | H27: =IFERROR(VLOOKUP($B27,'Saisie Pupilles'!$B$13:$AI$56,1+H$1,FALSE),0) -> 1 | I27: =IFERROR(VLOOKUP($B27,'Saisie Pupilles'!$B$13:$AI$56,26+I$1,FALSE),0) -> 0 | J27: =IFERROR(VLOOKUP($B27,'Saisie Pupilles'!$B$13:$AI$56,26+J$1,FALSE),0) -> 17 | K27: =IFERROR(VLOOKUP($B27,'Saisie Pupilles'!$B$13:$AI$56,26+K$1,FALSE),0) -> 0 | L27: =IFERROR(VLOOKUP($B27,'Saisie Pupilles'!$B$13:$AI$56,26+L$1,FALSE),0) -> 0 | M27: =IFERROR(VLOOKUP($B27,'Saisie Pupilles'!$B$13:$AI$56,26+M$1,FALSE),0) -> 0 | N27: =IFERROR(VLOOKUP($B27,'Saisie Pupilles'!$B$13:$AI$56,26+N$1,FALSE),0) -> 0 | O27: =IFERROR(VLOOKUP($B27,'Saisie Pupilles'!$B$13:$AI$56,26+O$1,FALSE),0) -> 0 | P27: =IFERROR(VLOOKUP($B27,'Saisie Pupilles'!$B$13:$AI$56,26+P$1,FALSE),0) -> 0 | Q27: 17
A28: =IFERROR(IF(A27+1<='Saisie Pupilles'!$BF$12,A27+1,""),"") -> 23 | B28: =IFERROR(IF(A28<>"",VLOOKUP(A28,'Saisie Pupilles'!$BE$13:$BF$56,2,FALSE),""),"") -> 42700060275 | C28: =IFERROR(VLOOKUP($B28,'Saisie Pupilles'!$B$13:$AI$56,1+C$1,FALSE),0) -> PAILLOTTET | D28: =IFERROR(VLOOKUP($B28,'Saisie Pupilles'!$B$13:$AI$56,1+D$1,FALSE),0) -> Ronan | E28: =IFERROR(VLOOKUP($B28,'Saisie Pupilles'!$B$13:$AI$56,1+E$1,FALSE),0) -> H | F28: =IFERROR(VLOOKUP($B28,'Saisie Pupilles'!$B$13:$AI$56,1+F$1,FALSE),0) -> ROUE D`OR NOIDANS | G28: =IFERROR(VLOOKUP($B28,'Saisie Pupilles'!$B$13:$AI$56,1+G$1,FALSE),0) -> Pupille | H28: =IFERROR(VLOOKUP($B28,'Saisie Pupilles'!$B$13:$AI$56,1+H$1,FALSE),0) -> 1 | I28: =IFERROR(VLOOKUP($B28,'Saisie Pupilles'!$B$13:$AI$56,26+I$1,FALSE),0) -> 0 | J28: =IFERROR(VLOOKUP($B28,'Saisie Pupilles'!$B$13:$AI$56,26+J$1,FALSE),0) -> 16 | K28: =IFERROR(VLOOKUP($B28,'Saisie Pupilles'!$B$13:$AI$56,26+K$1,FALSE),0) -> 0 | L28: =IFERROR(VLOOKUP($B28,'Saisie Pupilles'!$B$13:$AI$56,26+L$1,FALSE),0) -> 0 | M28: =IFERROR(VLOOKUP($B28,'Saisie Pupilles'!$B$13:$AI$56,26+M$1,FALSE),0) -> 0 | N28: =IFERROR(VLOOKUP($B28,'Saisie Pupilles'!$B$13:$AI$56,26+N$1,FALSE),0) -> 0 | O28: =IFERROR(VLOOKUP($B28,'Saisie Pupilles'!$B$13:$AI$56,26+O$1,FALSE),0) -> 0 | P28: =IFERROR(VLOOKUP($B28,'Saisie Pupilles'!$B$13:$AI$56,26+P$1,FALSE),0) -> 0 | Q28: 16
A29: =IFERROR(IF(A28+1<='Saisie Pupilles'!$BF$12,A28+1,""),"") -> 24 | B29: =IFERROR(IF(A29<>"",VLOOKUP(A29,'Saisie Pupilles'!$BE$13:$BF$56,2,FALSE),""),"") -> 42250150362 | C29: =IFERROR(VLOOKUP($B29,'Saisie Pupilles'!$B$13:$AI$56,1+C$1,FALSE),0) -> LAFON | D29: =IFERROR(VLOOKUP($B29,'Saisie Pupilles'!$B$13:$AI$56,1+D$1,FALSE),0) -> Maxime | E29: =IFERROR(VLOOKUP($B29,'Saisie Pupilles'!$B$13:$AI$56,1+E$1,FALSE),0) -> H | F29: =IFERROR(VLOOKUP($B29,'Saisie Pupilles'!$B$13:$AI$56,1+F$1,FALSE),0) -> VELO CLUB ORNANS | G29: =IFERROR(VLOOKUP($B29,'Saisie Pupilles'!$B$13:$AI$56,1+G$1,FALSE),0) -> Pupille | H29: =IFERROR(VLOOKUP($B29,'Saisie Pupilles'!$B$13:$AI$56,1+H$1,FALSE),0) -> 2 | I29: =IFERROR(VLOOKUP($B29,'Saisie Pupilles'!$B$13:$AI$56,26+I$1,FALSE),0) -> 0 | J29: =IFERROR(VLOOKUP($B29,'Saisie Pupilles'!$B$13:$AI$56,26+J$1,FALSE),0) -> 15 | K29: =IFERROR(VLOOKUP($B29,'Saisie Pupilles'!$B$13:$AI$56,26+K$1,FALSE),0) -> 0 | L29: =IFERROR(VLOOKUP($B29,'Saisie Pupilles'!$B$13:$AI$56,26+L$1,FALSE),0) -> 0 | M29: =IFERROR(VLOOKUP($B29,'Saisie Pupilles'!$B$13:$AI$56,26+M$1,FALSE),0) -> 0 | N29: =IFERROR(VLOOKUP($B29,'Saisie Pupilles'!$B$13:$AI$56,26+N$1,FALSE),0) -> 0 | O29: =IFERROR(VLOOKUP($B29,'Saisie Pupilles'!$B$13:$AI$56,26+O$1,FALSE),0) -> 0 | P29: =IFERROR(VLOOKUP($B29,'Saisie Pupilles'!$B$13:$AI$56,26+P$1,FALSE),0) -> 0 | Q29: 15
A30: =IFERROR(IF(A29+1<='Saisie Pupilles'!$BF$12,A29+1,""),"") -> 25 | B30: =IFERROR(IF(A30<>"",VLOOKUP(A30,'Saisie Pupilles'!$BE$13:$BF$56,2,FALSE),""),"") -> 46880320465 | C30: =IFERROR(VLOOKUP($B30,'Saisie Pupilles'!$B$13:$AI$56,1+C$1,FALSE),0) -> HERMANN | D30: =IFERROR(VLOOKUP($B30,'Saisie Pupilles'!$B$13:$AI$56,1+D$1,FALSE),0) -> Nathan | E30: =IFERROR(VLOOKUP($B30,'Saisie Pupilles'!$B$13:$AI$56,1+E$1,FALSE),0) -> H | F30: =IFERROR(VLOOKUP($B30,'Saisie Pupilles'!$B$13:$AI$56,1+F$1,FALSE),0) -> CYCLE GOLBEEN | G30: =IFERROR(VLOOKUP($B30,'Saisie Pupilles'!$B$13:$AI$56,1+G$1,FALSE),0) -> Pupille | H30: =IFERROR(VLOOKUP($B30,'Saisie Pupilles'!$B$13:$AI$56,1+H$1,FALSE),0) -> 1 | I30: =IFERROR(VLOOKUP($B30,'Saisie Pupilles'!$B$13:$AI$56,26+I$1,FALSE),0) -> 0 | J30: =IFERROR(VLOOKUP($B30,'Saisie Pupilles'!$B$13:$AI$56,26+J$1,FALSE),0) -> 14 | K30: =IFERROR(VLOOKUP($B30,'Saisie Pupilles'!$B$13:$AI$56,26+K$1,FALSE),0) -> 0 | L30: =IFERROR(VLOOKUP($B30,'Saisie Pupilles'!$B$13:$AI$56,26+L$1,FALSE),0) -> 0 | M30: =IFERROR(VLOOKUP($B30,'Saisie Pupilles'!$B$13:$AI$56,26+M$1,FALSE),0) -> 0 | N30: =IFERROR(VLOOKUP($B30,'Saisie Pupilles'!$B$13:$AI$56,26+N$1,FALSE),0) -> 0 | O30: =IFERROR(VLOOKUP($B30,'Saisie Pupilles'!$B$13:$AI$56,26+O$1,FALSE),0) -> 0 | P30: =IFERROR(VLOOKUP($B30,'Saisie Pupilles'!$B$13:$AI$56,26+P$1,FALSE),0) -> 0 | Q30: 14
A31: =IFERROR(IF(A30+1<='Saisie Pupilles'!$BF$12,A30+1,""),"") ->  | B31: =IFERROR(IF(A31<>"",VLOOKUP(A31,'Saisie Pupilles'!$BE$13:$BF$56,2,FALSE),""),"") ->  | C31: =IFERROR(VLOOKUP($B31,'Saisie Pupilles'!$B$13:$AI$56,1+C$1,FALSE),0) -> 0 | D31: =IFERROR(VLOOKUP($B31,'Saisie Pupilles'!$B$13:$AI$56,1+D$1,FALSE),0) -> 0 | E31: =IFERROR(VLOOKUP($B31,'Saisie Pupilles'!$B$13:$AI$56,1+E$1,FALSE),0) -> 0 | F31: =IFERROR(VLOOKUP($B31,'Saisie Pupilles'!$B$13:$AI$56,1+F$1,FALSE),0) -> 0 | G31: =IFERROR(VLOOKUP($B31,'Saisie Pupilles'!$B$13:$AI$56,1+G$1,FALSE),0) -> 0 | H31: =IFERROR(VLOOKUP($B31,'Saisie Pupilles'!$B$13:$AI$56,1+H$1,FALSE),0) -> 0 | I31: =IFERROR(VLOOKUP($B31,'Saisie Pupilles'!$B$13:$AI$56,26+I$1,FALSE),0) -> 0 | J31: =IFERROR(VLOOKUP($B31,'Saisie Pupilles'!$B$13:$AI$56,26+J$1,FALSE),0) -> 0 | K31: =IFERROR(VLOOKUP($B31,'Saisie Pupilles'!$B$13:$AI$56,26+K$1,FALSE),0) -> 0 | L31: =IFERROR(VLOOKUP($B31,'Saisie Pupilles'!$B$13:$AI$56,26+L$1,FALSE),0) -> 0 | M31: =IFERROR(VLOOKUP($B31,'Saisie Pupilles'!$B$13:$AI$56,26+M$1,FALSE),0) -> 0 | N31: =IFERROR(VLOOKUP($B31,'Saisie Pupilles'!$B$13:$AI$56,26+N$1,FALSE),0) -> 0 | O31: =IFERROR(VLOOKUP($B31,'Saisie Pupilles'!$B$13:$AI$56,26+O$1,FALSE),0) -> 0 | P31: =IFERROR(VLOOKUP($B31,'Saisie Pupilles'!$B$13:$AI$56,26+P$1,FALSE),0) -> 0 | Q31: 0
A32: =IFERROR(IF(A31+1<='Saisie Pupilles'!$BF$12,A31+1,""),"") ->  | B32: =IFERROR(IF(A32<>"",VLOOKUP(A32,'Saisie Pupilles'!$BE$13:$BF$56,2,FALSE),""),"") ->  | C32: =IFERROR(VLOOKUP($B32,'Saisie Pupilles'!$B$13:$AI$56,1+C$1,FALSE),0) -> 0 | D32: =IFERROR(VLOOKUP($B32,'Saisie Pupilles'!$B$13:$AI$56,1+D$1,FALSE),0) -> 0 | E32: =IFERROR(VLOOKUP($B32,'Saisie Pupilles'!$B$13:$AI$56,1+E$1,FALSE),0) -> 0 | F32: =IFERROR(VLOOKUP($B32,'Saisie Pupilles'!$B$13:$AI$56,1+F$1,FALSE),0) -> 0 | G32: =IFERROR(VLOOKUP($B32,'Saisie Pupilles'!$B$13:$AI$56,1+G$1,FALSE),0) -> 0 | H32: =IFERROR(VLOOKUP($B32,'Saisie Pupilles'!$B$13:$AI$56,1+H$1,FALSE),0) -> 0 | I32: =IFERROR(VLOOKUP($B32,'Saisie Pupilles'!$B$13:$AI$56,26+I$1,FALSE),0) -> 0 | J32: =IFERROR(VLOOKUP($B32,'Saisie Pupilles'!$B$13:$AI$56,26+J$1,FALSE),0) -> 0 | K32: =IFERROR(VLOOKUP($B32,'Saisie Pupilles'!$B$13:$AI$56,26+K$1,FALSE),0) -> 0 | L32: =IFERROR(VLOOKUP($B32,'Saisie Pupilles'!$B$13:$AI$56,26+L$1,FALSE),0) -> 0 | M32: =IFERROR(VLOOKUP($B32,'Saisie Pupilles'!$B$13:$AI$56,26+M$1,FALSE),0) -> 0 | N32: =IFERROR(VLOOKUP($B32,'Saisie Pupilles'!$B$13:$AI$56,26+N$1,FALSE),0) -> 0 | O32: =IFERROR(VLOOKUP($B32,'Saisie Pupilles'!$B$13:$AI$56,26+O$1,FALSE),0) -> 0 | P32: =IFERROR(VLOOKUP($B32,'Saisie Pupilles'!$B$13:$AI$56,26+P$1,FALSE),0) -> 0 | Q32: 0
A33: =IFERROR(IF(A32+1<='Saisie Pupilles'!$BF$12,A32+1,""),"") ->  | B33: =IFERROR(IF(A33<>"",VLOOKUP(A33,'Saisie Pupilles'!$BE$13:$BF$56,2,FALSE),""),"") ->  | C33: =IFERROR(VLOOKUP($B33,'Saisie Pupilles'!$B$13:$AI$56,1+C$1,FALSE),0) -> 0 | D33: =IFERROR(VLOOKUP($B33,'Saisie Pupilles'!$B$13:$AI$56,1+D$1,FALSE),0) -> 0 | E33: =IFERROR(VLOOKUP($B33,'Saisie Pupilles'!$B$13:$AI$56,1+E$1,FALSE),0) -> 0 | F33: =IFERROR(VLOOKUP($B33,'Saisie Pupilles'!$B$13:$AI$56,1+F$1,FALSE),0) -> 0 | G33: =IFERROR(VLOOKUP($B33,'Saisie Pupilles'!$B$13:$AI$56,1+G$1,FALSE),0) -> 0 | H33: =IFERROR(VLOOKUP($B33,'Saisie Pupilles'!$B$13:$AI$56,1+H$1,FALSE),0) -> 0 | I33: =IFERROR(VLOOKUP($B33,'Saisie Pupilles'!$B$13:$AI$56,26+I$1,FALSE),0) -> 0 | J33: =IFERROR(VLOOKUP($B33,'Saisie Pupilles'!$B$13:$AI$56,26+J$1,FALSE),0) -> 0 | K33: =IFERROR(VLOOKUP($B33,'Saisie Pupilles'!$B$13:$AI$56,26+K$1,FALSE),0) -> 0 | L33: =IFERROR(VLOOKUP($B33,'Saisie Pupilles'!$B$13:$AI$56,26+L$1,FALSE),0) -> 0 | M33: =IFERROR(VLOOKUP($B33,'Saisie Pupilles'!$B$13:$AI$56,26+M$1,FALSE),0) -> 0 | N33: =IFERROR(VLOOKUP($B33,'Saisie Pupilles'!$B$13:$AI$56,26+N$1,FALSE),0) -> 0 | O33: =IFERROR(VLOOKUP($B33,'Saisie Pupilles'!$B$13:$AI$56,26+O$1,FALSE),0) -> 0 | P33: =IFERROR(VLOOKUP($B33,'Saisie Pupilles'!$B$13:$AI$56,26+P$1,FALSE),0) -> 0 | Q33: 0
A34: =IFERROR(IF(A33+1<='Saisie Pupilles'!$BF$12,A33+1,""),"") ->  | B34: =IFERROR(IF(A34<>"",VLOOKUP(A34,'Saisie Pupilles'!$BE$13:$BF$56,2,FALSE),""),"") ->  | C34: =IFERROR(VLOOKUP($B34,'Saisie Pupilles'!$B$13:$AI$56,1+C$1,FALSE),0) -> 0 | D34: =IFERROR(VLOOKUP($B34,'Saisie Pupilles'!$B$13:$AI$56,1+D$1,FALSE),0) -> 0 | E34: =IFERROR(VLOOKUP($B34,'Saisie Pupilles'!$B$13:$AI$56,1+E$1,FALSE),0) -> 0 | F34: =IFERROR(VLOOKUP($B34,'Saisie Pupilles'!$B$13:$AI$56,1+F$1,FALSE),0) -> 0 | G34: =IFERROR(VLOOKUP($B34,'Saisie Pupilles'!$B$13:$AI$56,1+G$1,FALSE),0) -> 0 | H34: =IFERROR(VLOOKUP($B34,'Saisie Pupilles'!$B$13:$AI$56,1+H$1,FALSE),0) -> 0 | I34: =IFERROR(VLOOKUP($B34,'Saisie Pupilles'!$B$13:$AI$56,26+I$1,FALSE),0) -> 0 | J34: =IFERROR(VLOOKUP($B34,'Saisie Pupilles'!$B$13:$AI$56,26+J$1,FALSE),0) -> 0 | K34: =IFERROR(VLOOKUP($B34,'Saisie Pupilles'!$B$13:$AI$56,26+K$1,FALSE),0) -> 0 | L34: =IFERROR(VLOOKUP($B34,'Saisie Pupilles'!$B$13:$AI$56,26+L$1,FALSE),0) -> 0 | M34: =IFERROR(VLOOKUP($B34,'Saisie Pupilles'!$B$13:$AI$56,26+M$1,FALSE),0) -> 0 | N34: =IFERROR(VLOOKUP($B34,'Saisie Pupilles'!$B$13:$AI$56,26+N$1,FALSE),0) -> 0 | O34: =IFERROR(VLOOKUP($B34,'Saisie Pupilles'!$B$13:$AI$56,26+O$1,FALSE),0) -> 0 | P34: =IFERROR(VLOOKUP($B34,'Saisie Pupilles'!$B$13:$AI$56,26+P$1,FALSE),0) -> 0 | Q34: 0
A35: =IFERROR(IF(A34+1<='Saisie Pupilles'!$BF$12,A34+1,""),"") ->  | B35: =IFERROR(IF(A35<>"",VLOOKUP(A35,'Saisie Pupilles'!$BE$13:$BF$56,2,FALSE),""),"") ->  | C35: =IFERROR(VLOOKUP($B35,'Saisie Pupilles'!$B$13:$AI$56,1+C$1,FALSE),0) -> 0 | D35: =IFERROR(VLOOKUP($B35,'Saisie Pupilles'!$B$13:$AI$56,1+D$1,FALSE),0) -> 0 | E35: =IFERROR(VLOOKUP($B35,'Saisie Pupilles'!$B$13:$AI$56,1+E$1,FALSE),0) -> 0 | F35: =IFERROR(VLOOKUP($B35,'Saisie Pupilles'!$B$13:$AI$56,1+F$1,FALSE),0) -> 0 | G35: =IFERROR(VLOOKUP($B35,'Saisie Pupilles'!$B$13:$AI$56,1+G$1,FALSE),0) -> 0 | H35: =IFERROR(VLOOKUP($B35,'Saisie Pupilles'!$B$13:$AI$56,1+H$1,FALSE),0) -> 0 | I35: =IFERROR(VLOOKUP($B35,'Saisie Pupilles'!$B$13:$AI$56,26+I$1,FALSE),0) -> 0 | J35: =IFERROR(VLOOKUP($B35,'Saisie Pupilles'!$B$13:$AI$56,26+J$1,FALSE),0) -> 0 | K35: =IFERROR(VLOOKUP($B35,'Saisie Pupilles'!$B$13:$AI$56,26+K$1,FALSE),0) -> 0 | L35: =IFERROR(VLOOKUP($B35,'Saisie Pupilles'!$B$13:$AI$56,26+L$1,FALSE),0) -> 0 | M35: =IFERROR(VLOOKUP($B35,'Saisie Pupilles'!$B$13:$AI$56,26+M$1,FALSE),0) -> 0 | N35: =IFERROR(VLOOKUP($B35,'Saisie Pupilles'!$B$13:$AI$56,26+N$1,FALSE),0) -> 0 | O35: =IFERROR(VLOOKUP($B35,'Saisie Pupilles'!$B$13:$AI$56,26+O$1,FALSE),0) -> 0 | P35: =IFERROR(VLOOKUP($B35,'Saisie Pupilles'!$B$13:$AI$56,26+P$1,FALSE),0) -> 0 | Q35: 0
A36: =IFERROR(IF(A35+1<='Saisie Pupilles'!$BF$12,A35+1,""),"") ->  | B36: =IFERROR(IF(A36<>"",VLOOKUP(A36,'Saisie Pupilles'!$BE$13:$BF$56,2,FALSE),""),"") ->  | C36: =IFERROR(VLOOKUP($B36,'Saisie Pupilles'!$B$13:$AI$56,1+C$1,FALSE),0) -> 0 | D36: =IFERROR(VLOOKUP($B36,'Saisie Pupilles'!$B$13:$AI$56,1+D$1,FALSE),0) -> 0 | E36: =IFERROR(VLOOKUP($B36,'Saisie Pupilles'!$B$13:$AI$56,1+E$1,FALSE),0) -> 0 | F36: =IFERROR(VLOOKUP($B36,'Saisie Pupilles'!$B$13:$AI$56,1+F$1,FALSE),0) -> 0 | G36: =IFERROR(VLOOKUP($B36,'Saisie Pupilles'!$B$13:$AI$56,1+G$1,FALSE),0) -> 0 | H36: =IFERROR(VLOOKUP($B36,'Saisie Pupilles'!$B$13:$AI$56,1+H$1,FALSE),0) -> 0 | I36: =IFERROR(VLOOKUP($B36,'Saisie Pupilles'!$B$13:$AI$56,26+I$1,FALSE),0) -> 0 | J36: =IFERROR(VLOOKUP($B36,'Saisie Pupilles'!$B$13:$AI$56,26+J$1,FALSE),0) -> 0 | K36: =IFERROR(VLOOKUP($B36,'Saisie Pupilles'!$B$13:$AI$56,26+K$1,FALSE),0) -> 0 | L36: =IFERROR(VLOOKUP($B36,'Saisie Pupilles'!$B$13:$AI$56,26+L$1,FALSE),0) -> 0 | M36: =IFERROR(VLOOKUP($B36,'Saisie Pupilles'!$B$13:$AI$56,26+M$1,FALSE),0) -> 0 | N36: =IFERROR(VLOOKUP($B36,'Saisie Pupilles'!$B$13:$AI$56,26+N$1,FALSE),0) -> 0 | O36: =IFERROR(VLOOKUP($B36,'Saisie Pupilles'!$B$13:$AI$56,26+O$1,FALSE),0) -> 0 | P36: =IFERROR(VLOOKUP($B36,'Saisie Pupilles'!$B$13:$AI$56,26+P$1,FALSE),0) -> 0 | Q36: 0
A37: =IFERROR(IF(A36+1<='Saisie Pupilles'!$BF$12,A36+1,""),"") ->  | B37: =IFERROR(IF(A37<>"",VLOOKUP(A37,'Saisie Pupilles'!$BE$13:$BF$56,2,FALSE),""),"") ->  | C37: =IFERROR(VLOOKUP($B37,'Saisie Pupilles'!$B$13:$AI$56,1+C$1,FALSE),0) -> 0 | D37: =IFERROR(VLOOKUP($B37,'Saisie Pupilles'!$B$13:$AI$56,1+D$1,FALSE),0) -> 0 | E37: =IFERROR(VLOOKUP($B37,'Saisie Pupilles'!$B$13:$AI$56,1+E$1,FALSE),0) -> 0 | F37: =IFERROR(VLOOKUP($B37,'Saisie Pupilles'!$B$13:$AI$56,1+F$1,FALSE),0) -> 0 | G37: =IFERROR(VLOOKUP($B37,'Saisie Pupilles'!$B$13:$AI$56,1+G$1,FALSE),0) -> 0 | H37: =IFERROR(VLOOKUP($B37,'Saisie Pupilles'!$B$13:$AI$56,1+H$1,FALSE),0) -> 0 | I37: =IFERROR(VLOOKUP($B37,'Saisie Pupilles'!$B$13:$AI$56,26+I$1,FALSE),0) -> 0 | J37: =IFERROR(VLOOKUP($B37,'Saisie Pupilles'!$B$13:$AI$56,26+J$1,FALSE),0) -> 0 | K37: =IFERROR(VLOOKUP($B37,'Saisie Pupilles'!$B$13:$AI$56,26+K$1,FALSE),0) -> 0 | L37: =IFERROR(VLOOKUP($B37,'Saisie Pupilles'!$B$13:$AI$56,26+L$1,FALSE),0) -> 0 | M37: =IFERROR(VLOOKUP($B37,'Saisie Pupilles'!$B$13:$AI$56,26+M$1,FALSE),0) -> 0 | N37: =IFERROR(VLOOKUP($B37,'Saisie Pupilles'!$B$13:$AI$56,26+N$1,FALSE),0) -> 0 | O37: =IFERROR(VLOOKUP($B37,'Saisie Pupilles'!$B$13:$AI$56,26+O$1,FALSE),0) -> 0 | P37: =IFERROR(VLOOKUP($B37,'Saisie Pupilles'!$B$13:$AI$56,26+P$1,FALSE),0) -> 0 | Q37: 0
A38: =IFERROR(IF(A37+1<='Saisie Pupilles'!$BF$12,A37+1,""),"") ->  | B38: =IFERROR(IF(A38<>"",VLOOKUP(A38,'Saisie Pupilles'!$BE$13:$BF$56,2,FALSE),""),"") ->  | C38: =IFERROR(VLOOKUP($B38,'Saisie Pupilles'!$B$13:$AI$56,1+C$1,FALSE),0) -> 0 | D38: =IFERROR(VLOOKUP($B38,'Saisie Pupilles'!$B$13:$AI$56,1+D$1,FALSE),0) -> 0 | E38: =IFERROR(VLOOKUP($B38,'Saisie Pupilles'!$B$13:$AI$56,1+E$1,FALSE),0) -> 0 | F38: =IFERROR(VLOOKUP($B38,'Saisie Pupilles'!$B$13:$AI$56,1+F$1,FALSE),0) -> 0 | G38: =IFERROR(VLOOKUP($B38,'Saisie Pupilles'!$B$13:$AI$56,1+G$1,FALSE),0) -> 0 | H38: =IFERROR(VLOOKUP($B38,'Saisie Pupilles'!$B$13:$AI$56,1+H$1,FALSE),0) -> 0 | I38: =IFERROR(VLOOKUP($B38,'Saisie Pupilles'!$B$13:$AI$56,26+I$1,FALSE),0) -> 0 | J38: =IFERROR(VLOOKUP($B38,'Saisie Pupilles'!$B$13:$AI$56,26+J$1,FALSE),0) -> 0 | K38: =IFERROR(VLOOKUP($B38,'Saisie Pupilles'!$B$13:$AI$56,26+K$1,FALSE),0) -> 0 | L38: =IFERROR(VLOOKUP($B38,'Saisie Pupilles'!$B$13:$AI$56,26+L$1,FALSE),0) -> 0 | M38: =IFERROR(VLOOKUP($B38,'Saisie Pupilles'!$B$13:$AI$56,26+M$1,FALSE),0) -> 0 | N38: =IFERROR(VLOOKUP($B38,'Saisie Pupilles'!$B$13:$AI$56,26+N$1,FALSE),0) -> 0 | O38: =IFERROR(VLOOKUP($B38,'Saisie Pupilles'!$B$13:$AI$56,26+O$1,FALSE),0) -> 0 | P38: =IFERROR(VLOOKUP($B38,'Saisie Pupilles'!$B$13:$AI$56,26+P$1,FALSE),0) -> 0 | Q38: 0
A39: =IFERROR(IF(A38+1<='Saisie Pupilles'!$BF$12,A38+1,""),"") ->  | B39: =IFERROR(IF(A39<>"",VLOOKUP(A39,'Saisie Pupilles'!$BE$13:$BF$56,2,FALSE),""),"") ->  | C39: =IFERROR(VLOOKUP($B39,'Saisie Pupilles'!$B$13:$AI$56,1+C$1,FALSE),0) -> 0 | D39: =IFERROR(VLOOKUP($B39,'Saisie Pupilles'!$B$13:$AI$56,1+D$1,FALSE),0) -> 0 | E39: =IFERROR(VLOOKUP($B39,'Saisie Pupilles'!$B$13:$AI$56,1+E$1,FALSE),0) -> 0 | F39: =IFERROR(VLOOKUP($B39,'Saisie Pupilles'!$B$13:$AI$56,1+F$1,FALSE),0) -> 0 | G39: =IFERROR(VLOOKUP($B39,'Saisie Pupilles'!$B$13:$AI$56,1+G$1,FALSE),0) -> 0 | H39: =IFERROR(VLOOKUP($B39,'Saisie Pupilles'!$B$13:$AI$56,1+H$1,FALSE),0) -> 0 | I39: =IFERROR(VLOOKUP($B39,'Saisie Pupilles'!$B$13:$AI$56,26+I$1,FALSE),0) -> 0 | J39: =IFERROR(VLOOKUP($B39,'Saisie Pupilles'!$B$13:$AI$56,26+J$1,FALSE),0) -> 0 | K39: =IFERROR(VLOOKUP($B39,'Saisie Pupilles'!$B$13:$AI$56,26+K$1,FALSE),0) -> 0 | L39: =IFERROR(VLOOKUP($B39,'Saisie Pupilles'!$B$13:$AI$56,26+L$1,FALSE),0) -> 0 | M39: =IFERROR(VLOOKUP($B39,'Saisie Pupilles'!$B$13:$AI$56,26+M$1,FALSE),0) -> 0 | N39: =IFERROR(VLOOKUP($B39,'Saisie Pupilles'!$B$13:$AI$56,26+N$1,FALSE),0) -> 0 | O39: =IFERROR(VLOOKUP($B39,'Saisie Pupilles'!$B$13:$AI$56,26+O$1,FALSE),0) -> 0 | P39: =IFERROR(VLOOKUP($B39,'Saisie Pupilles'!$B$13:$AI$56,26+P$1,FALSE),0) -> 0 | Q39: 0
A40: =IFERROR(IF(A39+1<='Saisie Pupilles'!$BF$12,A39+1,""),"") ->  | B40: =IFERROR(IF(A40<>"",VLOOKUP(A40,'Saisie Pupilles'!$BE$13:$BF$56,2,FALSE),""),"") ->  | C40: =IFERROR(VLOOKUP($B40,'Saisie Pupilles'!$B$13:$AI$56,1+C$1,FALSE),0) -> 0 | D40: =IFERROR(VLOOKUP($B40,'Saisie Pupilles'!$B$13:$AI$56,1+D$1,FALSE),0) -> 0 | E40: =IFERROR(VLOOKUP($B40,'Saisie Pupilles'!$B$13:$AI$56,1+E$1,FALSE),0) -> 0 | F40: =IFERROR(VLOOKUP($B40,'Saisie Pupilles'!$B$13:$AI$56,1+F$1,FALSE),0) -> 0 | G40: =IFERROR(VLOOKUP($B40,'Saisie Pupilles'!$B$13:$AI$56,1+G$1,FALSE),0) -> 0 | H40: =IFERROR(VLOOKUP($B40,'Saisie Pupilles'!$B$13:$AI$56,1+H$1,FALSE),0) -> 0 | I40: =IFERROR(VLOOKUP($B40,'Saisie Pupilles'!$B$13:$AI$56,26+I$1,FALSE),0) -> 0 | J40: =IFERROR(VLOOKUP($B40,'Saisie Pupilles'!$B$13:$AI$56,26+J$1,FALSE),0) -> 0 | K40: =IFERROR(VLOOKUP($B40,'Saisie Pupilles'!$B$13:$AI$56,26+K$1,FALSE),0) -> 0 | L40: =IFERROR(VLOOKUP($B40,'Saisie Pupilles'!$B$13:$AI$56,26+L$1,FALSE),0) -> 0 | M40: =IFERROR(VLOOKUP($B40,'Saisie Pupilles'!$B$13:$AI$56,26+M$1,FALSE),0) -> 0 | N40: =IFERROR(VLOOKUP($B40,'Saisie Pupilles'!$B$13:$AI$56,26+N$1,FALSE),0) -> 0 | O40: =IFERROR(VLOOKUP($B40,'Saisie Pupilles'!$B$13:$AI$56,26+O$1,FALSE),0) -> 0 | P40: =IFERROR(VLOOKUP($B40,'Saisie Pupilles'!$B$13:$AI$56,26+P$1,FALSE),0) -> 0 | Q40: 0
A41: =IFERROR(IF(A40+1<='Saisie Pupilles'!$BF$12,A40+1,""),"") ->  | B41: =IFERROR(IF(A41<>"",VLOOKUP(A41,'Saisie Pupilles'!$BE$13:$BF$56,2,FALSE),""),"") ->  | C41: =IFERROR(VLOOKUP($B41,'Saisie Pupilles'!$B$13:$AI$56,1+C$1,FALSE),0) -> 0 | D41: =IFERROR(VLOOKUP($B41,'Saisie Pupilles'!$B$13:$AI$56,1+D$1,FALSE),0) -> 0 | E41: =IFERROR(VLOOKUP($B41,'Saisie Pupilles'!$B$13:$AI$56,1+E$1,FALSE),0) -> 0 | F41: =IFERROR(VLOOKUP($B41,'Saisie Pupilles'!$B$13:$AI$56,1+F$1,FALSE),0) -> 0 | G41: =IFERROR(VLOOKUP($B41,'Saisie Pupilles'!$B$13:$AI$56,1+G$1,FALSE),0) -> 0 | H41: =IFERROR(VLOOKUP($B41,'Saisie Pupilles'!$B$13:$AI$56,1+H$1,FALSE),0) -> 0 | I41: =IFERROR(VLOOKUP($B41,'Saisie Pupilles'!$B$13:$AI$56,26+I$1,FALSE),0) -> 0 | J41: =IFERROR(VLOOKUP($B41,'Saisie Pupilles'!$B$13:$AI$56,26+J$1,FALSE),0) -> 0 | K41: =IFERROR(VLOOKUP($B41,'Saisie Pupilles'!$B$13:$AI$56,26+K$1,FALSE),0) -> 0 | L41: =IFERROR(VLOOKUP($B41,'Saisie Pupilles'!$B$13:$AI$56,26+L$1,FALSE),0) -> 0 | M41: =IFERROR(VLOOKUP($B41,'Saisie Pupilles'!$B$13:$AI$56,26+M$1,FALSE),0) -> 0 | N41: =IFERROR(VLOOKUP($B41,'Saisie Pupilles'!$B$13:$AI$56,26+N$1,FALSE),0) -> 0 | O41: =IFERROR(VLOOKUP($B41,'Saisie Pupilles'!$B$13:$AI$56,26+O$1,FALSE),0) -> 0 | P41: =IFERROR(VLOOKUP($B41,'Saisie Pupilles'!$B$13:$AI$56,26+P$1,FALSE),0) -> 0 | Q41: 0
A42: =IFERROR(IF(A41+1<='Saisie Pupilles'!$BF$12,A41+1,""),"") ->  | B42: =IFERROR(IF(A42<>"",VLOOKUP(A42,'Saisie Pupilles'!$BE$13:$BF$56,2,FALSE),""),"") ->  | C42: =IFERROR(VLOOKUP($B42,'Saisie Pupilles'!$B$13:$AI$56,1+C$1,FALSE),0) -> 0 | D42: =IFERROR(VLOOKUP($B42,'Saisie Pupilles'!$B$13:$AI$56,1+D$1,FALSE),0) -> 0 | E42: =IFERROR(VLOOKUP($B42,'Saisie Pupilles'!$B$13:$AI$56,1+E$1,FALSE),0) -> 0 | F42: =IFERROR(VLOOKUP($B42,'Saisie Pupilles'!$B$13:$AI$56,1+F$1,FALSE),0) -> 0 | G42: =IFERROR(VLOOKUP($B42,'Saisie Pupilles'!$B$13:$AI$56,1+G$1,FALSE),0) -> 0 | H42: =IFERROR(VLOOKUP($B42,'Saisie Pupilles'!$B$13:$AI$56,1+H$1,FALSE),0) -> 0 | I42: =IFERROR(VLOOKUP($B42,'Saisie Pupilles'!$B$13:$AI$56,26+I$1,FALSE),0) -> 0 | J42: =IFERROR(VLOOKUP($B42,'Saisie Pupilles'!$B$13:$AI$56,26+J$1,FALSE),0) -> 0 | K42: =IFERROR(VLOOKUP($B42,'Saisie Pupilles'!$B$13:$AI$56,26+K$1,FALSE),0) -> 0 | L42: =IFERROR(VLOOKUP($B42,'Saisie Pupilles'!$B$13:$AI$56,26+L$1,FALSE),0) -> 0 | M42: =IFERROR(VLOOKUP($B42,'Saisie Pupilles'!$B$13:$AI$56,26+M$1,FALSE),0) -> 0 | N42: =IFERROR(VLOOKUP($B42,'Saisie Pupilles'!$B$13:$AI$56,26+N$1,FALSE),0) -> 0 | O42: =IFERROR(VLOOKUP($B42,'Saisie Pupilles'!$B$13:$AI$56,26+O$1,FALSE),0) -> 0 | P42: =IFERROR(VLOOKUP($B42,'Saisie Pupilles'!$B$13:$AI$56,26+P$1,FALSE),0) -> 0 | Q42: 0
A43: =IFERROR(IF(A42+1<='Saisie Pupilles'!$BF$12,A42+1,""),"") ->  | B43: =IFERROR(IF(A43<>"",VLOOKUP(A43,'Saisie Pupilles'!$BE$13:$BF$56,2,FALSE),""),"") ->  | C43: =IFERROR(VLOOKUP($B43,'Saisie Pupilles'!$B$13:$AI$56,1+C$1,FALSE),0) -> 0 | D43: =IFERROR(VLOOKUP($B43,'Saisie Pupilles'!$B$13:$AI$56,1+D$1,FALSE),0) -> 0 | E43: =IFERROR(VLOOKUP($B43,'Saisie Pupilles'!$B$13:$AI$56,1+E$1,FALSE),0) -> 0 | F43: =IFERROR(VLOOKUP($B43,'Saisie Pupilles'!$B$13:$AI$56,1+F$1,FALSE),0) -> 0 | G43: =IFERROR(VLOOKUP($B43,'Saisie Pupilles'!$B$13:$AI$56,1+G$1,FALSE),0) -> 0 | H43: =IFERROR(VLOOKUP($B43,'Saisie Pupilles'!$B$13:$AI$56,1+H$1,FALSE),0) -> 0 | I43: =IFERROR(VLOOKUP($B43,'Saisie Pupilles'!$B$13:$AI$56,26+I$1,FALSE),0) -> 0 | J43: =IFERROR(VLOOKUP($B43,'Saisie Pupilles'!$B$13:$AI$56,26+J$1,FALSE),0) -> 0 | K43: =IFERROR(VLOOKUP($B43,'Saisie Pupilles'!$B$13:$AI$56,26+K$1,FALSE),0) -> 0 | L43: =IFERROR(VLOOKUP($B43,'Saisie Pupilles'!$B$13:$AI$56,26+L$1,FALSE),0) -> 0 | M43: =IFERROR(VLOOKUP($B43,'Saisie Pupilles'!$B$13:$AI$56,26+M$1,FALSE),0) -> 0 | N43: =IFERROR(VLOOKUP($B43,'Saisie Pupilles'!$B$13:$AI$56,26+N$1,FALSE),0) -> 0 | O43: =IFERROR(VLOOKUP($B43,'Saisie Pupilles'!$B$13:$AI$56,26+O$1,FALSE),0) -> 0 | P43: =IFERROR(VLOOKUP($B43,'Saisie Pupilles'!$B$13:$AI$56,26+P$1,FALSE),0) -> 0 | Q43: 0
A44: =IFERROR(IF(A43+1<='Saisie Pupilles'!$BF$12,A43+1,""),"") ->  | B44: =IFERROR(IF(A44<>"",VLOOKUP(A44,'Saisie Pupilles'!$BE$13:$BF$56,2,FALSE),""),"") ->  | C44: =IFERROR(VLOOKUP($B44,'Saisie Pupilles'!$B$13:$AI$56,1+C$1,FALSE),0) -> 0 | D44: =IFERROR(VLOOKUP($B44,'Saisie Pupilles'!$B$13:$AI$56,1+D$1,FALSE),0) -> 0 | E44: =IFERROR(VLOOKUP($B44,'Saisie Pupilles'!$B$13:$AI$56,1+E$1,FALSE),0) -> 0 | F44: =IFERROR(VLOOKUP($B44,'Saisie Pupilles'!$B$13:$AI$56,1+F$1,FALSE),0) -> 0 | G44: =IFERROR(VLOOKUP($B44,'Saisie Pupilles'!$B$13:$AI$56,1+G$1,FALSE),0) -> 0 | H44: =IFERROR(VLOOKUP($B44,'Saisie Pupilles'!$B$13:$AI$56,1+H$1,FALSE),0) -> 0 | I44: =IFERROR(VLOOKUP($B44,'Saisie Pupilles'!$B$13:$AI$56,26+I$1,FALSE),0) -> 0 | J44: =IFERROR(VLOOKUP($B44,'Saisie Pupilles'!$B$13:$AI$56,26+J$1,FALSE),0) -> 0 | K44: =IFERROR(VLOOKUP($B44,'Saisie Pupilles'!$B$13:$AI$56,26+K$1,FALSE),0) -> 0 | L44: =IFERROR(VLOOKUP($B44,'Saisie Pupilles'!$B$13:$AI$56,26+L$1,FALSE),0) -> 0 | M44: =IFERROR(VLOOKUP($B44,'Saisie Pupilles'!$B$13:$AI$56,26+M$1,FALSE),0) -> 0 | N44: =IFERROR(VLOOKUP($B44,'Saisie Pupilles'!$B$13:$AI$56,26+N$1,FALSE),0) -> 0 | O44: =IFERROR(VLOOKUP($B44,'Saisie Pupilles'!$B$13:$AI$56,26+O$1,FALSE),0) -> 0 | P44: =IFERROR(VLOOKUP($B44,'Saisie Pupilles'!$B$13:$AI$56,26+P$1,FALSE),0) -> 0 | Q44: 0
A45: =IFERROR(IF(A44+1<='Saisie Pupilles'!$BF$12,A44+1,""),"") ->  | B45: =IFERROR(IF(A45<>"",VLOOKUP(A45,'Saisie Pupilles'!$BE$13:$BF$56,2,FALSE),""),"") ->  | C45: =IFERROR(VLOOKUP($B45,'Saisie Pupilles'!$B$13:$AI$56,1+C$1,FALSE),0) -> 0 | D45: =IFERROR(VLOOKUP($B45,'Saisie Pupilles'!$B$13:$AI$56,1+D$1,FALSE),0) -> 0 | E45: =IFERROR(VLOOKUP($B45,'Saisie Pupilles'!$B$13:$AI$56,1+E$1,FALSE),0) -> 0 | F45: =IFERROR(VLOOKUP($B45,'Saisie Pupilles'!$B$13:$AI$56,1+F$1,FALSE),0) -> 0 | G45: =IFERROR(VLOOKUP($B45,'Saisie Pupilles'!$B$13:$AI$56,1+G$1,FALSE),0) -> 0 | H45: =IFERROR(VLOOKUP($B45,'Saisie Pupilles'!$B$13:$AI$56,1+H$1,FALSE),0) -> 0 | I45: =IFERROR(VLOOKUP($B45,'Saisie Pupilles'!$B$13:$AI$56,26+I$1,FALSE),0) -> 0 | J45: =IFERROR(VLOOKUP($B45,'Saisie Pupilles'!$B$13:$AI$56,26+J$1,FALSE),0) -> 0 | K45: =IFERROR(VLOOKUP($B45,'Saisie Pupilles'!$B$13:$AI$56,26+K$1,FALSE),0) -> 0 | L45: =IFERROR(VLOOKUP($B45,'Saisie Pupilles'!$B$13:$AI$56,26+L$1,FALSE),0) -> 0 | M45: =IFERROR(VLOOKUP($B45,'Saisie Pupilles'!$B$13:$AI$56,26+M$1,FALSE),0) -> 0 | N45: =IFERROR(VLOOKUP($B45,'Saisie Pupilles'!$B$13:$AI$56,26+N$1,FALSE),0) -> 0 | O45: =IFERROR(VLOOKUP($B45,'Saisie Pupilles'!$B$13:$AI$56,26+O$1,FALSE),0) -> 0 | P45: =IFERROR(VLOOKUP($B45,'Saisie Pupilles'!$B$13:$AI$56,26+P$1,FALSE),0) -> 0 | Q45: 0
A46: =IFERROR(IF(A45+1<='Saisie Pupilles'!$BF$12,A45+1,""),"") ->  | B46: =IFERROR(IF(A46<>"",VLOOKUP(A46,'Saisie Pupilles'!$BE$13:$BF$56,2,FALSE),""),"") ->  | C46: =IFERROR(VLOOKUP($B46,'Saisie Pupilles'!$B$13:$AI$56,1+C$1,FALSE),0) -> 0 | D46: =IFERROR(VLOOKUP($B46,'Saisie Pupilles'!$B$13:$AI$56,1+D$1,FALSE),0) -> 0 | E46: =IFERROR(VLOOKUP($B46,'Saisie Pupilles'!$B$13:$AI$56,1+E$1,FALSE),0) -> 0 | F46: =IFERROR(VLOOKUP($B46,'Saisie Pupilles'!$B$13:$AI$56,1+F$1,FALSE),0) -> 0 | G46: =IFERROR(VLOOKUP($B46,'Saisie Pupilles'!$B$13:$AI$56,1+G$1,FALSE),0) -> 0 | H46: =IFERROR(VLOOKUP($B46,'Saisie Pupilles'!$B$13:$AI$56,1+H$1,FALSE),0) -> 0 | I46: =IFERROR(VLOOKUP($B46,'Saisie Pupilles'!$B$13:$AI$56,26+I$1,FALSE),0) -> 0 | J46: =IFERROR(VLOOKUP($B46,'Saisie Pupilles'!$B$13:$AI$56,26+J$1,FALSE),0) -> 0 | K46: =IFERROR(VLOOKUP($B46,'Saisie Pupilles'!$B$13:$AI$56,26+K$1,FALSE),0) -> 0 | L46: =IFERROR(VLOOKUP($B46,'Saisie Pupilles'!$B$13:$AI$56,26+L$1,FALSE),0) -> 0 | M46: =IFERROR(VLOOKUP($B46,'Saisie Pupilles'!$B$13:$AI$56,26+M$1,FALSE),0) -> 0 | N46: =IFERROR(VLOOKUP($B46,'Saisie Pupilles'!$B$13:$AI$56,26+N$1,FALSE),0) -> 0 | O46: =IFERROR(VLOOKUP($B46,'Saisie Pupilles'!$B$13:$AI$56,26+O$1,FALSE),0) -> 0 | P46: =IFERROR(VLOOKUP($B46,'Saisie Pupilles'!$B$13:$AI$56,26+P$1,FALSE),0) -> 0 | Q46: 0
